{"text_format":"1","workbook":"xlsx","n_sheets":8,"sheets":["comparar","listas","Índice","Presentación","Informantes","Participantes","CNGE_2023_M7_Secc3","Glosario"],"not_rendered":{"charts":0,"images":5,"macros":1,"external_links":0,"defined_names":9,"comments":0,"pivot_tables":0},"unopened":[],"bounds":{"document_bytes":16777216,"sheet_cells":100000,"rows_first":2000,"rows_last":500,"rows_between":2000,"halvings":0,"cell_chars":16384,"cell_head_chars":4096},"cells_cut":0,"cells_raw":0,"read":"whole","date_system":"1900"}

{"sheet":"comparar","index":0,"n_rows":64,"n_cols":49,"rows_kept":64,"cut":false,"hidden":true,"merged":[]}
["2022","P1_1_0","P1_2_0","P1_3_0","P8_1","P8_2","P8_3","P8_4","P8_5","P8_6","P9_1","P9_2","P9_3","P9_4","P9_5","P9_6","P9_7","P9_8","P9_9","P18","P20","P23_1","P23_2","P25","P26","P41_1","P41_2","P42","P46","P49","P52","extra"]
["2023","P1_1_0","P1_2_0","P1_3_0","P8_1","P8_2","P8_3","P8_4","P8_5","P8_6","P9_1","P9_2","P9_3","P9_4","P9_5","P9_6","P9_7","P9_8","P9_9","P18","P20","P23_1","P23_2","P25","P26","P41_1","P41_2","P42","P46","P49","P52","extra"]
["201",1,1,1,2,1,1,2,1,2,1,1,1,1,1,1,2,1,1,1,1,9,-1,1,1,1,1,2,1,1,1]
["202",1,1,1,1,1,1,1,1,1,1,1,1,1,1,1,1,1,1,1,1,1,1,2,1,1,1,1,1,1,2]
["203",1,1,1,1,1,2,1,1,1,1,2,1,1,1,1,2,2,2,2,1,1,1,1,1,1,1,1,1,1,1]
["204",1,1,1,1,1,1,1,1,1,1,2,1,2,2,2,1,1,2,1,1,1,2,1,1,1,1,1,1,1,2]
["205",1,1,1,1,1,1,1,1,1,1,1,1,1,1,2,2,1,2,1,1,1,1,1,1,1,1,2,1,1,1]
["206",1,1,1,1,1,1,1,1,1,1,2,1,2,2,1,2,1,2,1,1,1,2,1,1,1,2,-2,1,2,2]
["207",1,1,1,1,1,1,1,1,1,2,2,2,1,2,1,2,1,2,2,1,2,-2,1,9,1,2,-2,1,1,2]
["208",1,1,1,1,1,1,1,1,1,1,2,2,2,1,2,2,1,2,1,1,1,1,2,1,1,1,2,1,1,1]
["209",1,1,1,1,1,1,1,1,1,1,9,9,2,1,1,9,1,1,1,1,1,1,1,1,1,1,1,1,1,1]
["210",1,1,1,1,1,1,1,1,1,2,2,1,1,1,2,2,1,1,1,1,2,-2,1,1,1,1,1,1,1,1]
["211",1,1,1,1,1,1,1,1,1,1,2,2,2,1,2,1,1,2,2,1,1,1,1,1,1,1,1,1,1,1]
["212",1,1,1,1,1,1,1,1,1,1,1,1,2,1,1,1,1,2,1,1,1,2,1,1,1,1,1,1,1,2]
["213",1,1,1,1,1,1,1,1,1,1,1,1,1,2,1,2,1,1,1,1,1,1,1,1,1,1,1,1,1,1]
["214",1,1,1,1,1,1,1,1,1,1,2,1,1,1,1,1,1,2,1,1,2,-2,1,2,2,-2,-2,1,1,1]
["215",1,1,1,1,1,1,1,1,1,1,1,1,1,1,1,2,1,2,1,1,9,-1,1,1,1,9,-1,1,1,1]
["216",1,1,1,1,1,1,1,1,1,1,1,1,1,1,1,1,1,2,1,1,1,1,1,1,1,1,1,1,1,1]
["217",1,1,1,1,1,2,1,2,1,1,1,1,1,2,2,2,1,2,1,1,1,1,1,2,1,1,2,1,1,1]
["218",2,1,1,1,1,1,1,1,1,2,2,1,2,2,2,1,1,2,1,1,1,1,1,1,1,1,1,1,1,1]
["219",1,1,1,1,1,1,1,1,1,1,2,1,2,1,2,1,1,2,1,1,1,9,1,1,1,1,1,1,1,1]
["220",1,1,1,1,1,1,1,1,1,2,2,1,1,2,2,2,1,1,1,1,2,-2,1,1,1,1,2,2,1,2]
["221",1,1,1,1,1,1,1,1,1,1,1,1,1,1,2,1,1,1,1,1,1,1,1,1,1,1,1,1,1,1]
["222",1,1,1,1,1,1,1,2,1,1,2,1,1,2,1,2,1,2,1,1,1,1,1,1,2,-2,-2,1,1,1]
["223",1,1,1,1,1,1,1,1,1,1,1,1,1,2,1,2,2,2,2,1,2,-2,1,1,1,1,1,1,1,1]
["224",1,1,1,1,1,1,1,1,1,1,2,2,1,1,1,1,1,2,1,1,2,-2,1,2,2,-2,-2,1,1,1]
["225",1,1,1,1,1,1,1,1,1,1,1,2,2,1,2,2,2,2,1,1,2,-2,1,1,1,1,2,1,1,2]
["226",1,1,1,1,1,1,1,1,1,1,1,1,1,1,1,2,1,2,1,1,2,-2,1,1,2,-2,-2,1,1,1]
["227",1,1,1,1,1,1,1,1,1,1,2,1,1,1,2,1,1,2,1,1,1,1,1,1,1,2,-2,1,1,1]
["228",1,1,1,1,1,1,1,1,1,1,1,1,1,2,2,1,1,2,1,1,2,-2,1,1,1,1,1,1,1,2]
["229",1,1,1,1,1,1,1,1,1,1,1,2,2,1,1,2,1,2,1,1,1,1,1,1,2,-2,-2,2,1,2]
["230",1,1,1,1,1,9,1,1,1,1,2,1,2,1,2,2,1,2,1,1,1,1,1,1,1,1,1,1,1,1,null,null,null,null,null,null,null,null,null,null,null,null,1]
["231",1,1,1,1,1,1,1,1,1,1,1,1,1,2,1,2,1,2,1,1,1,1,1,1,2,-2,-2,1,1,1]
["232",1,1,1,1,1,1,1,1,1,1,1,1,2,1,1,1,1,1,1,1,1,1,1,1,1,1,1,1,1,1]
[]
[]
[]
[]
[]
[]
[]
[]
[]
[]
[]
[]
[]
[]
[]
[]
[]
[]
[]
[]
[]
[]
[]
[]
[]
[]
[]
[]
[]
[null,null,null,null,null,null,null,null,null,null,null,null,null,null,null,null,null,null,null,null,null,null,null,null,null,null,null,null,null,null,null,null,null,null,null,null,null,null,null,null,null,null,null,null,null,null,null,null,1]

{"sheet":"listas","index":1,"n_rows":2476,"n_cols":13,"rows_kept":2476,"cut":false,"hidden":true,"merged":[]}
["L_ENTIDAD","CVE","MUN",null,"L_SNS","L_X","L_SEXO L_ÁMBITO","L_ESTUDIOS, L_JURIDICO, L_PERIODO","L_UEMPLEO","NOM_ENT","CVE_ENT","NOM_MUN","CVE_MUN"]
[null,null,null,null,null,null,null,null,null,"Aguascalientes","01","Aguascalientes","001"]
["Aguascalientes","01",11,null,1,"X",1,1,1,"Aguascalientes","01","Asientos","002"]
["Baja California","02","7",null,2,null,2,2,2,"Aguascalientes","01","Calvillo","003"]
["Baja California Sur","03",5,null,9,null,null,3,3,"Aguascalientes","01","Cosío","004"]
["Campeche","04","13",null,null,null,null,4,4,"Aguascalientes","01","Jesús María","005"]
["Coahuila de Zaragoza","05",38,null,null,null,null,5,5,"Aguascalientes","01","Pabellón de Arteaga","006"]
["Colima","06",10,null,null,null,null,6,6,"Aguascalientes","01","Rincón de Romos","007"]
["Chiapas","07","124",null,null,null,null,7,7,"Aguascalientes","01","San José de Gracia","008"]
["Chihuahua","08",67,null,null,null,null,8,8,"Aguascalientes","01","Tepezalá","009"]
["Ciudad de México","09",16,null,null,null,null,9,9,"Aguascalientes","01","El Llano","010"]
["Durango","10",39,null,null,null,null,null,10,"Aguascalientes","01","San Francisco de los Romo","011"]
["Guanajuato","11",46,null,null,null,null,null,11,"Baja California","02","Ensenada","001"]
["Guerrero","12","85",null,"L_PLANEACIÓN","L_MECANISMOS",null,null,12,"Baja California","02","Mexicali","002"]
["Hidalgo","13",84,null,null,null,null,null,99,"Baja California","02","Tecate","003"]
["Jalisco","14",125,null,1,1,null,null,null,"Baja California","02","Tijuana","004"]
["México","15",125,null,2,2,null,null,null,"Baja California","02","Playas de Rosarito","005"]
["Michoacán de Ocampo","16",113,null,3,3,null,null,null,"Baja California","02","San Quintín","006"]
["Morelos","17","36",null,4,4,null,null,null,"Baja California","02","San Felipe","007"]
["Nayarit","18",20,null,null,5,null,null,null,"Baja California Sur","03","Comondú","001"]
["Nuevo León","19",51,null,null,6,null,null,null,"Baja California Sur","03","Mulegé","002"]
["Oaxaca","20",570,null,null,7,null,null,null,"Baja California Sur","03","La Paz","003"]
["Puebla","21",217,null,null,8,null,null,null,"Baja California Sur","03","Los Cabos","008"]
["Querétaro","22",18,null,null,9,null,null,null,"Baja California Sur","03","Loreto","009"]
["Quintana Roo","23",11,null,null,10,null,null,null,"Campeche","04","Calkiní","001"]
["San Luis Potosí","24",58,null,null,11,null,null,null,"Campeche","04","Campeche","002"]
["Sinaloa","25",18,null,null,99,null,null,null,"Campeche","04","Carmen","003"]
["Sonora","26",72,null,null,null,null,null,null,"Campeche","04","Champotón","004"]
["Tabasco","27",17,null,null,null,null,null,null,"Campeche","04","Hecelchakán","005"]
["Tamaulipas","28",43,null,null,null,null,null,null,"Campeche","04","Hopelchén","006"]
["Tlaxcala","29",60,null,null,null,null,null,null,"Campeche","04","Palizada","007"]
["Veracruz de Ignacio de la Llave","30",212,null,null,null,null,null,null,"Campeche","04","Tenabo","008"]
["Yucatán","31",106,null,null,null,null,null,null,"Campeche","04","Escárcega","009"]
["Zacatecas","32",58,null,null,null,null,null,null,"Campeche","04","Calakmul","010"]
["TOTAL",null,{"$f":"SUM(C3:C34)","v":2210},null,null,null,null,null,null,"Campeche","04","Candelaria","011"]
[null,null,null,null,null,null,null,null,null,"Campeche","04","Seybaplaya","012"]
[null,null,null,null,null,null,null,null,null,"Campeche","04","Dzitbalché","013"]
[null,null,null,null,null,null,null,null,null,"Coahuila de Zaragoza","05","Abasolo","001"]
[null,null,null,null,null,null,null,null,null,"Coahuila de Zaragoza","05","Acuña","002"]
[null,null,null,null,null,null,null,null,null,"Coahuila de Zaragoza","05","Allende","003"]
[null,null,null,null,null,null,null,null,null,"Coahuila de Zaragoza","05","Arteaga","004"]
[null,null,null,null,null,null,null,null,null,"Coahuila de Zaragoza","05","Candela","005"]
[null,null,null,null,null,null,null,null,null,"Coahuila de Zaragoza","05","Castaños","006"]
[null,null,null,null,null,null,null,null,null,"Coahuila de Zaragoza","05","Cuatro Ciénegas","007"]
[null,null,null,null,null,null,null,null,null,"Coahuila de Zaragoza","05","Escobedo","008"]
[null,null,null,null,null,null,null,null,null,"Coahuila de Zaragoza","05","Francisco I. Madero","009"]
[null,null,null,null,null,null,null,null,null,"Coahuila de Zaragoza","05","Frontera","010"]
[null,null,null,null,null,null,null,null,null,"Coahuila de Zaragoza","05","General Cepeda","011"]
[null,null,null,null,null,null,null,null,null,"Coahuila de Zaragoza","05","Guerrero","012"]
[null,null,null,null,null,null,null,null,null,"Coahuila de Zaragoza","05","Hidalgo","013"]
[null,null,null,null,null,null,null,null,null,"Coahuila de Zaragoza","05","Jiménez","014"]
[null,null,null,null,null,null,null,null,null,"Coahuila de Zaragoza","05","Juárez","015"]
[null,null,null,null,null,null,null,null,null,"Coahuila de Zaragoza","05","Lamadrid","016"]
[null,null,null,null,null,null,null,null,null,"Coahuila de Zaragoza","05","Matamoros","017"]
[null,null,null,null,null,null,null,null,null,"Coahuila de Zaragoza","05","Monclova","018"]
[null,null,null,null,null,null,null,null,null,"Coahuila de Zaragoza","05","Morelos","019"]
[null,null,null,null,null,null,null,null,null,"Coahuila de Zaragoza","05","Múzquiz","020"]
[null,null,null,null,null,null,null,null,null,"Coahuila de Zaragoza","05","Nadadores","021"]
[null,null,null,null,null,null,null,null,null,"Coahuila de Zaragoza","05","Nava","022"]
[null,null,null,null,null,null,null,null,null,"Coahuila de Zaragoza","05","Ocampo","023"]
[null,null,null,null,null,null,null,null,null,"Coahuila de Zaragoza","05","Parras","024"]
[null,null,null,null,null,null,null,null,null,"Coahuila de Zaragoza","05","Piedras Negras","025"]
[null,null,null,null,null,null,null,null,null,"Coahuila de Zaragoza","05","Progreso","026"]
[null,null,null,null,null,null,null,null,null,"Coahuila de Zaragoza","05","Ramos Arizpe","027"]
[null,null,null,null,null,null,null,null,null,"Coahuila de Zaragoza","05","Sabinas","028"]
[null,null,null,null,null,null,null,null,null,"Coahuila de Zaragoza","05","Sacramento","029"]
[null,null,null,null,null,null,null,null,null,"Coahuila de Zaragoza","05","Saltillo","030"]
[null,null,null,null,null,null,null,null,null,"Coahuila de Zaragoza","05","San Buenaventura","031"]
[null,null,null,null,null,null,null,null,null,"Coahuila de Zaragoza","05","San Juan de Sabinas","032"]
[null,null,null,null,null,null,null,null,null,"Coahuila de Zaragoza","05","San Pedro","033"]
[null,null,null,null,null,null,null,null,null,"Coahuila de Zaragoza","05","Sierra Mojada","034"]
[null,null,null,null,null,null,null,null,null,"Coahuila de Zaragoza","05","Torreón","035"]
[null,null,null,null,null,null,null,null,null,"Coahuila de Zaragoza","05","Viesca","036"]
[null,null,null,null,null,null,null,null,null,"Coahuila de Zaragoza","05","Villa Unión","037"]
[null,null,null,null,null,null,null,null,null,"Coahuila de Zaragoza","05","Zaragoza","038"]
[null,null,null,null,null,null,null,null,null,"Colima","06","Armería","001"]
[null,null,null,null,null,null,null,null,null,"Colima","06","Colima","002"]
[null,null,null,null,null,null,null,null,null,"Colima","06","Comala","003"]
[null,null,null,null,null,null,null,null,null,"Colima","06","Coquimatlán","004"]
[null,null,null,null,null,null,null,null,null,"Colima","06","Cuauhtémoc","005"]
[null,null,null,null,null,null,null,null,null,"Colima","06","Ixtlahuacán","006"]
[null,null,null,null,null,null,null,null,null,"Colima","06","Manzanillo","007"]
[null,null,null,null,null,null,null,null,null,"Colima","06","Minatitlán","008"]
[null,null,null,null,null,null,null,null,null,"Colima","06","Tecomán","009"]
[null,null,null,null,null,null,null,null,null,"Colima","06","Villa de Álvarez","010"]
[null,null,null,null,null,null,null,null,null,"Chiapas","07","Acacoyagua","001"]
[null,null,null,null,null,null,null,null,null,"Chiapas","07","Acala","002"]
[null,null,null,null,null,null,null,null,null,"Chiapas","07","Acapetahua","003"]
[null,null,null,null,null,null,null,null,null,"Chiapas","07","Altamirano","004"]
[null,null,null,null,null,null,null,null,null,"Chiapas","07","Amatán","005"]
[null,null,null,null,null,null,null,null,null,"Chiapas","07","Amatenango de la Frontera","006"]
[null,null,null,null,null,null,null,null,null,"Chiapas","07","Amatenango del Valle","007"]
[null,null,null,null,null,null,null,null,null,"Chiapas","07","Ángel Albino Corzo","008"]
[null,null,null,null,null,null,null,null,null,"Chiapas","07","Arriaga","009"]
[null,null,null,null,null,null,null,null,null,"Chiapas","07","Bejucal de Ocampo","010"]
[null,null,null,null,null,null,null,null,null,"Chiapas","07","Bella Vista","011"]
[null,null,null,null,null,null,null,null,null,"Chiapas","07","Berriozábal","012"]
[null,null,null,null,null,null,null,null,null,"Chiapas","07","Bochil","013"]
[null,null,null,null,null,null,null,null,null,"Chiapas","07","El Bosque","014"]
[null,null,null,null,null,null,null,null,null,"Chiapas","07","Cacahoatán","015"]
[null,null,null,null,null,null,null,null,null,"Chiapas","07","Catazajá","016"]
[null,null,null,null,null,null,null,null,null,"Chiapas","07","Cintalapa de Figueroa","017"]
[null,null,null,null,null,null,null,null,null,"Chiapas","07","Coapilla","018"]
[null,null,null,null,null,null,null,null,null,"Chiapas","07","Comitán de Domínguez","019"]
[null,null,null,null,null,null,null,null,null,"Chiapas","07","La Concordia","020"]
[null,null,null,null,null,null,null,null,null,"Chiapas","07","Copainalá","021"]
[null,null,null,null,null,null,null,null,null,"Chiapas","07","Chalchihuitán","022"]
[null,null,null,null,null,null,null,null,null,"Chiapas","07","Chamula","023"]
[null,null,null,null,null,null,null,null,null,"Chiapas","07","Chanal","024"]
[null,null,null,null,null,null,null,null,null,"Chiapas","07","Chapultenango","025"]
[null,null,null,null,null,null,null,null,null,"Chiapas","07","Chenalhó","026"]
[null,null,null,null,null,null,null,null,null,"Chiapas","07","Chiapa de Corzo","027"]
[null,null,null,null,null,null,null,null,null,"Chiapas","07","Chiapilla","028"]
[null,null,null,null,null,null,null,null,null,"Chiapas","07","Chicoasén","029"]
[null,null,null,null,null,null,null,null,null,"Chiapas","07","Chicomuselo","030"]
[null,null,null,null,null,null,null,null,null,"Chiapas","07","Chilón","031"]
[null,null,null,null,null,null,null,null,null,"Chiapas","07","Escuintla","032"]
[null,null,null,null,null,null,null,null,null,"Chiapas","07","Francisco León","033"]
[null,null,null,null,null,null,null,null,null,"Chiapas","07","Frontera Comalapa","034"]
[null,null,null,null,null,null,null,null,null,"Chiapas","07","Frontera Hidalgo","035"]
[null,null,null,null,null,null,null,null,null,"Chiapas","07","La Grandeza","036"]
[null,null,null,null,null,null,null,null,null,"Chiapas","07","Huehuetán","037"]
[null,null,null,null,null,null,null,null,null,"Chiapas","07","Huixtán","038"]
[null,null,null,null,null,null,null,null,null,"Chiapas","07","Huitiupán","039"]
[null,null,null,null,null,null,null,null,null,"Chiapas","07","Huixtla","040"]
[null,null,null,null,null,null,null,null,null,"Chiapas","07","La Independencia","041"]
[null,null,null,null,null,null,null,null,null,"Chiapas","07","Ixhuatán","042"]
[null,null,null,null,null,null,null,null,null,"Chiapas","07","Ixtacomitán","043"]
[null,null,null,null,null,null,null,null,null,"Chiapas","07","Ixtapa","044"]
[null,null,null,null,null,null,null,null,null,"Chiapas","07","Ixtapangajoya","045"]
[null,null,null,null,null,null,null,null,null,"Chiapas","07","Jiquipilas","046"]
[null,null,null,null,null,null,null,null,null,"Chiapas","07","Jitotol","047"]
[null,null,null,null,null,null,null,null,null,"Chiapas","07","Juárez","048"]
[null,null,null,null,null,null,null,null,null,"Chiapas","07","Larráinzar","049"]
[null,null,null,null,null,null,null,null,null,"Chiapas","07","La Libertad","050"]
[null,null,null,null,null,null,null,null,null,"Chiapas","07","Mapastepec","051"]
[null,null,null,null,null,null,null,null,null,"Chiapas","07","Las Margaritas","052"]
[null,null,null,null,null,null,null,null,null,"Chiapas","07","Mazapa de Madero","053"]
[null,null,null,null,null,null,null,null,null,"Chiapas","07","Mazatán","054"]
[null,null,null,null,null,null,null,null,null,"Chiapas","07","Metapa","055"]
[null,null,null,null,null,null,null,null,null,"Chiapas","07","Mitontic","056"]
[null,null,null,null,null,null,null,null,null,"Chiapas","07","Motozintla","057"]
[null,null,null,null,null,null,null,null,null,"Chiapas","07","Nicolás Ruíz","058"]
[null,null,null,null,null,null,null,null,null,"Chiapas","07","Ocosingo","059"]
[null,null,null,null,null,null,null,null,null,"Chiapas","07","Ocotepec","060"]
[null,null,null,null,null,null,null,null,null,"Chiapas","07","Ocozocoautla de Espinosa","061"]
[null,null,null,null,null,null,null,null,null,"Chiapas","07","Ostuacán","062"]
[null,null,null,null,null,null,null,null,null,"Chiapas","07","Osumacinta","063"]
[null,null,null,null,null,null,null,null,null,"Chiapas","07","Oxchuc","064"]
[null,null,null,null,null,null,null,null,null,"Chiapas","07","Palenque","065"]
[null,null,null,null,null,null,null,null,null,"Chiapas","07","Pantelhó","066"]
[null,null,null,null,null,null,null,null,null,"Chiapas","07","Pantepec","067"]
[null,null,null,null,null,null,null,null,null,"Chiapas","07","Pichucalco","068"]
[null,null,null,null,null,null,null,null,null,"Chiapas","07","Pijijiapan","069"]
[null,null,null,null,null,null,null,null,null,"Chiapas","07","El Porvenir","070"]
[null,null,null,null,null,null,null,null,null,"Chiapas","07","Villa Comaltitlán","071"]
[null,null,null,null,null,null,null,null,null,"Chiapas","07","Pueblo Nuevo Solistahuacán","072"]
[null,null,null,null,null,null,null,null,null,"Chiapas","07","Rayón","073"]
[null,null,null,null,null,null,null,null,null,"Chiapas","07","Reforma","074"]
[null,null,null,null,null,null,null,null,null,"Chiapas","07","Las Rosas","075"]
[null,null,null,null,null,null,null,null,null,"Chiapas","07","Sabanilla","076"]
[null,null,null,null,null,null,null,null,null,"Chiapas","07","Salto de Agua","077"]
[null,null,null,null,null,null,null,null,null,"Chiapas","07","San Cristóbal de las Casas","078"]
[null,null,null,null,null,null,null,null,null,"Chiapas","07","San Fernando","079"]
[null,null,null,null,null,null,null,null,null,"Chiapas","07","Siltepec","080"]
[null,null,null,null,null,null,null,null,null,"Chiapas","07","Simojovel","081"]
[null,null,null,null,null,null,null,null,null,"Chiapas","07","Sitalá","082"]
[null,null,null,null,null,null,null,null,null,"Chiapas","07","Socoltenango","083"]
[null,null,null,null,null,null,null,null,null,"Chiapas","07","Solosuchiapa","084"]
[null,null,null,null,null,null,null,null,null,"Chiapas","07","Soyaló","085"]
[null,null,null,null,null,null,null,null,null,"Chiapas","07","Suchiapa","086"]
[null,null,null,null,null,null,null,null,null,"Chiapas","07","Suchiate","087"]
[null,null,null,null,null,null,null,null,null,"Chiapas","07","Sunuapa","088"]
[null,null,null,null,null,null,null,null,null,"Chiapas","07","Tapachula","089"]
[null,null,null,null,null,null,null,null,null,"Chiapas","07","Tapalapa","090"]
[null,null,null,null,null,null,null,null,null,"Chiapas","07","Tapilula","091"]
[null,null,null,null,null,null,null,null,null,"Chiapas","07","Tecpatán","092"]
[null,null,null,null,null,null,null,null,null,"Chiapas","07","Tenejapa","093"]
[null,null,null,null,null,null,null,null,null,"Chiapas","07","Teopisca","094"]
[null,null,null,null,null,null,null,null,null,"Chiapas","07","Tila","096"]
[null,null,null,null,null,null,null,null,null,"Chiapas","07","Tonalá","097"]
[null,null,null,null,null,null,null,null,null,"Chiapas","07","Totolapa","098"]
[null,null,null,null,null,null,null,null,null,"Chiapas","07","La Trinitaria","099"]
[null,null,null,null,null,null,null,null,null,"Chiapas","07","Tumbalá","100"]
[null,null,null,null,null,null,null,null,null,"Chiapas","07","Tuxtla Gutiérrez","101"]
[null,null,null,null,null,null,null,null,null,"Chiapas","07","Tuxtla Chico","102"]
[null,null,null,null,null,null,null,null,null,"Chiapas","07","Tuzantán","103"]
[null,null,null,null,null,null,null,null,null,"Chiapas","07","Tzimol","104"]
[null,null,null,null,null,null,null,null,null,"Chiapas","07","Unión Juárez","105"]
[null,null,null,null,null,null,null,null,null,"Chiapas","07","Venustiano Carranza","106"]
[null,null,null,null,null,null,null,null,null,"Chiapas","07","Villa Corzo","107"]
[null,null,null,null,null,null,null,null,null,"Chiapas","07","Villaflores","108"]
[null,null,null,null,null,null,null,null,null,"Chiapas","07","Yajalón","109"]
[null,null,null,null,null,null,null,null,null,"Chiapas","07","San Lucas","110"]
[null,null,null,null,null,null,null,null,null,"Chiapas","07","Zinacantán","111"]
[null,null,null,null,null,null,null,null,null,"Chiapas","07","San Juan Cancuc","112"]
[null,null,null,null,null,null,null,null,null,"Chiapas","07","Aldama","113"]
[null,null,null,null,null,null,null,null,null,"Chiapas","07","Benemérito de las Américas","114"]
[null,null,null,null,null,null,null,null,null,"Chiapas","07","Maravilla Tenejapa","115"]
[null,null,null,null,null,null,null,null,null,"Chiapas","07","Marqués de Comillas","116"]
[null,null,null,null,null,null,null,null,null,"Chiapas","07","Montecristo de Guerrero","117"]
[null,null,null,null,null,null,null,null,null,"Chiapas","07","San Andrés Duraznal","118"]
[null,null,null,null,null,null,null,null,null,"Chiapas","07","Santiago el Pinar","119"]
[null,null,null,null,null,null,null,null,null,"Chiapas","07","Capitán Luis Ángel Vidal","120"]
[null,null,null,null,null,null,null,null,null,"Chiapas","07","Rincón Chamula San Pedro","121"]
[null,null,null,null,null,null,null,null,null,"Chiapas","07","El Parral","122"]
[null,null,null,null,null,null,null,null,null,"Chiapas","07","Emiliano Zapata","123"]
[null,null,null,null,null,null,null,null,null,"Chiapas","07","Mezcalapa","124"]
[null,null,null,null,null,null,null,null,null,"Chiapas","07","Honduras de la Sierra","125"]
[null,null,null,null,null,null,null,null,null,"Chihuahua","08","Ahumada","001"]
[null,null,null,null,null,null,null,null,null,"Chihuahua","08","Aldama","002"]
[null,null,null,null,null,null,null,null,null,"Chihuahua","08","Allende","003"]
[null,null,null,null,null,null,null,null,null,"Chihuahua","08","Aquiles Serdán","004"]
[null,null,null,null,null,null,null,null,null,"Chihuahua","08","Ascensión","005"]
[null,null,null,null,null,null,null,null,null,"Chihuahua","08","Bachíniva","006"]
[null,null,null,null,null,null,null,null,null,"Chihuahua","08","Balleza","007"]
[null,null,null,null,null,null,null,null,null,"Chihuahua","08","Batopilas de Manuel Gómez Morín","008"]
[null,null,null,null,null,null,null,null,null,"Chihuahua","08","Bocoyna","009"]
[null,null,null,null,null,null,null,null,null,"Chihuahua","08","Buenaventura","010"]
[null,null,null,null,null,null,null,null,null,"Chihuahua","08","Camargo","011"]
[null,null,null,null,null,null,null,null,null,"Chihuahua","08","Carichí","012"]
[null,null,null,null,null,null,null,null,null,"Chihuahua","08","Casas Grandes","013"]
[null,null,null,null,null,null,null,null,null,"Chihuahua","08","Coronado","014"]
[null,null,null,null,null,null,null,null,null,"Chihuahua","08","Coyame del Sotol","015"]
[null,null,null,null,null,null,null,null,null,"Chihuahua","08","La Cruz","016"]
[null,null,null,null,null,null,null,null,null,"Chihuahua","08","Cuauhtémoc","017"]
[null,null,null,null,null,null,null,null,null,"Chihuahua","08","Cusihuiriachi","018"]
[null,null,null,null,null,null,null,null,null,"Chihuahua","08","Chihuahua","019"]
[null,null,null,null,null,null,null,null,null,"Chihuahua","08","Chínipas","020"]
[null,null,null,null,null,null,null,null,null,"Chihuahua","08","Delicias","021"]
[null,null,null,null,null,null,null,null,null,"Chihuahua","08","Dr. Belisario Domínguez","022"]
[null,null,null,null,null,null,null,null,null,"Chihuahua","08","Galeana","023"]
[null,null,null,null,null,null,null,null,null,"Chihuahua","08","Santa Isabel","024"]
[null,null,null,null,null,null,null,null,null,"Chihuahua","08","Gómez Farías","025"]
[null,null,null,null,null,null,null,null,null,"Chihuahua","08","Gran Morelos","026"]
[null,null,null,null,null,null,null,null,null,"Chihuahua","08","Guachochi","027"]
[null,null,null,null,null,null,null,null,null,"Chihuahua","08","Guadalupe","028"]
[null,null,null,null,null,null,null,null,null,"Chihuahua","08","Guadalupe y Calvo","029"]
[null,null,null,null,null,null,null,null,null,"Chihuahua","08","Guazapares","030"]
[null,null,null,null,null,null,null,null,null,"Chihuahua","08","Guerrero","031"]
[null,null,null,null,null,null,null,null,null,"Chihuahua","08","Hidalgo del Parral","032"]
[null,null,null,null,null,null,null,null,null,"Chihuahua","08","Huejotitán","033"]
[null,null,null,null,null,null,null,null,null,"Chihuahua","08","Ignacio Zaragoza","034"]
[null,null,null,null,null,null,null,null,null,"Chihuahua","08","Janos","035"]
[null,null,null,null,null,null,null,null,null,"Chihuahua","08","Jiménez","036"]
[null,null,null,null,null,null,null,null,null,"Chihuahua","08","Juárez","037"]
[null,null,null,null,null,null,null,null,null,"Chihuahua","08","Julimes","038"]
[null,null,null,null,null,null,null,null,null,"Chihuahua","08","López","039"]
[null,null,null,null,null,null,null,null,null,"Chihuahua","08","Madera","040"]
[null,null,null,null,null,null,null,null,null,"Chihuahua","08","Maguarichi","041"]
[null,null,null,null,null,null,null,null,null,"Chihuahua","08","Manuel Benavides","042"]
[null,null,null,null,null,null,null,null,null,"Chihuahua","08","Matachí","043"]
[null,null,null,null,null,null,null,null,null,"Chihuahua","08","Matamoros","044"]
[null,null,null,null,null,null,null,null,null,"Chihuahua","08","Meoqui","045"]
[null,null,null,null,null,null,null,null,null,"Chihuahua","08","Morelos","046"]
[null,null,null,null,null,null,null,null,null,"Chihuahua","08","Moris","047"]
[null,null,null,null,null,null,null,null,null,"Chihuahua","08","Namiquipa","048"]
[null,null,null,null,null,null,null,null,null,"Chihuahua","08","Nonoava","049"]
[null,null,null,null,null,null,null,null,null,"Chihuahua","08","Nuevo Casas Grandes","050"]
[null,null,null,null,null,null,null,null,null,"Chihuahua","08","Ocampo","051"]
[null,null,null,null,null,null,null,null,null,"Chihuahua","08","Ojinaga","052"]
[null,null,null,null,null,null,null,null,null,"Chihuahua","08","Praxedis G. Guerrero","053"]
[null,null,null,null,null,null,null,null,null,"Chihuahua","08","Riva Palacio","054"]
[null,null,null,null,null,null,null,null,null,"Chihuahua","08","Rosales","055"]
[null,null,null,null,null,null,null,null,null,"Chihuahua","08","Rosario","056"]
[null,null,null,null,null,null,null,null,null,"Chihuahua","08","San Francisco de Borja","057"]
[null,null,null,null,null,null,null,null,null,"Chihuahua","08","San Francisco de Conchos","058"]
[null,null,null,null,null,null,null,null,null,"Chihuahua","08","San Francisco del Oro","059"]
[null,null,null,null,null,null,null,null,null,"Chihuahua","08","Santa Bárbara","060"]
[null,null,null,null,null,null,null,null,null,"Chihuahua","08","Satevó","061"]
[null,null,null,null,null,null,null,null,null,"Chihuahua","08","Saucillo","062"]
[null,null,null,null,null,null,null,null,null,"Chihuahua","08","Temósachic","063"]
[null,null,null,null,null,null,null,null,null,"Chihuahua","08","El Tule","064"]
[null,null,null,null,null,null,null,null,null,"Chihuahua","08","Urique","065"]
[null,null,null,null,null,null,null,null,null,"Chihuahua","08","Uruachi","066"]
[null,null,null,null,null,null,null,null,null,"Chihuahua","08","Valle de Zaragoza","067"]
[null,null,null,null,null,null,null,null,null,"Ciudad de México","09","Azcapotzalco","002"]
[null,null,null,null,null,null,null,null,null,"Ciudad de México","09","Coyoacán","003"]
[null,null,null,null,null,null,null,null,null,"Ciudad de México","09","Cuajimalpa de Morelos","004"]
[null,null,null,null,null,null,null,null,null,"Ciudad de México","09","Gustavo A. Madero","005"]
[null,null,null,null,null,null,null,null,null,"Ciudad de México","09","Iztacalco","006"]
[null,null,null,null,null,null,null,null,null,"Ciudad de México","09","Iztapalapa","007"]
[null,null,null,null,null,null,null,null,null,"Ciudad de México","09","La Magdalena Contreras","008"]
[null,null,null,null,null,null,null,null,null,"Ciudad de México","09","Milpa Alta","009"]
[null,null,null,null,null,null,null,null,null,"Ciudad de México","09","Álvaro Obregón","010"]
[null,null,null,null,null,null,null,null,null,"Ciudad de México","09","Tláhuac","011"]
[null,null,null,null,null,null,null,null,null,"Ciudad de México","09","Tlalpan","012"]
[null,null,null,null,null,null,null,null,null,"Ciudad de México","09","Xochimilco","013"]
[null,null,null,null,null,null,null,null,null,"Ciudad de México","09","Benito Juárez","014"]
[null,null,null,null,null,null,null,null,null,"Ciudad de México","09","Cuauhtémoc","015"]
[null,null,null,null,null,null,null,null,null,"Ciudad de México","09","Miguel Hidalgo","016"]
[null,null,null,null,null,null,null,null,null,"Ciudad de México","09","Venustiano Carranza","017"]
[null,null,null,null,null,null,null,null,null,"Durango","10","Canatlán","001"]
[null,null,null,null,null,null,null,null,null,"Durango","10","Canelas","002"]
[null,null,null,null,null,null,null,null,null,"Durango","10","Coneto de Comonfort","003"]
[null,null,null,null,null,null,null,null,null,"Durango","10","Cuencamé","004"]
[null,null,null,null,null,null,null,null,null,"Durango","10","Durango","005"]
[null,null,null,null,null,null,null,null,null,"Durango","10","General Simón Bolívar","006"]
[null,null,null,null,null,null,null,null,null,"Durango","10","Gómez Palacio","007"]
[null,null,null,null,null,null,null,null,null,"Durango","10","Guadalupe Victoria","008"]
[null,null,null,null,null,null,null,null,null,"Durango","10","Guanaceví","009"]
[null,null,null,null,null,null,null,null,null,"Durango","10","Hidalgo","010"]
[null,null,null,null,null,null,null,null,null,"Durango","10","Indé","011"]
[null,null,null,null,null,null,null,null,null,"Durango","10","Lerdo","012"]
[null,null,null,null,null,null,null,null,null,"Durango","10","Mapimí","013"]
[null,null,null,null,null,null,null,null,null,"Durango","10","Mezquital","014"]
[null,null,null,null,null,null,null,null,null,"Durango","10","Nazas","015"]
[null,null,null,null,null,null,null,null,null,"Durango","10","Nombre de Dios","016"]
[null,null,null,null,null,null,null,null,null,"Durango","10","Ocampo","017"]
[null,null,null,null,null,null,null,null,null,"Durango","10","El Oro","018"]
[null,null,null,null,null,null,null,null,null,"Durango","10","Otáez","019"]
[null,null,null,null,null,null,null,null,null,"Durango","10","Pánuco de Coronado","020"]
[null,null,null,null,null,null,null,null,null,"Durango","10","Peñón Blanco","021"]
[null,null,null,null,null,null,null,null,null,"Durango","10","Poanas","022"]
[null,null,null,null,null,null,null,null,null,"Durango","10","Pueblo Nuevo","023"]
[null,null,null,null,null,null,null,null,null,"Durango","10","Rodeo","024"]
[null,null,null,null,null,null,null,null,null,"Durango","10","San Bernardo","025"]
[null,null,null,null,null,null,null,null,null,"Durango","10","San Dimas","026"]
[null,null,null,null,null,null,null,null,null,"Durango","10","San Juan de Guadalupe","027"]
[null,null,null,null,null,null,null,null,null,"Durango","10","San Juan del Río","028"]
[null,null,null,null,null,null,null,null,null,"Durango","10","San Luis del Cordero","029"]
[null,null,null,null,null,null,null,null,null,"Durango","10","San Pedro del Gallo","030"]
[null,null,null,null,null,null,null,null,null,"Durango","10","Santa Clara","031"]
[null,null,null,null,null,null,null,null,null,"Durango","10","Santiago Papasquiaro","032"]
[null,null,null,null,null,null,null,null,null,"Durango","10","Súchil","033"]
[null,null,null,null,null,null,null,null,null,"Durango","10","Tamazula","034"]
[null,null,null,null,null,null,null,null,null,"Durango","10","Tepehuanes","035"]
[null,null,null,null,null,null,null,null,null,"Durango","10","Tlahualilo","036"]
[null,null,null,null,null,null,null,null,null,"Durango","10","Topia","037"]
[null,null,null,null,null,null,null,null,null,"Durango","10","Vicente Guerrero","038"]
[null,null,null,null,null,null,null,null,null,"Durango","10","Nuevo Ideal","039"]
[null,null,null,null,null,null,null,null,null,"Guanajuato","11","Abasolo","001"]
[null,null,null,null,null,null,null,null,null,"Guanajuato","11","Acámbaro","002"]
[null,null,null,null,null,null,null,null,null,"Guanajuato","11","San Miguel de Allende","003"]
[null,null,null,null,null,null,null,null,null,"Guanajuato","11","Apaseo el Alto","004"]
[null,null,null,null,null,null,null,null,null,"Guanajuato","11","Apaseo el Grande","005"]
[null,null,null,null,null,null,null,null,null,"Guanajuato","11","Atarjea","006"]
[null,null,null,null,null,null,null,null,null,"Guanajuato","11","Celaya","007"]
[null,null,null,null,null,null,null,null,null,"Guanajuato","11","Manuel Doblado","008"]
[null,null,null,null,null,null,null,null,null,"Guanajuato","11","Comonfort","009"]
[null,null,null,null,null,null,null,null,null,"Guanajuato","11","Coroneo","010"]
[null,null,null,null,null,null,null,null,null,"Guanajuato","11","Cortazar","011"]
[null,null,null,null,null,null,null,null,null,"Guanajuato","11","Cuerámaro","012"]
[null,null,null,null,null,null,null,null,null,"Guanajuato","11","Doctor Mora","013"]
[null,null,null,null,null,null,null,null,null,"Guanajuato","11","Dolores Hidalgo Cuna de la Independencia Nacional","014"]
[null,null,null,null,null,null,null,null,null,"Guanajuato","11","Guanajuato","015"]
[null,null,null,null,null,null,null,null,null,"Guanajuato","11","Huanímaro","016"]
[null,null,null,null,null,null,null,null,null,"Guanajuato","11","Irapuato","017"]
[null,null,null,null,null,null,null,null,null,"Guanajuato","11","Jaral del Progreso","018"]
[null,null,null,null,null,null,null,null,null,"Guanajuato","11","Jerécuaro","019"]
[null,null,null,null,null,null,null,null,null,"Guanajuato","11","León","020"]
[null,null,null,null,null,null,null,null,null,"Guanajuato","11","Moroleón","021"]
[null,null,null,null,null,null,null,null,null,"Guanajuato","11","Ocampo","022"]
[null,null,null,null,null,null,null,null,null,"Guanajuato","11","Pénjamo","023"]
[null,null,null,null,null,null,null,null,null,"Guanajuato","11","Pueblo Nuevo","024"]
[null,null,null,null,null,null,null,null,null,"Guanajuato","11","Purísima del Rincón","025"]
[null,null,null,null,null,null,null,null,null,"Guanajuato","11","Romita","026"]
[null,null,null,null,null,null,null,null,null,"Guanajuato","11","Salamanca","027"]
[null,null,null,null,null,null,null,null,null,"Guanajuato","11","Salvatierra","028"]
[null,null,null,null,null,null,null,null,null,"Guanajuato","11","San Diego de la Unión","029"]
[null,null,null,null,null,null,null,null,null,"Guanajuato","11","San Felipe","030"]
[null,null,null,null,null,null,null,null,null,"Guanajuato","11","San Francisco del Rincón","031"]
[null,null,null,null,null,null,null,null,null,"Guanajuato","11","San José Iturbide","032"]
[null,null,null,null,null,null,null,null,null,"Guanajuato","11","San Luis de la Paz","033"]
[null,null,null,null,null,null,null,null,null,"Guanajuato","11","Santa Catarina","034"]
[null,null,null,null,null,null,null,null,null,"Guanajuato","11","Santa Cruz de Juventino Rosas","035"]
[null,null,null,null,null,null,null,null,null,"Guanajuato","11","Santiago Maravatío","036"]
[null,null,null,null,null,null,null,null,null,"Guanajuato","11","Silao de la Victoria","037"]
[null,null,null,null,null,null,null,null,null,"Guanajuato","11","Tarandacuao","038"]
[null,null,null,null,null,null,null,null,null,"Guanajuato","11","Tarimoro","039"]
[null,null,null,null,null,null,null,null,null,"Guanajuato","11","Tierra Blanca","040"]
[null,null,null,null,null,null,null,null,null,"Guanajuato","11","Uriangato","041"]
[null,null,null,null,null,null,null,null,null,"Guanajuato","11","Valle de Santiago","042"]
[null,null,null,null,null,null,null,null,null,"Guanajuato","11","Victoria","043"]
[null,null,null,null,null,null,null,null,null,"Guanajuato","11","Villagrán","044"]
[null,null,null,null,null,null,null,null,null,"Guanajuato","11","Xichú","045"]
[null,null,null,null,null,null,null,null,null,"Guanajuato","11","Yuriria","046"]
[null,null,null,null,null,null,null,null,null,"Guerrero","12","Acapulco de Juárez","001"]
[null,null,null,null,null,null,null,null,null,"Guerrero","12","Ahuacuotzingo","002"]
[null,null,null,null,null,null,null,null,null,"Guerrero","12","Ajuchitlán del Progreso","003"]
[null,null,null,null,null,null,null,null,null,"Guerrero","12","Alcozauca de Guerrero","004"]
[null,null,null,null,null,null,null,null,null,"Guerrero","12","Alpoyeca","005"]
[null,null,null,null,null,null,null,null,null,"Guerrero","12","Apaxtla","006"]
[null,null,null,null,null,null,null,null,null,"Guerrero","12","Arcelia","007"]
[null,null,null,null,null,null,null,null,null,"Guerrero","12","Atenango del Río","008"]
[null,null,null,null,null,null,null,null,null,"Guerrero","12","Atlamajalcingo del Monte","009"]
[null,null,null,null,null,null,null,null,null,"Guerrero","12","Atlixtac","010"]
[null,null,null,null,null,null,null,null,null,"Guerrero","12","Atoyac de Álvarez","011"]
[null,null,null,null,null,null,null,null,null,"Guerrero","12","Ayutla de los Libres","012"]
[null,null,null,null,null,null,null,null,null,"Guerrero","12","Azoyú","013"]
[null,null,null,null,null,null,null,null,null,"Guerrero","12","Benito Juárez","014"]
[null,null,null,null,null,null,null,null,null,"Guerrero","12","Buenavista de Cuéllar","015"]
[null,null,null,null,null,null,null,null,null,"Guerrero","12","Coahuayutla de José María Izazaga","016"]
[null,null,null,null,null,null,null,null,null,"Guerrero","12","Cocula","017"]
[null,null,null,null,null,null,null,null,null,"Guerrero","12","Copala","018"]
[null,null,null,null,null,null,null,null,null,"Guerrero","12","Copalillo","019"]
[null,null,null,null,null,null,null,null,null,"Guerrero","12","Copanatoyac","020"]
[null,null,null,null,null,null,null,null,null,"Guerrero","12","Coyuca de Benítez","021"]
[null,null,null,null,null,null,null,null,null,"Guerrero","12","Coyuca de Catalán","022"]
[null,null,null,null,null,null,null,null,null,"Guerrero","12","Cuajinicuilapa","023"]
[null,null,null,null,null,null,null,null,null,"Guerrero","12","Cualác","024"]
[null,null,null,null,null,null,null,null,null,"Guerrero","12","Cuautepec","025"]
[null,null,null,null,null,null,null,null,null,"Guerrero","12","Cuetzala del Progreso","026"]
[null,null,null,null,null,null,null,null,null,"Guerrero","12","Cutzamala de Pinzón","027"]
[null,null,null,null,null,null,null,null,null,"Guerrero","12","Chilapa de Álvarez","028"]
[null,null,null,null,null,null,null,null,null,"Guerrero","12","Chilpancingo de los Bravo","029"]
[null,null,null,null,null,null,null,null,null,"Guerrero","12","Florencio Villarreal","030"]
[null,null,null,null,null,null,null,null,null,"Guerrero","12","General Canuto A. Neri","031"]
[null,null,null,null,null,null,null,null,null,"Guerrero","12","General Heliodoro Castillo","032"]
[null,null,null,null,null,null,null,null,null,"Guerrero","12","Huamuxtitlán","033"]
[null,null,null,null,null,null,null,null,null,"Guerrero","12","Huitzuco de los Figueroa","034"]
[null,null,null,null,null,null,null,null,null,"Guerrero","12","Iguala de la Independencia","035"]
[null,null,null,null,null,null,null,null,null,"Guerrero","12","Igualapa","036"]
[null,null,null,null,null,null,null,null,null,"Guerrero","12","Ixcateopan de Cuauhtémoc","037"]
[null,null,null,null,null,null,null,null,null,"Guerrero","12","Zihuatanejo de Azueta","038"]
[null,null,null,null,null,null,null,null,null,"Guerrero","12","Juan R. Escudero","039"]
[null,null,null,null,null,null,null,null,null,"Guerrero","12","Leonardo Bravo","040"]
[null,null,null,null,null,null,null,null,null,"Guerrero","12","Malinaltepec","041"]
[null,null,null,null,null,null,null,null,null,"Guerrero","12","Mártir de Cuilapan","042"]
[null,null,null,null,null,null,null,null,null,"Guerrero","12","Metlatónoc","043"]
[null,null,null,null,null,null,null,null,null,"Guerrero","12","Mochitlán","044"]
[null,null,null,null,null,null,null,null,null,"Guerrero","12","Olinalá","045"]
[null,null,null,null,null,null,null,null,null,"Guerrero","12","Ometepec","046"]
[null,null,null,null,null,null,null,null,null,"Guerrero","12","Pedro Ascencio Alquisiras","047"]
[null,null,null,null,null,null,null,null,null,"Guerrero","12","Petatlán","048"]
[null,null,null,null,null,null,null,null,null,"Guerrero","12","Pilcaya","049"]
[null,null,null,null,null,null,null,null,null,"Guerrero","12","Pungarabato","050"]
[null,null,null,null,null,null,null,null,null,"Guerrero","12","Quechultenango","051"]
[null,null,null,null,null,null,null,null,null,"Guerrero","12","San Luis Acatlán","052"]
[null,null,null,null,null,null,null,null,null,"Guerrero","12","San Marcos","053"]
[null,null,null,null,null,null,null,null,null,"Guerrero","12","San Miguel Totolapan","054"]
[null,null,null,null,null,null,null,null,null,"Guerrero","12","Taxco de Alarcón","055"]
[null,null,null,null,null,null,null,null,null,"Guerrero","12","Tecoanapa","056"]
[null,null,null,null,null,null,null,null,null,"Guerrero","12","Técpan de Galeana","057"]
[null,null,null,null,null,null,null,null,null,"Guerrero","12","Teloloapan","058"]
[null,null,null,null,null,null,null,null,null,"Guerrero","12","Tepecoacuilco de Trujano","059"]
[null,null,null,null,null,null,null,null,null,"Guerrero","12","Tetipac","060"]
[null,null,null,null,null,null,null,null,null,"Guerrero","12","Tixtla de Guerrero","061"]
[null,null,null,null,null,null,null,null,null,"Guerrero","12","Tlacoachistlahuaca","062"]
[null,null,null,null,null,null,null,null,null,"Guerrero","12","Tlacoapa","063"]
[null,null,null,null,null,null,null,null,null,"Guerrero","12","Tlalchapa","064"]
[null,null,null,null,null,null,null,null,null,"Guerrero","12","Tlalixtaquilla de Maldonado","065"]
[null,null,null,null,null,null,null,null,null,"Guerrero","12","Tlapa de Comonfort","066"]
[null,null,null,null,null,null,null,null,null,"Guerrero","12","Tlapehuala","067"]
[null,null,null,null,null,null,null,null,null,"Guerrero","12","La Unión de Isidoro Montes de Oca","068"]
[null,null,null,null,null,null,null,null,null,"Guerrero","12","Xalpatláhuac","069"]
[null,null,null,null,null,null,null,null,null,"Guerrero","12","Xochihuehuetlán","070"]
[null,null,null,null,null,null,null,null,null,"Guerrero","12","Xochistlahuaca","071"]
[null,null,null,null,null,null,null,null,null,"Guerrero","12","Zapotitlán Tablas","072"]
[null,null,null,null,null,null,null,null,null,"Guerrero","12","Zirándaro","073"]
[null,null,null,null,null,null,null,null,null,"Guerrero","12","Zitlala","074"]
[null,null,null,null,null,null,null,null,null,"Guerrero","12","Eduardo Neri","075"]
[null,null,null,null,null,null,null,null,null,"Guerrero","12","Acatepec","076"]
[null,null,null,null,null,null,null,null,null,"Guerrero","12","Marquelia","077"]
[null,null,null,null,null,null,null,null,null,"Guerrero","12","Cochoapa el Grande","078"]
[null,null,null,null,null,null,null,null,null,"Guerrero","12","José Joaquín de Herrera","079"]
[null,null,null,null,null,null,null,null,null,"Guerrero","12","Juchitán","080"]
[null,null,null,null,null,null,null,null,null,"Guerrero","12","Iliatenco","081"]
[null,null,null,null,null,null,null,null,null,"Guerrero","12","Las Vigas","082"]
[null,null,null,null,null,null,null,null,null,"Guerrero","12","Ñuu Savi","083"]
[null,null,null,null,null,null,null,null,null,"Guerrero","12","Santa Cruz del Rincón","084"]
[null,null,null,null,null,null,null,null,null,"Guerrero","12","San Nicolás","085"]
[null,null,null,null,null,null,null,null,null,"Hidalgo","13","Acatlán","001"]
[null,null,null,null,null,null,null,null,null,"Hidalgo","13","Acaxochitlán","002"]
[null,null,null,null,null,null,null,null,null,"Hidalgo","13","Actopan","003"]
[null,null,null,null,null,null,null,null,null,"Hidalgo","13","Agua Blanca de Iturbide","004"]
[null,null,null,null,null,null,null,null,null,"Hidalgo","13","Ajacuba","005"]
[null,null,null,null,null,null,null,null,null,"Hidalgo","13","Alfajayucan","006"]
[null,null,null,null,null,null,null,null,null,"Hidalgo","13","Almoloya","007"]
[null,null,null,null,null,null,null,null,null,"Hidalgo","13","Apan","008"]
[null,null,null,null,null,null,null,null,null,"Hidalgo","13","El Arenal","009"]
[null,null,null,null,null,null,null,null,null,"Hidalgo","13","Atitalaquia","010"]
[null,null,null,null,null,null,null,null,null,"Hidalgo","13","Atlapexco","011"]
[null,null,null,null,null,null,null,null,null,"Hidalgo","13","Atotonilco el Grande","012"]
[null,null,null,null,null,null,null,null,null,"Hidalgo","13","Atotonilco de Tula","013"]
[null,null,null,null,null,null,null,null,null,"Hidalgo","13","Calnali","014"]
[null,null,null,null,null,null,null,null,null,"Hidalgo","13","Cardonal","015"]
[null,null,null,null,null,null,null,null,null,"Hidalgo","13","Cuautepec de Hinojosa","016"]
[null,null,null,null,null,null,null,null,null,"Hidalgo","13","Chapantongo","017"]
[null,null,null,null,null,null,null,null,null,"Hidalgo","13","Chapulhuacán","018"]
[null,null,null,null,null,null,null,null,null,"Hidalgo","13","Chilcuautla","019"]
[null,null,null,null,null,null,null,null,null,"Hidalgo","13","Eloxochitlán","020"]
[null,null,null,null,null,null,null,null,null,"Hidalgo","13","Emiliano Zapata","021"]
[null,null,null,null,null,null,null,null,null,"Hidalgo","13","Epazoyucan","022"]
[null,null,null,null,null,null,null,null,null,"Hidalgo","13","Francisco I. Madero","023"]
[null,null,null,null,null,null,null,null,null,"Hidalgo","13","Huasca de Ocampo","024"]
[null,null,null,null,null,null,null,null,null,"Hidalgo","13","Huautla","025"]
[null,null,null,null,null,null,null,null,null,"Hidalgo","13","Huazalingo","026"]
[null,null,null,null,null,null,null,null,null,"Hidalgo","13","Huehuetla","027"]
[null,null,null,null,null,null,null,null,null,"Hidalgo","13","Huejutla de Reyes","028"]
[null,null,null,null,null,null,null,null,null,"Hidalgo","13","Huichapan","029"]
[null,null,null,null,null,null,null,null,null,"Hidalgo","13","Ixmiquilpan","030"]
[null,null,null,null,null,null,null,null,null,"Hidalgo","13","Jacala de Ledezma","031"]
[null,null,null,null,null,null,null,null,null,"Hidalgo","13","Jaltocán","032"]
[null,null,null,null,null,null,null,null,null,"Hidalgo","13","Juárez Hidalgo","033"]
[null,null,null,null,null,null,null,null,null,"Hidalgo","13","Lolotla","034"]
[null,null,null,null,null,null,null,null,null,"Hidalgo","13","Metepec","035"]
[null,null,null,null,null,null,null,null,null,"Hidalgo","13","San Agustín Metzquititlán","036"]
[null,null,null,null,null,null,null,null,null,"Hidalgo","13","Metztitlán","037"]
[null,null,null,null,null,null,null,null,null,"Hidalgo","13","Mineral del Chico","038"]
[null,null,null,null,null,null,null,null,null,"Hidalgo","13","Mineral del Monte","039"]
[null,null,null,null,null,null,null,null,null,"Hidalgo","13","La Misión","040"]
[null,null,null,null,null,null,null,null,null,"Hidalgo","13","Mixquiahuala de Juárez","041"]
[null,null,null,null,null,null,null,null,null,"Hidalgo","13","Molango de Escamilla","042"]
[null,null,null,null,null,null,null,null,null,"Hidalgo","13","Nicolás Flores","043"]
[null,null,null,null,null,null,null,null,null,"Hidalgo","13","Nopala de Villagrán","044"]
[null,null,null,null,null,null,null,null,null,"Hidalgo","13","Omitlán de Juárez","045"]
[null,null,null,null,null,null,null,null,null,"Hidalgo","13","San Felipe Orizatlán","046"]
[null,null,null,null,null,null,null,null,null,"Hidalgo","13","Pacula","047"]
[null,null,null,null,null,null,null,null,null,"Hidalgo","13","Pachuca de Soto","048"]
[null,null,null,null,null,null,null,null,null,"Hidalgo","13","Pisaflores","049"]
[null,null,null,null,null,null,null,null,null,"Hidalgo","13","Progreso de Obregón","050"]
[null,null,null,null,null,null,null,null,null,"Hidalgo","13","Mineral de la Reforma","051"]
[null,null,null,null,null,null,null,null,null,"Hidalgo","13","San Agustín Tlaxiaca","052"]
[null,null,null,null,null,null,null,null,null,"Hidalgo","13","San Bartolo Tutotepec","053"]
[null,null,null,null,null,null,null,null,null,"Hidalgo","13","San Salvador","054"]
[null,null,null,null,null,null,null,null,null,"Hidalgo","13","Santiago de Anaya","055"]
[null,null,null,null,null,null,null,null,null,"Hidalgo","13","Santiago Tulantepec de Lugo Guerrero","056"]
[null,null,null,null,null,null,null,null,null,"Hidalgo","13","Singuilucan","057"]
[null,null,null,null,null,null,null,null,null,"Hidalgo","13","Tasquillo","058"]
[null,null,null,null,null,null,null,null,null,"Hidalgo","13","Tecozautla","059"]
[null,null,null,null,null,null,null,null,null,"Hidalgo","13","Tenango de Doria","060"]
[null,null,null,null,null,null,null,null,null,"Hidalgo","13","Tepeapulco","061"]
[null,null,null,null,null,null,null,null,null,"Hidalgo","13","Tepehuacán de Guerrero","062"]
[null,null,null,null,null,null,null,null,null,"Hidalgo","13","Tepeji del Río de Ocampo","063"]
[null,null,null,null,null,null,null,null,null,"Hidalgo","13","Tepetitlán","064"]
[null,null,null,null,null,null,null,null,null,"Hidalgo","13","Tetepango","065"]
[null,null,null,null,null,null,null,null,null,"Hidalgo","13","Villa de Tezontepec","066"]
[null,null,null,null,null,null,null,null,null,"Hidalgo","13","Tezontepec de Aldama","067"]
[null,null,null,null,null,null,null,null,null,"Hidalgo","13","Tianguistengo","068"]
[null,null,null,null,null,null,null,null,null,"Hidalgo","13","Tizayuca","069"]
[null,null,null,null,null,null,null,null,null,"Hidalgo","13","Tlahuelilpan","070"]
[null,null,null,null,null,null,null,null,null,"Hidalgo","13","Tlahuiltepa","071"]
[null,null,null,null,null,null,null,null,null,"Hidalgo","13","Tlanalapa","072"]
[null,null,null,null,null,null,null,null,null,"Hidalgo","13","Tlanchinol","073"]
[null,null,null,null,null,null,null,null,null,"Hidalgo","13","Tlaxcoapan","074"]
[null,null,null,null,null,null,null,null,null,"Hidalgo","13","Tolcayuca","075"]
[null,null,null,null,null,null,null,null,null,"Hidalgo","13","Tula de Allende","076"]
[null,null,null,null,null,null,null,null,null,"Hidalgo","13","Tulancingo de Bravo","077"]
[null,null,null,null,null,null,null,null,null,"Hidalgo","13","Xochiatipan","078"]
[null,null,null,null,null,null,null,null,null,"Hidalgo","13","Xochicoatlán","079"]
[null,null,null,null,null,null,null,null,null,"Hidalgo","13","Yahualica","080"]
[null,null,null,null,null,null,null,null,null,"Hidalgo","13","Zacualtipán de Ángeles","081"]
[null,null,null,null,null,null,null,null,null,"Hidalgo","13","Zapotlán de Juárez","082"]
[null,null,null,null,null,null,null,null,null,"Hidalgo","13","Zempoala","083"]
[null,null,null,null,null,null,null,null,null,"Hidalgo","13","Zimapán","084"]
[null,null,null,null,null,null,null,null,null,"Jalisco","14","Acatic","001"]
[null,null,null,null,null,null,null,null,null,"Jalisco","14","Acatlán de Juárez","002"]
[null,null,null,null,null,null,null,null,null,"Jalisco","14","Ahualulco de Mercado","003"]
[null,null,null,null,null,null,null,null,null,"Jalisco","14","Amacueca","004"]
[null,null,null,null,null,null,null,null,null,"Jalisco","14","Amatitán","005"]
[null,null,null,null,null,null,null,null,null,"Jalisco","14","Ameca","006"]
[null,null,null,null,null,null,null,null,null,"Jalisco","14","San Juanito de Escobedo","007"]
[null,null,null,null,null,null,null,null,null,"Jalisco","14","Arandas","008"]
[null,null,null,null,null,null,null,null,null,"Jalisco","14","El Arenal","009"]
[null,null,null,null,null,null,null,null,null,"Jalisco","14","Atemajac de Brizuela","010"]
[null,null,null,null,null,null,null,null,null,"Jalisco","14","Atengo","011"]
[null,null,null,null,null,null,null,null,null,"Jalisco","14","Atenguillo","012"]
[null,null,null,null,null,null,null,null,null,"Jalisco","14","Atotonilco el Alto","013"]
[null,null,null,null,null,null,null,null,null,"Jalisco","14","Atoyac","014"]
[null,null,null,null,null,null,null,null,null,"Jalisco","14","Autlán de Navarro","015"]
[null,null,null,null,null,null,null,null,null,"Jalisco","14","Ayotlán","016"]
[null,null,null,null,null,null,null,null,null,"Jalisco","14","Ayutla","017"]
[null,null,null,null,null,null,null,null,null,"Jalisco","14","La Barca","018"]
[null,null,null,null,null,null,null,null,null,"Jalisco","14","Bolaños","019"]
[null,null,null,null,null,null,null,null,null,"Jalisco","14","Cabo Corrientes","020"]
[null,null,null,null,null,null,null,null,null,"Jalisco","14","Casimiro Castillo","021"]
[null,null,null,null,null,null,null,null,null,"Jalisco","14","Cihuatlán","022"]
[null,null,null,null,null,null,null,null,null,"Jalisco","14","Zapotlán el Grande","023"]
[null,null,null,null,null,null,null,null,null,"Jalisco","14","Cocula","024"]
[null,null,null,null,null,null,null,null,null,"Jalisco","14","Colotlán","025"]
[null,null,null,null,null,null,null,null,null,"Jalisco","14","Concepción de Buenos Aires","026"]
[null,null,null,null,null,null,null,null,null,"Jalisco","14","Cuautitlán de García Barragán","027"]
[null,null,null,null,null,null,null,null,null,"Jalisco","14","Cuautla","028"]
[null,null,null,null,null,null,null,null,null,"Jalisco","14","Cuquío","029"]
[null,null,null,null,null,null,null,null,null,"Jalisco","14","Chapala","030"]
[null,null,null,null,null,null,null,null,null,"Jalisco","14","Chimaltitán","031"]
[null,null,null,null,null,null,null,null,null,"Jalisco","14","Chiquilistlán","032"]
[null,null,null,null,null,null,null,null,null,"Jalisco","14","Degollado","033"]
[null,null,null,null,null,null,null,null,null,"Jalisco","14","Ejutla","034"]
[null,null,null,null,null,null,null,null,null,"Jalisco","14","Encarnación de Díaz","035"]
[null,null,null,null,null,null,null,null,null,"Jalisco","14","Etzatlán","036"]
[null,null,null,null,null,null,null,null,null,"Jalisco","14","El Grullo","037"]
[null,null,null,null,null,null,null,null,null,"Jalisco","14","Guachinango","038"]
[null,null,null,null,null,null,null,null,null,"Jalisco","14","Guadalajara","039"]
[null,null,null,null,null,null,null,null,null,"Jalisco","14","Hostotipaquillo","040"]
[null,null,null,null,null,null,null,null,null,"Jalisco","14","Huejúcar","041"]
[null,null,null,null,null,null,null,null,null,"Jalisco","14","Huejuquilla el Alto","042"]
[null,null,null,null,null,null,null,null,null,"Jalisco","14","La Huerta","043"]
[null,null,null,null,null,null,null,null,null,"Jalisco","14","Ixtlahuacán de los Membrillos","044"]
[null,null,null,null,null,null,null,null,null,"Jalisco","14","Ixtlahuacán del Río","045"]
[null,null,null,null,null,null,null,null,null,"Jalisco","14","Jalostotitlán","046"]
[null,null,null,null,null,null,null,null,null,"Jalisco","14","Jamay","047"]
[null,null,null,null,null,null,null,null,null,"Jalisco","14","Jesús María","048"]
[null,null,null,null,null,null,null,null,null,"Jalisco","14","Jilotlán de los Dolores","049"]
[null,null,null,null,null,null,null,null,null,"Jalisco","14","Jocotepec","050"]
[null,null,null,null,null,null,null,null,null,"Jalisco","14","Juanacatlán","051"]
[null,null,null,null,null,null,null,null,null,"Jalisco","14","Juchitlán","052"]
[null,null,null,null,null,null,null,null,null,"Jalisco","14","Lagos de Moreno","053"]
[null,null,null,null,null,null,null,null,null,"Jalisco","14","El Limón","054"]
[null,null,null,null,null,null,null,null,null,"Jalisco","14","Magdalena","055"]
[null,null,null,null,null,null,null,null,null,"Jalisco","14","Santa María del Oro","056"]
[null,null,null,null,null,null,null,null,null,"Jalisco","14","La Manzanilla de la Paz","057"]
[null,null,null,null,null,null,null,null,null,"Jalisco","14","Mascota","058"]
[null,null,null,null,null,null,null,null,null,"Jalisco","14","Mazamitla","059"]
[null,null,null,null,null,null,null,null,null,"Jalisco","14","Mexticacán","060"]
[null,null,null,null,null,null,null,null,null,"Jalisco","14","Mezquitic","061"]
[null,null,null,null,null,null,null,null,null,"Jalisco","14","Mixtlán","062"]
[null,null,null,null,null,null,null,null,null,"Jalisco","14","Ocotlán","063"]
[null,null,null,null,null,null,null,null,null,"Jalisco","14","Ojuelos de Jalisco","064"]
[null,null,null,null,null,null,null,null,null,"Jalisco","14","Pihuamo","065"]
[null,null,null,null,null,null,null,null,null,"Jalisco","14","Poncitlán","066"]
[null,null,null,null,null,null,null,null,null,"Jalisco","14","Puerto Vallarta","067"]
[null,null,null,null,null,null,null,null,null,"Jalisco","14","Villa Purificación","068"]
[null,null,null,null,null,null,null,null,null,"Jalisco","14","Quitupan","069"]
[null,null,null,null,null,null,null,null,null,"Jalisco","14","El Salto","070"]
[null,null,null,null,null,null,null,null,null,"Jalisco","14","San Cristóbal de la Barranca","071"]
[null,null,null,null,null,null,null,null,null,"Jalisco","14","San Diego de Alejandría","072"]
[null,null,null,null,null,null,null,null,null,"Jalisco","14","San Juan de los Lagos","073"]
[null,null,null,null,null,null,null,null,null,"Jalisco","14","San Julián","074"]
[null,null,null,null,null,null,null,null,null,"Jalisco","14","San Marcos","075"]
[null,null,null,null,null,null,null,null,null,"Jalisco","14","San Martín de Bolaños","076"]
[null,null,null,null,null,null,null,null,null,"Jalisco","14","San Martín Hidalgo","077"]
[null,null,null,null,null,null,null,null,null,"Jalisco","14","San Miguel el Alto","078"]
[null,null,null,null,null,null,null,null,null,"Jalisco","14","Gómez Farías","079"]
[null,null,null,null,null,null,null,null,null,"Jalisco","14","San Sebastián del Oeste","080"]
[null,null,null,null,null,null,null,null,null,"Jalisco","14","Santa María de los Ángeles","081"]
[null,null,null,null,null,null,null,null,null,"Jalisco","14","Sayula","082"]
[null,null,null,null,null,null,null,null,null,"Jalisco","14","Tala","083"]
[null,null,null,null,null,null,null,null,null,"Jalisco","14","Talpa de Allende","084"]
[null,null,null,null,null,null,null,null,null,"Jalisco","14","Tamazula de Gordiano","085"]
[null,null,null,null,null,null,null,null,null,"Jalisco","14","Tapalpa","086"]
[null,null,null,null,null,null,null,null,null,"Jalisco","14","Tecalitlán","087"]
[null,null,null,null,null,null,null,null,null,"Jalisco","14","Tecolotlán","088"]
[null,null,null,null,null,null,null,null,null,"Jalisco","14","Techaluta de Montenegro","089"]
[null,null,null,null,null,null,null,null,null,"Jalisco","14","Tenamaxtlán","090"]
[null,null,null,null,null,null,null,null,null,"Jalisco","14","Teocaltiche","091"]
[null,null,null,null,null,null,null,null,null,"Jalisco","14","Teocuitatlán de Corona","092"]
[null,null,null,null,null,null,null,null,null,"Jalisco","14","Tepatitlán de Morelos","093"]
[null,null,null,null,null,null,null,null,null,"Jalisco","14","Tequila","094"]
[null,null,null,null,null,null,null,null,null,"Jalisco","14","Teuchitlán","095"]
[null,null,null,null,null,null,null,null,null,"Jalisco","14","Tizapán el Alto","096"]
[null,null,null,null,null,null,null,null,null,"Jalisco","14","Tlajomulco de Zúñiga","097"]
[null,null,null,null,null,null,null,null,null,"Jalisco","14","San Pedro Tlaquepaque","098"]
[null,null,null,null,null,null,null,null,null,"Jalisco","14","Tolimán","099"]
[null,null,null,null,null,null,null,null,null,"Jalisco","14","Tomatlán","100"]
[null,null,null,null,null,null,null,null,null,"Jalisco","14","Tonalá","101"]
[null,null,null,null,null,null,null,null,null,"Jalisco","14","Tonaya","102"]
[null,null,null,null,null,null,null,null,null,"Jalisco","14","Tonila","103"]
[null,null,null,null,null,null,null,null,null,"Jalisco","14","Totatiche","104"]
[null,null,null,null,null,null,null,null,null,"Jalisco","14","Tototlán","105"]
[null,null,null,null,null,null,null,null,null,"Jalisco","14","Tuxcacuesco","106"]
[null,null,null,null,null,null,null,null,null,"Jalisco","14","Tuxcueca","107"]
[null,null,null,null,null,null,null,null,null,"Jalisco","14","Tuxpan","108"]
[null,null,null,null,null,null,null,null,null,"Jalisco","14","Unión de San Antonio","109"]
[null,null,null,null,null,null,null,null,null,"Jalisco","14","Unión de Tula","110"]
[null,null,null,null,null,null,null,null,null,"Jalisco","14","Valle de Guadalupe","111"]
[null,null,null,null,null,null,null,null,null,"Jalisco","14","Valle de Juárez","112"]
[null,null,null,null,null,null,null,null,null,"Jalisco","14","San Gabriel","113"]
[null,null,null,null,null,null,null,null,null,"Jalisco","14","Villa Corona","114"]
[null,null,null,null,null,null,null,null,null,"Jalisco","14","Villa Guerrero","115"]
[null,null,null,null,null,null,null,null,null,"Jalisco","14","Villa Hidalgo","116"]
[null,null,null,null,null,null,null,null,null,"Jalisco","14","Cañadas de Obregón","117"]
[null,null,null,null,null,null,null,null,null,"Jalisco","14","Yahualica de González Gallo","118"]
[null,null,null,null,null,null,null,null,null,"Jalisco","14","Zacoalco de Torres","119"]
[null,null,null,null,null,null,null,null,null,"Jalisco","14","Zapopan","120"]
[null,null,null,null,null,null,null,null,null,"Jalisco","14","Zapotiltic","121"]
[null,null,null,null,null,null,null,null,null,"Jalisco","14","Zapotitlán de Vadillo","122"]
[null,null,null,null,null,null,null,null,null,"Jalisco","14","Zapotlán del Rey","123"]
[null,null,null,null,null,null,null,null,null,"Jalisco","14","Zapotlanejo","124"]
[null,null,null,null,null,null,null,null,null,"Jalisco","14","San Ignacio Cerro Gordo","125"]
[null,null,null,null,null,null,null,null,null,"México","15","Acambay de Ruíz Castañeda","001"]
[null,null,null,null,null,null,null,null,null,"México","15","Acolman","002"]
[null,null,null,null,null,null,null,null,null,"México","15","Aculco","003"]
[null,null,null,null,null,null,null,null,null,"México","15","Almoloya de Alquisiras","004"]
[null,null,null,null,null,null,null,null,null,"México","15","Almoloya de Juárez","005"]
[null,null,null,null,null,null,null,null,null,"México","15","Almoloya del Río","006"]
[null,null,null,null,null,null,null,null,null,"México","15","Amanalco","007"]
[null,null,null,null,null,null,null,null,null,"México","15","Amatepec","008"]
[null,null,null,null,null,null,null,null,null,"México","15","Amecameca","009"]
[null,null,null,null,null,null,null,null,null,"México","15","Apaxco","010"]
[null,null,null,null,null,null,null,null,null,"México","15","Atenco","011"]
[null,null,null,null,null,null,null,null,null,"México","15","Atizapán","012"]
[null,null,null,null,null,null,null,null,null,"México","15","Atizapán de Zaragoza","013"]
[null,null,null,null,null,null,null,null,null,"México","15","Atlacomulco","014"]
[null,null,null,null,null,null,null,null,null,"México","15","Atlautla","015"]
[null,null,null,null,null,null,null,null,null,"México","15","Axapusco","016"]
[null,null,null,null,null,null,null,null,null,"México","15","Ayapango","017"]
[null,null,null,null,null,null,null,null,null,"México","15","Calimaya","018"]
[null,null,null,null,null,null,null,null,null,"México","15","Capulhuac","019"]
[null,null,null,null,null,null,null,null,null,"México","15","Coacalco de Berriozábal","020"]
[null,null,null,null,null,null,null,null,null,"México","15","Coatepec Harinas","021"]
[null,null,null,null,null,null,null,null,null,"México","15","Cocotitlán","022"]
[null,null,null,null,null,null,null,null,null,"México","15","Coyotepec","023"]
[null,null,null,null,null,null,null,null,null,"México","15","Cuautitlán","024"]
[null,null,null,null,null,null,null,null,null,"México","15","Chalco","025"]
[null,null,null,null,null,null,null,null,null,"México","15","Chapa de Mota","026"]
[null,null,null,null,null,null,null,null,null,"México","15","Chapultepec","027"]
[null,null,null,null,null,null,null,null,null,"México","15","Chiautla","028"]
[null,null,null,null,null,null,null,null,null,"México","15","Chicoloapan","029"]
[null,null,null,null,null,null,null,null,null,"México","15","Chiconcuac","030"]
[null,null,null,null,null,null,null,null,null,"México","15","Chimalhuacán","031"]
[null,null,null,null,null,null,null,null,null,"México","15","Donato Guerra","032"]
[null,null,null,null,null,null,null,null,null,"México","15","Ecatepec de Morelos","033"]
[null,null,null,null,null,null,null,null,null,"México","15","Ecatzingo","034"]
[null,null,null,null,null,null,null,null,null,"México","15","Huehuetoca","035"]
[null,null,null,null,null,null,null,null,null,"México","15","Hueypoxtla","036"]
[null,null,null,null,null,null,null,null,null,"México","15","Huixquilucan","037"]
[null,null,null,null,null,null,null,null,null,"México","15","Isidro Fabela","038"]
[null,null,null,null,null,null,null,null,null,"México","15","Ixtapaluca","039"]
[null,null,null,null,null,null,null,null,null,"México","15","Ixtapan de la Sal","040"]
[null,null,null,null,null,null,null,null,null,"México","15","Ixtapan del Oro","041"]
[null,null,null,null,null,null,null,null,null,"México","15","Ixtlahuaca","042"]
[null,null,null,null,null,null,null,null,null,"México","15","Xalatlaco","043"]
[null,null,null,null,null,null,null,null,null,"México","15","Jaltenco","044"]
[null,null,null,null,null,null,null,null,null,"México","15","Jilotepec","045"]
[null,null,null,null,null,null,null,null,null,"México","15","Jilotzingo","046"]
[null,null,null,null,null,null,null,null,null,"México","15","Jiquipilco","047"]
[null,null,null,null,null,null,null,null,null,"México","15","Jocotitlán","048"]
[null,null,null,null,null,null,null,null,null,"México","15","Joquicingo","049"]
[null,null,null,null,null,null,null,null,null,"México","15","Juchitepec","050"]
[null,null,null,null,null,null,null,null,null,"México","15","Lerma","051"]
[null,null,null,null,null,null,null,null,null,"México","15","Malinalco","052"]
[null,null,null,null,null,null,null,null,null,"México","15","Melchor Ocampo","053"]
[null,null,null,null,null,null,null,null,null,"México","15","Metepec","054"]
[null,null,null,null,null,null,null,null,null,"México","15","Mexicaltzingo","055"]
[null,null,null,null,null,null,null,null,null,"México","15","Morelos","056"]
[null,null,null,null,null,null,null,null,null,"México","15","Naucalpan de Juárez","057"]
[null,null,null,null,null,null,null,null,null,"México","15","Nezahualcóyotl","058"]
[null,null,null,null,null,null,null,null,null,"México","15","Nextlalpan","059"]
[null,null,null,null,null,null,null,null,null,"México","15","Nicolás Romero","060"]
[null,null,null,null,null,null,null,null,null,"México","15","Nopaltepec","061"]
[null,null,null,null,null,null,null,null,null,"México","15","Ocoyoacac","062"]
[null,null,null,null,null,null,null,null,null,"México","15","Ocuilan","063"]
[null,null,null,null,null,null,null,null,null,"México","15","El Oro","064"]
[null,null,null,null,null,null,null,null,null,"México","15","Otumba","065"]
[null,null,null,null,null,null,null,null,null,"México","15","Otzoloapan","066"]
[null,null,null,null,null,null,null,null,null,"México","15","Otzolotepec","067"]
[null,null,null,null,null,null,null,null,null,"México","15","Ozumba","068"]
[null,null,null,null,null,null,null,null,null,"México","15","Papalotla","069"]
[null,null,null,null,null,null,null,null,null,"México","15","La Paz","070"]
[null,null,null,null,null,null,null,null,null,"México","15","Polotitlán","071"]
[null,null,null,null,null,null,null,null,null,"México","15","Rayón","072"]
[null,null,null,null,null,null,null,null,null,"México","15","San Antonio la Isla","073"]
[null,null,null,null,null,null,null,null,null,"México","15","San Felipe del Progreso","074"]
[null,null,null,null,null,null,null,null,null,"México","15","San Martín de las Pirámides","075"]
[null,null,null,null,null,null,null,null,null,"México","15","San Mateo Atenco","076"]
[null,null,null,null,null,null,null,null,null,"México","15","San Simón de Guerrero","077"]
[null,null,null,null,null,null,null,null,null,"México","15","Santo Tomás","078"]
[null,null,null,null,null,null,null,null,null,"México","15","Soyaniquilpan de Juárez","079"]
[null,null,null,null,null,null,null,null,null,"México","15","Sultepec","080"]
[null,null,null,null,null,null,null,null,null,"México","15","Tecámac","081"]
[null,null,null,null,null,null,null,null,null,"México","15","Tejupilco","082"]
[null,null,null,null,null,null,null,null,null,"México","15","Temamatla","083"]
[null,null,null,null,null,null,null,null,null,"México","15","Temascalapa","084"]
[null,null,null,null,null,null,null,null,null,"México","15","Temascalcingo","085"]
[null,null,null,null,null,null,null,null,null,"México","15","Temascaltepec","086"]
[null,null,null,null,null,null,null,null,null,"México","15","Temoaya","087"]
[null,null,null,null,null,null,null,null,null,"México","15","Tenancingo","088"]
[null,null,null,null,null,null,null,null,null,"México","15","Tenango del Aire","089"]
[null,null,null,null,null,null,null,null,null,"México","15","Tenango del Valle","090"]
[null,null,null,null,null,null,null,null,null,"México","15","Teoloyucan","091"]
[null,null,null,null,null,null,null,null,null,"México","15","Teotihuacán","092"]
[null,null,null,null,null,null,null,null,null,"México","15","Tepetlaoxtoc","093"]
[null,null,null,null,null,null,null,null,null,"México","15","Tepetlixpa","094"]
[null,null,null,null,null,null,null,null,null,"México","15","Tepotzotlán","095"]
[null,null,null,null,null,null,null,null,null,"México","15","Tequixquiac","096"]
[null,null,null,null,null,null,null,null,null,"México","15","Texcaltitlán","097"]
[null,null,null,null,null,null,null,null,null,"México","15","Texcalyacac","098"]
[null,null,null,null,null,null,null,null,null,"México","15","Texcoco","099"]
[null,null,null,null,null,null,null,null,null,"México","15","Tezoyuca","100"]
[null,null,null,null,null,null,null,null,null,"México","15","Tianguistenco","101"]
[null,null,null,null,null,null,null,null,null,"México","15","Timilpan","102"]
[null,null,null,null,null,null,null,null,null,"México","15","Tlalmanalco","103"]
[null,null,null,null,null,null,null,null,null,"México","15","Tlalnepantla de Baz","104"]
[null,null,null,null,null,null,null,null,null,"México","15","Tlatlaya","105"]
[null,null,null,null,null,null,null,null,null,"México","15","Toluca","106"]
[null,null,null,null,null,null,null,null,null,"México","15","Tonatico","107"]
[null,null,null,null,null,null,null,null,null,"México","15","Tultepec","108"]
[null,null,null,null,null,null,null,null,null,"México","15","Tultitlán","109"]
[null,null,null,null,null,null,null,null,null,"México","15","Valle de Bravo","110"]
[null,null,null,null,null,null,null,null,null,"México","15","Villa de Allende","111"]
[null,null,null,null,null,null,null,null,null,"México","15","Villa del Carbón","112"]
[null,null,null,null,null,null,null,null,null,"México","15","Villa Guerrero","113"]
[null,null,null,null,null,null,null,null,null,"México","15","Villa Victoria","114"]
[null,null,null,null,null,null,null,null,null,"México","15","Xonacatlán","115"]
[null,null,null,null,null,null,null,null,null,"México","15","Zacazonapan","116"]
[null,null,null,null,null,null,null,null,null,"México","15","Zacualpan","117"]
[null,null,null,null,null,null,null,null,null,"México","15","Zinacantepec","118"]
[null,null,null,null,null,null,null,null,null,"México","15","Zumpahuacán","119"]
[null,null,null,null,null,null,null,null,null,"México","15","Zumpango","120"]
[null,null,null,null,null,null,null,null,null,"México","15","Cuautitlán Izcalli","121"]
[null,null,null,null,null,null,null,null,null,"México","15","Valle de Chalco Solidaridad","122"]
[null,null,null,null,null,null,null,null,null,"México","15","Luvianos","123"]
[null,null,null,null,null,null,null,null,null,"México","15","San José del Rincón","124"]
[null,null,null,null,null,null,null,null,null,"México","15","Tonanitla","125"]
[null,null,null,null,null,null,null,null,null,"Michoacán de Ocampo","16","Acuitzio","001"]
[null,null,null,null,null,null,null,null,null,"Michoacán de Ocampo","16","Aguililla","002"]
[null,null,null,null,null,null,null,null,null,"Michoacán de Ocampo","16","Álvaro Obregón","003"]
[null,null,null,null,null,null,null,null,null,"Michoacán de Ocampo","16","Angamacutiro","004"]
[null,null,null,null,null,null,null,null,null,"Michoacán de Ocampo","16","Angangueo","005"]
[null,null,null,null,null,null,null,null,null,"Michoacán de Ocampo","16","Apatzingán","006"]
[null,null,null,null,null,null,null,null,null,"Michoacán de Ocampo","16","Aporo","007"]
[null,null,null,null,null,null,null,null,null,"Michoacán de Ocampo","16","Aquila","008"]
[null,null,null,null,null,null,null,null,null,"Michoacán de Ocampo","16","Ario","009"]
[null,null,null,null,null,null,null,null,null,"Michoacán de Ocampo","16","Arteaga","010"]
[null,null,null,null,null,null,null,null,null,"Michoacán de Ocampo","16","Briseñas","011"]
[null,null,null,null,null,null,null,null,null,"Michoacán de Ocampo","16","Buenavista","012"]
[null,null,null,null,null,null,null,null,null,"Michoacán de Ocampo","16","Carácuaro","013"]
[null,null,null,null,null,null,null,null,null,"Michoacán de Ocampo","16","Coahuayana","014"]
[null,null,null,null,null,null,null,null,null,"Michoacán de Ocampo","16","Coalcomán de Vázquez Pallares","015"]
[null,null,null,null,null,null,null,null,null,"Michoacán de Ocampo","16","Coeneo","016"]
[null,null,null,null,null,null,null,null,null,"Michoacán de Ocampo","16","Contepec","017"]
[null,null,null,null,null,null,null,null,null,"Michoacán de Ocampo","16","Copándaro","018"]
[null,null,null,null,null,null,null,null,null,"Michoacán de Ocampo","16","Cotija","019"]
[null,null,null,null,null,null,null,null,null,"Michoacán de Ocampo","16","Cuitzeo","020"]
[null,null,null,null,null,null,null,null,null,"Michoacán de Ocampo","16","Charapan","021"]
[null,null,null,null,null,null,null,null,null,"Michoacán de Ocampo","16","Charo","022"]
[null,null,null,null,null,null,null,null,null,"Michoacán de Ocampo","16","Chavinda","023"]
[null,null,null,null,null,null,null,null,null,"Michoacán de Ocampo","16","Cherán","024"]
[null,null,null,null,null,null,null,null,null,"Michoacán de Ocampo","16","Chilchota","025"]
[null,null,null,null,null,null,null,null,null,"Michoacán de Ocampo","16","Chinicuila","026"]
[null,null,null,null,null,null,null,null,null,"Michoacán de Ocampo","16","Chucándiro","027"]
[null,null,null,null,null,null,null,null,null,"Michoacán de Ocampo","16","Churintzio","028"]
[null,null,null,null,null,null,null,null,null,"Michoacán de Ocampo","16","Churumuco","029"]
[null,null,null,null,null,null,null,null,null,"Michoacán de Ocampo","16","Ecuandureo","030"]
[null,null,null,null,null,null,null,null,null,"Michoacán de Ocampo","16","Epitacio Huerta","031"]
[null,null,null,null,null,null,null,null,null,"Michoacán de Ocampo","16","Erongarícuaro","032"]
[null,null,null,null,null,null,null,null,null,"Michoacán de Ocampo","16","Gabriel Zamora","033"]
[null,null,null,null,null,null,null,null,null,"Michoacán de Ocampo","16","Hidalgo","034"]
[null,null,null,null,null,null,null,null,null,"Michoacán de Ocampo","16","La Huacana","035"]
[null,null,null,null,null,null,null,null,null,"Michoacán de Ocampo","16","Huandacareo","036"]
[null,null,null,null,null,null,null,null,null,"Michoacán de Ocampo","16","Huaniqueo","037"]
[null,null,null,null,null,null,null,null,null,"Michoacán de Ocampo","16","Huetamo","038"]
[null,null,null,null,null,null,null,null,null,"Michoacán de Ocampo","16","Huiramba","039"]
[null,null,null,null,null,null,null,null,null,"Michoacán de Ocampo","16","Indaparapeo","040"]
[null,null,null,null,null,null,null,null,null,"Michoacán de Ocampo","16","Irimbo","041"]
[null,null,null,null,null,null,null,null,null,"Michoacán de Ocampo","16","Ixtlán","042"]
[null,null,null,null,null,null,null,null,null,"Michoacán de Ocampo","16","Jacona","043"]
[null,null,null,null,null,null,null,null,null,"Michoacán de Ocampo","16","Jiménez","044"]
[null,null,null,null,null,null,null,null,null,"Michoacán de Ocampo","16","Jiquilpan","045"]
[null,null,null,null,null,null,null,null,null,"Michoacán de Ocampo","16","Juárez","046"]
[null,null,null,null,null,null,null,null,null,"Michoacán de Ocampo","16","Jungapeo","047"]
[null,null,null,null,null,null,null,null,null,"Michoacán de Ocampo","16","Lagunillas","048"]
[null,null,null,null,null,null,null,null,null,"Michoacán de Ocampo","16","Madero","049"]
[null,null,null,null,null,null,null,null,null,"Michoacán de Ocampo","16","Maravatío","050"]
[null,null,null,null,null,null,null,null,null,"Michoacán de Ocampo","16","Marcos Castellanos","051"]
[null,null,null,null,null,null,null,null,null,"Michoacán de Ocampo","16","Lázaro Cárdenas","052"]
[null,null,null,null,null,null,null,null,null,"Michoacán de Ocampo","16","Morelia","053"]
[null,null,null,null,null,null,null,null,null,"Michoacán de Ocampo","16","Morelos","054"]
[null,null,null,null,null,null,null,null,null,"Michoacán de Ocampo","16","Múgica","055"]
[null,null,null,null,null,null,null,null,null,"Michoacán de Ocampo","16","Nahuatzen","056"]
[null,null,null,null,null,null,null,null,null,"Michoacán de Ocampo","16","Nocupétaro","057"]
[null,null,null,null,null,null,null,null,null,"Michoacán de Ocampo","16","Nuevo Parangaricutiro","058"]
[null,null,null,null,null,null,null,null,null,"Michoacán de Ocampo","16","Nuevo Urecho","059"]
[null,null,null,null,null,null,null,null,null,"Michoacán de Ocampo","16","Numarán","060"]
[null,null,null,null,null,null,null,null,null,"Michoacán de Ocampo","16","Ocampo","061"]
[null,null,null,null,null,null,null,null,null,"Michoacán de Ocampo","16","Pajacuarán","062"]
[null,null,null,null,null,null,null,null,null,"Michoacán de Ocampo","16","Panindícuaro","063"]
[null,null,null,null,null,null,null,null,null,"Michoacán de Ocampo","16","Parácuaro","064"]
[null,null,null,null,null,null,null,null,null,"Michoacán de Ocampo","16","Paracho","065"]
[null,null,null,null,null,null,null,null,null,"Michoacán de Ocampo","16","Pátzcuaro","066"]
[null,null,null,null,null,null,null,null,null,"Michoacán de Ocampo","16","Penjamillo","067"]
[null,null,null,null,null,null,null,null,null,"Michoacán de Ocampo","16","Peribán","068"]
[null,null,null,null,null,null,null,null,null,"Michoacán de Ocampo","16","La Piedad","069"]
[null,null,null,null,null,null,null,null,null,"Michoacán de Ocampo","16","Purépero","070"]
[null,null,null,null,null,null,null,null,null,"Michoacán de Ocampo","16","Puruándiro","071"]
[null,null,null,null,null,null,null,null,null,"Michoacán de Ocampo","16","Queréndaro","072"]
[null,null,null,null,null,null,null,null,null,"Michoacán de Ocampo","16","Quiroga","073"]
[null,null,null,null,null,null,null,null,null,"Michoacán de Ocampo","16","Cojumatlán de Régules","074"]
[null,null,null,null,null,null,null,null,null,"Michoacán de Ocampo","16","Los Reyes","075"]
[null,null,null,null,null,null,null,null,null,"Michoacán de Ocampo","16","Sahuayo","076"]
[null,null,null,null,null,null,null,null,null,"Michoacán de Ocampo","16","San Lucas","077"]
[null,null,null,null,null,null,null,null,null,"Michoacán de Ocampo","16","Santa Ana Maya","078"]
[null,null,null,null,null,null,null,null,null,"Michoacán de Ocampo","16","Salvador Escalante","079"]
[null,null,null,null,null,null,null,null,null,"Michoacán de Ocampo","16","Senguio","080"]
[null,null,null,null,null,null,null,null,null,"Michoacán de Ocampo","16","Susupuato","081"]
[null,null,null,null,null,null,null,null,null,"Michoacán de Ocampo","16","Tacámbaro","082"]
[null,null,null,null,null,null,null,null,null,"Michoacán de Ocampo","16","Tancítaro","083"]
[null,null,null,null,null,null,null,null,null,"Michoacán de Ocampo","16","Tangamandapio","084"]
[null,null,null,null,null,null,null,null,null,"Michoacán de Ocampo","16","Tangancícuaro","085"]
[null,null,null,null,null,null,null,null,null,"Michoacán de Ocampo","16","Tanhuato","086"]
[null,null,null,null,null,null,null,null,null,"Michoacán de Ocampo","16","Taretan","087"]
[null,null,null,null,null,null,null,null,null,"Michoacán de Ocampo","16","Tarímbaro","088"]
[null,null,null,null,null,null,null,null,null,"Michoacán de Ocampo","16","Tepalcatepec","089"]
[null,null,null,null,null,null,null,null,null,"Michoacán de Ocampo","16","Tingambato","090"]
[null,null,null,null,null,null,null,null,null,"Michoacán de Ocampo","16","Tingüindín","091"]
[null,null,null,null,null,null,null,null,null,"Michoacán de Ocampo","16","Tiquicheo de Nicolás Romero","092"]
[null,null,null,null,null,null,null,null,null,"Michoacán de Ocampo","16","Tlalpujahua","093"]
[null,null,null,null,null,null,null,null,null,"Michoacán de Ocampo","16","Tlazazalca","094"]
[null,null,null,null,null,null,null,null,null,"Michoacán de Ocampo","16","Tocumbo","095"]
[null,null,null,null,null,null,null,null,null,"Michoacán de Ocampo","16","Tumbiscatío","096"]
[null,null,null,null,null,null,null,null,null,"Michoacán de Ocampo","16","Turicato","097"]
[null,null,null,null,null,null,null,null,null,"Michoacán de Ocampo","16","Tuxpan","098"]
[null,null,null,null,null,null,null,null,null,"Michoacán de Ocampo","16","Tuzantla","099"]
[null,null,null,null,null,null,null,null,null,"Michoacán de Ocampo","16","Tzintzuntzan","100"]
[null,null,null,null,null,null,null,null,null,"Michoacán de Ocampo","16","Tzitzio","101"]
[null,null,null,null,null,null,null,null,null,"Michoacán de Ocampo","16","Uruapan","102"]
[null,null,null,null,null,null,null,null,null,"Michoacán de Ocampo","16","Venustiano Carranza","103"]
[null,null,null,null,null,null,null,null,null,"Michoacán de Ocampo","16","Villamar","104"]
[null,null,null,null,null,null,null,null,null,"Michoacán de Ocampo","16","Vista Hermosa","105"]
[null,null,null,null,null,null,null,null,null,"Michoacán de Ocampo","16","Yurécuaro","106"]
[null,null,null,null,null,null,null,null,null,"Michoacán de Ocampo","16","Zacapu","107"]
[null,null,null,null,null,null,null,null,null,"Michoacán de Ocampo","16","Zamora","108"]
[null,null,null,null,null,null,null,null,null,"Michoacán de Ocampo","16","Zináparo","109"]
[null,null,null,null,null,null,null,null,null,"Michoacán de Ocampo","16","Zinapécuaro","110"]
[null,null,null,null,null,null,null,null,null,"Michoacán de Ocampo","16","Ziracuaretiro","111"]
[null,null,null,null,null,null,null,null,null,"Michoacán de Ocampo","16","Zitácuaro","112"]
[null,null,null,null,null,null,null,null,null,"Michoacán de Ocampo","16","José Sixto Verduzco","113"]
[null,null,null,null,null,null,null,null,null,"Morelos","17","Amacuzac","001"]
[null,null,null,null,null,null,null,null,null,"Morelos","17","Atlatlahucan","002"]
[null,null,null,null,null,null,null,null,null,"Morelos","17","Axochiapan","003"]
[null,null,null,null,null,null,null,null,null,"Morelos","17","Ayala","004"]
[null,null,null,null,null,null,null,null,null,"Morelos","17","Coatlán del Río","005"]
[null,null,null,null,null,null,null,null,null,"Morelos","17","Cuautla","006"]
[null,null,null,null,null,null,null,null,null,"Morelos","17","Cuernavaca","007"]
[null,null,null,null,null,null,null,null,null,"Morelos","17","Emiliano Zapata","008"]
[null,null,null,null,null,null,null,null,null,"Morelos","17","Huitzilac","009"]
[null,null,null,null,null,null,null,null,null,"Morelos","17","Jantetelco","010"]
[null,null,null,null,null,null,null,null,null,"Morelos","17","Jiutepec","011"]
[null,null,null,null,null,null,null,null,null,"Morelos","17","Jojutla","012"]
[null,null,null,null,null,null,null,null,null,"Morelos","17","Jonacatepec de Leandro Valle","013"]
[null,null,null,null,null,null,null,null,null,"Morelos","17","Mazatepec","014"]
[null,null,null,null,null,null,null,null,null,"Morelos","17","Miacatlán","015"]
[null,null,null,null,null,null,null,null,null,"Morelos","17","Ocuituco","016"]
[null,null,null,null,null,null,null,null,null,"Morelos","17","Puente de Ixtla","017"]
[null,null,null,null,null,null,null,null,null,"Morelos","17","Temixco","018"]
[null,null,null,null,null,null,null,null,null,"Morelos","17","Tepalcingo","019"]
[null,null,null,null,null,null,null,null,null,"Morelos","17","Tepoztlán","020"]
[null,null,null,null,null,null,null,null,null,"Morelos","17","Tetecala","021"]
[null,null,null,null,null,null,null,null,null,"Morelos","17","Tetela del Volcán","022"]
[null,null,null,null,null,null,null,null,null,"Morelos","17","Tlalnepantla","023"]
[null,null,null,null,null,null,null,null,null,"Morelos","17","Tlaltizapán de Zapata","024"]
[null,null,null,null,null,null,null,null,null,"Morelos","17","Tlaquiltenango","025"]
[null,null,null,null,null,null,null,null,null,"Morelos","17","Tlayacapan","026"]
[null,null,null,null,null,null,null,null,null,"Morelos","17","Totolapan","027"]
[null,null,null,null,null,null,null,null,null,"Morelos","17","Xochitepec","028"]
[null,null,null,null,null,null,null,null,null,"Morelos","17","Yautepec","029"]
[null,null,null,null,null,null,null,null,null,"Morelos","17","Yecapixtla","030"]
[null,null,null,null,null,null,null,null,null,"Morelos","17","Zacatepec","031"]
[null,null,null,null,null,null,null,null,null,"Morelos","17","Zacualpan de Amilpas","032"]
[null,null,null,null,null,null,null,null,null,"Morelos","17","Temoac","033"]
[null,null,null,null,null,null,null,null,null,"Morelos","17","Coatetelco","034"]
[null,null,null,null,null,null,null,null,null,"Morelos","17","Xoxocotla","035"]
[null,null,null,null,null,null,null,null,null,"Morelos","17","Hueyapan","036"]
[null,null,null,null,null,null,null,null,null,"Nayarit","18","Acaponeta","001"]
[null,null,null,null,null,null,null,null,null,"Nayarit","18","Ahuacatlán","002"]
[null,null,null,null,null,null,null,null,null,"Nayarit","18","Amatlán de Cañas","003"]
[null,null,null,null,null,null,null,null,null,"Nayarit","18","Compostela","004"]
[null,null,null,null,null,null,null,null,null,"Nayarit","18","Huajicori","005"]
[null,null,null,null,null,null,null,null,null,"Nayarit","18","Ixtlán del Río","006"]
[null,null,null,null,null,null,null,null,null,"Nayarit","18","Jala","007"]
[null,null,null,null,null,null,null,null,null,"Nayarit","18","Xalisco","008"]
[null,null,null,null,null,null,null,null,null,"Nayarit","18","Del Nayar","009"]
[null,null,null,null,null,null,null,null,null,"Nayarit","18","Rosamorada","010"]
[null,null,null,null,null,null,null,null,null,"Nayarit","18","Ruíz","011"]
[null,null,null,null,null,null,null,null,null,"Nayarit","18","San Blas","012"]
[null,null,null,null,null,null,null,null,null,"Nayarit","18","San Pedro Lagunillas","013"]
[null,null,null,null,null,null,null,null,null,"Nayarit","18","Santa María del Oro","014"]
[null,null,null,null,null,null,null,null,null,"Nayarit","18","Santiago Ixcuintla","015"]
[null,null,null,null,null,null,null,null,null,"Nayarit","18","Tecuala","016"]
[null,null,null,null,null,null,null,null,null,"Nayarit","18","Tepic","017"]
[null,null,null,null,null,null,null,null,null,"Nayarit","18","Tuxpan","018"]
[null,null,null,null,null,null,null,null,null,"Nayarit","18","La Yesca","019"]
[null,null,null,null,null,null,null,null,null,"Nayarit","18","Bahía de Banderas","020"]
[null,null,null,null,null,null,null,null,null,"Nuevo León","19","Abasolo","001"]
[null,null,null,null,null,null,null,null,null,"Nuevo León","19","Agualeguas","002"]
[null,null,null,null,null,null,null,null,null,"Nuevo León","19","Los Aldamas","003"]
[null,null,null,null,null,null,null,null,null,"Nuevo León","19","Allende","004"]
[null,null,null,null,null,null,null,null,null,"Nuevo León","19","Anáhuac","005"]
[null,null,null,null,null,null,null,null,null,"Nuevo León","19","Apodaca","006"]
[null,null,null,null,null,null,null,null,null,"Nuevo León","19","Aramberri","007"]
[null,null,null,null,null,null,null,null,null,"Nuevo León","19","Bustamante","008"]
[null,null,null,null,null,null,null,null,null,"Nuevo León","19","Cadereyta Jiménez","009"]
[null,null,null,null,null,null,null,null,null,"Nuevo León","19","El Carmen","010"]
[null,null,null,null,null,null,null,null,null,"Nuevo León","19","Cerralvo","011"]
[null,null,null,null,null,null,null,null,null,"Nuevo León","19","Ciénega de Flores","012"]
[null,null,null,null,null,null,null,null,null,"Nuevo León","19","China","013"]
[null,null,null,null,null,null,null,null,null,"Nuevo León","19","Doctor Arroyo","014"]
[null,null,null,null,null,null,null,null,null,"Nuevo León","19","Doctor Coss","015"]
[null,null,null,null,null,null,null,null,null,"Nuevo León","19","Doctor González","016"]
[null,null,null,null,null,null,null,null,null,"Nuevo León","19","Galeana","017"]
[null,null,null,null,null,null,null,null,null,"Nuevo León","19","García","018"]
[null,null,null,null,null,null,null,null,null,"Nuevo León","19","San Pedro Garza García","019"]
[null,null,null,null,null,null,null,null,null,"Nuevo León","19","General Bravo","020"]
[null,null,null,null,null,null,null,null,null,"Nuevo León","19","General Escobedo","021"]
[null,null,null,null,null,null,null,null,null,"Nuevo León","19","General Terán","022"]
[null,null,null,null,null,null,null,null,null,"Nuevo León","19","General Treviño","023"]
[null,null,null,null,null,null,null,null,null,"Nuevo León","19","General Zaragoza","024"]
[null,null,null,null,null,null,null,null,null,"Nuevo León","19","General Zuazua","025"]
[null,null,null,null,null,null,null,null,null,"Nuevo León","19","Guadalupe","026"]
[null,null,null,null,null,null,null,null,null,"Nuevo León","19","Los Herreras","027"]
[null,null,null,null,null,null,null,null,null,"Nuevo León","19","Higueras","028"]
[null,null,null,null,null,null,null,null,null,"Nuevo León","19","Hualahuises","029"]
[null,null,null,null,null,null,null,null,null,"Nuevo León","19","Iturbide","030"]
[null,null,null,null,null,null,null,null,null,"Nuevo León","19","Juárez","031"]
[null,null,null,null,null,null,null,null,null,"Nuevo León","19","Lampazos de Naranjo","032"]
[null,null,null,null,null,null,null,null,null,"Nuevo León","19","Linares","033"]
[null,null,null,null,null,null,null,null,null,"Nuevo León","19","Marín","034"]
[null,null,null,null,null,null,null,null,null,"Nuevo León","19","Melchor Ocampo","035"]
[null,null,null,null,null,null,null,null,null,"Nuevo León","19","Mier y Noriega","036"]
[null,null,null,null,null,null,null,null,null,"Nuevo León","19","Mina","037"]
[null,null,null,null,null,null,null,null,null,"Nuevo León","19","Montemorelos","038"]
[null,null,null,null,null,null,null,null,null,"Nuevo León","19","Monterrey","039"]
[null,null,null,null,null,null,null,null,null,"Nuevo León","19","Parás","040"]
[null,null,null,null,null,null,null,null,null,"Nuevo León","19","Pesquería","041"]
[null,null,null,null,null,null,null,null,null,"Nuevo León","19","Los Ramones","042"]
[null,null,null,null,null,null,null,null,null,"Nuevo León","19","Rayones","043"]
[null,null,null,null,null,null,null,null,null,"Nuevo León","19","Sabinas Hidalgo","044"]
[null,null,null,null,null,null,null,null,null,"Nuevo León","19","Salinas Victoria","045"]
[null,null,null,null,null,null,null,null,null,"Nuevo León","19","San Nicolás de los Garza","046"]
[null,null,null,null,null,null,null,null,null,"Nuevo León","19","Hidalgo","047"]
[null,null,null,null,null,null,null,null,null,"Nuevo León","19","Santa Catarina","048"]
[null,null,null,null,null,null,null,null,null,"Nuevo León","19","Santiago","049"]
[null,null,null,null,null,null,null,null,null,"Nuevo León","19","Vallecillo","050"]
[null,null,null,null,null,null,null,null,null,"Nuevo León","19","Villaldama","051"]
[null,null,null,null,null,null,null,null,null,"Oaxaca","20","Abejones","001"]
[null,null,null,null,null,null,null,null,null,"Oaxaca","20","Acatlán de Pérez Figueroa","002"]
[null,null,null,null,null,null,null,null,null,"Oaxaca","20","Asunción Cacalotepec","003"]
[null,null,null,null,null,null,null,null,null,"Oaxaca","20","Asunción Cuyotepeji","004"]
[null,null,null,null,null,null,null,null,null,"Oaxaca","20","Asunción Ixtaltepec","005"]
[null,null,null,null,null,null,null,null,null,"Oaxaca","20","Asunción Nochixtlán","006"]
[null,null,null,null,null,null,null,null,null,"Oaxaca","20","Asunción Ocotlán","007"]
[null,null,null,null,null,null,null,null,null,"Oaxaca","20","Asunción Tlacolulita","008"]
[null,null,null,null,null,null,null,null,null,"Oaxaca","20","Ayotzintepec","009"]
[null,null,null,null,null,null,null,null,null,"Oaxaca","20","El Barrio de la Soledad","010"]
[null,null,null,null,null,null,null,null,null,"Oaxaca","20","Calihualá","011"]
[null,null,null,null,null,null,null,null,null,"Oaxaca","20","Candelaria Loxicha","012"]
[null,null,null,null,null,null,null,null,null,"Oaxaca","20","Ciénega de Zimatlán","013"]
[null,null,null,null,null,null,null,null,null,"Oaxaca","20","Ciudad Ixtepec","014"]
[null,null,null,null,null,null,null,null,null,"Oaxaca","20","Coatecas Altas","015"]
[null,null,null,null,null,null,null,null,null,"Oaxaca","20","Coicoyán de las Flores","016"]
[null,null,null,null,null,null,null,null,null,"Oaxaca","20","La Compañía","017"]
[null,null,null,null,null,null,null,null,null,"Oaxaca","20","Concepción Buenavista","018"]
[null,null,null,null,null,null,null,null,null,"Oaxaca","20","Concepción Pápalo","019"]
[null,null,null,null,null,null,null,null,null,"Oaxaca","20","Constancia del Rosario","020"]
[null,null,null,null,null,null,null,null,null,"Oaxaca","20","Cosolapa","021"]
[null,null,null,null,null,null,null,null,null,"Oaxaca","20","Cosoltepec","022"]
[null,null,null,null,null,null,null,null,null,"Oaxaca","20","Cuilápam de Guerrero","023"]
[null,null,null,null,null,null,null,null,null,"Oaxaca","20","Cuyamecalco Villa de Zaragoza","024"]
[null,null,null,null,null,null,null,null,null,"Oaxaca","20","Chahuites","025"]
[null,null,null,null,null,null,null,null,null,"Oaxaca","20","Chalcatongo de Hidalgo","026"]
[null,null,null,null,null,null,null,null,null,"Oaxaca","20","Chiquihuitlán de Benito Juárez","027"]
[null,null,null,null,null,null,null,null,null,"Oaxaca","20","Heroica Ciudad de Ejutla de Crespo","028"]
[null,null,null,null,null,null,null,null,null,"Oaxaca","20","Eloxochitlán de Flores Magón","029"]
[null,null,null,null,null,null,null,null,null,"Oaxaca","20","El Espinal","030"]
[null,null,null,null,null,null,null,null,null,"Oaxaca","20","Tamazulápam del Espíritu Santo","031"]
[null,null,null,null,null,null,null,null,null,"Oaxaca","20","Fresnillo de Trujano","032"]
[null,null,null,null,null,null,null,null,null,"Oaxaca","20","Guadalupe Etla","033"]
[null,null,null,null,null,null,null,null,null,"Oaxaca","20","Guadalupe de Ramírez","034"]
[null,null,null,null,null,null,null,null,null,"Oaxaca","20","Guelatao de Juárez","035"]
[null,null,null,null,null,null,null,null,null,"Oaxaca","20","Guevea de Humboldt","036"]
[null,null,null,null,null,null,null,null,null,"Oaxaca","20","Mesones Hidalgo","037"]
[null,null,null,null,null,null,null,null,null,"Oaxaca","20","Villa Hidalgo","038"]
[null,null,null,null,null,null,null,null,null,"Oaxaca","20","Heroica Ciudad de Huajuapan de León","039"]
[null,null,null,null,null,null,null,null,null,"Oaxaca","20","Huautepec","040"]
[null,null,null,null,null,null,null,null,null,"Oaxaca","20","Huautla de Jiménez","041"]
[null,null,null,null,null,null,null,null,null,"Oaxaca","20","Ixtlán de Juárez","042"]
[null,null,null,null,null,null,null,null,null,"Oaxaca","20","Juchitán de Zaragoza","043"]
[null,null,null,null,null,null,null,null,null,"Oaxaca","20","Loma Bonita","044"]
[null,null,null,null,null,null,null,null,null,"Oaxaca","20","Magdalena Apasco","045"]
[null,null,null,null,null,null,null,null,null,"Oaxaca","20","Magdalena Jaltepec","046"]
[null,null,null,null,null,null,null,null,null,"Oaxaca","20","Santa Magdalena Jicotlán","047"]
[null,null,null,null,null,null,null,null,null,"Oaxaca","20","Magdalena Mixtepec","048"]
[null,null,null,null,null,null,null,null,null,"Oaxaca","20","Magdalena Ocotlán","049"]
[null,null,null,null,null,null,null,null,null,"Oaxaca","20","Magdalena Peñasco","050"]
[null,null,null,null,null,null,null,null,null,"Oaxaca","20","Magdalena Teitipac","051"]
[null,null,null,null,null,null,null,null,null,"Oaxaca","20","Magdalena Tequisistlán","052"]
[null,null,null,null,null,null,null,null,null,"Oaxaca","20","Magdalena Tlacotepec","053"]
[null,null,null,null,null,null,null,null,null,"Oaxaca","20","Magdalena Zahuatlán","054"]
[null,null,null,null,null,null,null,null,null,"Oaxaca","20","Mariscala de Juárez","055"]
[null,null,null,null,null,null,null,null,null,"Oaxaca","20","Mártires de Tacubaya","056"]
[null,null,null,null,null,null,null,null,null,"Oaxaca","20","Matías Romero Avendaño","057"]
[null,null,null,null,null,null,null,null,null,"Oaxaca","20","Mazatlán Villa de Flores","058"]
[null,null,null,null,null,null,null,null,null,"Oaxaca","20","Miahuatlán de Porfirio Díaz","059"]
[null,null,null,null,null,null,null,null,null,"Oaxaca","20","Mixistlán de la Reforma","060"]
[null,null,null,null,null,null,null,null,null,"Oaxaca","20","Monjas","061"]
[null,null,null,null,null,null,null,null,null,"Oaxaca","20","Natividad","062"]
[null,null,null,null,null,null,null,null,null,"Oaxaca","20","Nazareno Etla","063"]
[null,null,null,null,null,null,null,null,null,"Oaxaca","20","Nejapa de Madero","064"]
[null,null,null,null,null,null,null,null,null,"Oaxaca","20","Ixpantepec Nieves","065"]
[null,null,null,null,null,null,null,null,null,"Oaxaca","20","Santiago Niltepec","066"]
[null,null,null,null,null,null,null,null,null,"Oaxaca","20","Oaxaca de Juárez","067"]
[null,null,null,null,null,null,null,null,null,"Oaxaca","20","Ocotlán de Morelos","068"]
[null,null,null,null,null,null,null,null,null,"Oaxaca","20","La Pe","069"]
[null,null,null,null,null,null,null,null,null,"Oaxaca","20","Pinotepa de Don Luis","070"]
[null,null,null,null,null,null,null,null,null,"Oaxaca","20","Pluma Hidalgo","071"]
[null,null,null,null,null,null,null,null,null,"Oaxaca","20","San José del Progreso","072"]
[null,null,null,null,null,null,null,null,null,"Oaxaca","20","Putla Villa de Guerrero","073"]
[null,null,null,null,null,null,null,null,null,"Oaxaca","20","Santa Catarina Quioquitani","074"]
[null,null,null,null,null,null,null,null,null,"Oaxaca","20","Reforma de Pineda","075"]
[null,null,null,null,null,null,null,null,null,"Oaxaca","20","La Reforma","076"]
[null,null,null,null,null,null,null,null,null,"Oaxaca","20","Reyes Etla","077"]
[null,null,null,null,null,null,null,null,null,"Oaxaca","20","Rojas de Cuauhtémoc","078"]
[null,null,null,null,null,null,null,null,null,"Oaxaca","20","Salina Cruz","079"]
[null,null,null,null,null,null,null,null,null,"Oaxaca","20","San Agustín Amatengo","080"]
[null,null,null,null,null,null,null,null,null,"Oaxaca","20","San Agustín Atenango","081"]
[null,null,null,null,null,null,null,null,null,"Oaxaca","20","San Agustín Chayuco","082"]
[null,null,null,null,null,null,null,null,null,"Oaxaca","20","San Agustín de las Juntas","083"]
[null,null,null,null,null,null,null,null,null,"Oaxaca","20","San Agustín Etla","084"]
[null,null,null,null,null,null,null,null,null,"Oaxaca","20","San Agustín Loxicha","085"]
[null,null,null,null,null,null,null,null,null,"Oaxaca","20","San Agustín Tlacotepec","086"]
[null,null,null,null,null,null,null,null,null,"Oaxaca","20","San Agustín Yatareni","087"]
[null,null,null,null,null,null,null,null,null,"Oaxaca","20","San Andrés Cabecera Nueva","088"]
[null,null,null,null,null,null,null,null,null,"Oaxaca","20","San Andrés Dinicuiti","089"]
[null,null,null,null,null,null,null,null,null,"Oaxaca","20","San Andrés Huaxpaltepec","090"]
[null,null,null,null,null,null,null,null,null,"Oaxaca","20","San Andrés Huayápam","091"]
[null,null,null,null,null,null,null,null,null,"Oaxaca","20","San Andrés Ixtlahuaca","092"]
[null,null,null,null,null,null,null,null,null,"Oaxaca","20","San Andrés Lagunas","093"]
[null,null,null,null,null,null,null,null,null,"Oaxaca","20","San Andrés Nuxiño","094"]
[null,null,null,null,null,null,null,null,null,"Oaxaca","20","San Andrés Paxtlán","095"]
[null,null,null,null,null,null,null,null,null,"Oaxaca","20","San Andrés Sinaxtla","096"]
[null,null,null,null,null,null,null,null,null,"Oaxaca","20","San Andrés Solaga","097"]
[null,null,null,null,null,null,null,null,null,"Oaxaca","20","San Andrés Teotilálpam","098"]
[null,null,null,null,null,null,null,null,null,"Oaxaca","20","San Andrés Tepetlapa","099"]
[null,null,null,null,null,null,null,null,null,"Oaxaca","20","San Andrés Yaá","100"]
[null,null,null,null,null,null,null,null,null,"Oaxaca","20","San Andrés Zabache","101"]
[null,null,null,null,null,null,null,null,null,"Oaxaca","20","San Andrés Zautla","102"]
[null,null,null,null,null,null,null,null,null,"Oaxaca","20","San Antonino Castillo Velasco","103"]
[null,null,null,null,null,null,null,null,null,"Oaxaca","20","San Antonino el Alto","104"]
[null,null,null,null,null,null,null,null,null,"Oaxaca","20","San Antonino Monte Verde","105"]
[null,null,null,null,null,null,null,null,null,"Oaxaca","20","San Antonio Acutla","106"]
[null,null,null,null,null,null,null,null,null,"Oaxaca","20","San Antonio de la Cal","107"]
[null,null,null,null,null,null,null,null,null,"Oaxaca","20","San Antonio Huitepec","108"]
[null,null,null,null,null,null,null,null,null,"Oaxaca","20","San Antonio Nanahuatípam","109"]
[null,null,null,null,null,null,null,null,null,"Oaxaca","20","San Antonio Sinicahua","110"]
[null,null,null,null,null,null,null,null,null,"Oaxaca","20","San Antonio Tepetlapa","111"]
[null,null,null,null,null,null,null,null,null,"Oaxaca","20","San Baltazar Chichicápam","112"]
[null,null,null,null,null,null,null,null,null,"Oaxaca","20","San Baltazar Loxicha","113"]
[null,null,null,null,null,null,null,null,null,"Oaxaca","20","San Baltazar Yatzachi el Bajo","114"]
[null,null,null,null,null,null,null,null,null,"Oaxaca","20","San Bartolo Coyotepec","115"]
[null,null,null,null,null,null,null,null,null,"Oaxaca","20","San Bartolomé Ayautla","116"]
[null,null,null,null,null,null,null,null,null,"Oaxaca","20","San Bartolomé Loxicha","117"]
[null,null,null,null,null,null,null,null,null,"Oaxaca","20","San Bartolomé Quialana","118"]
[null,null,null,null,null,null,null,null,null,"Oaxaca","20","San Bartolomé Yucuañe","119"]
[null,null,null,null,null,null,null,null,null,"Oaxaca","20","San Bartolomé Zoogocho","120"]
[null,null,null,null,null,null,null,null,null,"Oaxaca","20","San Bartolo Soyaltepec","121"]
[null,null,null,null,null,null,null,null,null,"Oaxaca","20","San Bartolo Yautepec","122"]
[null,null,null,null,null,null,null,null,null,"Oaxaca","20","San Bernardo Mixtepec","123"]
[null,null,null,null,null,null,null,null,null,"Oaxaca","20","San Blas Atempa","124"]
[null,null,null,null,null,null,null,null,null,"Oaxaca","20","San Carlos Yautepec","125"]
[null,null,null,null,null,null,null,null,null,"Oaxaca","20","San Cristóbal Amatlán","126"]
[null,null,null,null,null,null,null,null,null,"Oaxaca","20","San Cristóbal Amoltepec","127"]
[null,null,null,null,null,null,null,null,null,"Oaxaca","20","San Cristóbal Lachirioag","128"]
[null,null,null,null,null,null,null,null,null,"Oaxaca","20","San Cristóbal Suchixtlahuaca","129"]
[null,null,null,null,null,null,null,null,null,"Oaxaca","20","San Dionisio del Mar","130"]
[null,null,null,null,null,null,null,null,null,"Oaxaca","20","San Dionisio Ocotepec","131"]
[null,null,null,null,null,null,null,null,null,"Oaxaca","20","San Dionisio Ocotlán","132"]
[null,null,null,null,null,null,null,null,null,"Oaxaca","20","San Esteban Atatlahuca","133"]
[null,null,null,null,null,null,null,null,null,"Oaxaca","20","San Felipe Jalapa de Díaz","134"]
[null,null,null,null,null,null,null,null,null,"Oaxaca","20","San Felipe Tejalápam","135"]
[null,null,null,null,null,null,null,null,null,"Oaxaca","20","San Felipe Usila","136"]
[null,null,null,null,null,null,null,null,null,"Oaxaca","20","San Francisco Cahuacuá","137"]
[null,null,null,null,null,null,null,null,null,"Oaxaca","20","San Francisco Cajonos","138"]
[null,null,null,null,null,null,null,null,null,"Oaxaca","20","San Francisco Chapulapa","139"]
[null,null,null,null,null,null,null,null,null,"Oaxaca","20","San Francisco Chindúa","140"]
[null,null,null,null,null,null,null,null,null,"Oaxaca","20","San Francisco del Mar","141"]
[null,null,null,null,null,null,null,null,null,"Oaxaca","20","San Francisco Huehuetlán","142"]
[null,null,null,null,null,null,null,null,null,"Oaxaca","20","San Francisco Ixhuatán","143"]
[null,null,null,null,null,null,null,null,null,"Oaxaca","20","San Francisco Jaltepetongo","144"]
[null,null,null,null,null,null,null,null,null,"Oaxaca","20","San Francisco Lachigoló","145"]
[null,null,null,null,null,null,null,null,null,"Oaxaca","20","San Francisco Logueche","146"]
[null,null,null,null,null,null,null,null,null,"Oaxaca","20","San Francisco Nuxaño","147"]
[null,null,null,null,null,null,null,null,null,"Oaxaca","20","San Francisco Ozolotepec","148"]
[null,null,null,null,null,null,null,null,null,"Oaxaca","20","San Francisco Sola","149"]
[null,null,null,null,null,null,null,null,null,"Oaxaca","20","San Francisco Telixtlahuaca","150"]
[null,null,null,null,null,null,null,null,null,"Oaxaca","20","San Francisco Teopan","151"]
[null,null,null,null,null,null,null,null,null,"Oaxaca","20","San Francisco Tlapancingo","152"]
[null,null,null,null,null,null,null,null,null,"Oaxaca","20","San Gabriel Mixtepec","153"]
[null,null,null,null,null,null,null,null,null,"Oaxaca","20","San Ildefonso Amatlán","154"]
[null,null,null,null,null,null,null,null,null,"Oaxaca","20","San Ildefonso Sola","155"]
[null,null,null,null,null,null,null,null,null,"Oaxaca","20","San Ildefonso Villa Alta","156"]
[null,null,null,null,null,null,null,null,null,"Oaxaca","20","San Jacinto Amilpas","157"]
[null,null,null,null,null,null,null,null,null,"Oaxaca","20","San Jacinto Tlacotepec","158"]
[null,null,null,null,null,null,null,null,null,"Oaxaca","20","San Jerónimo Coatlán","159"]
[null,null,null,null,null,null,null,null,null,"Oaxaca","20","San Jerónimo Silacayoapilla","160"]
[null,null,null,null,null,null,null,null,null,"Oaxaca","20","San Jerónimo Sosola","161"]
[null,null,null,null,null,null,null,null,null,"Oaxaca","20","San Jerónimo Taviche","162"]
[null,null,null,null,null,null,null,null,null,"Oaxaca","20","San Jerónimo Tecóatl","163"]
[null,null,null,null,null,null,null,null,null,"Oaxaca","20","San Jorge Nuchita","164"]
[null,null,null,null,null,null,null,null,null,"Oaxaca","20","San José Ayuquila","165"]
[null,null,null,null,null,null,null,null,null,"Oaxaca","20","San José Chiltepec","166"]
[null,null,null,null,null,null,null,null,null,"Oaxaca","20","San José del Peñasco","167"]
[null,null,null,null,null,null,null,null,null,"Oaxaca","20","San José Estancia Grande","168"]
[null,null,null,null,null,null,null,null,null,"Oaxaca","20","San José Independencia","169"]
[null,null,null,null,null,null,null,null,null,"Oaxaca","20","San José Lachiguiri","170"]
[null,null,null,null,null,null,null,null,null,"Oaxaca","20","San José Tenango","171"]
[null,null,null,null,null,null,null,null,null,"Oaxaca","20","San Juan Achiutla","172"]
[null,null,null,null,null,null,null,null,null,"Oaxaca","20","San Juan Atepec","173"]
[null,null,null,null,null,null,null,null,null,"Oaxaca","20","Ánimas Trujano","174"]
[null,null,null,null,null,null,null,null,null,"Oaxaca","20","San Juan Bautista Atatlahuca","175"]
[null,null,null,null,null,null,null,null,null,"Oaxaca","20","San Juan Bautista Coixtlahuaca","176"]
[null,null,null,null,null,null,null,null,null,"Oaxaca","20","San Juan Bautista Cuicatlán","177"]
[null,null,null,null,null,null,null,null,null,"Oaxaca","20","San Juan Bautista Guelache","178"]
[null,null,null,null,null,null,null,null,null,"Oaxaca","20","San Juan Bautista Jayacatlán","179"]
[null,null,null,null,null,null,null,null,null,"Oaxaca","20","San Juan Bautista Lo de Soto","180"]
[null,null,null,null,null,null,null,null,null,"Oaxaca","20","San Juan Bautista Suchitepec","181"]
[null,null,null,null,null,null,null,null,null,"Oaxaca","20","San Juan Bautista Tlacoatzintepec","182"]
[null,null,null,null,null,null,null,null,null,"Oaxaca","20","San Juan Bautista Tlachichilco","183"]
[null,null,null,null,null,null,null,null,null,"Oaxaca","20","San Juan Bautista Tuxtepec","184"]
[null,null,null,null,null,null,null,null,null,"Oaxaca","20","San Juan Cacahuatepec","185"]
[null,null,null,null,null,null,null,null,null,"Oaxaca","20","San Juan Cieneguilla","186"]
[null,null,null,null,null,null,null,null,null,"Oaxaca","20","San Juan Coatzóspam","187"]
[null,null,null,null,null,null,null,null,null,"Oaxaca","20","San Juan Colorado","188"]
[null,null,null,null,null,null,null,null,null,"Oaxaca","20","San Juan Comaltepec","189"]
[null,null,null,null,null,null,null,null,null,"Oaxaca","20","San Juan Cotzocón","190"]
[null,null,null,null,null,null,null,null,null,"Oaxaca","20","San Juan Chicomezúchil","191"]
[null,null,null,null,null,null,null,null,null,"Oaxaca","20","San Juan Chilateca","192"]
[null,null,null,null,null,null,null,null,null,"Oaxaca","20","San Juan del Estado","193"]
[null,null,null,null,null,null,null,null,null,"Oaxaca","20","San Juan del Río","194"]
[null,null,null,null,null,null,null,null,null,"Oaxaca","20","San Juan Diuxi","195"]
[null,null,null,null,null,null,null,null,null,"Oaxaca","20","San Juan Evangelista Analco","196"]
[null,null,null,null,null,null,null,null,null,"Oaxaca","20","San Juan Guelavía","197"]
[null,null,null,null,null,null,null,null,null,"Oaxaca","20","San Juan Guichicovi","198"]
[null,null,null,null,null,null,null,null,null,"Oaxaca","20","San Juan Ihualtepec","199"]
[null,null,null,null,null,null,null,null,null,"Oaxaca","20","San Juan Juquila Mixes","200"]
[null,null,null,null,null,null,null,null,null,"Oaxaca","20","San Juan Juquila Vijanos","201"]
[null,null,null,null,null,null,null,null,null,"Oaxaca","20","San Juan Lachao","202"]
[null,null,null,null,null,null,null,null,null,"Oaxaca","20","San Juan Lachigalla","203"]
[null,null,null,null,null,null,null,null,null,"Oaxaca","20","San Juan Lajarcia","204"]
[null,null,null,null,null,null,null,null,null,"Oaxaca","20","San Juan Lalana","205"]
[null,null,null,null,null,null,null,null,null,"Oaxaca","20","San Juan de los Cués","206"]
[null,null,null,null,null,null,null,null,null,"Oaxaca","20","San Juan Mazatlán","207"]
[null,null,null,null,null,null,null,null,null,"Oaxaca","20","San Juan Mixtepec - Distrito 08","208"]
[null,null,null,null,null,null,null,null,null,"Oaxaca","20","San Juan Mixtepec - Distrito 26","209"]
[null,null,null,null,null,null,null,null,null,"Oaxaca","20","San Juan Ñumí","210"]
[null,null,null,null,null,null,null,null,null,"Oaxaca","20","San Juan Ozolotepec","211"]
[null,null,null,null,null,null,null,null,null,"Oaxaca","20","San Juan Petlapa","212"]
[null,null,null,null,null,null,null,null,null,"Oaxaca","20","San Juan Quiahije","213"]
[null,null,null,null,null,null,null,null,null,"Oaxaca","20","San Juan Quiotepec","214"]
[null,null,null,null,null,null,null,null,null,"Oaxaca","20","San Juan Sayultepec","215"]
[null,null,null,null,null,null,null,null,null,"Oaxaca","20","San Juan Tabaá","216"]
[null,null,null,null,null,null,null,null,null,"Oaxaca","20","San Juan Tamazola","217"]
[null,null,null,null,null,null,null,null,null,"Oaxaca","20","San Juan Teita","218"]
[null,null,null,null,null,null,null,null,null,"Oaxaca","20","San Juan Teitipac","219"]
[null,null,null,null,null,null,null,null,null,"Oaxaca","20","San Juan Tepeuxila","220"]
[null,null,null,null,null,null,null,null,null,"Oaxaca","20","San Juan Teposcolula","221"]
[null,null,null,null,null,null,null,null,null,"Oaxaca","20","San Juan Yaeé","222"]
[null,null,null,null,null,null,null,null,null,"Oaxaca","20","San Juan Yatzona","223"]
[null,null,null,null,null,null,null,null,null,"Oaxaca","20","San Juan Yucuita","224"]
[null,null,null,null,null,null,null,null,null,"Oaxaca","20","San Lorenzo","225"]
[null,null,null,null,null,null,null,null,null,"Oaxaca","20","San Lorenzo Albarradas","226"]
[null,null,null,null,null,null,null,null,null,"Oaxaca","20","San Lorenzo Cacaotepec","227"]
[null,null,null,null,null,null,null,null,null,"Oaxaca","20","San Lorenzo Cuaunecuiltitla","228"]
[null,null,null,null,null,null,null,null,null,"Oaxaca","20","San Lorenzo Texmelúcan","229"]
[null,null,null,null,null,null,null,null,null,"Oaxaca","20","San Lorenzo Victoria","230"]
[null,null,null,null,null,null,null,null,null,"Oaxaca","20","San Lucas Camotlán","231"]
[null,null,null,null,null,null,null,null,null,"Oaxaca","20","San Lucas Ojitlán","232"]
[null,null,null,null,null,null,null,null,null,"Oaxaca","20","San Lucas Quiaviní","233"]
[null,null,null,null,null,null,null,null,null,"Oaxaca","20","San Lucas Zoquiápam","234"]
[null,null,null,null,null,null,null,null,null,"Oaxaca","20","San Luis Amatlán","235"]
[null,null,null,null,null,null,null,null,null,"Oaxaca","20","San Marcial Ozolotepec","236"]
[null,null,null,null,null,null,null,null,null,"Oaxaca","20","San Marcos Arteaga","237"]
[null,null,null,null,null,null,null,null,null,"Oaxaca","20","San Martín de los Cansecos","238"]
[null,null,null,null,null,null,null,null,null,"Oaxaca","20","San Martín Huamelúlpam","239"]
[null,null,null,null,null,null,null,null,null,"Oaxaca","20","San Martín Itunyoso","240"]
[null,null,null,null,null,null,null,null,null,"Oaxaca","20","San Martín Lachilá","241"]
[null,null,null,null,null,null,null,null,null,"Oaxaca","20","San Martín Peras","242"]
[null,null,null,null,null,null,null,null,null,"Oaxaca","20","San Martín Tilcajete","243"]
[null,null,null,null,null,null,null,null,null,"Oaxaca","20","San Martín Toxpalan","244"]
[null,null,null,null,null,null,null,null,null,"Oaxaca","20","San Martín Zacatepec","245"]
[null,null,null,null,null,null,null,null,null,"Oaxaca","20","San Mateo Cajonos","246"]
[null,null,null,null,null,null,null,null,null,"Oaxaca","20","Capulálpam de Méndez","247"]
[null,null,null,null,null,null,null,null,null,"Oaxaca","20","San Mateo del Mar","248"]
[null,null,null,null,null,null,null,null,null,"Oaxaca","20","San Mateo Yoloxochitlán","249"]
[null,null,null,null,null,null,null,null,null,"Oaxaca","20","San Mateo Etlatongo","250"]
[null,null,null,null,null,null,null,null,null,"Oaxaca","20","San Mateo Nejápam","251"]
[null,null,null,null,null,null,null,null,null,"Oaxaca","20","San Mateo Peñasco","252"]
[null,null,null,null,null,null,null,null,null,"Oaxaca","20","San Mateo Piñas","253"]
[null,null,null,null,null,null,null,null,null,"Oaxaca","20","San Mateo Río Hondo","254"]
[null,null,null,null,null,null,null,null,null,"Oaxaca","20","San Mateo Sindihui","255"]
[null,null,null,null,null,null,null,null,null,"Oaxaca","20","San Mateo Tlapiltepec","256"]
[null,null,null,null,null,null,null,null,null,"Oaxaca","20","San Melchor Betaza","257"]
[null,null,null,null,null,null,null,null,null,"Oaxaca","20","San Miguel Achiutla","258"]
[null,null,null,null,null,null,null,null,null,"Oaxaca","20","San Miguel Ahuehuetitlán","259"]
[null,null,null,null,null,null,null,null,null,"Oaxaca","20","San Miguel Aloápam","260"]
[null,null,null,null,null,null,null,null,null,"Oaxaca","20","San Miguel Amatitlán","261"]
[null,null,null,null,null,null,null,null,null,"Oaxaca","20","San Miguel Amatlán","262"]
[null,null,null,null,null,null,null,null,null,"Oaxaca","20","San Miguel Coatlán","263"]
[null,null,null,null,null,null,null,null,null,"Oaxaca","20","San Miguel Chicahua","264"]
[null,null,null,null,null,null,null,null,null,"Oaxaca","20","San Miguel Chimalapa","265"]
[null,null,null,null,null,null,null,null,null,"Oaxaca","20","San Miguel del Puerto","266"]
[null,null,null,null,null,null,null,null,null,"Oaxaca","20","San Miguel del Río","267"]
[null,null,null,null,null,null,null,null,null,"Oaxaca","20","San Miguel Ejutla","268"]
[null,null,null,null,null,null,null,null,null,"Oaxaca","20","San Miguel el Grande","269"]
[null,null,null,null,null,null,null,null,null,"Oaxaca","20","San Miguel Huautla","270"]
[null,null,null,null,null,null,null,null,null,"Oaxaca","20","San Miguel Mixtepec","271"]
[null,null,null,null,null,null,null,null,null,"Oaxaca","20","San Miguel Panixtlahuaca","272"]
[null,null,null,null,null,null,null,null,null,"Oaxaca","20","San Miguel Peras","273"]
[null,null,null,null,null,null,null,null,null,"Oaxaca","20","San Miguel Piedras","274"]
[null,null,null,null,null,null,null,null,null,"Oaxaca","20","San Miguel Quetzaltepec","275"]
[null,null,null,null,null,null,null,null,null,"Oaxaca","20","San Miguel Santa Flor","276"]
[null,null,null,null,null,null,null,null,null,"Oaxaca","20","Villa Sola de Vega","277"]
[null,null,null,null,null,null,null,null,null,"Oaxaca","20","San Miguel Soyaltepec","278"]
[null,null,null,null,null,null,null,null,null,"Oaxaca","20","San Miguel Suchixtepec","279"]
[null,null,null,null,null,null,null,null,null,"Oaxaca","20","Villa Talea de Castro","280"]
[null,null,null,null,null,null,null,null,null,"Oaxaca","20","San Miguel Tecomatlán","281"]
[null,null,null,null,null,null,null,null,null,"Oaxaca","20","San Miguel Tenango","282"]
[null,null,null,null,null,null,null,null,null,"Oaxaca","20","San Miguel Tequixtepec","283"]
[null,null,null,null,null,null,null,null,null,"Oaxaca","20","San Miguel Tilquiápam","284"]
[null,null,null,null,null,null,null,null,null,"Oaxaca","20","San Miguel Tlacamama","285"]
[null,null,null,null,null,null,null,null,null,"Oaxaca","20","San Miguel Tlacotepec","286"]
[null,null,null,null,null,null,null,null,null,"Oaxaca","20","San Miguel Tulancingo","287"]
[null,null,null,null,null,null,null,null,null,"Oaxaca","20","San Miguel Yotao","288"]
[null,null,null,null,null,null,null,null,null,"Oaxaca","20","San Nicolás","289"]
[null,null,null,null,null,null,null,null,null,"Oaxaca","20","San Nicolás Hidalgo","290"]
[null,null,null,null,null,null,null,null,null,"Oaxaca","20","San Pablo Coatlán","291"]
[null,null,null,null,null,null,null,null,null,"Oaxaca","20","San Pablo Cuatro Venados","292"]
[null,null,null,null,null,null,null,null,null,"Oaxaca","20","San Pablo Etla","293"]
[null,null,null,null,null,null,null,null,null,"Oaxaca","20","San Pablo Huitzo","294"]
[null,null,null,null,null,null,null,null,null,"Oaxaca","20","San Pablo Huixtepec","295"]
[null,null,null,null,null,null,null,null,null,"Oaxaca","20","San Pablo Macuiltianguis","296"]
[null,null,null,null,null,null,null,null,null,"Oaxaca","20","San Pablo Tijaltepec","297"]
[null,null,null,null,null,null,null,null,null,"Oaxaca","20","San Pablo Villa de Mitla","298"]
[null,null,null,null,null,null,null,null,null,"Oaxaca","20","San Pablo Yaganiza","299"]
[null,null,null,null,null,null,null,null,null,"Oaxaca","20","San Pedro Amuzgos","300"]
[null,null,null,null,null,null,null,null,null,"Oaxaca","20","San Pedro Apóstol","301"]
[null,null,null,null,null,null,null,null,null,"Oaxaca","20","San Pedro Atoyac","302"]
[null,null,null,null,null,null,null,null,null,"Oaxaca","20","San Pedro Cajonos","303"]
[null,null,null,null,null,null,null,null,null,"Oaxaca","20","San Pedro Coxcaltepec Cántaros","304"]
[null,null,null,null,null,null,null,null,null,"Oaxaca","20","San Pedro Comitancillo","305"]
[null,null,null,null,null,null,null,null,null,"Oaxaca","20","San Pedro el Alto","306"]
[null,null,null,null,null,null,null,null,null,"Oaxaca","20","San Pedro Huamelula","307"]
[null,null,null,null,null,null,null,null,null,"Oaxaca","20","San Pedro Huilotepec","308"]
[null,null,null,null,null,null,null,null,null,"Oaxaca","20","San Pedro Ixcatlán","309"]
[null,null,null,null,null,null,null,null,null,"Oaxaca","20","San Pedro Ixtlahuaca","310"]
[null,null,null,null,null,null,null,null,null,"Oaxaca","20","San Pedro Jaltepetongo","311"]
[null,null,null,null,null,null,null,null,null,"Oaxaca","20","San Pedro Jicayán","312"]
[null,null,null,null,null,null,null,null,null,"Oaxaca","20","San Pedro Jocotipac","313"]
[null,null,null,null,null,null,null,null,null,"Oaxaca","20","San Pedro Juchatengo","314"]
[null,null,null,null,null,null,null,null,null,"Oaxaca","20","San Pedro Mártir","315"]
[null,null,null,null,null,null,null,null,null,"Oaxaca","20","San Pedro Mártir Quiechapa","316"]
[null,null,null,null,null,null,null,null,null,"Oaxaca","20","San Pedro Mártir Yucuxaco","317"]
[null,null,null,null,null,null,null,null,null,"Oaxaca","20","San Pedro Mixtepec - Distrito 22","318"]
[null,null,null,null,null,null,null,null,null,"Oaxaca","20","San Pedro Mixtepec - Distrito 26","319"]
[null,null,null,null,null,null,null,null,null,"Oaxaca","20","San Pedro Molinos","320"]
[null,null,null,null,null,null,null,null,null,"Oaxaca","20","San Pedro Nopala","321"]
[null,null,null,null,null,null,null,null,null,"Oaxaca","20","San Pedro Ocopetatillo","322"]
[null,null,null,null,null,null,null,null,null,"Oaxaca","20","San Pedro Ocotepec","323"]
[null,null,null,null,null,null,null,null,null,"Oaxaca","20","San Pedro Pochutla","324"]
[null,null,null,null,null,null,null,null,null,"Oaxaca","20","San Pedro Quiatoni","325"]
[null,null,null,null,null,null,null,null,null,"Oaxaca","20","San Pedro Sochiápam","326"]
[null,null,null,null,null,null,null,null,null,"Oaxaca","20","San Pedro Tapanatepec","327"]
[null,null,null,null,null,null,null,null,null,"Oaxaca","20","San Pedro Taviche","328"]
[null,null,null,null,null,null,null,null,null,"Oaxaca","20","San Pedro Teozacoalco","329"]
[null,null,null,null,null,null,null,null,null,"Oaxaca","20","San Pedro Teutila","330"]
[null,null,null,null,null,null,null,null,null,"Oaxaca","20","San Pedro Tidaá","331"]
[null,null,null,null,null,null,null,null,null,"Oaxaca","20","San Pedro Topiltepec","332"]
[null,null,null,null,null,null,null,null,null,"Oaxaca","20","San Pedro Totolápam","333"]
[null,null,null,null,null,null,null,null,null,"Oaxaca","20","Villa de Tututepec","334"]
[null,null,null,null,null,null,null,null,null,"Oaxaca","20","San Pedro Yaneri","335"]
[null,null,null,null,null,null,null,null,null,"Oaxaca","20","San Pedro Yólox","336"]
[null,null,null,null,null,null,null,null,null,"Oaxaca","20","San Pedro y San Pablo Ayutla","337"]
[null,null,null,null,null,null,null,null,null,"Oaxaca","20","Villa de Etla","338"]
[null,null,null,null,null,null,null,null,null,"Oaxaca","20","San Pedro y San Pablo Teposcolula","339"]
[null,null,null,null,null,null,null,null,null,"Oaxaca","20","San Pedro y San Pablo Tequixtepec","340"]
[null,null,null,null,null,null,null,null,null,"Oaxaca","20","San Pedro Yucunama","341"]
[null,null,null,null,null,null,null,null,null,"Oaxaca","20","San Raymundo Jalpan","342"]
[null,null,null,null,null,null,null,null,null,"Oaxaca","20","San Sebastián Abasolo","343"]
[null,null,null,null,null,null,null,null,null,"Oaxaca","20","San Sebastián Coatlán","344"]
[null,null,null,null,null,null,null,null,null,"Oaxaca","20","San Sebastián Ixcapa","345"]
[null,null,null,null,null,null,null,null,null,"Oaxaca","20","San Sebastián Nicananduta","346"]
[null,null,null,null,null,null,null,null,null,"Oaxaca","20","San Sebastián Río Hondo","347"]
[null,null,null,null,null,null,null,null,null,"Oaxaca","20","San Sebastián Tecomaxtlahuaca","348"]
[null,null,null,null,null,null,null,null,null,"Oaxaca","20","San Sebastián Teitipac","349"]
[null,null,null,null,null,null,null,null,null,"Oaxaca","20","San Sebastián Tutla","350"]
[null,null,null,null,null,null,null,null,null,"Oaxaca","20","San Simón Almolongas","351"]
[null,null,null,null,null,null,null,null,null,"Oaxaca","20","San Simón Zahuatlán","352"]
[null,null,null,null,null,null,null,null,null,"Oaxaca","20","Santa Ana","353"]
[null,null,null,null,null,null,null,null,null,"Oaxaca","20","Santa Ana Ateixtlahuaca","354"]
[null,null,null,null,null,null,null,null,null,"Oaxaca","20","Santa Ana Cuauhtémoc","355"]
[null,null,null,null,null,null,null,null,null,"Oaxaca","20","Santa Ana del Valle","356"]
[null,null,null,null,null,null,null,null,null,"Oaxaca","20","Santa Ana Tavela","357"]
[null,null,null,null,null,null,null,null,null,"Oaxaca","20","Santa Ana Tlapacoyan","358"]
[null,null,null,null,null,null,null,null,null,"Oaxaca","20","Santa Ana Yareni","359"]
[null,null,null,null,null,null,null,null,null,"Oaxaca","20","Santa Ana Zegache","360"]
[null,null,null,null,null,null,null,null,null,"Oaxaca","20","Santa Catalina Quierí","361"]
[null,null,null,null,null,null,null,null,null,"Oaxaca","20","Santa Catarina Cuixtla","362"]
[null,null,null,null,null,null,null,null,null,"Oaxaca","20","Santa Catarina Ixtepeji","363"]
[null,null,null,null,null,null,null,null,null,"Oaxaca","20","Santa Catarina Juquila","364"]
[null,null,null,null,null,null,null,null,null,"Oaxaca","20","Santa Catarina Lachatao","365"]
[null,null,null,null,null,null,null,null,null,"Oaxaca","20","Santa Catarina Loxicha","366"]
[null,null,null,null,null,null,null,null,null,"Oaxaca","20","Santa Catarina Mechoacán","367"]
[null,null,null,null,null,null,null,null,null,"Oaxaca","20","Santa Catarina Minas","368"]
[null,null,null,null,null,null,null,null,null,"Oaxaca","20","Santa Catarina Quiané","369"]
[null,null,null,null,null,null,null,null,null,"Oaxaca","20","Santa Catarina Tayata","370"]
[null,null,null,null,null,null,null,null,null,"Oaxaca","20","Santa Catarina Ticuá","371"]
[null,null,null,null,null,null,null,null,null,"Oaxaca","20","Santa Catarina Yosonotú","372"]
[null,null,null,null,null,null,null,null,null,"Oaxaca","20","Santa Catarina Zapoquila","373"]
[null,null,null,null,null,null,null,null,null,"Oaxaca","20","Santa Cruz Acatepec","374"]
[null,null,null,null,null,null,null,null,null,"Oaxaca","20","Santa Cruz Amilpas","375"]
[null,null,null,null,null,null,null,null,null,"Oaxaca","20","Santa Cruz de Bravo","376"]
[null,null,null,null,null,null,null,null,null,"Oaxaca","20","Santa Cruz Itundujia","377"]
[null,null,null,null,null,null,null,null,null,"Oaxaca","20","Santa Cruz Mixtepec","378"]
[null,null,null,null,null,null,null,null,null,"Oaxaca","20","Santa Cruz Nundaco","379"]
[null,null,null,null,null,null,null,null,null,"Oaxaca","20","Santa Cruz Papalutla","380"]
[null,null,null,null,null,null,null,null,null,"Oaxaca","20","Santa Cruz Tacache de Mina","381"]
[null,null,null,null,null,null,null,null,null,"Oaxaca","20","Santa Cruz Tacahua","382"]
[null,null,null,null,null,null,null,null,null,"Oaxaca","20","Santa Cruz Tayata","383"]
[null,null,null,null,null,null,null,null,null,"Oaxaca","20","Santa Cruz Xitla","384"]
[null,null,null,null,null,null,null,null,null,"Oaxaca","20","Santa Cruz Xoxocotlán","385"]
[null,null,null,null,null,null,null,null,null,"Oaxaca","20","Santa Cruz Zenzontepec","386"]
[null,null,null,null,null,null,null,null,null,"Oaxaca","20","Santa Gertrudis","387"]
[null,null,null,null,null,null,null,null,null,"Oaxaca","20","Santa Inés del Monte","388"]
[null,null,null,null,null,null,null,null,null,"Oaxaca","20","Santa Inés Yatzeche","389"]
[null,null,null,null,null,null,null,null,null,"Oaxaca","20","Santa Lucía del Camino","390"]
[null,null,null,null,null,null,null,null,null,"Oaxaca","20","Santa Lucía Miahuatlán","391"]
[null,null,null,null,null,null,null,null,null,"Oaxaca","20","Santa Lucía Monteverde","392"]
[null,null,null,null,null,null,null,null,null,"Oaxaca","20","Santa Lucía Ocotlán","393"]
[null,null,null,null,null,null,null,null,null,"Oaxaca","20","Santa María Alotepec","394"]
[null,null,null,null,null,null,null,null,null,"Oaxaca","20","Santa María Apazco","395"]
[null,null,null,null,null,null,null,null,null,"Oaxaca","20","Santa María la Asunción","396"]
[null,null,null,null,null,null,null,null,null,"Oaxaca","20","Heroica Ciudad de Tlaxiaco","397"]
[null,null,null,null,null,null,null,null,null,"Oaxaca","20","Ayoquezco de Aldama","398"]
[null,null,null,null,null,null,null,null,null,"Oaxaca","20","Santa María Atzompa","399"]
[null,null,null,null,null,null,null,null,null,"Oaxaca","20","Santa María Camotlán","400"]
[null,null,null,null,null,null,null,null,null,"Oaxaca","20","Santa María Colotepec","401"]
[null,null,null,null,null,null,null,null,null,"Oaxaca","20","Santa María Cortijo","402"]
[null,null,null,null,null,null,null,null,null,"Oaxaca","20","Santa María Coyotepec","403"]
[null,null,null,null,null,null,null,null,null,"Oaxaca","20","Santa María Chachoápam","404"]
[null,null,null,null,null,null,null,null,null,"Oaxaca","20","Villa de Chilapa de Díaz","405"]
[null,null,null,null,null,null,null,null,null,"Oaxaca","20","Santa María Chilchotla","406"]
[null,null,null,null,null,null,null,null,null,"Oaxaca","20","Santa María Chimalapa","407"]
[null,null,null,null,null,null,null,null,null,"Oaxaca","20","Santa María del Rosario","408"]
[null,null,null,null,null,null,null,null,null,"Oaxaca","20","Santa María del Tule","409"]
[null,null,null,null,null,null,null,null,null,"Oaxaca","20","Santa María Ecatepec","410"]
[null,null,null,null,null,null,null,null,null,"Oaxaca","20","Santa María Guelacé","411"]
[null,null,null,null,null,null,null,null,null,"Oaxaca","20","Santa María Guienagati","412"]
[null,null,null,null,null,null,null,null,null,"Oaxaca","20","Santa María Huatulco","413"]
[null,null,null,null,null,null,null,null,null,"Oaxaca","20","Santa María Huazolotitlán","414"]
[null,null,null,null,null,null,null,null,null,"Oaxaca","20","Santa María Ipalapa","415"]
[null,null,null,null,null,null,null,null,null,"Oaxaca","20","Santa María Ixcatlán","416"]
[null,null,null,null,null,null,null,null,null,"Oaxaca","20","Santa María Jacatepec","417"]
[null,null,null,null,null,null,null,null,null,"Oaxaca","20","Santa María Jalapa del Marqués","418"]
[null,null,null,null,null,null,null,null,null,"Oaxaca","20","Santa María Jaltianguis","419"]
[null,null,null,null,null,null,null,null,null,"Oaxaca","20","Santa María Lachixío","420"]
[null,null,null,null,null,null,null,null,null,"Oaxaca","20","Santa María Mixtequilla","421"]
[null,null,null,null,null,null,null,null,null,"Oaxaca","20","Santa María Nativitas","422"]
[null,null,null,null,null,null,null,null,null,"Oaxaca","20","Santa María Nduayaco","423"]
[null,null,null,null,null,null,null,null,null,"Oaxaca","20","Santa María Ozolotepec","424"]
[null,null,null,null,null,null,null,null,null,"Oaxaca","20","Santa María Pápalo","425"]
[null,null,null,null,null,null,null,null,null,"Oaxaca","20","Santa María Peñoles","426"]
[null,null,null,null,null,null,null,null,null,"Oaxaca","20","Santa María Petapa","427"]
[null,null,null,null,null,null,null,null,null,"Oaxaca","20","Santa María Quiegolani","428"]
[null,null,null,null,null,null,null,null,null,"Oaxaca","20","Santa María Sola","429"]
[null,null,null,null,null,null,null,null,null,"Oaxaca","20","Santa María Tataltepec","430"]
[null,null,null,null,null,null,null,null,null,"Oaxaca","20","Santa María Tecomavaca","431"]
[null,null,null,null,null,null,null,null,null,"Oaxaca","20","Santa María Temaxcalapa","432"]
[null,null,null,null,null,null,null,null,null,"Oaxaca","20","Santa María Temaxcaltepec","433"]
[null,null,null,null,null,null,null,null,null,"Oaxaca","20","Santa María Teopoxco","434"]
[null,null,null,null,null,null,null,null,null,"Oaxaca","20","Santa María Tepantlali","435"]
[null,null,null,null,null,null,null,null,null,"Oaxaca","20","Santa María Texcatitlán","436"]
[null,null,null,null,null,null,null,null,null,"Oaxaca","20","Santa María Tlahuitoltepec","437"]
[null,null,null,null,null,null,null,null,null,"Oaxaca","20","Santa María Tlalixtac","438"]
[null,null,null,null,null,null,null,null,null,"Oaxaca","20","Santa María Tonameca","439"]
[null,null,null,null,null,null,null,null,null,"Oaxaca","20","Santa María Totolapilla","440"]
[null,null,null,null,null,null,null,null,null,"Oaxaca","20","Santa María Xadani","441"]
[null,null,null,null,null,null,null,null,null,"Oaxaca","20","Santa María Yalina","442"]
[null,null,null,null,null,null,null,null,null,"Oaxaca","20","Santa María Yavesía","443"]
[null,null,null,null,null,null,null,null,null,"Oaxaca","20","Santa María Yolotepec","444"]
[null,null,null,null,null,null,null,null,null,"Oaxaca","20","Santa María Yosoyúa","445"]
[null,null,null,null,null,null,null,null,null,"Oaxaca","20","Santa María Yucuhiti","446"]
[null,null,null,null,null,null,null,null,null,"Oaxaca","20","Santa María Zacatepec","447"]
[null,null,null,null,null,null,null,null,null,"Oaxaca","20","Santa María Zaniza","448"]
[null,null,null,null,null,null,null,null,null,"Oaxaca","20","Santa María Zoquitlán","449"]
[null,null,null,null,null,null,null,null,null,"Oaxaca","20","Santiago Amoltepec","450"]
[null,null,null,null,null,null,null,null,null,"Oaxaca","20","Santiago Apoala","451"]
[null,null,null,null,null,null,null,null,null,"Oaxaca","20","Santiago Apóstol","452"]
[null,null,null,null,null,null,null,null,null,"Oaxaca","20","Santiago Astata","453"]
[null,null,null,null,null,null,null,null,null,"Oaxaca","20","Santiago Atitlán","454"]
[null,null,null,null,null,null,null,null,null,"Oaxaca","20","Santiago Ayuquililla","455"]
[null,null,null,null,null,null,null,null,null,"Oaxaca","20","Santiago Cacaloxtepec","456"]
[null,null,null,null,null,null,null,null,null,"Oaxaca","20","Santiago Camotlán","457"]
[null,null,null,null,null,null,null,null,null,"Oaxaca","20","Santiago Comaltepec","458"]
[null,null,null,null,null,null,null,null,null,"Oaxaca","20","Villa de Santiago Chazumba","459"]
[null,null,null,null,null,null,null,null,null,"Oaxaca","20","Santiago Choápam","460"]
[null,null,null,null,null,null,null,null,null,"Oaxaca","20","Santiago del Río","461"]
[null,null,null,null,null,null,null,null,null,"Oaxaca","20","Santiago Huajolotitlán","462"]
[null,null,null,null,null,null,null,null,null,"Oaxaca","20","Santiago Huauclilla","463"]
[null,null,null,null,null,null,null,null,null,"Oaxaca","20","Santiago Ihuitlán Plumas","464"]
[null,null,null,null,null,null,null,null,null,"Oaxaca","20","Santiago Ixcuintepec","465"]
[null,null,null,null,null,null,null,null,null,"Oaxaca","20","Santiago Ixtayutla","466"]
[null,null,null,null,null,null,null,null,null,"Oaxaca","20","Santiago Jamiltepec","467"]
[null,null,null,null,null,null,null,null,null,"Oaxaca","20","Santiago Jocotepec","468"]
[null,null,null,null,null,null,null,null,null,"Oaxaca","20","Santiago Juxtlahuaca","469"]
[null,null,null,null,null,null,null,null,null,"Oaxaca","20","Santiago Lachiguiri","470"]
[null,null,null,null,null,null,null,null,null,"Oaxaca","20","Santiago Lalopa","471"]
[null,null,null,null,null,null,null,null,null,"Oaxaca","20","Santiago Laollaga","472"]
[null,null,null,null,null,null,null,null,null,"Oaxaca","20","Santiago Laxopa","473"]
[null,null,null,null,null,null,null,null,null,"Oaxaca","20","Santiago Llano Grande","474"]
[null,null,null,null,null,null,null,null,null,"Oaxaca","20","Santiago Matatlán","475"]
[null,null,null,null,null,null,null,null,null,"Oaxaca","20","Santiago Miltepec","476"]
[null,null,null,null,null,null,null,null,null,"Oaxaca","20","Santiago Minas","477"]
[null,null,null,null,null,null,null,null,null,"Oaxaca","20","Santiago Nacaltepec","478"]
[null,null,null,null,null,null,null,null,null,"Oaxaca","20","Santiago Nejapilla","479"]
[null,null,null,null,null,null,null,null,null,"Oaxaca","20","Santiago Nundiche","480"]
[null,null,null,null,null,null,null,null,null,"Oaxaca","20","Santiago Nuyoó","481"]
[null,null,null,null,null,null,null,null,null,"Oaxaca","20","Santiago Pinotepa Nacional","482"]
[null,null,null,null,null,null,null,null,null,"Oaxaca","20","Santiago Suchilquitongo","483"]
[null,null,null,null,null,null,null,null,null,"Oaxaca","20","Santiago Tamazola","484"]
[null,null,null,null,null,null,null,null,null,"Oaxaca","20","Santiago Tapextla","485"]
[null,null,null,null,null,null,null,null,null,"Oaxaca","20","Villa Tejúpam de la Unión","486"]
[null,null,null,null,null,null,null,null,null,"Oaxaca","20","Santiago Tenango","487"]
[null,null,null,null,null,null,null,null,null,"Oaxaca","20","Santiago Tepetlapa","488"]
[null,null,null,null,null,null,null,null,null,"Oaxaca","20","Santiago Tetepec","489"]
[null,null,null,null,null,null,null,null,null,"Oaxaca","20","Santiago Texcalcingo","490"]
[null,null,null,null,null,null,null,null,null,"Oaxaca","20","Santiago Textitlán","491"]
[null,null,null,null,null,null,null,null,null,"Oaxaca","20","Santiago Tilantongo","492"]
[null,null,null,null,null,null,null,null,null,"Oaxaca","20","Santiago Tillo","493"]
[null,null,null,null,null,null,null,null,null,"Oaxaca","20","Santiago Tlazoyaltepec","494"]
[null,null,null,null,null,null,null,null,null,"Oaxaca","20","Santiago Xanica","495"]
[null,null,null,null,null,null,null,null,null,"Oaxaca","20","Santiago Xiacuí","496"]
[null,null,null,null,null,null,null,null,null,"Oaxaca","20","Santiago Yaitepec","497"]
[null,null,null,null,null,null,null,null,null,"Oaxaca","20","Santiago Yaveo","498"]
[null,null,null,null,null,null,null,null,null,"Oaxaca","20","Santiago Yolomécatl","499"]
[null,null,null,null,null,null,null,null,null,"Oaxaca","20","Santiago Yosondúa","500"]
[null,null,null,null,null,null,null,null,null,"Oaxaca","20","Santiago Yucuyachi","501"]
[null,null,null,null,null,null,null,null,null,"Oaxaca","20","Santiago Zacatepec","502"]
[null,null,null,null,null,null,null,null,null,"Oaxaca","20","Santiago Zoochila","503"]
[null,null,null,null,null,null,null,null,null,"Oaxaca","20","Nuevo Zoquiápam","504"]
[null,null,null,null,null,null,null,null,null,"Oaxaca","20","Santo Domingo Ingenio","505"]
[null,null,null,null,null,null,null,null,null,"Oaxaca","20","Santo Domingo Albarradas","506"]
[null,null,null,null,null,null,null,null,null,"Oaxaca","20","Santo Domingo Armenta","507"]
[null,null,null,null,null,null,null,null,null,"Oaxaca","20","Santo Domingo Chihuitán","508"]
[null,null,null,null,null,null,null,null,null,"Oaxaca","20","Santo Domingo de Morelos","509"]
[null,null,null,null,null,null,null,null,null,"Oaxaca","20","Santo Domingo Ixcatlán","510"]
[null,null,null,null,null,null,null,null,null,"Oaxaca","20","Santo Domingo Nuxaá","511"]
[null,null,null,null,null,null,null,null,null,"Oaxaca","20","Santo Domingo Ozolotepec","512"]
[null,null,null,null,null,null,null,null,null,"Oaxaca","20","Santo Domingo Petapa","513"]
[null,null,null,null,null,null,null,null,null,"Oaxaca","20","Santo Domingo Roayaga","514"]
[null,null,null,null,null,null,null,null,null,"Oaxaca","20","Santo Domingo Tehuantepec","515"]
[null,null,null,null,null,null,null,null,null,"Oaxaca","20","Santo Domingo Teojomulco","516"]
[null,null,null,null,null,null,null,null,null,"Oaxaca","20","Santo Domingo Tepuxtepec","517"]
[null,null,null,null,null,null,null,null,null,"Oaxaca","20","Santo Domingo Tlatayápam","518"]
[null,null,null,null,null,null,null,null,null,"Oaxaca","20","Santo Domingo Tomaltepec","519"]
[null,null,null,null,null,null,null,null,null,"Oaxaca","20","Santo Domingo Tonalá","520"]
[null,null,null,null,null,null,null,null,null,"Oaxaca","20","Santo Domingo Tonaltepec","521"]
[null,null,null,null,null,null,null,null,null,"Oaxaca","20","Santo Domingo Xagacía","522"]
[null,null,null,null,null,null,null,null,null,"Oaxaca","20","Santo Domingo Yanhuitlán","523"]
[null,null,null,null,null,null,null,null,null,"Oaxaca","20","Santo Domingo Yodohino","524"]
[null,null,null,null,null,null,null,null,null,"Oaxaca","20","Santo Domingo Zanatepec","525"]
[null,null,null,null,null,null,null,null,null,"Oaxaca","20","Santos Reyes Nopala","526"]
[null,null,null,null,null,null,null,null,null,"Oaxaca","20","Santos Reyes Pápalo","527"]
[null,null,null,null,null,null,null,null,null,"Oaxaca","20","Santos Reyes Tepejillo","528"]
[null,null,null,null,null,null,null,null,null,"Oaxaca","20","Santos Reyes Yucuná","529"]
[null,null,null,null,null,null,null,null,null,"Oaxaca","20","Santo Tomás Jalieza","530"]
[null,null,null,null,null,null,null,null,null,"Oaxaca","20","Santo Tomás Mazaltepec","531"]
[null,null,null,null,null,null,null,null,null,"Oaxaca","20","Santo Tomás Ocotepec","532"]
[null,null,null,null,null,null,null,null,null,"Oaxaca","20","Santo Tomás Tamazulapan","533"]
[null,null,null,null,null,null,null,null,null,"Oaxaca","20","San Vicente Coatlán","534"]
[null,null,null,null,null,null,null,null,null,"Oaxaca","20","San Vicente Lachixío","535"]
[null,null,null,null,null,null,null,null,null,"Oaxaca","20","San Vicente Nuñú","536"]
[null,null,null,null,null,null,null,null,null,"Oaxaca","20","Silacayoápam","537"]
[null,null,null,null,null,null,null,null,null,"Oaxaca","20","Sitio de Xitlapehua","538"]
[null,null,null,null,null,null,null,null,null,"Oaxaca","20","Soledad Etla","539"]
[null,null,null,null,null,null,null,null,null,"Oaxaca","20","Villa de Tamazulápam del Progreso","540"]
[null,null,null,null,null,null,null,null,null,"Oaxaca","20","Tanetze de Zaragoza","541"]
[null,null,null,null,null,null,null,null,null,"Oaxaca","20","Taniche","542"]
[null,null,null,null,null,null,null,null,null,"Oaxaca","20","Tataltepec de Valdés","543"]
[null,null,null,null,null,null,null,null,null,"Oaxaca","20","Teococuilco de Marcos Pérez","544"]
[null,null,null,null,null,null,null,null,null,"Oaxaca","20","Teotitlán de Flores Magón","545"]
[null,null,null,null,null,null,null,null,null,"Oaxaca","20","Teotitlán del Valle","546"]
[null,null,null,null,null,null,null,null,null,"Oaxaca","20","Teotongo","547"]
[null,null,null,null,null,null,null,null,null,"Oaxaca","20","Tepelmeme Villa de Morelos","548"]
[null,null,null,null,null,null,null,null,null,"Oaxaca","20","Heroica Villa Tezoatlán de Segura y Luna, Cuna de la Independencia de Oaxaca","549"]
[null,null,null,null,null,null,null,null,null,"Oaxaca","20","San Jerónimo Tlacochahuaya","550"]
[null,null,null,null,null,null,null,null,null,"Oaxaca","20","Tlacolula de Matamoros","551"]
[null,null,null,null,null,null,null,null,null,"Oaxaca","20","Tlacotepec Plumas","552"]
[null,null,null,null,null,null,null,null,null,"Oaxaca","20","Tlalixtac de Cabrera","553"]
[null,null,null,null,null,null,null,null,null,"Oaxaca","20","Totontepec Villa de Morelos","554"]
[null,null,null,null,null,null,null,null,null,"Oaxaca","20","Trinidad Zaachila","555"]
[null,null,null,null,null,null,null,null,null,"Oaxaca","20","La Trinidad Vista Hermosa","556"]
[null,null,null,null,null,null,null,null,null,"Oaxaca","20","Unión Hidalgo","557"]
[null,null,null,null,null,null,null,null,null,"Oaxaca","20","Valerio Trujano","558"]
[null,null,null,null,null,null,null,null,null,"Oaxaca","20","San Juan Bautista Valle Nacional","559"]
[null,null,null,null,null,null,null,null,null,"Oaxaca","20","Villa Díaz Ordaz","560"]
[null,null,null,null,null,null,null,null,null,"Oaxaca","20","Yaxe","561"]
[null,null,null,null,null,null,null,null,null,"Oaxaca","20","Magdalena Yodocono de Porfirio Díaz","562"]
[null,null,null,null,null,null,null,null,null,"Oaxaca","20","Yogana","563"]
[null,null,null,null,null,null,null,null,null,"Oaxaca","20","Yutanduchi de Guerrero","564"]
[null,null,null,null,null,null,null,null,null,"Oaxaca","20","Villa de Zaachila","565"]
[null,null,null,null,null,null,null,null,null,"Oaxaca","20","San Mateo Yucutindoo","566"]
[null,null,null,null,null,null,null,null,null,"Oaxaca","20","Zapotitlán Lagunas","567"]
[null,null,null,null,null,null,null,null,null,"Oaxaca","20","Zapotitlán Palmas","568"]
[null,null,null,null,null,null,null,null,null,"Oaxaca","20","Santa Inés de Zaragoza","569"]
[null,null,null,null,null,null,null,null,null,"Oaxaca","20","Zimatlán de Álvarez","570"]
[null,null,null,null,null,null,null,null,null,"Puebla","21","Acajete","001"]
[null,null,null,null,null,null,null,null,null,"Puebla","21","Acateno","002"]
[null,null,null,null,null,null,null,null,null,"Puebla","21","Acatlán","003"]
[null,null,null,null,null,null,null,null,null,"Puebla","21","Acatzingo","004"]
[null,null,null,null,null,null,null,null,null,"Puebla","21","Acteopan","005"]
[null,null,null,null,null,null,null,null,null,"Puebla","21","Ahuacatlán","006"]
[null,null,null,null,null,null,null,null,null,"Puebla","21","Ahuatlán","007"]
[null,null,null,null,null,null,null,null,null,"Puebla","21","Ahuazotepec","008"]
[null,null,null,null,null,null,null,null,null,"Puebla","21","Ahuehuetitla","009"]
[null,null,null,null,null,null,null,null,null,"Puebla","21","Ajalpan","010"]
[null,null,null,null,null,null,null,null,null,"Puebla","21","Albino Zertuche","011"]
[null,null,null,null,null,null,null,null,null,"Puebla","21","Aljojuca","012"]
[null,null,null,null,null,null,null,null,null,"Puebla","21","Altepexi","013"]
[null,null,null,null,null,null,null,null,null,"Puebla","21","Amixtlán","014"]
[null,null,null,null,null,null,null,null,null,"Puebla","21","Amozoc","015"]
[null,null,null,null,null,null,null,null,null,"Puebla","21","Aquixtla","016"]
[null,null,null,null,null,null,null,null,null,"Puebla","21","Atempan","017"]
[null,null,null,null,null,null,null,null,null,"Puebla","21","Atexcal","018"]
[null,null,null,null,null,null,null,null,null,"Puebla","21","Atlixco","019"]
[null,null,null,null,null,null,null,null,null,"Puebla","21","Atoyatempan","020"]
[null,null,null,null,null,null,null,null,null,"Puebla","21","Atzala","021"]
[null,null,null,null,null,null,null,null,null,"Puebla","21","Atzitzihuacán","022"]
[null,null,null,null,null,null,null,null,null,"Puebla","21","Atzitzintla","023"]
[null,null,null,null,null,null,null,null,null,"Puebla","21","Axutla","024"]
[null,null,null,null,null,null,null,null,null,"Puebla","21","Ayotoxco de Guerrero","025"]
[null,null,null,null,null,null,null,null,null,"Puebla","21","Calpan","026"]
[null,null,null,null,null,null,null,null,null,"Puebla","21","Caltepec","027"]
[null,null,null,null,null,null,null,null,null,"Puebla","21","Camocuautla","028"]
[null,null,null,null,null,null,null,null,null,"Puebla","21","Caxhuacan","029"]
[null,null,null,null,null,null,null,null,null,"Puebla","21","Coatepec","030"]
[null,null,null,null,null,null,null,null,null,"Puebla","21","Coatzingo","031"]
[null,null,null,null,null,null,null,null,null,"Puebla","21","Cohetzala","032"]
[null,null,null,null,null,null,null,null,null,"Puebla","21","Cohuecan","033"]
[null,null,null,null,null,null,null,null,null,"Puebla","21","Coronango","034"]
[null,null,null,null,null,null,null,null,null,"Puebla","21","Coxcatlán","035"]
[null,null,null,null,null,null,null,null,null,"Puebla","21","Coyomeapan","036"]
[null,null,null,null,null,null,null,null,null,"Puebla","21","Coyotepec","037"]
[null,null,null,null,null,null,null,null,null,"Puebla","21","Cuapiaxtla de Madero","038"]
[null,null,null,null,null,null,null,null,null,"Puebla","21","Cuautempan","039"]
[null,null,null,null,null,null,null,null,null,"Puebla","21","Cuautinchán","040"]
[null,null,null,null,null,null,null,null,null,"Puebla","21","Cuautlancingo","041"]
[null,null,null,null,null,null,null,null,null,"Puebla","21","Cuayuca de Andrade","042"]
[null,null,null,null,null,null,null,null,null,"Puebla","21","Cuetzalan del Progreso","043"]
[null,null,null,null,null,null,null,null,null,"Puebla","21","Cuyoaco","044"]
[null,null,null,null,null,null,null,null,null,"Puebla","21","Chalchicomula de Sesma","045"]
[null,null,null,null,null,null,null,null,null,"Puebla","21","Chapulco","046"]
[null,null,null,null,null,null,null,null,null,"Puebla","21","Chiautla","047"]
[null,null,null,null,null,null,null,null,null,"Puebla","21","Chiautzingo","048"]
[null,null,null,null,null,null,null,null,null,"Puebla","21","Chiconcuautla","049"]
[null,null,null,null,null,null,null,null,null,"Puebla","21","Chichiquila","050"]
[null,null,null,null,null,null,null,null,null,"Puebla","21","Chietla","051"]
[null,null,null,null,null,null,null,null,null,"Puebla","21","Chigmecatitlán","052"]
[null,null,null,null,null,null,null,null,null,"Puebla","21","Chignahuapan","053"]
[null,null,null,null,null,null,null,null,null,"Puebla","21","Chignautla","054"]
[null,null,null,null,null,null,null,null,null,"Puebla","21","Chila","055"]
[null,null,null,null,null,null,null,null,null,"Puebla","21","Chila de la Sal","056"]
[null,null,null,null,null,null,null,null,null,"Puebla","21","Honey","057"]
[null,null,null,null,null,null,null,null,null,"Puebla","21","Chilchotla","058"]
[null,null,null,null,null,null,null,null,null,"Puebla","21","Chinantla","059"]
[null,null,null,null,null,null,null,null,null,"Puebla","21","Domingo Arenas","060"]
[null,null,null,null,null,null,null,null,null,"Puebla","21","Eloxochitlán","061"]
[null,null,null,null,null,null,null,null,null,"Puebla","21","Epatlán","062"]
[null,null,null,null,null,null,null,null,null,"Puebla","21","Esperanza","063"]
[null,null,null,null,null,null,null,null,null,"Puebla","21","Francisco Z. Mena","064"]
[null,null,null,null,null,null,null,null,null,"Puebla","21","General Felipe Ángeles","065"]
[null,null,null,null,null,null,null,null,null,"Puebla","21","Guadalupe","066"]
[null,null,null,null,null,null,null,null,null,"Puebla","21","Guadalupe Victoria","067"]
[null,null,null,null,null,null,null,null,null,"Puebla","21","Hermenegildo Galeana","068"]
[null,null,null,null,null,null,null,null,null,"Puebla","21","Huaquechula","069"]
[null,null,null,null,null,null,null,null,null,"Puebla","21","Huatlatlauca","070"]
[null,null,null,null,null,null,null,null,null,"Puebla","21","Huauchinango","071"]
[null,null,null,null,null,null,null,null,null,"Puebla","21","Huehuetla","072"]
[null,null,null,null,null,null,null,null,null,"Puebla","21","Huehuetlán el Chico","073"]
[null,null,null,null,null,null,null,null,null,"Puebla","21","Huejotzingo","074"]
[null,null,null,null,null,null,null,null,null,"Puebla","21","Hueyapan","075"]
[null,null,null,null,null,null,null,null,null,"Puebla","21","Hueytamalco","076"]
[null,null,null,null,null,null,null,null,null,"Puebla","21","Hueytlalpan","077"]
[null,null,null,null,null,null,null,null,null,"Puebla","21","Huitzilan de Serdán","078"]
[null,null,null,null,null,null,null,null,null,"Puebla","21","Huitziltepec","079"]
[null,null,null,null,null,null,null,null,null,"Puebla","21","Atlequizayan","080"]
[null,null,null,null,null,null,null,null,null,"Puebla","21","Ixcamilpa de Guerrero","081"]
[null,null,null,null,null,null,null,null,null,"Puebla","21","Ixcaquixtla","082"]
[null,null,null,null,null,null,null,null,null,"Puebla","21","Ixtacamaxtitlán","083"]
[null,null,null,null,null,null,null,null,null,"Puebla","21","Ixtepec","084"]
[null,null,null,null,null,null,null,null,null,"Puebla","21","Izúcar de Matamoros","085"]
[null,null,null,null,null,null,null,null,null,"Puebla","21","Jalpan","086"]
[null,null,null,null,null,null,null,null,null,"Puebla","21","Jolalpan","087"]
[null,null,null,null,null,null,null,null,null,"Puebla","21","Jonotla","088"]
[null,null,null,null,null,null,null,null,null,"Puebla","21","Jopala","089"]
[null,null,null,null,null,null,null,null,null,"Puebla","21","Juan C. Bonilla","090"]
[null,null,null,null,null,null,null,null,null,"Puebla","21","Juan Galindo","091"]
[null,null,null,null,null,null,null,null,null,"Puebla","21","Juan N. Méndez","092"]
[null,null,null,null,null,null,null,null,null,"Puebla","21","Lafragua","093"]
[null,null,null,null,null,null,null,null,null,"Puebla","21","Libres","094"]
[null,null,null,null,null,null,null,null,null,"Puebla","21","La Magdalena Tlatlauquitepec","095"]
[null,null,null,null,null,null,null,null,null,"Puebla","21","Mazapiltepec de Juárez","096"]
[null,null,null,null,null,null,null,null,null,"Puebla","21","Mixtla","097"]
[null,null,null,null,null,null,null,null,null,"Puebla","21","Molcaxac","098"]
[null,null,null,null,null,null,null,null,null,"Puebla","21","Cañada Morelos","099"]
[null,null,null,null,null,null,null,null,null,"Puebla","21","Naupan","100"]
[null,null,null,null,null,null,null,null,null,"Puebla","21","Nauzontla","101"]
[null,null,null,null,null,null,null,null,null,"Puebla","21","Nealtican","102"]
[null,null,null,null,null,null,null,null,null,"Puebla","21","Nicolás Bravo","103"]
[null,null,null,null,null,null,null,null,null,"Puebla","21","Nopalucan","104"]
[null,null,null,null,null,null,null,null,null,"Puebla","21","Ocotepec","105"]
[null,null,null,null,null,null,null,null,null,"Puebla","21","Ocoyucan","106"]
[null,null,null,null,null,null,null,null,null,"Puebla","21","Olintla","107"]
[null,null,null,null,null,null,null,null,null,"Puebla","21","Oriental","108"]
[null,null,null,null,null,null,null,null,null,"Puebla","21","Pahuatlán","109"]
[null,null,null,null,null,null,null,null,null,"Puebla","21","Palmar de Bravo","110"]
[null,null,null,null,null,null,null,null,null,"Puebla","21","Pantepec","111"]
[null,null,null,null,null,null,null,null,null,"Puebla","21","Petlalcingo","112"]
[null,null,null,null,null,null,null,null,null,"Puebla","21","Piaxtla","113"]
[null,null,null,null,null,null,null,null,null,"Puebla","21","Puebla","114"]
[null,null,null,null,null,null,null,null,null,"Puebla","21","Quecholac","115"]
[null,null,null,null,null,null,null,null,null,"Puebla","21","Quimixtlán","116"]
[null,null,null,null,null,null,null,null,null,"Puebla","21","Rafael Lara Grajales","117"]
[null,null,null,null,null,null,null,null,null,"Puebla","21","Los Reyes de Juárez","118"]
[null,null,null,null,null,null,null,null,null,"Puebla","21","San Andrés Cholula","119"]
[null,null,null,null,null,null,null,null,null,"Puebla","21","San Antonio Cañada","120"]
[null,null,null,null,null,null,null,null,null,"Puebla","21","San Diego la Mesa Tochimiltzingo","121"]
[null,null,null,null,null,null,null,null,null,"Puebla","21","San Felipe Teotlalcingo","122"]
[null,null,null,null,null,null,null,null,null,"Puebla","21","San Felipe Tepatlán","123"]
[null,null,null,null,null,null,null,null,null,"Puebla","21","San Gabriel Chilac","124"]
[null,null,null,null,null,null,null,null,null,"Puebla","21","San Gregorio Atzompa","125"]
[null,null,null,null,null,null,null,null,null,"Puebla","21","San Jerónimo Tecuanipan","126"]
[null,null,null,null,null,null,null,null,null,"Puebla","21","San Jerónimo Xayacatlán","127"]
[null,null,null,null,null,null,null,null,null,"Puebla","21","San José Chiapa","128"]
[null,null,null,null,null,null,null,null,null,"Puebla","21","San José Miahuatlán","129"]
[null,null,null,null,null,null,null,null,null,"Puebla","21","San Juan Atenco","130"]
[null,null,null,null,null,null,null,null,null,"Puebla","21","San Juan Atzompa","131"]
[null,null,null,null,null,null,null,null,null,"Puebla","21","San Martín Texmelucan","132"]
[null,null,null,null,null,null,null,null,null,"Puebla","21","San Martín Totoltepec","133"]
[null,null,null,null,null,null,null,null,null,"Puebla","21","San Matías Tlalancaleca","134"]
[null,null,null,null,null,null,null,null,null,"Puebla","21","San Miguel Ixitlán","135"]
[null,null,null,null,null,null,null,null,null,"Puebla","21","San Miguel Xoxtla","136"]
[null,null,null,null,null,null,null,null,null,"Puebla","21","San Nicolás Buenos Aires","137"]
[null,null,null,null,null,null,null,null,null,"Puebla","21","San Nicolás de los Ranchos","138"]
[null,null,null,null,null,null,null,null,null,"Puebla","21","San Pablo Anicano","139"]
[null,null,null,null,null,null,null,null,null,"Puebla","21","San Pedro Cholula","140"]
[null,null,null,null,null,null,null,null,null,"Puebla","21","San Pedro Yeloixtlahuaca","141"]
[null,null,null,null,null,null,null,null,null,"Puebla","21","San Salvador el Seco","142"]
[null,null,null,null,null,null,null,null,null,"Puebla","21","San Salvador el Verde","143"]
[null,null,null,null,null,null,null,null,null,"Puebla","21","San Salvador Huixcolotla","144"]
[null,null,null,null,null,null,null,null,null,"Puebla","21","San Sebastián Tlacotepec","145"]
[null,null,null,null,null,null,null,null,null,"Puebla","21","Santa Catarina Tlaltempan","146"]
[null,null,null,null,null,null,null,null,null,"Puebla","21","Santa Inés Ahuatempan","147"]
[null,null,null,null,null,null,null,null,null,"Puebla","21","Santa Isabel Cholula","148"]
[null,null,null,null,null,null,null,null,null,"Puebla","21","Santiago Miahuatlán","149"]
[null,null,null,null,null,null,null,null,null,"Puebla","21","Huehuetlán el Grande","150"]
[null,null,null,null,null,null,null,null,null,"Puebla","21","Santo Tomás Hueyotlipan","151"]
[null,null,null,null,null,null,null,null,null,"Puebla","21","Soltepec","152"]
[null,null,null,null,null,null,null,null,null,"Puebla","21","Tecali de Herrera","153"]
[null,null,null,null,null,null,null,null,null,"Puebla","21","Tecamachalco","154"]
[null,null,null,null,null,null,null,null,null,"Puebla","21","Tecomatlán","155"]
[null,null,null,null,null,null,null,null,null,"Puebla","21","Tehuacán","156"]
[null,null,null,null,null,null,null,null,null,"Puebla","21","Tehuitzingo","157"]
[null,null,null,null,null,null,null,null,null,"Puebla","21","Tenampulco","158"]
[null,null,null,null,null,null,null,null,null,"Puebla","21","Teopantlán","159"]
[null,null,null,null,null,null,null,null,null,"Puebla","21","Teotlalco","160"]
[null,null,null,null,null,null,null,null,null,"Puebla","21","Tepanco de López","161"]
[null,null,null,null,null,null,null,null,null,"Puebla","21","Tepango de Rodríguez","162"]
[null,null,null,null,null,null,null,null,null,"Puebla","21","Tepatlaxco de Hidalgo","163"]
[null,null,null,null,null,null,null,null,null,"Puebla","21","Tepeaca","164"]
[null,null,null,null,null,null,null,null,null,"Puebla","21","Tepemaxalco","165"]
[null,null,null,null,null,null,null,null,null,"Puebla","21","Tepeojuma","166"]
[null,null,null,null,null,null,null,null,null,"Puebla","21","Tepetzintla","167"]
[null,null,null,null,null,null,null,null,null,"Puebla","21","Tepexco","168"]
[null,null,null,null,null,null,null,null,null,"Puebla","21","Tepexi de Rodríguez","169"]
[null,null,null,null,null,null,null,null,null,"Puebla","21","Tepeyahualco","170"]
[null,null,null,null,null,null,null,null,null,"Puebla","21","Tepeyahualco de Cuauhtémoc","171"]
[null,null,null,null,null,null,null,null,null,"Puebla","21","Tetela de Ocampo","172"]
[null,null,null,null,null,null,null,null,null,"Puebla","21","Teteles de Ávila Castillo","173"]
[null,null,null,null,null,null,null,null,null,"Puebla","21","Teziutlán","174"]
[null,null,null,null,null,null,null,null,null,"Puebla","21","Tianguismanalco","175"]
[null,null,null,null,null,null,null,null,null,"Puebla","21","Tilapa","176"]
[null,null,null,null,null,null,null,null,null,"Puebla","21","Tlacotepec de Benito Juárez","177"]
[null,null,null,null,null,null,null,null,null,"Puebla","21","Tlacuilotepec","178"]
[null,null,null,null,null,null,null,null,null,"Puebla","21","Tlachichuca","179"]
[null,null,null,null,null,null,null,null,null,"Puebla","21","Tlahuapan","180"]
[null,null,null,null,null,null,null,null,null,"Puebla","21","Tlaltenango","181"]
[null,null,null,null,null,null,null,null,null,"Puebla","21","Tlanepantla","182"]
[null,null,null,null,null,null,null,null,null,"Puebla","21","Tlaola","183"]
[null,null,null,null,null,null,null,null,null,"Puebla","21","Tlapacoya","184"]
[null,null,null,null,null,null,null,null,null,"Puebla","21","Tlapanalá","185"]
[null,null,null,null,null,null,null,null,null,"Puebla","21","Tlatlauquitepec","186"]
[null,null,null,null,null,null,null,null,null,"Puebla","21","Tlaxco","187"]
[null,null,null,null,null,null,null,null,null,"Puebla","21","Tochimilco","188"]
[null,null,null,null,null,null,null,null,null,"Puebla","21","Tochtepec","189"]
[null,null,null,null,null,null,null,null,null,"Puebla","21","Totoltepec de Guerrero","190"]
[null,null,null,null,null,null,null,null,null,"Puebla","21","Tulcingo","191"]
[null,null,null,null,null,null,null,null,null,"Puebla","21","Tuzamapan de Galeana","192"]
[null,null,null,null,null,null,null,null,null,"Puebla","21","Tzicatlacoyan","193"]
[null,null,null,null,null,null,null,null,null,"Puebla","21","Venustiano Carranza","194"]
[null,null,null,null,null,null,null,null,null,"Puebla","21","Vicente Guerrero","195"]
[null,null,null,null,null,null,null,null,null,"Puebla","21","Xayacatlán de Bravo","196"]
[null,null,null,null,null,null,null,null,null,"Puebla","21","Xicotepec","197"]
[null,null,null,null,null,null,null,null,null,"Puebla","21","Xicotlán","198"]
[null,null,null,null,null,null,null,null,null,"Puebla","21","Xiutetelco","199"]
[null,null,null,null,null,null,null,null,null,"Puebla","21","Xochiapulco","200"]
[null,null,null,null,null,null,null,null,null,"Puebla","21","Xochiltepec","201"]
[null,null,null,null,null,null,null,null,null,"Puebla","21","Xochitlán de Vicente Suárez","202"]
[null,null,null,null,null,null,null,null,null,"Puebla","21","Xochitlán Todos Santos","203"]
[null,null,null,null,null,null,null,null,null,"Puebla","21","Yaonáhuac","204"]
[null,null,null,null,null,null,null,null,null,"Puebla","21","Yehualtepec","205"]
[null,null,null,null,null,null,null,null,null,"Puebla","21","Zacapala","206"]
[null,null,null,null,null,null,null,null,null,"Puebla","21","Zacapoaxtla","207"]
[null,null,null,null,null,null,null,null,null,"Puebla","21","Zacatlán","208"]
[null,null,null,null,null,null,null,null,null,"Puebla","21","Zapotitlán","209"]
[null,null,null,null,null,null,null,null,null,"Puebla","21","Zapotitlán de Méndez","210"]
[null,null,null,null,null,null,null,null,null,"Puebla","21","Zaragoza","211"]
[null,null,null,null,null,null,null,null,null,"Puebla","21","Zautla","212"]
[null,null,null,null,null,null,null,null,null,"Puebla","21","Zihuateutla","213"]
[null,null,null,null,null,null,null,null,null,"Puebla","21","Zinacatepec","214"]
[null,null,null,null,null,null,null,null,null,"Puebla","21","Zongozotla","215"]
[null,null,null,null,null,null,null,null,null,"Puebla","21","Zoquiapan","216"]
[null,null,null,null,null,null,null,null,null,"Puebla","21","Zoquitlán","217"]
[null,null,null,null,null,null,null,null,null,"Querétaro","22","Amealco de Bonfil","001"]
[null,null,null,null,null,null,null,null,null,"Querétaro","22","Pinal de Amoles","002"]
[null,null,null,null,null,null,null,null,null,"Querétaro","22","Arroyo Seco","003"]
[null,null,null,null,null,null,null,null,null,"Querétaro","22","Cadereyta de Montes","004"]
[null,null,null,null,null,null,null,null,null,"Querétaro","22","Colón","005"]
[null,null,null,null,null,null,null,null,null,"Querétaro","22","Corregidora","006"]
[null,null,null,null,null,null,null,null,null,"Querétaro","22","Ezequiel Montes","007"]
[null,null,null,null,null,null,null,null,null,"Querétaro","22","Huimilpan","008"]
[null,null,null,null,null,null,null,null,null,"Querétaro","22","Jalpan de Serra","009"]
[null,null,null,null,null,null,null,null,null,"Querétaro","22","Landa de Matamoros","010"]
[null,null,null,null,null,null,null,null,null,"Querétaro","22","El Marqués","011"]
[null,null,null,null,null,null,null,null,null,"Querétaro","22","Pedro Escobedo","012"]
[null,null,null,null,null,null,null,null,null,"Querétaro","22","Peñamiller","013"]
[null,null,null,null,null,null,null,null,null,"Querétaro","22","Querétaro","014"]
[null,null,null,null,null,null,null,null,null,"Querétaro","22","San Joaquín","015"]
[null,null,null,null,null,null,null,null,null,"Querétaro","22","San Juan del Río","016"]
[null,null,null,null,null,null,null,null,null,"Querétaro","22","Tequisquiapan","017"]
[null,null,null,null,null,null,null,null,null,"Querétaro","22","Tolimán","018"]
[null,null,null,null,null,null,null,null,null,"Quintana Roo","23","Cozumel","001"]
[null,null,null,null,null,null,null,null,null,"Quintana Roo","23","Felipe Carrillo Puerto","002"]
[null,null,null,null,null,null,null,null,null,"Quintana Roo","23","Isla Mujeres","003"]
[null,null,null,null,null,null,null,null,null,"Quintana Roo","23","Othón P. Blanco","004"]
[null,null,null,null,null,null,null,null,null,"Quintana Roo","23","Benito Juárez","005"]
[null,null,null,null,null,null,null,null,null,"Quintana Roo","23","José María Morelos","006"]
[null,null,null,null,null,null,null,null,null,"Quintana Roo","23","Lázaro Cárdenas","007"]
[null,null,null,null,null,null,null,null,null,"Quintana Roo","23","Solidaridad","008"]
[null,null,null,null,null,null,null,null,null,"Quintana Roo","23","Tulum","009"]
[null,null,null,null,null,null,null,null,null,"Quintana Roo","23","Bacalar","010"]
[null,null,null,null,null,null,null,null,null,"Quintana Roo","23","Puerto Morelos","011"]
[null,null,null,null,null,null,null,null,null,"San Luis Potosí","24","Ahualulco del Sonido 13","001"]
[null,null,null,null,null,null,null,null,null,"San Luis Potosí","24","Alaquines","002"]
[null,null,null,null,null,null,null,null,null,"San Luis Potosí","24","Aquismón","003"]
[null,null,null,null,null,null,null,null,null,"San Luis Potosí","24","Armadillo de los Infante","004"]
[null,null,null,null,null,null,null,null,null,"San Luis Potosí","24","Cárdenas","005"]
[null,null,null,null,null,null,null,null,null,"San Luis Potosí","24","Catorce","006"]
[null,null,null,null,null,null,null,null,null,"San Luis Potosí","24","Cedral","007"]
[null,null,null,null,null,null,null,null,null,"San Luis Potosí","24","Cerritos","008"]
[null,null,null,null,null,null,null,null,null,"San Luis Potosí","24","Cerro de San Pedro","009"]
[null,null,null,null,null,null,null,null,null,"San Luis Potosí","24","Ciudad del Maíz","010"]
[null,null,null,null,null,null,null,null,null,"San Luis Potosí","24","Ciudad Fernández","011"]
[null,null,null,null,null,null,null,null,null,"San Luis Potosí","24","Tancanhuitz","012"]
[null,null,null,null,null,null,null,null,null,"San Luis Potosí","24","Ciudad Valles","013"]
[null,null,null,null,null,null,null,null,null,"San Luis Potosí","24","Coxcatlán","014"]
[null,null,null,null,null,null,null,null,null,"San Luis Potosí","24","Charcas","015"]
[null,null,null,null,null,null,null,null,null,"San Luis Potosí","24","Ebano","016"]
[null,null,null,null,null,null,null,null,null,"San Luis Potosí","24","Guadalcázar","017"]
[null,null,null,null,null,null,null,null,null,"San Luis Potosí","24","Huehuetlán","018"]
[null,null,null,null,null,null,null,null,null,"San Luis Potosí","24","Lagunillas","019"]
[null,null,null,null,null,null,null,null,null,"San Luis Potosí","24","Matehuala","020"]
[null,null,null,null,null,null,null,null,null,"San Luis Potosí","24","Mexquitic de Carmona","021"]
[null,null,null,null,null,null,null,null,null,"San Luis Potosí","24","Moctezuma","022"]
[null,null,null,null,null,null,null,null,null,"San Luis Potosí","24","Rayón","023"]
[null,null,null,null,null,null,null,null,null,"San Luis Potosí","24","Rioverde","024"]
[null,null,null,null,null,null,null,null,null,"San Luis Potosí","24","Salinas","025"]
[null,null,null,null,null,null,null,null,null,"San Luis Potosí","24","San Antonio","026"]
[null,null,null,null,null,null,null,null,null,"San Luis Potosí","24","San Ciro de Acosta","027"]
[null,null,null,null,null,null,null,null,null,"San Luis Potosí","24","San Luis Potosí","028"]
[null,null,null,null,null,null,null,null,null,"San Luis Potosí","24","San Martín Chalchicuautla","029"]
[null,null,null,null,null,null,null,null,null,"San Luis Potosí","24","San Nicolás Tolentino","030"]
[null,null,null,null,null,null,null,null,null,"San Luis Potosí","24","Santa Catarina","031"]
[null,null,null,null,null,null,null,null,null,"San Luis Potosí","24","Santa María del Río","032"]
[null,null,null,null,null,null,null,null,null,"San Luis Potosí","24","Santo Domingo","033"]
[null,null,null,null,null,null,null,null,null,"San Luis Potosí","24","San Vicente Tancuayalab","034"]
[null,null,null,null,null,null,null,null,null,"San Luis Potosí","24","Soledad de Graciano Sánchez","035"]
[null,null,null,null,null,null,null,null,null,"San Luis Potosí","24","Tamasopo","036"]
[null,null,null,null,null,null,null,null,null,"San Luis Potosí","24","Tamazunchale","037"]
[null,null,null,null,null,null,null,null,null,"San Luis Potosí","24","Tampacán","038"]
[null,null,null,null,null,null,null,null,null,"San Luis Potosí","24","Tampamolón Corona","039"]
[null,null,null,null,null,null,null,null,null,"San Luis Potosí","24","Tamuín","040"]
[null,null,null,null,null,null,null,null,null,"San Luis Potosí","24","Tanlajás","041"]
[null,null,null,null,null,null,null,null,null,"San Luis Potosí","24","Tanquián de Escobedo","042"]
[null,null,null,null,null,null,null,null,null,"San Luis Potosí","24","Tierra Nueva","043"]
[null,null,null,null,null,null,null,null,null,"San Luis Potosí","24","Vanegas","044"]
[null,null,null,null,null,null,null,null,null,"San Luis Potosí","24","Venado","045"]
[null,null,null,null,null,null,null,null,null,"San Luis Potosí","24","Villa de Arriaga","046"]
[null,null,null,null,null,null,null,null,null,"San Luis Potosí","24","Villa de Guadalupe","047"]
[null,null,null,null,null,null,null,null,null,"San Luis Potosí","24","Villa de la Paz","048"]
[null,null,null,null,null,null,null,null,null,"San Luis Potosí","24","Villa de Ramos","049"]
[null,null,null,null,null,null,null,null,null,"San Luis Potosí","24","Villa de Reyes","050"]
[null,null,null,null,null,null,null,null,null,"San Luis Potosí","24","Villa Hidalgo","051"]
[null,null,null,null,null,null,null,null,null,"San Luis Potosí","24","Villa Juárez","052"]
[null,null,null,null,null,null,null,null,null,"San Luis Potosí","24","Axtla de Terrazas","053"]
[null,null,null,null,null,null,null,null,null,"San Luis Potosí","24","Xilitla","054"]
[null,null,null,null,null,null,null,null,null,"San Luis Potosí","24","Zaragoza","055"]
[null,null,null,null,null,null,null,null,null,"San Luis Potosí","24","Villa de Arista","056"]
[null,null,null,null,null,null,null,null,null,"San Luis Potosí","24","Matlapa","057"]
[null,null,null,null,null,null,null,null,null,"San Luis Potosí","24","El Naranjo","058"]
[null,null,null,null,null,null,null,null,null,"Sinaloa","25","Ahome","001"]
[null,null,null,null,null,null,null,null,null,"Sinaloa","25","Angostura","002"]
[null,null,null,null,null,null,null,null,null,"Sinaloa","25","Badiraguato","003"]
[null,null,null,null,null,null,null,null,null,"Sinaloa","25","Concordia","004"]
[null,null,null,null,null,null,null,null,null,"Sinaloa","25","Cosalá","005"]
[null,null,null,null,null,null,null,null,null,"Sinaloa","25","Culiacán","006"]
[null,null,null,null,null,null,null,null,null,"Sinaloa","25","Choix","007"]
[null,null,null,null,null,null,null,null,null,"Sinaloa","25","Elota","008"]
[null,null,null,null,null,null,null,null,null,"Sinaloa","25","Escuinapa","009"]
[null,null,null,null,null,null,null,null,null,"Sinaloa","25","El Fuerte","010"]
[null,null,null,null,null,null,null,null,null,"Sinaloa","25","Guasave","011"]
[null,null,null,null,null,null,null,null,null,"Sinaloa","25","Mazatlán","012"]
[null,null,null,null,null,null,null,null,null,"Sinaloa","25","Mocorito","013"]
[null,null,null,null,null,null,null,null,null,"Sinaloa","25","Rosario","014"]
[null,null,null,null,null,null,null,null,null,"Sinaloa","25","Salvador Alvarado","015"]
[null,null,null,null,null,null,null,null,null,"Sinaloa","25","San Ignacio","016"]
[null,null,null,null,null,null,null,null,null,"Sinaloa","25","Sinaloa","017"]
[null,null,null,null,null,null,null,null,null,"Sinaloa","25","Navolato","018"]
[null,null,null,null,null,null,null,null,null,"Sonora","26","Aconchi","001"]
[null,null,null,null,null,null,null,null,null,"Sonora","26","Agua Prieta","002"]
[null,null,null,null,null,null,null,null,null,"Sonora","26","Álamos","003"]
[null,null,null,null,null,null,null,null,null,"Sonora","26","Altar","004"]
[null,null,null,null,null,null,null,null,null,"Sonora","26","Arivechi","005"]
[null,null,null,null,null,null,null,null,null,"Sonora","26","Arizpe","006"]
[null,null,null,null,null,null,null,null,null,"Sonora","26","Atil","007"]
[null,null,null,null,null,null,null,null,null,"Sonora","26","Bacadéhuachi","008"]
[null,null,null,null,null,null,null,null,null,"Sonora","26","Bacanora","009"]
[null,null,null,null,null,null,null,null,null,"Sonora","26","Bacerac","010"]
[null,null,null,null,null,null,null,null,null,"Sonora","26","Bacoachi","011"]
[null,null,null,null,null,null,null,null,null,"Sonora","26","Bácum","012"]
[null,null,null,null,null,null,null,null,null,"Sonora","26","Banámichi","013"]
[null,null,null,null,null,null,null,null,null,"Sonora","26","Baviácora","014"]
[null,null,null,null,null,null,null,null,null,"Sonora","26","Bavispe","015"]
[null,null,null,null,null,null,null,null,null,"Sonora","26","Benjamín Hill","016"]
[null,null,null,null,null,null,null,null,null,"Sonora","26","Caborca","017"]
[null,null,null,null,null,null,null,null,null,"Sonora","26","Cajeme","018"]
[null,null,null,null,null,null,null,null,null,"Sonora","26","Cananea","019"]
[null,null,null,null,null,null,null,null,null,"Sonora","26","Carbó","020"]
[null,null,null,null,null,null,null,null,null,"Sonora","26","La Colorada","021"]
[null,null,null,null,null,null,null,null,null,"Sonora","26","Cucurpe","022"]
[null,null,null,null,null,null,null,null,null,"Sonora","26","Cumpas","023"]
[null,null,null,null,null,null,null,null,null,"Sonora","26","Divisaderos","024"]
[null,null,null,null,null,null,null,null,null,"Sonora","26","Empalme","025"]
[null,null,null,null,null,null,null,null,null,"Sonora","26","Etchojoa","026"]
[null,null,null,null,null,null,null,null,null,"Sonora","26","Fronteras","027"]
[null,null,null,null,null,null,null,null,null,"Sonora","26","Granados","028"]
[null,null,null,null,null,null,null,null,null,"Sonora","26","Guaymas","029"]
[null,null,null,null,null,null,null,null,null,"Sonora","26","Hermosillo","030"]
[null,null,null,null,null,null,null,null,null,"Sonora","26","Huachinera","031"]
[null,null,null,null,null,null,null,null,null,"Sonora","26","Huásabas","032"]
[null,null,null,null,null,null,null,null,null,"Sonora","26","Huatabampo","033"]
[null,null,null,null,null,null,null,null,null,"Sonora","26","Huépac","034"]
[null,null,null,null,null,null,null,null,null,"Sonora","26","Imuris","035"]
[null,null,null,null,null,null,null,null,null,"Sonora","26","Magdalena","036"]
[null,null,null,null,null,null,null,null,null,"Sonora","26","Mazatán","037"]
[null,null,null,null,null,null,null,null,null,"Sonora","26","Moctezuma","038"]
[null,null,null,null,null,null,null,null,null,"Sonora","26","Naco","039"]
[null,null,null,null,null,null,null,null,null,"Sonora","26","Nácori Chico","040"]
[null,null,null,null,null,null,null,null,null,"Sonora","26","Nacozari de García","041"]
[null,null,null,null,null,null,null,null,null,"Sonora","26","Navojoa","042"]
[null,null,null,null,null,null,null,null,null,"Sonora","26","Nogales","043"]
[null,null,null,null,null,null,null,null,null,"Sonora","26","Ónavas","044"]
[null,null,null,null,null,null,null,null,null,"Sonora","26","Opodepe","045"]
[null,null,null,null,null,null,null,null,null,"Sonora","26","Oquitoa","046"]
[null,null,null,null,null,null,null,null,null,"Sonora","26","Pitiquito","047"]
[null,null,null,null,null,null,null,null,null,"Sonora","26","Puerto Peñasco","048"]
[null,null,null,null,null,null,null,null,null,"Sonora","26","Quiriego","049"]
[null,null,null,null,null,null,null,null,null,"Sonora","26","Rayón","050"]
[null,null,null,null,null,null,null,null,null,"Sonora","26","Rosario","051"]
[null,null,null,null,null,null,null,null,null,"Sonora","26","Sahuaripa","052"]
[null,null,null,null,null,null,null,null,null,"Sonora","26","San Felipe de Jesús","053"]
[null,null,null,null,null,null,null,null,null,"Sonora","26","San Javier","054"]
[null,null,null,null,null,null,null,null,null,"Sonora","26","San Luis Río Colorado","055"]
[null,null,null,null,null,null,null,null,null,"Sonora","26","San Miguel de Horcasitas","056"]
[null,null,null,null,null,null,null,null,null,"Sonora","26","San Pedro de la Cueva","057"]
[null,null,null,null,null,null,null,null,null,"Sonora","26","Santa Ana","058"]
[null,null,null,null,null,null,null,null,null,"Sonora","26","Santa Cruz","059"]
[null,null,null,null,null,null,null,null,null,"Sonora","26","Sáric","060"]
[null,null,null,null,null,null,null,null,null,"Sonora","26","Soyopa","061"]
[null,null,null,null,null,null,null,null,null,"Sonora","26","Suaqui Grande","062"]
[null,null,null,null,null,null,null,null,null,"Sonora","26","Tepache","063"]
[null,null,null,null,null,null,null,null,null,"Sonora","26","Trincheras","064"]
[null,null,null,null,null,null,null,null,null,"Sonora","26","Tubutama","065"]
[null,null,null,null,null,null,null,null,null,"Sonora","26","Ures","066"]
[null,null,null,null,null,null,null,null,null,"Sonora","26","Villa Hidalgo","067"]
[null,null,null,null,null,null,null,null,null,"Sonora","26","Villa Pesqueira","068"]
[null,null,null,null,null,null,null,null,null,"Sonora","26","Yécora","069"]
[null,null,null,null,null,null,null,null,null,"Sonora","26","General Plutarco Elías Calles","070"]
[null,null,null,null,null,null,null,null,null,"Sonora","26","Benito Juárez","071"]
[null,null,null,null,null,null,null,null,null,"Sonora","26","San Ignacio Río Muerto","072"]
[null,null,null,null,null,null,null,null,null,"Tabasco","27","Balancán","001"]
[null,null,null,null,null,null,null,null,null,"Tabasco","27","Cárdenas","002"]
[null,null,null,null,null,null,null,null,null,"Tabasco","27","Centla","003"]
[null,null,null,null,null,null,null,null,null,"Tabasco","27","Centro","004"]
[null,null,null,null,null,null,null,null,null,"Tabasco","27","Comalcalco","005"]
[null,null,null,null,null,null,null,null,null,"Tabasco","27","Cunduacán","006"]
[null,null,null,null,null,null,null,null,null,"Tabasco","27","Emiliano Zapata","007"]
[null,null,null,null,null,null,null,null,null,"Tabasco","27","Huimanguillo","008"]
[null,null,null,null,null,null,null,null,null,"Tabasco","27","Jalapa","009"]
[null,null,null,null,null,null,null,null,null,"Tabasco","27","Jalpa de Méndez","010"]
[null,null,null,null,null,null,null,null,null,"Tabasco","27","Jonuta","011"]
[null,null,null,null,null,null,null,null,null,"Tabasco","27","Macuspana","012"]
[null,null,null,null,null,null,null,null,null,"Tabasco","27","Nacajuca","013"]
[null,null,null,null,null,null,null,null,null,"Tabasco","27","Paraíso","014"]
[null,null,null,null,null,null,null,null,null,"Tabasco","27","Tacotalpa","015"]
[null,null,null,null,null,null,null,null,null,"Tabasco","27","Teapa","016"]
[null,null,null,null,null,null,null,null,null,"Tabasco","27","Tenosique","017"]
[null,null,null,null,null,null,null,null,null,"Tamaulipas","28","Abasolo","001"]
[null,null,null,null,null,null,null,null,null,"Tamaulipas","28","Aldama","002"]
[null,null,null,null,null,null,null,null,null,"Tamaulipas","28","Altamira","003"]
[null,null,null,null,null,null,null,null,null,"Tamaulipas","28","Antiguo Morelos","004"]
[null,null,null,null,null,null,null,null,null,"Tamaulipas","28","Burgos","005"]
[null,null,null,null,null,null,null,null,null,"Tamaulipas","28","Bustamante","006"]
[null,null,null,null,null,null,null,null,null,"Tamaulipas","28","Camargo","007"]
[null,null,null,null,null,null,null,null,null,"Tamaulipas","28","Casas","008"]
[null,null,null,null,null,null,null,null,null,"Tamaulipas","28","Ciudad Madero","009"]
[null,null,null,null,null,null,null,null,null,"Tamaulipas","28","Cruillas","010"]
[null,null,null,null,null,null,null,null,null,"Tamaulipas","28","Gómez Farías","011"]
[null,null,null,null,null,null,null,null,null,"Tamaulipas","28","González","012"]
[null,null,null,null,null,null,null,null,null,"Tamaulipas","28","Güémez","013"]
[null,null,null,null,null,null,null,null,null,"Tamaulipas","28","Guerrero","014"]
[null,null,null,null,null,null,null,null,null,"Tamaulipas","28","Gustavo Díaz Ordaz","015"]
[null,null,null,null,null,null,null,null,null,"Tamaulipas","28","Hidalgo","016"]
[null,null,null,null,null,null,null,null,null,"Tamaulipas","28","Jaumave","017"]
[null,null,null,null,null,null,null,null,null,"Tamaulipas","28","Jiménez","018"]
[null,null,null,null,null,null,null,null,null,"Tamaulipas","28","Llera","019"]
[null,null,null,null,null,null,null,null,null,"Tamaulipas","28","Mainero","020"]
[null,null,null,null,null,null,null,null,null,"Tamaulipas","28","El Mante","021"]
[null,null,null,null,null,null,null,null,null,"Tamaulipas","28","Matamoros","022"]
[null,null,null,null,null,null,null,null,null,"Tamaulipas","28","Méndez","023"]
[null,null,null,null,null,null,null,null,null,"Tamaulipas","28","Mier","024"]
[null,null,null,null,null,null,null,null,null,"Tamaulipas","28","Miguel Alemán","025"]
[null,null,null,null,null,null,null,null,null,"Tamaulipas","28","Miquihuana","026"]
[null,null,null,null,null,null,null,null,null,"Tamaulipas","28","Nuevo Laredo","027"]
[null,null,null,null,null,null,null,null,null,"Tamaulipas","28","Nuevo Morelos","028"]
[null,null,null,null,null,null,null,null,null,"Tamaulipas","28","Ocampo","029"]
[null,null,null,null,null,null,null,null,null,"Tamaulipas","28","Padilla","030"]
[null,null,null,null,null,null,null,null,null,"Tamaulipas","28","Palmillas","031"]
[null,null,null,null,null,null,null,null,null,"Tamaulipas","28","Reynosa","032"]
[null,null,null,null,null,null,null,null,null,"Tamaulipas","28","Río Bravo","033"]
[null,null,null,null,null,null,null,null,null,"Tamaulipas","28","San Carlos","034"]
[null,null,null,null,null,null,null,null,null,"Tamaulipas","28","San Fernando","035"]
[null,null,null,null,null,null,null,null,null,"Tamaulipas","28","San Nicolás","036"]
[null,null,null,null,null,null,null,null,null,"Tamaulipas","28","Soto la Marina","037"]
[null,null,null,null,null,null,null,null,null,"Tamaulipas","28","Tampico","038"]
[null,null,null,null,null,null,null,null,null,"Tamaulipas","28","Tula","039"]
[null,null,null,null,null,null,null,null,null,"Tamaulipas","28","Valle Hermoso","040"]
[null,null,null,null,null,null,null,null,null,"Tamaulipas","28","Victoria","041"]
[null,null,null,null,null,null,null,null,null,"Tamaulipas","28","Villagrán","042"]
[null,null,null,null,null,null,null,null,null,"Tamaulipas","28","Xicoténcatl","043"]
[null,null,null,null,null,null,null,null,null,"Tlaxcala","29","Amaxac de Guerrero","001"]
[null,null,null,null,null,null,null,null,null,"Tlaxcala","29","Apetatitlán de Antonio Carvajal","002"]
[null,null,null,null,null,null,null,null,null,"Tlaxcala","29","Atlangatepec","003"]
[null,null,null,null,null,null,null,null,null,"Tlaxcala","29","Atltzayanca","004"]
[null,null,null,null,null,null,null,null,null,"Tlaxcala","29","Apizaco","005"]
[null,null,null,null,null,null,null,null,null,"Tlaxcala","29","Calpulalpan","006"]
[null,null,null,null,null,null,null,null,null,"Tlaxcala","29","El Carmen Tequexquitla","007"]
[null,null,null,null,null,null,null,null,null,"Tlaxcala","29","Cuapiaxtla","008"]
[null,null,null,null,null,null,null,null,null,"Tlaxcala","29","Cuaxomulco","009"]
[null,null,null,null,null,null,null,null,null,"Tlaxcala","29","Chiautempan","010"]
[null,null,null,null,null,null,null,null,null,"Tlaxcala","29","Muñoz de Domingo Arenas","011"]
[null,null,null,null,null,null,null,null,null,"Tlaxcala","29","Españita","012"]
[null,null,null,null,null,null,null,null,null,"Tlaxcala","29","Huamantla","013"]
[null,null,null,null,null,null,null,null,null,"Tlaxcala","29","Hueyotlipan","014"]
[null,null,null,null,null,null,null,null,null,"Tlaxcala","29","Ixtacuixtla de Mariano Matamoros","015"]
[null,null,null,null,null,null,null,null,null,"Tlaxcala","29","Ixtenco","016"]
[null,null,null,null,null,null,null,null,null,"Tlaxcala","29","Mazatecochco de José María Morelos","017"]
[null,null,null,null,null,null,null,null,null,"Tlaxcala","29","Contla de Juan Cuamatzi","018"]
[null,null,null,null,null,null,null,null,null,"Tlaxcala","29","Tepetitla de Lardizábal","019"]
[null,null,null,null,null,null,null,null,null,"Tlaxcala","29","Sanctórum de Lázaro Cárdenas","020"]
[null,null,null,null,null,null,null,null,null,"Tlaxcala","29","Nanacamilpa de Mariano Arista","021"]
[null,null,null,null,null,null,null,null,null,"Tlaxcala","29","Acuamanala de Miguel Hidalgo","022"]
[null,null,null,null,null,null,null,null,null,"Tlaxcala","29","Natívitas","023"]
[null,null,null,null,null,null,null,null,null,"Tlaxcala","29","Panotla","024"]
[null,null,null,null,null,null,null,null,null,"Tlaxcala","29","San Pablo del Monte","025"]
[null,null,null,null,null,null,null,null,null,"Tlaxcala","29","Santa Cruz Tlaxcala","026"]
[null,null,null,null,null,null,null,null,null,"Tlaxcala","29","Tenancingo","027"]
[null,null,null,null,null,null,null,null,null,"Tlaxcala","29","Teolocholco","028"]
[null,null,null,null,null,null,null,null,null,"Tlaxcala","29","Tepeyanco","029"]
[null,null,null,null,null,null,null,null,null,"Tlaxcala","29","Terrenate","030"]
[null,null,null,null,null,null,null,null,null,"Tlaxcala","29","Tetla de la Solidaridad","031"]
[null,null,null,null,null,null,null,null,null,"Tlaxcala","29","Tetlatlahuca","032"]
[null,null,null,null,null,null,null,null,null,"Tlaxcala","29","Tlaxcala","033"]
[null,null,null,null,null,null,null,null,null,"Tlaxcala","29","Tlaxco","034"]
[null,null,null,null,null,null,null,null,null,"Tlaxcala","29","Tocatlán","035"]
[null,null,null,null,null,null,null,null,null,"Tlaxcala","29","Totolac","036"]
[null,null,null,null,null,null,null,null,null,"Tlaxcala","29","Ziltlaltépec de Trinidad Sánchez Santos","037"]
[null,null,null,null,null,null,null,null,null,"Tlaxcala","29","Tzompantepec","038"]
[null,null,null,null,null,null,null,null,null,"Tlaxcala","29","Xaloztoc","039"]
[null,null,null,null,null,null,null,null,null,"Tlaxcala","29","Xaltocan","040"]
[null,null,null,null,null,null,null,null,null,"Tlaxcala","29","Papalotla de Xicohténcatl","041"]
[null,null,null,null,null,null,null,null,null,"Tlaxcala","29","Xicohtzinco","042"]
[null,null,null,null,null,null,null,null,null,"Tlaxcala","29","Yauhquemehcan","043"]
[null,null,null,null,null,null,null,null,null,"Tlaxcala","29","Zacatelco","044"]
[null,null,null,null,null,null,null,null,null,"Tlaxcala","29","Benito Juárez","045"]
[null,null,null,null,null,null,null,null,null,"Tlaxcala","29","Emiliano Zapata","046"]
[null,null,null,null,null,null,null,null,null,"Tlaxcala","29","Lázaro Cárdenas","047"]
[null,null,null,null,null,null,null,null,null,"Tlaxcala","29","La Magdalena Tlaltelulco","048"]
[null,null,null,null,null,null,null,null,null,"Tlaxcala","29","San Damián Texóloc","049"]
[null,null,null,null,null,null,null,null,null,"Tlaxcala","29","San Francisco Tetlanohcan","050"]
[null,null,null,null,null,null,null,null,null,"Tlaxcala","29","San Jerónimo Zacualpan","051"]
[null,null,null,null,null,null,null,null,null,"Tlaxcala","29","San José Teacalco","052"]
[null,null,null,null,null,null,null,null,null,"Tlaxcala","29","San Juan Huactzinco","053"]
[null,null,null,null,null,null,null,null,null,"Tlaxcala","29","San Lorenzo Axocomanitla","054"]
[null,null,null,null,null,null,null,null,null,"Tlaxcala","29","San Lucas Tecopilco","055"]
[null,null,null,null,null,null,null,null,null,"Tlaxcala","29","Santa Ana Nopalucan","056"]
[null,null,null,null,null,null,null,null,null,"Tlaxcala","29","Santa Apolonia Teacalco","057"]
[null,null,null,null,null,null,null,null,null,"Tlaxcala","29","Santa Catarina Ayometla","058"]
[null,null,null,null,null,null,null,null,null,"Tlaxcala","29","Santa Cruz Quilehtla","059"]
[null,null,null,null,null,null,null,null,null,"Tlaxcala","29","Santa Isabel Xiloxoxtla","060"]
[null,null,null,null,null,null,null,null,null,"Veracruz de Ignacio de la Llave","30","Acajete","001"]
[null,null,null,null,null,null,null,null,null,"Veracruz de Ignacio de la Llave","30","Acatlán","002"]
[null,null,null,null,null,null,null,null,null,"Veracruz de Ignacio de la Llave","30","Acayucan","003"]
[null,null,null,null,null,null,null,null,null,"Veracruz de Ignacio de la Llave","30","Actopan","004"]
[null,null,null,null,null,null,null,null,null,"Veracruz de Ignacio de la Llave","30","Acula","005"]
[null,null,null,null,null,null,null,null,null,"Veracruz de Ignacio de la Llave","30","Acultzingo","006"]
[null,null,null,null,null,null,null,null,null,"Veracruz de Ignacio de la Llave","30","Camarón de Tejeda","007"]
[null,null,null,null,null,null,null,null,null,"Veracruz de Ignacio de la Llave","30","Alpatláhuac","008"]
[null,null,null,null,null,null,null,null,null,"Veracruz de Ignacio de la Llave","30","Alto Lucero de Gutiérrez Barrios","009"]
[null,null,null,null,null,null,null,null,null,"Veracruz de Ignacio de la Llave","30","Altotonga","010"]
[null,null,null,null,null,null,null,null,null,"Veracruz de Ignacio de la Llave","30","Alvarado","011"]
[null,null,null,null,null,null,null,null,null,"Veracruz de Ignacio de la Llave","30","Amatitlán","012"]
[null,null,null,null,null,null,null,null,null,"Veracruz de Ignacio de la Llave","30","Naranjos Amatlán","013"]
[null,null,null,null,null,null,null,null,null,"Veracruz de Ignacio de la Llave","30","Amatlán de los Reyes","014"]
[null,null,null,null,null,null,null,null,null,"Veracruz de Ignacio de la Llave","30","Angel R. Cabada","015"]
[null,null,null,null,null,null,null,null,null,"Veracruz de Ignacio de la Llave","30","La Antigua","016"]
[null,null,null,null,null,null,null,null,null,"Veracruz de Ignacio de la Llave","30","Apazapan","017"]
[null,null,null,null,null,null,null,null,null,"Veracruz de Ignacio de la Llave","30","Aquila","018"]
[null,null,null,null,null,null,null,null,null,"Veracruz de Ignacio de la Llave","30","Astacinga","019"]
[null,null,null,null,null,null,null,null,null,"Veracruz de Ignacio de la Llave","30","Atlahuilco","020"]
[null,null,null,null,null,null,null,null,null,"Veracruz de Ignacio de la Llave","30","Atoyac","021"]
[null,null,null,null,null,null,null,null,null,"Veracruz de Ignacio de la Llave","30","Atzacan","022"]
[null,null,null,null,null,null,null,null,null,"Veracruz de Ignacio de la Llave","30","Atzalan","023"]
[null,null,null,null,null,null,null,null,null,"Veracruz de Ignacio de la Llave","30","Tlaltetela","024"]
[null,null,null,null,null,null,null,null,null,"Veracruz de Ignacio de la Llave","30","Ayahualulco","025"]
[null,null,null,null,null,null,null,null,null,"Veracruz de Ignacio de la Llave","30","Banderilla","026"]
[null,null,null,null,null,null,null,null,null,"Veracruz de Ignacio de la Llave","30","Benito Juárez","027"]
[null,null,null,null,null,null,null,null,null,"Veracruz de Ignacio de la Llave","30","Boca del Río","028"]
[null,null,null,null,null,null,null,null,null,"Veracruz de Ignacio de la Llave","30","Calcahualco","029"]
[null,null,null,null,null,null,null,null,null,"Veracruz de Ignacio de la Llave","30","Camerino Z. Mendoza","030"]
[null,null,null,null,null,null,null,null,null,"Veracruz de Ignacio de la Llave","30","Carrillo Puerto","031"]
[null,null,null,null,null,null,null,null,null,"Veracruz de Ignacio de la Llave","30","Catemaco","032"]
[null,null,null,null,null,null,null,null,null,"Veracruz de Ignacio de la Llave","30","Cazones de Herrera","033"]
[null,null,null,null,null,null,null,null,null,"Veracruz de Ignacio de la Llave","30","Cerro Azul","034"]
[null,null,null,null,null,null,null,null,null,"Veracruz de Ignacio de la Llave","30","Citlaltépetl","035"]
[null,null,null,null,null,null,null,null,null,"Veracruz de Ignacio de la Llave","30","Coacoatzintla","036"]
[null,null,null,null,null,null,null,null,null,"Veracruz de Ignacio de la Llave","30","Coahuitlán","037"]
[null,null,null,null,null,null,null,null,null,"Veracruz de Ignacio de la Llave","30","Coatepec","038"]
[null,null,null,null,null,null,null,null,null,"Veracruz de Ignacio de la Llave","30","Coatzacoalcos","039"]
[null,null,null,null,null,null,null,null,null,"Veracruz de Ignacio de la Llave","30","Coatzintla","040"]
[null,null,null,null,null,null,null,null,null,"Veracruz de Ignacio de la Llave","30","Coetzala","041"]
[null,null,null,null,null,null,null,null,null,"Veracruz de Ignacio de la Llave","30","Colipa","042"]
[null,null,null,null,null,null,null,null,null,"Veracruz de Ignacio de la Llave","30","Comapa","043"]
[null,null,null,null,null,null,null,null,null,"Veracruz de Ignacio de la Llave","30","Córdoba","044"]
[null,null,null,null,null,null,null,null,null,"Veracruz de Ignacio de la Llave","30","Cosamaloapan de Carpio","045"]
[null,null,null,null,null,null,null,null,null,"Veracruz de Ignacio de la Llave","30","Cosautlán de Carvajal","046"]
[null,null,null,null,null,null,null,null,null,"Veracruz de Ignacio de la Llave","30","Coscomatepec","047"]
[null,null,null,null,null,null,null,null,null,"Veracruz de Ignacio de la Llave","30","Cosoleacaque","048"]
[null,null,null,null,null,null,null,null,null,"Veracruz de Ignacio de la Llave","30","Cotaxtla","049"]
[null,null,null,null,null,null,null,null,null,"Veracruz de Ignacio de la Llave","30","Coxquihui","050"]
[null,null,null,null,null,null,null,null,null,"Veracruz de Ignacio de la Llave","30","Coyutla","051"]
[null,null,null,null,null,null,null,null,null,"Veracruz de Ignacio de la Llave","30","Cuichapa","052"]
[null,null,null,null,null,null,null,null,null,"Veracruz de Ignacio de la Llave","30","Cuitláhuac","053"]
[null,null,null,null,null,null,null,null,null,"Veracruz de Ignacio de la Llave","30","Chacaltianguis","054"]
[null,null,null,null,null,null,null,null,null,"Veracruz de Ignacio de la Llave","30","Chalma","055"]
[null,null,null,null,null,null,null,null,null,"Veracruz de Ignacio de la Llave","30","Chiconamel","056"]
[null,null,null,null,null,null,null,null,null,"Veracruz de Ignacio de la Llave","30","Chiconquiaco","057"]
[null,null,null,null,null,null,null,null,null,"Veracruz de Ignacio de la Llave","30","Chicontepec","058"]
[null,null,null,null,null,null,null,null,null,"Veracruz de Ignacio de la Llave","30","Chinameca","059"]
[null,null,null,null,null,null,null,null,null,"Veracruz de Ignacio de la Llave","30","Chinampa de Gorostiza","060"]
[null,null,null,null,null,null,null,null,null,"Veracruz de Ignacio de la Llave","30","Las Choapas","061"]
[null,null,null,null,null,null,null,null,null,"Veracruz de Ignacio de la Llave","30","Chocamán","062"]
[null,null,null,null,null,null,null,null,null,"Veracruz de Ignacio de la Llave","30","Chontla","063"]
[null,null,null,null,null,null,null,null,null,"Veracruz de Ignacio de la Llave","30","Chumatlán","064"]
[null,null,null,null,null,null,null,null,null,"Veracruz de Ignacio de la Llave","30","Emiliano Zapata","065"]
[null,null,null,null,null,null,null,null,null,"Veracruz de Ignacio de la Llave","30","Espinal","066"]
[null,null,null,null,null,null,null,null,null,"Veracruz de Ignacio de la Llave","30","Filomeno Mata","067"]
[null,null,null,null,null,null,null,null,null,"Veracruz de Ignacio de la Llave","30","Fortín","068"]
[null,null,null,null,null,null,null,null,null,"Veracruz de Ignacio de la Llave","30","Gutiérrez Zamora","069"]
[null,null,null,null,null,null,null,null,null,"Veracruz de Ignacio de la Llave","30","Hidalgotitlán","070"]
[null,null,null,null,null,null,null,null,null,"Veracruz de Ignacio de la Llave","30","Huatusco","071"]
[null,null,null,null,null,null,null,null,null,"Veracruz de Ignacio de la Llave","30","Huayacocotla","072"]
[null,null,null,null,null,null,null,null,null,"Veracruz de Ignacio de la Llave","30","Hueyapan de Ocampo","073"]
[null,null,null,null,null,null,null,null,null,"Veracruz de Ignacio de la Llave","30","Huiloapan de Cuauhtémoc","074"]
[null,null,null,null,null,null,null,null,null,"Veracruz de Ignacio de la Llave","30","Ignacio de la Llave","075"]
[null,null,null,null,null,null,null,null,null,"Veracruz de Ignacio de la Llave","30","Ilamatlán","076"]
[null,null,null,null,null,null,null,null,null,"Veracruz de Ignacio de la Llave","30","Isla","077"]
[null,null,null,null,null,null,null,null,null,"Veracruz de Ignacio de la Llave","30","Ixcatepec","078"]
[null,null,null,null,null,null,null,null,null,"Veracruz de Ignacio de la Llave","30","Ixhuacán de los Reyes","079"]
[null,null,null,null,null,null,null,null,null,"Veracruz de Ignacio de la Llave","30","Ixhuatlán del Café","080"]
[null,null,null,null,null,null,null,null,null,"Veracruz de Ignacio de la Llave","30","Ixhuatlancillo","081"]
[null,null,null,null,null,null,null,null,null,"Veracruz de Ignacio de la Llave","30","Ixhuatlán del Sureste","082"]
[null,null,null,null,null,null,null,null,null,"Veracruz de Ignacio de la Llave","30","Ixhuatlán de Madero","083"]
[null,null,null,null,null,null,null,null,null,"Veracruz de Ignacio de la Llave","30","Ixmatlahuacan","084"]
[null,null,null,null,null,null,null,null,null,"Veracruz de Ignacio de la Llave","30","Ixtaczoquitlán","085"]
[null,null,null,null,null,null,null,null,null,"Veracruz de Ignacio de la Llave","30","Jalacingo","086"]
[null,null,null,null,null,null,null,null,null,"Veracruz de Ignacio de la Llave","30","Xalapa","087"]
[null,null,null,null,null,null,null,null,null,"Veracruz de Ignacio de la Llave","30","Jalcomulco","088"]
[null,null,null,null,null,null,null,null,null,"Veracruz de Ignacio de la Llave","30","Jáltipan","089"]
[null,null,null,null,null,null,null,null,null,"Veracruz de Ignacio de la Llave","30","Jamapa","090"]
[null,null,null,null,null,null,null,null,null,"Veracruz de Ignacio de la Llave","30","Jesús Carranza","091"]
[null,null,null,null,null,null,null,null,null,"Veracruz de Ignacio de la Llave","30","Xico","092"]
[null,null,null,null,null,null,null,null,null,"Veracruz de Ignacio de la Llave","30","Jilotepec","093"]
[null,null,null,null,null,null,null,null,null,"Veracruz de Ignacio de la Llave","30","Juan Rodríguez Clara","094"]
[null,null,null,null,null,null,null,null,null,"Veracruz de Ignacio de la Llave","30","Juchique de Ferrer","095"]
[null,null,null,null,null,null,null,null,null,"Veracruz de Ignacio de la Llave","30","Landero y Coss","096"]
[null,null,null,null,null,null,null,null,null,"Veracruz de Ignacio de la Llave","30","Lerdo de Tejada","097"]
[null,null,null,null,null,null,null,null,null,"Veracruz de Ignacio de la Llave","30","Magdalena","098"]
[null,null,null,null,null,null,null,null,null,"Veracruz de Ignacio de la Llave","30","Maltrata","099"]
[null,null,null,null,null,null,null,null,null,"Veracruz de Ignacio de la Llave","30","Manlio Fabio Altamirano","100"]
[null,null,null,null,null,null,null,null,null,"Veracruz de Ignacio de la Llave","30","Mariano Escobedo","101"]
[null,null,null,null,null,null,null,null,null,"Veracruz de Ignacio de la Llave","30","Martínez de la Torre","102"]
[null,null,null,null,null,null,null,null,null,"Veracruz de Ignacio de la Llave","30","Mecatlán","103"]
[null,null,null,null,null,null,null,null,null,"Veracruz de Ignacio de la Llave","30","Mecayapan","104"]
[null,null,null,null,null,null,null,null,null,"Veracruz de Ignacio de la Llave","30","Medellín de Bravo","105"]
[null,null,null,null,null,null,null,null,null,"Veracruz de Ignacio de la Llave","30","Miahuatlán","106"]
[null,null,null,null,null,null,null,null,null,"Veracruz de Ignacio de la Llave","30","Las Minas","107"]
[null,null,null,null,null,null,null,null,null,"Veracruz de Ignacio de la Llave","30","Minatitlán","108"]
[null,null,null,null,null,null,null,null,null,"Veracruz de Ignacio de la Llave","30","Misantla","109"]
[null,null,null,null,null,null,null,null,null,"Veracruz de Ignacio de la Llave","30","Mixtla de Altamirano","110"]
[null,null,null,null,null,null,null,null,null,"Veracruz de Ignacio de la Llave","30","Moloacán","111"]
[null,null,null,null,null,null,null,null,null,"Veracruz de Ignacio de la Llave","30","Naolinco","112"]
[null,null,null,null,null,null,null,null,null,"Veracruz de Ignacio de la Llave","30","Naranjal","113"]
[null,null,null,null,null,null,null,null,null,"Veracruz de Ignacio de la Llave","30","Nautla","114"]
[null,null,null,null,null,null,null,null,null,"Veracruz de Ignacio de la Llave","30","Nogales","115"]
[null,null,null,null,null,null,null,null,null,"Veracruz de Ignacio de la Llave","30","Oluta","116"]
[null,null,null,null,null,null,null,null,null,"Veracruz de Ignacio de la Llave","30","Omealca","117"]
[null,null,null,null,null,null,null,null,null,"Veracruz de Ignacio de la Llave","30","Orizaba","118"]
[null,null,null,null,null,null,null,null,null,"Veracruz de Ignacio de la Llave","30","Otatitlán","119"]
[null,null,null,null,null,null,null,null,null,"Veracruz de Ignacio de la Llave","30","Oteapan","120"]
[null,null,null,null,null,null,null,null,null,"Veracruz de Ignacio de la Llave","30","Ozuluama de Mascareñas","121"]
[null,null,null,null,null,null,null,null,null,"Veracruz de Ignacio de la Llave","30","Pajapan","122"]
[null,null,null,null,null,null,null,null,null,"Veracruz de Ignacio de la Llave","30","Pánuco","123"]
[null,null,null,null,null,null,null,null,null,"Veracruz de Ignacio de la Llave","30","Papantla","124"]
[null,null,null,null,null,null,null,null,null,"Veracruz de Ignacio de la Llave","30","Paso del Macho","125"]
[null,null,null,null,null,null,null,null,null,"Veracruz de Ignacio de la Llave","30","Paso de Ovejas","126"]
[null,null,null,null,null,null,null,null,null,"Veracruz de Ignacio de la Llave","30","La Perla","127"]
[null,null,null,null,null,null,null,null,null,"Veracruz de Ignacio de la Llave","30","Perote","128"]
[null,null,null,null,null,null,null,null,null,"Veracruz de Ignacio de la Llave","30","Platón Sánchez","129"]
[null,null,null,null,null,null,null,null,null,"Veracruz de Ignacio de la Llave","30","Playa Vicente","130"]
[null,null,null,null,null,null,null,null,null,"Veracruz de Ignacio de la Llave","30","Poza Rica de Hidalgo","131"]
[null,null,null,null,null,null,null,null,null,"Veracruz de Ignacio de la Llave","30","Las Vigas de Ramírez","132"]
[null,null,null,null,null,null,null,null,null,"Veracruz de Ignacio de la Llave","30","Pueblo Viejo","133"]
[null,null,null,null,null,null,null,null,null,"Veracruz de Ignacio de la Llave","30","Puente Nacional","134"]
[null,null,null,null,null,null,null,null,null,"Veracruz de Ignacio de la Llave","30","Rafael Delgado","135"]
[null,null,null,null,null,null,null,null,null,"Veracruz de Ignacio de la Llave","30","Rafael Lucio","136"]
[null,null,null,null,null,null,null,null,null,"Veracruz de Ignacio de la Llave","30","Los Reyes","137"]
[null,null,null,null,null,null,null,null,null,"Veracruz de Ignacio de la Llave","30","Río Blanco","138"]
[null,null,null,null,null,null,null,null,null,"Veracruz de Ignacio de la Llave","30","Saltabarranca","139"]
[null,null,null,null,null,null,null,null,null,"Veracruz de Ignacio de la Llave","30","San Andrés Tenejapan","140"]
[null,null,null,null,null,null,null,null,null,"Veracruz de Ignacio de la Llave","30","San Andrés Tuxtla","141"]
[null,null,null,null,null,null,null,null,null,"Veracruz de Ignacio de la Llave","30","San Juan Evangelista","142"]
[null,null,null,null,null,null,null,null,null,"Veracruz de Ignacio de la Llave","30","Santiago Tuxtla","143"]
[null,null,null,null,null,null,null,null,null,"Veracruz de Ignacio de la Llave","30","Sayula de Alemán","144"]
[null,null,null,null,null,null,null,null,null,"Veracruz de Ignacio de la Llave","30","Soconusco","145"]
[null,null,null,null,null,null,null,null,null,"Veracruz de Ignacio de la Llave","30","Sochiapa","146"]
[null,null,null,null,null,null,null,null,null,"Veracruz de Ignacio de la Llave","30","Soledad Atzompa","147"]
[null,null,null,null,null,null,null,null,null,"Veracruz de Ignacio de la Llave","30","Soledad de Doblado","148"]
[null,null,null,null,null,null,null,null,null,"Veracruz de Ignacio de la Llave","30","Soteapan","149"]
[null,null,null,null,null,null,null,null,null,"Veracruz de Ignacio de la Llave","30","Tamalín","150"]
[null,null,null,null,null,null,null,null,null,"Veracruz de Ignacio de la Llave","30","Tamiahua","151"]
[null,null,null,null,null,null,null,null,null,"Veracruz de Ignacio de la Llave","30","Tampico Alto","152"]
[null,null,null,null,null,null,null,null,null,"Veracruz de Ignacio de la Llave","30","Tancoco","153"]
[null,null,null,null,null,null,null,null,null,"Veracruz de Ignacio de la Llave","30","Tantima","154"]
[null,null,null,null,null,null,null,null,null,"Veracruz de Ignacio de la Llave","30","Tantoyuca","155"]
[null,null,null,null,null,null,null,null,null,"Veracruz de Ignacio de la Llave","30","Tatatila","156"]
[null,null,null,null,null,null,null,null,null,"Veracruz de Ignacio de la Llave","30","Castillo de Teayo","157"]
[null,null,null,null,null,null,null,null,null,"Veracruz de Ignacio de la Llave","30","Tecolutla","158"]
[null,null,null,null,null,null,null,null,null,"Veracruz de Ignacio de la Llave","30","Tehuipango","159"]
[null,null,null,null,null,null,null,null,null,"Veracruz de Ignacio de la Llave","30","Álamo Temapache","160"]
[null,null,null,null,null,null,null,null,null,"Veracruz de Ignacio de la Llave","30","Tempoal","161"]
[null,null,null,null,null,null,null,null,null,"Veracruz de Ignacio de la Llave","30","Tenampa","162"]
[null,null,null,null,null,null,null,null,null,"Veracruz de Ignacio de la Llave","30","Tenochtitlán","163"]
[null,null,null,null,null,null,null,null,null,"Veracruz de Ignacio de la Llave","30","Teocelo","164"]
[null,null,null,null,null,null,null,null,null,"Veracruz de Ignacio de la Llave","30","Tepatlaxco","165"]
[null,null,null,null,null,null,null,null,null,"Veracruz de Ignacio de la Llave","30","Tepetlán","166"]
[null,null,null,null,null,null,null,null,null,"Veracruz de Ignacio de la Llave","30","Tepetzintla","167"]
[null,null,null,null,null,null,null,null,null,"Veracruz de Ignacio de la Llave","30","Tequila","168"]
[null,null,null,null,null,null,null,null,null,"Veracruz de Ignacio de la Llave","30","José Azueta","169"]
[null,null,null,null,null,null,null,null,null,"Veracruz de Ignacio de la Llave","30","Texcatepec","170"]
[null,null,null,null,null,null,null,null,null,"Veracruz de Ignacio de la Llave","30","Texhuacán","171"]
[null,null,null,null,null,null,null,null,null,"Veracruz de Ignacio de la Llave","30","Texistepec","172"]
[null,null,null,null,null,null,null,null,null,"Veracruz de Ignacio de la Llave","30","Tezonapa","173"]
[null,null,null,null,null,null,null,null,null,"Veracruz de Ignacio de la Llave","30","Tierra Blanca","174"]
[null,null,null,null,null,null,null,null,null,"Veracruz de Ignacio de la Llave","30","Tihuatlán","175"]
[null,null,null,null,null,null,null,null,null,"Veracruz de Ignacio de la Llave","30","Tlacojalpan","176"]
[null,null,null,null,null,null,null,null,null,"Veracruz de Ignacio de la Llave","30","Tlacolulan","177"]
[null,null,null,null,null,null,null,null,null,"Veracruz de Ignacio de la Llave","30","Tlacotalpan","178"]
[null,null,null,null,null,null,null,null,null,"Veracruz de Ignacio de la Llave","30","Tlacotepec de Mejía","179"]
[null,null,null,null,null,null,null,null,null,"Veracruz de Ignacio de la Llave","30","Tlachichilco","180"]
[null,null,null,null,null,null,null,null,null,"Veracruz de Ignacio de la Llave","30","Tlalixcoyan","181"]
[null,null,null,null,null,null,null,null,null,"Veracruz de Ignacio de la Llave","30","Tlalnelhuayocan","182"]
[null,null,null,null,null,null,null,null,null,"Veracruz de Ignacio de la Llave","30","Tlapacoyan","183"]
[null,null,null,null,null,null,null,null,null,"Veracruz de Ignacio de la Llave","30","Tlaquilpa","184"]
[null,null,null,null,null,null,null,null,null,"Veracruz de Ignacio de la Llave","30","Tlilapan","185"]
[null,null,null,null,null,null,null,null,null,"Veracruz de Ignacio de la Llave","30","Tomatlán","186"]
[null,null,null,null,null,null,null,null,null,"Veracruz de Ignacio de la Llave","30","Tonayán","187"]
[null,null,null,null,null,null,null,null,null,"Veracruz de Ignacio de la Llave","30","Totutla","188"]
[null,null,null,null,null,null,null,null,null,"Veracruz de Ignacio de la Llave","30","Tuxpan","189"]
[null,null,null,null,null,null,null,null,null,"Veracruz de Ignacio de la Llave","30","Tuxtilla","190"]
[null,null,null,null,null,null,null,null,null,"Veracruz de Ignacio de la Llave","30","Ursulo Galván","191"]
[null,null,null,null,null,null,null,null,null,"Veracruz de Ignacio de la Llave","30","Vega de Alatorre","192"]
[null,null,null,null,null,null,null,null,null,"Veracruz de Ignacio de la Llave","30","Veracruz","193"]
[null,null,null,null,null,null,null,null,null,"Veracruz de Ignacio de la Llave","30","Villa Aldama","194"]
[null,null,null,null,null,null,null,null,null,"Veracruz de Ignacio de la Llave","30","Xoxocotla","195"]
[null,null,null,null,null,null,null,null,null,"Veracruz de Ignacio de la Llave","30","Yanga","196"]
[null,null,null,null,null,null,null,null,null,"Veracruz de Ignacio de la Llave","30","Yecuatla","197"]
[null,null,null,null,null,null,null,null,null,"Veracruz de Ignacio de la Llave","30","Zacualpan","198"]
[null,null,null,null,null,null,null,null,null,"Veracruz de Ignacio de la Llave","30","Zaragoza","199"]
[null,null,null,null,null,null,null,null,null,"Veracruz de Ignacio de la Llave","30","Zentla","200"]
[null,null,null,null,null,null,null,null,null,"Veracruz de Ignacio de la Llave","30","Zongolica","201"]
[null,null,null,null,null,null,null,null,null,"Veracruz de Ignacio de la Llave","30","Zontecomatlán de López y Fuentes","202"]
[null,null,null,null,null,null,null,null,null,"Veracruz de Ignacio de la Llave","30","Zozocolco de Hidalgo","203"]
[null,null,null,null,null,null,null,null,null,"Veracruz de Ignacio de la Llave","30","Agua Dulce","204"]
[null,null,null,null,null,null,null,null,null,"Veracruz de Ignacio de la Llave","30","El Higo","205"]
[null,null,null,null,null,null,null,null,null,"Veracruz de Ignacio de la Llave","30","Nanchital de Lázaro Cárdenas del Río","206"]
[null,null,null,null,null,null,null,null,null,"Veracruz de Ignacio de la Llave","30","Tres Valles","207"]
[null,null,null,null,null,null,null,null,null,"Veracruz de Ignacio de la Llave","30","Carlos A. Carrillo","208"]
[null,null,null,null,null,null,null,null,null,"Veracruz de Ignacio de la Llave","30","Tatahuicapan de Juárez","209"]
[null,null,null,null,null,null,null,null,null,"Veracruz de Ignacio de la Llave","30","Uxpanapa","210"]
[null,null,null,null,null,null,null,null,null,"Veracruz de Ignacio de la Llave","30","San Rafael","211"]
[null,null,null,null,null,null,null,null,null,"Veracruz de Ignacio de la Llave","30","Santiago Sochiapan","212"]
[null,null,null,null,null,null,null,null,null,"Yucatán","31","Abalá","001"]
[null,null,null,null,null,null,null,null,null,"Yucatán","31","Acanceh","002"]
[null,null,null,null,null,null,null,null,null,"Yucatán","31","Akil","003"]
[null,null,null,null,null,null,null,null,null,"Yucatán","31","Baca","004"]
[null,null,null,null,null,null,null,null,null,"Yucatán","31","Bokobá","005"]
[null,null,null,null,null,null,null,null,null,"Yucatán","31","Buctzotz","006"]
[null,null,null,null,null,null,null,null,null,"Yucatán","31","Cacalchén","007"]
[null,null,null,null,null,null,null,null,null,"Yucatán","31","Calotmul","008"]
[null,null,null,null,null,null,null,null,null,"Yucatán","31","Cansahcab","009"]
[null,null,null,null,null,null,null,null,null,"Yucatán","31","Cantamayec","010"]
[null,null,null,null,null,null,null,null,null,"Yucatán","31","Celestún","011"]
[null,null,null,null,null,null,null,null,null,"Yucatán","31","Cenotillo","012"]
[null,null,null,null,null,null,null,null,null,"Yucatán","31","Conkal","013"]
[null,null,null,null,null,null,null,null,null,"Yucatán","31","Cuncunul","014"]
[null,null,null,null,null,null,null,null,null,"Yucatán","31","Cuzamá","015"]
[null,null,null,null,null,null,null,null,null,"Yucatán","31","Chacsinkín","016"]
[null,null,null,null,null,null,null,null,null,"Yucatán","31","Chankom","017"]
[null,null,null,null,null,null,null,null,null,"Yucatán","31","Chapab","018"]
[null,null,null,null,null,null,null,null,null,"Yucatán","31","Chemax","019"]
[null,null,null,null,null,null,null,null,null,"Yucatán","31","Chicxulub Pueblo","020"]
[null,null,null,null,null,null,null,null,null,"Yucatán","31","Chichimilá","021"]
[null,null,null,null,null,null,null,null,null,"Yucatán","31","Chikindzonot","022"]
[null,null,null,null,null,null,null,null,null,"Yucatán","31","Chocholá","023"]
[null,null,null,null,null,null,null,null,null,"Yucatán","31","Chumayel","024"]
[null,null,null,null,null,null,null,null,null,"Yucatán","31","Dzan","025"]
[null,null,null,null,null,null,null,null,null,"Yucatán","31","Dzemul","026"]
[null,null,null,null,null,null,null,null,null,"Yucatán","31","Dzidzantún","027"]
[null,null,null,null,null,null,null,null,null,"Yucatán","31","Dzilam de Bravo","028"]
[null,null,null,null,null,null,null,null,null,"Yucatán","31","Dzilam González","029"]
[null,null,null,null,null,null,null,null,null,"Yucatán","31","Dzitás","030"]
[null,null,null,null,null,null,null,null,null,"Yucatán","31","Dzoncauich","031"]
[null,null,null,null,null,null,null,null,null,"Yucatán","31","Espita","032"]
[null,null,null,null,null,null,null,null,null,"Yucatán","31","Halachó","033"]
[null,null,null,null,null,null,null,null,null,"Yucatán","31","Hocabá","034"]
[null,null,null,null,null,null,null,null,null,"Yucatán","31","Hoctún","035"]
[null,null,null,null,null,null,null,null,null,"Yucatán","31","Homún","036"]
[null,null,null,null,null,null,null,null,null,"Yucatán","31","Huhí","037"]
[null,null,null,null,null,null,null,null,null,"Yucatán","31","Hunucmá","038"]
[null,null,null,null,null,null,null,null,null,"Yucatán","31","Ixil","039"]
[null,null,null,null,null,null,null,null,null,"Yucatán","31","Izamal","040"]
[null,null,null,null,null,null,null,null,null,"Yucatán","31","Kanasín","041"]
[null,null,null,null,null,null,null,null,null,"Yucatán","31","Kantunil","042"]
[null,null,null,null,null,null,null,null,null,"Yucatán","31","Kaua","043"]
[null,null,null,null,null,null,null,null,null,"Yucatán","31","Kinchil","044"]
[null,null,null,null,null,null,null,null,null,"Yucatán","31","Kopomá","045"]
[null,null,null,null,null,null,null,null,null,"Yucatán","31","Mama","046"]
[null,null,null,null,null,null,null,null,null,"Yucatán","31","Maní","047"]
[null,null,null,null,null,null,null,null,null,"Yucatán","31","Maxcanú","048"]
[null,null,null,null,null,null,null,null,null,"Yucatán","31","Mayapán","049"]
[null,null,null,null,null,null,null,null,null,"Yucatán","31","Mérida","050"]
[null,null,null,null,null,null,null,null,null,"Yucatán","31","Mocochá","051"]
[null,null,null,null,null,null,null,null,null,"Yucatán","31","Motul","052"]
[null,null,null,null,null,null,null,null,null,"Yucatán","31","Muna","053"]
[null,null,null,null,null,null,null,null,null,"Yucatán","31","Muxupip","054"]
[null,null,null,null,null,null,null,null,null,"Yucatán","31","Opichén","055"]
[null,null,null,null,null,null,null,null,null,"Yucatán","31","Oxkutzcab","056"]
[null,null,null,null,null,null,null,null,null,"Yucatán","31","Panabá","057"]
[null,null,null,null,null,null,null,null,null,"Yucatán","31","Peto","058"]
[null,null,null,null,null,null,null,null,null,"Yucatán","31","Progreso","059"]
[null,null,null,null,null,null,null,null,null,"Yucatán","31","Quintana Roo","060"]
[null,null,null,null,null,null,null,null,null,"Yucatán","31","Río Lagartos","061"]
[null,null,null,null,null,null,null,null,null,"Yucatán","31","Sacalum","062"]
[null,null,null,null,null,null,null,null,null,"Yucatán","31","Samahil","063"]
[null,null,null,null,null,null,null,null,null,"Yucatán","31","Sanahcat","064"]
[null,null,null,null,null,null,null,null,null,"Yucatán","31","San Felipe","065"]
[null,null,null,null,null,null,null,null,null,"Yucatán","31","Santa Elena","066"]
[null,null,null,null,null,null,null,null,null,"Yucatán","31","Seyé","067"]
[null,null,null,null,null,null,null,null,null,"Yucatán","31","Sinanché","068"]
[null,null,null,null,null,null,null,null,null,"Yucatán","31","Sotuta","069"]
[null,null,null,null,null,null,null,null,null,"Yucatán","31","Sucilá","070"]
[null,null,null,null,null,null,null,null,null,"Yucatán","31","Sudzal","071"]
[null,null,null,null,null,null,null,null,null,"Yucatán","31","Suma","072"]
[null,null,null,null,null,null,null,null,null,"Yucatán","31","Tahdziú","073"]
[null,null,null,null,null,null,null,null,null,"Yucatán","31","Tahmek","074"]
[null,null,null,null,null,null,null,null,null,"Yucatán","31","Teabo","075"]
[null,null,null,null,null,null,null,null,null,"Yucatán","31","Tecoh","076"]
[null,null,null,null,null,null,null,null,null,"Yucatán","31","Tekal de Venegas","077"]
[null,null,null,null,null,null,null,null,null,"Yucatán","31","Tekantó","078"]
[null,null,null,null,null,null,null,null,null,"Yucatán","31","Tekax","079"]
[null,null,null,null,null,null,null,null,null,"Yucatán","31","Tekit","080"]
[null,null,null,null,null,null,null,null,null,"Yucatán","31","Tekom","081"]
[null,null,null,null,null,null,null,null,null,"Yucatán","31","Telchac Pueblo","082"]
[null,null,null,null,null,null,null,null,null,"Yucatán","31","Telchac Puerto","083"]
[null,null,null,null,null,null,null,null,null,"Yucatán","31","Temax","084"]
[null,null,null,null,null,null,null,null,null,"Yucatán","31","Temozón","085"]
[null,null,null,null,null,null,null,null,null,"Yucatán","31","Tepakán","086"]
[null,null,null,null,null,null,null,null,null,"Yucatán","31","Tetiz","087"]
[null,null,null,null,null,null,null,null,null,"Yucatán","31","Teya","088"]
[null,null,null,null,null,null,null,null,null,"Yucatán","31","Ticul","089"]
[null,null,null,null,null,null,null,null,null,"Yucatán","31","Timucuy","090"]
[null,null,null,null,null,null,null,null,null,"Yucatán","31","Tinum","091"]
[null,null,null,null,null,null,null,null,null,"Yucatán","31","Tixcacalcupul","092"]
[null,null,null,null,null,null,null,null,null,"Yucatán","31","Tixkokob","093"]
[null,null,null,null,null,null,null,null,null,"Yucatán","31","Tixmehuac","094"]
[null,null,null,null,null,null,null,null,null,"Yucatán","31","Tixpéhual","095"]
[null,null,null,null,null,null,null,null,null,"Yucatán","31","Tizimín","096"]
[null,null,null,null,null,null,null,null,null,"Yucatán","31","Tunkás","097"]
[null,null,null,null,null,null,null,null,null,"Yucatán","31","Tzucacab","098"]
[null,null,null,null,null,null,null,null,null,"Yucatán","31","Uayma","099"]
[null,null,null,null,null,null,null,null,null,"Yucatán","31","Ucú","100"]
[null,null,null,null,null,null,null,null,null,"Yucatán","31","Umán","101"]
[null,null,null,null,null,null,null,null,null,"Yucatán","31","Valladolid","102"]
[null,null,null,null,null,null,null,null,null,"Yucatán","31","Xocchel","103"]
[null,null,null,null,null,null,null,null,null,"Yucatán","31","Yaxcabá","104"]
[null,null,null,null,null,null,null,null,null,"Yucatán","31","Yaxkukul","105"]
[null,null,null,null,null,null,null,null,null,"Yucatán","31","Yobaín","106"]
[null,null,null,null,null,null,null,null,null,"Zacatecas","32","Apozol","001"]
[null,null,null,null,null,null,null,null,null,"Zacatecas","32","Apulco","002"]
[null,null,null,null,null,null,null,null,null,"Zacatecas","32","Atolinga","003"]
[null,null,null,null,null,null,null,null,null,"Zacatecas","32","Benito Juárez","004"]
[null,null,null,null,null,null,null,null,null,"Zacatecas","32","Calera","005"]
[null,null,null,null,null,null,null,null,null,"Zacatecas","32","Cañitas de Felipe Pescador","006"]
[null,null,null,null,null,null,null,null,null,"Zacatecas","32","Concepción del Oro","007"]
[null,null,null,null,null,null,null,null,null,"Zacatecas","32","Cuauhtémoc","008"]
[null,null,null,null,null,null,null,null,null,"Zacatecas","32","Chalchihuites","009"]
[null,null,null,null,null,null,null,null,null,"Zacatecas","32","Fresnillo","010"]
[null,null,null,null,null,null,null,null,null,"Zacatecas","32","Trinidad García de la Cadena","011"]
[null,null,null,null,null,null,null,null,null,"Zacatecas","32","Genaro Codina","012"]
[null,null,null,null,null,null,null,null,null,"Zacatecas","32","General Enrique Estrada","013"]
[null,null,null,null,null,null,null,null,null,"Zacatecas","32","General Francisco R. Murguía","014"]
[null,null,null,null,null,null,null,null,null,"Zacatecas","32","El Plateado de Joaquín Amaro","015"]
[null,null,null,null,null,null,null,null,null,"Zacatecas","32","General Pánfilo Natera","016"]
[null,null,null,null,null,null,null,null,null,"Zacatecas","32","Guadalupe","017"]
[null,null,null,null,null,null,null,null,null,"Zacatecas","32","Huanusco","018"]
[null,null,null,null,null,null,null,null,null,"Zacatecas","32","Jalpa","019"]
[null,null,null,null,null,null,null,null,null,"Zacatecas","32","Jerez","020"]
[null,null,null,null,null,null,null,null,null,"Zacatecas","32","Jiménez del Teul","021"]
[null,null,null,null,null,null,null,null,null,"Zacatecas","32","Juan Aldama","022"]
[null,null,null,null,null,null,null,null,null,"Zacatecas","32","Juchipila","023"]
[null,null,null,null,null,null,null,null,null,"Zacatecas","32","Loreto","024"]
[null,null,null,null,null,null,null,null,null,"Zacatecas","32","Luis Moya","025"]
[null,null,null,null,null,null,null,null,null,"Zacatecas","32","Mazapil","026"]
[null,null,null,null,null,null,null,null,null,"Zacatecas","32","Melchor Ocampo","027"]
[null,null,null,null,null,null,null,null,null,"Zacatecas","32","Mezquital del Oro","028"]
[null,null,null,null,null,null,null,null,null,"Zacatecas","32","Miguel Auza","029"]
[null,null,null,null,null,null,null,null,null,"Zacatecas","32","Momax","030"]
[null,null,null,null,null,null,null,null,null,"Zacatecas","32","Monte Escobedo","031"]
[null,null,null,null,null,null,null,null,null,"Zacatecas","32","Morelos","032"]
[null,null,null,null,null,null,null,null,null,"Zacatecas","32","Moyahua de Estrada","033"]
[null,null,null,null,null,null,null,null,null,"Zacatecas","32","Nochistlán de Mejía","034"]
[null,null,null,null,null,null,null,null,null,"Zacatecas","32","Noria de Ángeles","035"]
[null,null,null,null,null,null,null,null,null,"Zacatecas","32","Ojocaliente","036"]
[null,null,null,null,null,null,null,null,null,"Zacatecas","32","Pánuco","037"]
[null,null,null,null,null,null,null,null,null,"Zacatecas","32","Pinos","038"]
[null,null,null,null,null,null,null,null,null,"Zacatecas","32","Río Grande","039"]
[null,null,null,null,null,null,null,null,null,"Zacatecas","32","Sain Alto","040"]
[null,null,null,null,null,null,null,null,null,"Zacatecas","32","El Salvador","041"]
[null,null,null,null,null,null,null,null,null,"Zacatecas","32","Sombrerete","042"]
[null,null,null,null,null,null,null,null,null,"Zacatecas","32","Susticacán","043"]
[null,null,null,null,null,null,null,null,null,"Zacatecas","32","Tabasco","044"]
[null,null,null,null,null,null,null,null,null,"Zacatecas","32","Tepechitlán","045"]
[null,null,null,null,null,null,null,null,null,"Zacatecas","32","Tepetongo","046"]
[null,null,null,null,null,null,null,null,null,"Zacatecas","32","Teúl de González Ortega","047"]
[null,null,null,null,null,null,null,null,null,"Zacatecas","32","Tlaltenango de Sánchez Román","048"]
[null,null,null,null,null,null,null,null,null,"Zacatecas","32","Valparaíso","049"]
[null,null,null,null,null,null,null,null,null,"Zacatecas","32","Vetagrande","050"]
[null,null,null,null,null,null,null,null,null,"Zacatecas","32","Villa de Cos","051"]
[null,null,null,null,null,null,null,null,null,"Zacatecas","32","Villa García","052"]
[null,null,null,null,null,null,null,null,null,"Zacatecas","32","Villa González Ortega","053"]
[null,null,null,null,null,null,null,null,null,"Zacatecas","32","Villa Hidalgo","054"]
[null,null,null,null,null,null,null,null,null,"Zacatecas","32","Villanueva","055"]
[null,null,null,null,null,null,null,null,null,"Zacatecas","32","Zacatecas","056"]
[null,null,null,null,null,null,null,null,null,"Zacatecas","32","Trancoso","057"]
[null,null,null,null,null,null,null,null,null,"Zacatecas","32","Santa María de la Paz","058"]

{"sheet":"Índice","index":2,"n_rows":19,"n_cols":24,"rows_kept":19,"cut":false,"hidden":false,"merged":[[18,1,18,20],[0,1,0,29],[2,1,2,29],[4,1,4,29],[6,1,6,29],[8,1,8,11],[8,13,8,14],[10,1,10,20],[12,1,12,20],[14,1,14,20],[16,1,16,20],[16,23,16,29]]}
[null,"CENSO NACIONAL DE GOBIERNOS\nESTATALES 2023"]
[]
[null,"Módulo 7.\nCatastro, registro y territorio"]
[]
[null,"Sección III. Planeación y gestión territorial"]
[]
[null,"Índice"]
[null,"Entidad:",null,null,null,null,null,null,null,null,null,null,null,"Clave:"]
[null,{"$f":"IF(Presentación!B10=\"\",\"\",Presentación!B10)","v":"Veracruz de Ignacio de la Llave"},null,null,null,null,null,null,null,null,null,null,null,{"$f":"IF(Presentación!N10=\"\",\"\",Presentación!N10)","v":"30"}]
[]
[null,"Presentación"]
[]
[null,"Informantes"]
[]
[null,"Participantes"]
[]
[null,"Sección XIII. Planeación y gestión territorial",null,null,null,null,null,null,null,null,null,null,null,null,null,null,null,null,null,null,null,null,null,"Preguntas 3.1 a 3.56"]
[]
[null,"Glosario"]

{"sheet":"Presentación","index":3,"n_rows":129,"n_cols":27,"rows_kept":129,"cut":false,"hidden":false,"merged":[[126,6,126,28],[127,8,127,28],[128,6,128,16],[128,20,128,28],[114,3,114,28],[116,7,116,28],[118,7,118,28],[122,2,122,28],[124,6,124,28],[125,10,125,28],[110,3,110,28],[100,5,100,9],[100,10,100,25],[101,5,101,9],[101,10,101,25],[102,5,102,9],[102,10,102,25],[103,5,103,9],[103,10,103,25],[104,5,104,9],[104,10,104,25],[106,2,106,28],[98,2,98,28],[74,2,74,28],[76,2,76,28],[78,2,78,28],[80,3,80,28],[82,2,82,28],[84,2,84,28],[86,2,86,28],[90,2,90,28],[92,2,92,28],[94,2,94,28],[96,2,96,28],[72,3,72,28],[48,2,48,28],[50,2,50,28],[52,2,52,28],[54,2,54,28],[58,2,58,28],[60,3,60,28],[62,2,62,28],[64,3,64,28],[66,3,66,28],[68,3,68,28],[70,3,70,28],[56,2,56,28],[46,2,46,28],[24,3,24,28],[26,2,26,28],[28,2,28,28],[30,2,30,28],[32,2,32,28],[34,2,34,28],[36,2,36,28],[38,3,38,28],[40,2,40,28],[42,2,42,28],[44,2,44,28],[22,2,22,28],[0,1,0,29],[2,1,2,29],[4,1,4,29],[6,1,6,29],[8,26,8,29],[9,1,9,11],[9,13,9,14],[12,2,12,10],[12,14,12,28],[15,2,15,28],[18,2,18,28],[20,2,20,28]]}
[null,"CENSO NACIONAL DE GOBIERNOS\nESTATALES 2023"]
[]
[null,"Módulo 7.\nCatastro, registro y territorio"]
[]
[null,"Sección III. Planeación y gestión territorial"]
[]
[null,"Presentación"]
[]
[null,"Entidad:",null,null,null,null,null,null,null,null,null,null,null,"Clave:",null,null,null,null,null,null,null,null,null,null,null,null,"Índice"]
[null,"Veracruz de Ignacio de la Llave",null,null,null,null,null,null,null,null,null,null,null,"30"]
[]
[null,null,"CONFIDENCIALIDAD",null,null,null,null,null,null,null,null,null,null,null,"OBLIGATORIEDAD"]
[null,null,"Conforme a lo dispuesto por el Artículo 37, párrafo primero de la Ley del Sistema Nacional de Información Estadística y Geográfica: \"Los datos que proporcionen para fines estadísticos los Informantes del Sistema a las Unidades en términos de la presente Ley, serán estrictamente confidenciales y bajo ninguna circunstancia podrán utilizarse para otro fin que no sea el estadístico.\"",null,null,null,null,null,null,null,null,null,null,null,"Conforme a lo dispuesto por el Artículo 45, párrafo primero de la Ley del Sistema Nacional de Información Estadística y Geográfica: \"Los Informantes del Sistema estarán obligados a proporcionar, con veracidad y oportunidad, los datos e informes que les soliciten las autoridades competentes para fines estadísticos, censales y geográficos, y prestarán apoyo a las mismas\", así como lo señalado por el Artículo 46 de la misma: \"[...] Los servidores públicos de la Federación, de las entidades federativas, de los municipios y de las demarcaciones territoriales de la Ciudad de México, tendrán la obligación de proporcionar la información básica que hubieren obtenido en el ejercicio de sus funciones y sirva para generar Información de Interés Nacional, que les solicite el Instituto [...]\""]
[]
[null,null,"DERECHOS DE LOS INFORMANTES DEL SISTEMA"]
[null,null,"De conformidad con lo previsto en el Artículo 41 de la Ley del Sistema Nacional de Información Estadística y Geográfica, los informantes del Sistema tendrán el derecho de solicitar al Instituto Nacional de Estadística y Geografía que sean rectificados los datos que les conciernan, para lo cual deberán demostrar que son inexactos, incompletos o equívocos."]
[]
[]
[null,null,"El Instituto Nacional de Estadística y Geografía (INEGI) presenta la elaboración del Censo Nacional de Gobiernos Estatales (CNGE) 2023 como respuesta a su responsabilidad de suministrar a la sociedad y al Estado información de calidad, pertinente, veraz y oportuna, atendiendo el mandato constitucional de normar y coordinar el Sistema Nacional de Información Estadística y Geográfica (SNIEG)."]
[]
[null,null,"Dicho Sistema se integra por cuatro subsistemas, mismos que permiten agrupar por temas los diversos campos de información de interés nacional, lo que se traduce en la generación, suministro y difusión de información de manera ordenada y bajo esquemas integrales y homogéneos que promuevan el cumplimiento de los objetivos del SNIEG."]
[]
[null,null,"Los subsistemas son los siguientes:"]
[]
[null,null,null,"Subsistema Nacional de Información Demográfica y Social.\nSubsistema Nacional de Información Económica.\nSubsistema Nacional de Información Geográfica, Medio Ambiente, Ordenamiento Territorial y Urbano.\nSubsistema Nacional de Información de Gobierno, Seguridad Pública e Impartición de Justicia."]
[]
[null,null,"El Subsistema Nacional de Información de Gobierno, Seguridad Pública e Impartición de Justicia (SNIGSPIJ) fue creado mediante acuerdo de la Junta de Gobierno del INEGI el 8 de diciembre de 2008, quedando establecido como el cuarto Subsistema Nacional de Información según los artículos 17 y 28 bis de la Ley del SNIEG."]
[]
[null,null,"El SNIGSPIJ tiene como objetivo estratégico institucionalizar y operar un esquema coordinado para la producción, integración, conservación y difusión de información estadística y geográfica de interés nacional, de calidad, pertinente, veraz y oportuna que permita conocer la situación que guardan la gestión y el desempeño de las instituciones públicas que conforman el Estado y sus respectivos poderes en las funciones de gobierno, seguridad pública e impartición de justicia, para apoyar los procesos de diseño, implementación, monitoreo y evaluación de las políticas públicas en estas materias."]
[]
[null,null,"En el marco de dicho Subsistema, específicamente de los trabajos del Comité Técnico Especializado de Información de Gobierno, desde el año 2009 se iniciaron las actividades de revisión y generación de lo que sería el primer instrumento de captación en materia de gobierno, en el que participaron los representantes de las principales instituciones y organizaciones que convergen en dicha materia."]
[]
[null,null,"Como resultado, se logró el acuerdo para generar información estadística en materia de gobierno con una visión integral, implementando así en 2010 el primer instrumento de captación en el ámbito estatal denominado Encuesta Nacional de Gobierno 2010 – Poder Ejecutivo Estatal (ENGPEE 10), con lo cual se inició una serie histórica de información que permite diseñar, monitorear y evaluar las políticas públicas en este tema. "]
[]
[null,null,"Posteriormente, en 2011 se realizó el segundo levantamiento de este programa estadístico bajo la denominación de Censo Nacional de Gobierno 2011. Poder Ejecutivo Estatal (CNG 2011 PEE). El 20 de diciembre de ese mismo año se publicó en el Diario Oficial de la Federación el acuerdo por el cual la Junta de Gobierno del INEGI determinó como Información de Interés Nacional (IIN) los datos generados por este programa, otorgándoles el carácter de oficiales y de uso obligatorio para la Federación, las entidades federativas, el Distrito Federal (ahora Ciudad de México) y los municipios, siendo a partir de ese momento que se institucionalizó como Censo Nacional de Gobierno, Seguridad Pública y Sistema Penitenciario Estatales, por lo que dicha edición (con información 2010) se publicó con la denominación de IIN."]
[]
[null,null,"Desde entonces, se continuaron anualmente las labores de levantamiento del CNGSPSPE hasta su última edición en 2020, año a partir del cual se separa este programa estadístico en tres Censos Nacionales de Gobierno; cada uno orientado a las materias específicas de gobierno, seguridad pública y sistema penitenciario:"]
[]
[null,null,null,"Censo Nacional de Gobiernos Estatales;\nCenso Nacional de Seguridad Pública Estatal; y\nCenso Nacional de Sistemas Penitenciarios Estatales."]
[]
[null,null,"Lo anterior, como resultado de las numerosas e importantes reformas constitucionales realizadas en los últimos años, entre las que destacan aquellas en materia de seguridad pública y combate a la corrupción. En consecuencia, el Estado Mexicano ha venido transitando por un periodo de evolución, crecimiento y diversificación institucional, multiplicando con ello sus obligaciones, responsabilidades y facultades. Desde el punto de vista estadístico, los nuevos arreglos institucionales y compromisos establecidos por ley generaron nuevas necesidades de información, lo que incidió en la necesidad de realizar ajustes en materias y conceptos previamente establecidos."]
[]
[null,null,"Este proceso de segmentación implicó revocar la determinación de Información de Interés Nacional al CNGSPSPE mediante el acuerdo de la Junta de Gobierno del INEGI publicado el 29 de enero de 2021 en el Diario Oficial de la Federación. Este cambio tuvo como finalidad ampliar el alcance temático y analítico de cada rubro, así como adecuar conceptual y metodológicamente sus contenidos a las necesidades de información vigentes en las reformas constitucionales y en la transformación institucional del país."]
[]
[null,null,"Como resultado de dicha división, ahora se cuenta con el Censo Nacional de Gobiernos Estatales (CNGE) 2022, cuyos resultados pueden ser consultados en la página de internet del Instituto: https://www.inegi.org.mx/programas/cnge/2022/"]
[]
[null,null,"Específicamente para la materia de protección civil es importante mencionar que durante 2021 y 2022 ocurrieron una serie de reuniones con personal del Centro Nacional de Prevención de Desastres (CENAPRED), de la Dirección General de Protección Civil y de la Dirección General para la Gestión de Riesgos de la Secretaría de Seguridad y Protección Ciudadana (SSPC) a efecto de consolidar un instrumento de captación que permita conocer de forma específica las capacidades operativas con las que cuentan las Unidades Estatales de Protección Civil u homólogas de las entidades federativas, retomando los contenidos establecidos en la Encuesta de Autoevaluación para las Unidades Estatales de Protección Civil, misma que fue implementada por dicha institución en ejercicios anteriores."]
[]
[null,null,"Asimismo, a partir del contexto nacional y de la implementación de la Ley General en Materia de Desaparición Forzada de Personas, Desaparición Cometida por Particulares y del Sistema Nacional de Búsqueda de Personas, así como del Programa Nacional de Exhumaciones e Identificación Forense, que de ella emana, fue necesario comenzar a generar información específica sobre las capacidades institucionales de los servicios médicos forenses y periciales del país, así como del ejercicio de su función en cuanto a la identificación, disposición y almacenamientos de cadáveres y/o de restos de seres humanos."]
[]
[null,null,"Derivado de las similitudes operativas con los temas de protección civil y servicios periciales, y considerando su naturaleza normativa, conceptual y metodológica, se tomó la decisión de elaborar un módulo específico con información asociada a la función de defensoría pública, retomando las principales necesidades de información existentes en la materia, así como los diseños institucionales establecidos para el ejercicio de la misma."]
[]
[null,null,"Como resultado, esta edición del CNGE consolida la información generada en dichas materias en tres módulos específicos, los cuales retoman y profundizan los contenidos que hacían parte de las respectivas secciones del módulo 1 en anteriores ediciones."]
[]
[null,null,"Por su parte, atendiendo a los procesos de levantamientos diferenciados establecidos para un mejor aprovechamiento de la información estadística, la presente edición del CNGE considera el tema de justicia cívica (aplicable únicamente a la Ciudad de México). Su finalidad es generar información estandarizada y comparable con la emanada del Censo Nacional de Gobiernos Municipales y Demarcaciones Territoriales de la Ciudad de México (CNGMD); de tal forma que se generen datos con una misma temporalidad que permitan conocer la implementación del Modelo Homologado de Justicia Cívica, Buen Gobierno y Cultura de la Legalidad para los Municipios de México."]
[]
[null,null,"Así, se presenta el Censo Nacional de Gobiernos Estatales (CNGE) 2023, como el decimocuarto programa estadístico desarrollado por el INEGI en materia de gobierno en el ámbito estatal del Estado Mexicano. Si bien el proceso de maduración de la información captada a través de este ha obligado a realizar ajustes en algunas variables, se ha preservado en todo momento la consistencia conceptual respecto de sus ediciones anteriores, continuando con la serie estadística y enriqueciendo sus contenidos por los temas que actualmente se desarrollan."]
[]
[null,null,"El CNGE 2023 se conforma por los siguientes módulos:"]
[]
[null,null,null,"Módulo 1. Administración Pública de la entidad federativa\nMódulo 2. Protección civil\nMódulo 3. Servicios periciales\nMódulo 4. Defensoría pública\nMódulo 5. Justicia cívica\nMódulo 6. Medio ambiente\nMódulo 7. Catastro, registro y territorio"]
[]
[null,null,"Cada uno de estos módulos está conformado, cuando menos, por los siguientes apartados:"]
[]
[null,null,null,"Presentación. Contiene la introducción general y antecedentes del censo, así como las instrucciones generales para la entrega formal del presente instrumento de captación."]
[]
[null,null,null,"Informantes. En este apartado se recaba información sobre las personas servidoras públicas designadas por las Unidades del Estado como responsables de recopilar, integrar y entregar la información requerida en el cuestionario."]
[]
[null,null,null,"Participantes. Presenta un espacio destinado a la identificación de las personas servidoras públicas que participaron en el llenado de cada módulo y/o sección, según corresponda. "]
[]
[null,null,null,"Cuestionario. Se integra por cada una de las preguntas destinadas a generar información estadística sobre los aspectos que conforman la estructura temática del presente programa. Con la finalidad de facilitar la ubicación de los temas contenidos, la versión electrónica del mismo se ha dividido en tantas pestañas como secciones son requeridas."]
[]
[null,null,null,"Glosario. Contiene un listado de conceptos y definiciones que se consideran relevantes para el llenado del cuestionario."]
[]
[null,null,"Asimismo, tomando en consideración la naturaleza de la información solicitada en cada módulo, alguno de estos puede presentar apartados adicionales a los anteriores, mismos que obedecen a características específicas del programa estadístico relacionado. Dichos apartados pueden ser: complementos, anexos y adiciones."]
[]
[null,null,"Particularmente, en el módulo 7 se solicita, entre otra, información sobre la estructura organizacional de las instituciones encargadas del ejercicio de catastro, registro público de la propiedad y planeación y gestión territorial de cada entidad federativa; la distribución de los recursos humanos; la cantidad, tipos y características de acceso a los trámites y servicios prestados; así como los elementos y acciones institucionales que se llevan a cabo para la vinculación e intercambio de la información, entre otros."]
[]
[null,null,"Para ello, este módulo contiene 244 preguntas agrupadas en las siguientes secciones:"]
[]
[null,null,null,"Sección I. Catastro\nSección II. Registro público de la propiedad\nSección III. Planeación y gestión territorial                                    "]
[]
[null,null,"Considerando la relevancia y diversidad de la información solicitada a través del cuestionario, es necesario que los informantes responsables de su llenado sean personas funcionarias públicas que, por sus atribuciones y actividades cotidianas, cuenten con la información adecuada y necesaria. A efecto de facilitar la recolección de la información solicitada, las personas responsables del llenado del cuestionario pueden auxiliarse de las personas servidoras públicas que integran sus equipos de trabajo. Cuando esto suceda, se solicita que registren sus datos en el apartado Participantes."]
[]
[null,null,"Las personas servidoras públicas que se establecen como informantes deberán validar y formalizar la entrega de la información proporcionada, ello mediante el estampado de su firma en la portada de cada módulo o sección, así como del sello de la institución que representan. Cabe destacar que la información recabada mediante el censo, una vez recibida con la firma de la o las personas servidoras públicas responsables y sello de la institución, será considerada como información oficial en términos de lo establecido en la Ley del SNIEG."]
[]
[null,null,"El INEGI pondrá a disposición de la sociedad la información de este programa de forma gratuita a través del Servicio Público de Información, además de poder consultarse y descargarse de forma electrónica en el portal del Instituto."]
[]
[]
[]
[null,null,"La entrega de información deberá hacerse a través del Departamento de Estadísticas de Gobierno de la Coordinación Estatal del INEGI en su entidad federativa, quien se acercará a los equipos de trabajo designados por la persona titular y/o servidora pública responsable para el llenado del cuestionario, con el objetivo de organizar los trabajos y recuperar la información requerida."]
[]
[null,null,"Una primera versión completa de la información, considerada como preliminar, tendrá un proceso de revisión y validación por parte del personal del INEGI en la Coordinación Estatal, con base en los criterios establecidos. Una vez concluida, el cuestionario será devuelto a la persona servidora pública responsable del llenado en la institución informante, a efecto de notificarle los resultados de la revisión y los ajustes o aclaraciones de información que, de ser procedentes, deberán atenderse. En caso de no presentar observaciones, será remitido a las Oficinas Centrales del INEGI para una verificación y revisión central."]
[]
[null,null,"Si la verificación y revisión central arroja observaciones o solicitud de aclaración de información, el cuestionario será devuelto a la Coordinación Estatal para la atención o justificación de estas situaciones con la institución informante. En caso de que no existan observaciones o estas sean debidamente atendidas, se procederá con la liberación del cuestionario como versión definitiva, para que se proceda con la impresión y formalización de la información plasmada, mediante la firma y sello del instrumento físico por parte del informante básico e informantes complementarios."]
[]
[null,null,"En este sentido, una vez completado el llenado de este instrumento, deberá enviarse en versión preliminar a la dirección electrónica de la Jefa o el Jefe de Departamento de Estadísticas de Gobierno (JDEG) de la Coordinación Estatal del INEGI: isis.rosas@inegi.org.mx"]
[]
[null,null,"A efecto de llevar a cabo la revisión y validación del cuestionario, en la siguiente tabla se detallan los periodos en los que se realizarán las actividades en cada entidad federativa:"]
[]
[null,null,null,null,null,"Fecha ",null,null,null,null,"Actividad"]
[null,null,null,null,null," 06 de marzo   al 28 de abril ",null,null,null,null,"Integración de información por la institución. \nEntrega a la CE del INEGI para revisión."]
[null,null,null,null,null," 13 de marzo   al 05 de abril ",null,null,null,null,"Revisión de información preliminar por parte de la CE del INEGI y aclaración o ajustes por parte del informante. \nEnvío de información preliminar a OC para verificación central."]
[null,null,null,null,null,"27 de marzo   al 04 de mayo",null,null,null,null,"Verificación de información preliminar por parte de OC y aclaración o ajustes de información.\nLiberación de cuestionario como información definitiva."]
[null,null,null,null,null,"08 de mayo al  16 de junio",null,null,null,null,"Recuperación de cuestionario físico con información completa y definitiva, con firma y sello."]
[]
[null,null,"Una vez que el archivo electrónico esté impreso y firmado, se llevará a cabo la entrega de la versión definitiva del cuestionario vía electrónica y de manera física, para lo cual se tomará en cuenta lo siguiente:"]
[]
[null,null,null,"1) Entrega electrónica:"]
[]
[null,null,null,"La versión definitiva del cuestionario en su versión electrónica deberá ser la misma que se entregue en versión física, de conformidad con las instrucciones correspondientes. Dicha entrega deberá realizarse en la dirección electrónica siguiente:isis.rosas@inegi.org.mx"]
[]
[null,null,null,"2) Entrega física:"]
[]
[null,null,null,"La versión impresa, con las firmas correspondientes, deberá entregarse en la Coordinación Estatal del INEGI con los siguientes datos: "]
[]
[null,null,null,"Destinatario:",null,null,null,"Ing. Juan Manuel Yglesias López"]
[]
[null,null,null,"Dirección: ",null,null,null,"Av. Araucarias #3, Col. Esther Badillo, CP 91190, Xalapa, Ver."]
[]
[]
[]
[null,null,"En caso de dudas o comentarios, deberá hacerlos llegar al personal del Departamento de Estadísticas de Gobierno de la Coordinación Estatal del INEGI que haya sido designado para el seguimiento de este programa de información, quien tiene los siguientes datos de contacto:"]
[]
[null,null,null,"Nombre:",null,null,"Isis Rosas Roldan "]
[null,null,null,"Área o unidad de adscripción:",null,null,null,null,null,null,"Subdirección Estatal de Estadística Económica/Coordinación Estatal Veracruz"]
[null,null,null,"Cargo:",null,null,"Jefe de departamento de Estadísticas de Gobierno"]
[null,null,null,"Correo electrónico:",null,null,null,null,"isis.rosas@inegi.org.mx"]
[null,null,null,"Teléfono:",null,null,2288418452,null,null,null,null,null,null,null,null,null,null,"Extensión:",null,null,"8096/8496"]

{"sheet":"Informantes","index":4,"n_rows":51,"n_cols":27,"rows_kept":51,"cut":false,"hidden":false,"merged":[[28,20,34,28],[40,20,40,28],[41,20,47,28],[40,12,40,16],[41,5,41,16],[29,6,29,16],[30,7,30,16],[31,7,31,16],[32,4,32,16],[33,5,33,16],[34,7,34,16],[37,1,37,17],[37,19,37,29],[38,2,38,16],[38,19,38,29],[28,5,28,16],[51,2,51,28],[42,6,42,16],[43,7,43,16],[44,7,44,16],[45,4,45,16],[46,5,46,16],[47,7,47,16],[21,7,21,16],[24,1,24,17],[24,19,24,29],[25,2,25,16],[25,19,25,29],[15,20,21,28],[16,6,16,16],[17,7,17,16],[18,7,18,16],[19,4,19,16],[20,5,20,16],[27,12,27,16],[15,5,15,16],[27,20,27,28],[0,1,0,29],[2,1,2,29],[4,1,4,29],[6,1,6,29],[8,26,8,29],[14,20,14,28],[14,12,14,16],[9,1,9,11],[9,13,9,14],[11,1,11,17],[11,19,11,29],[12,2,12,16],[12,19,12,29]]}
[null,"CENSO NACIONAL DE GOBIERNOS\nESTATALES 2023"]
[]
[null,"Módulo 7.\nCatastro, registro y territorio"]
[]
[null,"Sección III. Planeación y gestión territorial"]
[]
[null,"Informantes\n(Responde: institución de la Administración Pública de la entidad federativa encargada de la planeación y gestión territorial)"]
[]
[null,"Entidad:",null,null,null,null,null,null,null,null,null,null,null,"Clave:",null,null,null,null,null,null,null,null,null,null,null,null,"Índice"]
[null,{"$f":"IF(Presentación!B10=\"\",\"\",Presentación!B10)","v":"Veracruz de Ignacio de la Llave"},null,null,null,null,null,null,null,null,null,null,null,{"$f":"IF(Presentación!N10=\"\",\"\",Presentación!N10)","v":"30"}]
[]
[null,"INFORMANTE BÁSICO",null,null,null,null,null,null,null,null,null,null,null,null,null,null,null,null,null,"FIRMA Y SELLO"]
[null,null,"(Persona titular o servidora pública de la institución designada para proveer la información del presente módulo, y que tiene el carácter de figura responsable de validar y oficializar la información. Cuando menos, se encuentra en el segundo o tercer nivel jerárquico de la misma)",null,null,null,null,null,null,null,null,null,null,null,null,null,null,null,null,"VoBo. a la información contenida en el presente cuestionario"]
[]
[null,null,"Título (Lic., Mtro(a)., Dr(a)., Ing., C., Sr(a)., etc.):",null,null,null,null,null,null,null,null,null,null,null,null,null,null,null,null,null,"FIRMA"]
[null,null,"Nombre(s):"]
[null,null,"Primer apellido:"]
[null,null,"Segundo apellido:"]
[null,null,"Institución u órgano:"]
[null,null,"Cargo:"]
[null,null,"Teléfono:"]
[null,null,"Correo electrónico:"]
[]
[]
[null,"INFORMANTE COMPLEMENTARIO 1",null,null,null,null,null,null,null,null,null,null,null,null,null,null,null,null,null,"FIRMA Y SELLO"]
[null,null,"(Persona servidora pública que, por las funciones que tiene asignadas dentro de la institución, es la principal productora y/o integradora de la información correspondiente al presente módulo y, cuando menos, se encuentra en el segundo o tercer nivel jerárquico de la misma. Nota: en caso de no requerir al \"Informante Complementario 1\" deje las siguientes celdas en blanco)",null,null,null,null,null,null,null,null,null,null,null,null,null,null,null,null,"VoBo. a la información contenida en el presente cuestionario"]
[]
[null,null,"Título (Lic., Mtro(a)., Dr(a)., Ing., C., Sr(a)., etc.):",null,null,null,null,null,null,null,null,null,null,null,null,null,null,null,null,null,"FIRMA"]
[null,null,"Nombre(s):"]
[null,null,"Primer apellido:"]
[null,null,"Segundo apellido:"]
[null,null,"Institución u órgano:"]
[null,null,"Cargo:"]
[null,null,"Teléfono:"]
[null,null,"Correo electrónico:"]
[]
[]
[null,"INFORMANTE COMPLEMENTARIO 2",null,null,null,null,null,null,null,null,null,null,null,null,null,null,null,null,null,"FIRMA Y SELLO"]
[null,null,"(Persona servidora pública que, por las funciones que tiene asignadas dentro de la institución, es la segunda principal productora y/o integradora de la información correspondiente al presente módulo y, cuando menos, se encuentra en el segundo o tercer nivel jerárquico de la misma. Nota: en caso de no requerir al \"Informante Complementario 2\" deje las siguientes celdas en blanco)",null,null,null,null,null,null,null,null,null,null,null,null,null,null,null,null,"VoBo. a la información contenida en el presente cuestionario"]
[]
[null,null,"Título (Lic., Mtro(a)., Dr(a)., Ing., C., Sr(a)., etc.):",null,null,null,null,null,null,null,null,null,null,null,null,null,null,null,null,null,"FIRMA"]
[null,null,"Nombre(s):"]
[null,null,"Primer apellido:"]
[null,null,"Segundo apellido:"]
[null,null,"Institución u órgano:"]
[null,null,"Cargo:"]
[null,null,"Teléfono:"]
[null,null,"Correo electrónico:"]
[]
[]
[null,null,"OBSERVACIONES:"]

{"sheet":"Participantes","index":5,"n_rows":66,"n_cols":60,"rows_kept":66,"cut":false,"hidden":false,"merged":[[64,43,64,46],[64,47,64,50],[64,51,64,56],[65,2,65,4],[65,5,65,7],[65,8,65,10],[65,11,65,13],[65,14,65,17],[65,18,65,20],[65,21,65,23],[65,24,65,26],[65,27,65,30],[65,31,65,34],[65,35,65,38],[65,39,65,42],[65,43,65,46],[65,47,65,50],[65,51,65,56],[64,2,64,4],[64,5,64,7],[64,8,64,10],[64,11,64,13],[64,14,64,17],[64,18,64,20],[64,21,64,23],[64,24,64,26],[64,27,64,30],[62,31,62,34],[62,35,62,38],[62,39,62,42],[62,21,62,23],[62,24,62,26],[62,27,62,30],[64,31,64,34],[64,35,64,38],[64,39,64,42],[62,43,62,46],[62,47,62,50],[62,51,62,56],[63,2,63,4],[63,5,63,7],[63,8,63,10],[63,11,63,13],[63,14,63,17],[63,18,63,20],[63,21,63,23],[63,24,63,26],[63,27,63,30],[63,31,63,34],[63,35,63,38],[63,39,63,42],[63,43,63,46],[63,47,63,50],[63,51,63,56],[62,2,62,4],[62,5,62,7],[62,8,62,10],[62,11,62,13],[62,14,62,17],[62,18,62,20],[60,43,60,46],[60,47,60,50],[60,51,60,56],[61,2,61,4],[61,5,61,7],[61,8,61,10],[61,11,61,13],[61,14,61,17],[61,18,61,20],[61,21,61,23],[61,24,61,26],[61,27,61,30],[61,31,61,34],[61,35,61,38],[61,39,61,42],[61,43,61,46],[61,47,61,50],[61,51,61,56],[60,2,60,4],[60,5,60,7],[60,8,60,10],[60,11,60,13],[60,14,60,17],[60,18,60,20],[60,21,60,23],[60,24,60,26],[60,27,60,30],[58,31,58,34],[58,35,58,38],[58,39,58,42],[58,21,58,23],[58,24,58,26],[58,27,58,30],[60,31,60,34],[60,35,60,38],[60,39,60,42],[58,43,58,46],[58,47,58,50],[58,51,58,56],[59,2,59,4],[59,5,59,7],[59,8,59,10],[59,11,59,13],[59,14,59,17],[59,18,59,20],[59,21,59,23],[59,24,59,26],[59,27,59,30],[59,31,59,34],[59,35,59,38],[59,39,59,42],[59,43,59,46],[59,47,59,50],[59,51,59,56],[58,2,58,4],[58,5,58,7],[58,8,58,10],[58,11,58,13],[58,14,58,17],[58,18,58,20],[56,43,56,46],[56,47,56,50],[56,51,56,56],[57,2,57,4],[57,5,57,7],[57,8,57,10],[57,11,57,13],[57,14,57,17],[57,18,57,20],[57,21,57,23],[57,24,57,26],[57,27,57,30],[57,31,57,34],[57,35,57,38],[57,39,57,42],[57,43,57,46],[57,47,57,50],[57,51,57,56],[56,2,56,4],[56,5,56,7],[56,8,56,10],[56,11,56,13],[56,14,56,17],[56,18,56,20],[56,21,56,23],[56,24,56,26],[56,27,56,30],[54,31,54,34],[54,35,54,38],[54,39,54,42],[54,21,54,23],[54,24,54,26],[54,27,54,30],[56,31,56,34],[56,35,56,38],[56,39,56,42],[54,43,54,46],[54,47,54,50],[54,51,54,56],[55,2,55,4],[55,5,55,7],[55,8,55,10],[55,11,55,13],[55,14,55,17],[55,18,55,20],[55,21,55,23],[55,24,55,26],[55,27,55,30],[55,31,55,34],[55,35,55,38],[55,39,55,42],[55,43,55,46],[55,47,55,50],[55,51,55,56],[54,2,54,4],[54,5,54,7],[54,8,54,10],[54,11,54,13],[54,14,54,17],[54,18,54,20],[52,43,52,46],[52,47,52,50],[52,51,52,56],[53,2,53,4],[53,5,53,7],[53,8,53,10],[53,11,53,13],[53,14,53,17],[53,18,53,20],[53,21,53,23],[53,24,53,26],[53,27,53,30],[53,31,53,34],[53,35,53,38],[53,39,53,42],[53,43,53,46],[53,47,53,50],[53,51,53,56],[52,2,52,4],[52,5,52,7],[52,8,52,10],[52,11,52,13],[52,14,52,17],[52,18,52,20],[52,21,52,23],[52,24,52,26],[52,27,52,30],[50,31,50,34],[50,35,50,38],[50,39,50,42],[52,31,52,34],[52,35,52,38],[52,39,52,42],[50,43,50,46],[50,47,50,50],[50,51,50,56],[51,27,51,30],[51,31,51,34],[51,35,51,38],[51,39,51,42],[51,43,51,46],[51,47,51,50],[51,51,51,56],[50,27,50,30],[48,31,48,34],[48,35,48,38],[48,39,48,42],[48,43,48,46],[48,47,48,50],[48,51,48,56],[49,27,49,30],[49,31,49,34],[49,35,49,38],[49,39,49,42],[49,43,49,46],[49,47,49,50],[49,51,49,56],[48,27,48,30],[46,31,46,34],[46,35,46,38],[46,39,46,42],[46,43,46,46],[46,47,46,50],[46,51,46,56],[47,27,47,30],[47,31,47,34],[47,35,47,38],[47,39,47,42],[47,43,47,46],[47,47,47,50],[47,51,47,56],[46,27,46,30],[44,31,44,34],[44,35,44,38],[44,39,44,42],[44,43,44,46],[44,47,44,50],[44,51,44,56],[45,27,45,30],[45,31,45,34],[45,35,45,38],[45,39,45,42],[45,43,45,46],[45,47,45,50],[45,51,45,56],[44,27,44,30],[42,31,42,34],[42,35,42,38],[42,39,42,42],[42,43,42,46],[42,47,42,50],[42,51,42,56],[43,27,43,30],[43,31,43,34],[43,35,43,38],[43,39,43,42],[43,43,43,46],[43,47,43,50],[43,51,43,56],[42,27,42,30],[40,31,40,34],[40,35,40,38],[40,39,40,42],[40,43,40,46],[40,47,40,50],[40,51,40,56],[41,27,41,30],[41,31,41,34],[41,35,41,38],[41,39,41,42],[41,43,41,46],[41,47,41,50],[41,51,41,56],[40,27,40,30],[38,31,38,34],[38,35,38,38],[38,39,38,42],[38,43,38,46],[38,47,38,50],[38,51,38,56],[39,27,39,30],[39,31,39,34],[39,35,39,38],[39,39,39,42],[39,43,39,46],[39,47,39,50],[39,51,39,56],[38,27,38,30],[36,31,36,34],[36,35,36,38],[36,39,36,42],[36,43,36,46],[36,47,36,50],[36,51,36,56],[37,27,37,30],[37,31,37,34],[37,35,37,38],[37,39,37,42],[37,43,37,46],[37,47,37,50],[37,51,37,56],[36,27,36,30],[34,31,34,34],[34,35,34,38],[34,39,34,42],[34,43,34,46],[34,47,34,50],[34,51,34,56],[35,27,35,30],[35,31,35,34],[35,35,35,38],[35,39,35,42],[35,43,35,46],[35,47,35,50],[35,51,35,56],[34,27,34,30],[32,31,32,34],[32,35,32,38],[32,39,32,42],[32,43,32,46],[32,47,32,50],[32,51,32,56],[33,27,33,30],[33,31,33,34],[33,35,33,38],[33,39,33,42],[33,43,33,46],[33,47,33,50],[33,51,33,56],[32,27,32,30],[30,31,30,34],[30,35,30,38],[30,39,30,42],[30,43,30,46],[30,47,30,50],[30,51,30,56],[31,27,31,30],[31,31,31,34],[31,35,31,38],[31,39,31,42],[31,43,31,46],[31,47,31,50],[31,51,31,56],[30,27,30,30],[28,43,28,50],[28,51,29,56],[29,27,29,30],[29,31,29,34],[29,35,29,38],[29,39,29,42],[29,43,29,46],[29,47,29,50],[28,27,28,34],[0,1,0,56],[2,1,2,56],[4,1,4,56],[6,1,6,56],[11,1,11,56],[12,1,12,56],[13,2,13,56],[14,2,14,56],[15,2,15,56],[51,2,51,4],[51,5,51,7],[51,8,51,10],[51,11,51,13],[51,14,51,17],[51,18,51,20],[51,21,51,23],[51,24,51,26],[50,2,50,4],[50,5,50,7],[50,8,50,10],[50,11,50,13],[50,14,50,17],[50,18,50,20],[50,21,50,23],[50,24,50,26],[48,21,48,23],[48,24,48,26],[49,2,49,4],[49,5,49,7],[49,8,49,10],[49,11,49,13],[49,14,49,17],[49,18,49,20],[49,21,49,23],[48,2,48,4],[48,5,48,7],[48,8,48,10],[48,11,48,13],[48,14,48,17],[48,18,48,20],[49,24,49,26],[47,2,47,4],[47,5,47,7],[47,8,47,10],[47,11,47,13],[47,14,47,17],[47,18,47,20],[47,21,47,23],[47,24,47,26],[46,2,46,4],[46,5,46,7],[46,8,46,10],[46,11,46,13],[46,14,46,17],[46,18,46,20],[46,21,46,23],[46,24,46,26],[44,21,44,23],[44,24,44,26],[45,2,45,4],[45,5,45,7],[45,8,45,10],[45,11,45,13],[45,14,45,17],[45,18,45,20],[45,21,45,23],[44,2,44,4],[44,5,44,7],[44,8,44,10],[44,11,44,13],[44,14,44,17],[44,18,44,20],[45,24,45,26],[43,2,43,4],[43,5,43,7],[43,8,43,10],[43,11,43,13],[43,14,43,17],[43,18,43,20],[43,21,43,23],[43,24,43,26],[42,2,42,4],[42,5,42,7],[42,8,42,10],[42,11,42,13],[42,14,42,17],[42,18,42,20],[42,21,42,23],[42,24,42,26],[40,21,40,23],[40,24,40,26],[41,2,41,4],[41,5,41,7],[41,8,41,10],[41,11,41,13],[41,14,41,17],[41,18,41,20],[41,21,41,23],[40,2,40,4],[40,5,40,7],[40,8,40,10],[40,11,40,13],[40,14,40,17],[40,18,40,20],[41,24,41,26],[39,2,39,4],[39,5,39,7],[39,8,39,10],[39,11,39,13],[39,14,39,17],[39,18,39,20],[39,21,39,23],[39,24,39,26],[38,2,38,4],[38,5,38,7],[38,8,38,10],[38,11,38,13],[38,14,38,17],[38,18,38,20],[38,21,38,23],[38,24,38,26],[36,21,36,23],[36,24,36,26],[37,2,37,4],[37,5,37,7],[37,8,37,10],[37,11,37,13],[37,14,37,17],[37,18,37,20],[37,21,37,23],[36,2,36,4],[36,5,36,7],[36,8,36,10],[36,11,36,13],[36,14,36,17],[36,18,36,20],[37,24,37,26],[35,2,35,4],[35,5,35,7],[35,8,35,10],[35,11,35,13],[35,14,35,17],[35,18,35,20],[35,21,35,23],[35,24,35,26],[34,2,34,4],[34,5,34,7],[34,8,34,10],[34,11,34,13],[34,14,34,17],[34,18,34,20],[34,21,34,23],[34,24,34,26],[32,21,32,23],[32,24,32,26],[33,2,33,4],[33,5,33,7],[33,8,33,10],[33,11,33,13],[33,14,33,17],[33,18,33,20],[33,21,33,23],[32,2,32,4],[32,5,32,7],[32,8,32,10],[32,11,32,13],[32,14,32,17],[32,18,32,20],[33,24,33,26],[31,2,31,4],[31,5,31,7],[31,8,31,10],[31,11,31,13],[31,14,31,17],[31,18,31,20],[31,21,31,23],[31,24,31,26],[30,2,30,4],[30,5,30,7],[30,8,30,10],[30,11,30,13],[30,14,30,17],[30,18,30,20],[30,21,30,23],[30,24,30,26],[17,2,17,56],[16,2,16,56],[8,53,8,56],[9,1,9,11],[9,13,9,14],[27,27,27,56],[25,2,25,56],[23,3,23,56],[24,4,24,56],[22,3,22,56],[21,3,21,56],[19,2,19,56],[20,2,20,56],[18,2,18,56],[27,1,29,1],[27,2,29,4],[27,5,29,7],[27,8,29,10],[27,11,29,13],[27,14,29,17],[27,18,29,20],[27,21,29,23],[27,24,29,26],[28,35,28,42]]}
[null,"CENSO NACIONAL DE GOBIERNOS\nESTATALES 2023"]
[]
[null,"Módulo 7. \nCatastro, registro y territorio"]
[]
[null,"Sección III. Planeación y gestión territorial"]
[]
[null,"Participantes\n(Registrar a las personas servidoras públicas y áreas que participaron en la integración de la información y/o en el llenado de los reactivos que se solicitan en la presente sección. En caso de que las personas servidoras públicas registradas como informantes básico y complementarios hayan integrado información, o llenado algunas preguntas, también deben registrarse en el presente apartado)"]
[]
[null,"Entidad:",null,null,null,null,null,null,null,null,null,null,null,"Clave:",null,null,null,null,null,null,null,null,null,null,null,null,null,null,null,null,null,null,null,null,null,null,null,null,null,null,null,null,null,null,null,null,null,null,null,null,null,null,null,"Índice"]
[null,{"$f":"IF(Presentación!B10=\"\",\"\",Presentación!B10)","v":"Veracruz de Ignacio de la Llave"},null,null,null,null,null,null,null,null,null,null,null,{"$f":"IF(Presentación!N10=\"\",\"\",Presentación!N10)","v":"30"}]
[]
[null,"Personas servidoras públicas que participaron en el llenado de la sección"]
[null,"Instrucciones de llenado:"]
[null,null,"Título: anotar el grado escolar o el formalismo para referirse a la persona participante: Licenciado(a), Maestro(a), Doctor(a), Ingeniero(a), Ciudadano(a), Señor(a), etcétera."]
[null,null,"Nombre, primer y segundo apellido: escribir los datos completos, sin abreviaturas y con acentos."]
[null,null,"Unidad administrativa de adscripción: incluir el nombre completo de la unidad administrativa o área, tal como aparece en su estructura orgánica."]
[null,null,"Cargo o puesto: incluir el nombre completo del cargo o puesto desempeñado."]
[null,null,"Correo electrónico: registrar preferentemente el correo institucional de la persona participante, evitando cuentas genéricas o personales."]
[null,null,"Sección y/o preguntas en las que participó: registrar la sección, subsección, apartado, subapartado y/o preguntas en las que participó, conforme a lo siguiente:"]
[null,null,"a) Para referirse a preguntas individuales, anotar el número de la pregunta anteponiendo la letra \"P\", separando con coma en caso de ser varias preguntas. Ejemplo: P1.1, P1.3, P1.8.\nb) Si participó en el llenado de todo el cuestionario, anotar la palabra \"Todas\".\nc) Si participó en el llenado de todas las preguntas de una sección, subsección, apartado y/o subapartado, anotar la nomenclatura correspondiente, separando con comas en caso de que sean dos o más. Ejemplo: I, I.2, I.3.1, I.4.1.1.\nd) En caso de que su participación incluya secciones, subsecciones, apartados o subapartados completos, así como algunas preguntas específicas, anotar de forma combinada. Ejemplo: I, II.2, I.4.2, P1.25, P1.26."]
[null,null,"Principales fuentes de información utilizadas para la integración de información proporcionada:"]
[null,null,null,"- Por fuente principal debe considerarse la fuente con la cual se genera toda o la mayor cantidad de información proporcionada, mientras que por fuentes secundarias debe considerar aquellas de las cuales se obtiene el resto de información (cuando hay más de una fuente)."]
[null,null,null,"- En la columna Nombre de la fuente debe anotar el nombre o descripción de la fuente principal y, en su caso, de las secundarias a partir de la(s) cual(es) se obtiene la información requerida en el presente instrumento de captación, y que la persona participante proporcionó. "]
[null,null,null,"- En la columna Tipo de fuente debe clasificar esa fuente según los tipos establecidos en el catálogo siguiente, con base en las características que más se adapten a la fuente utilizada (seleccionar de la lista desplegable el tipo): "]
[null,null,null,null,"Sistema informático propio: corresponde a una solución informática que haya sido desarrollada de manera específica para los fines de la institución, ya sea de forma interna o por un tercero, y tenga el propósito de almacenar o procesar la información generada o utilizada por la institución.\nSoftware comercial especializado: se refiere a algún programa o plataforma comercial diseñada o gestionada por un tercero ajeno a la institución, que sirve para los fines de almacenamiento y procesamiento de su información, sin ser un desarrollo exclusivo para la misma.\nBase de datos u hojas de cálculo estructuradas y estandarizadas: se refiere a la existencia de bases de datos, tablas o conjunto de datos planos que se encuentran estructurados y estandarizados, permitiendo su explotación o consulta a través de softwares estadísticos o de bases de datos (incluye tablas dinámicas, programación de macros en VBA, formularios y BD en Access o similares).\nHojas de cálculo no estructuradas o no estandarizadas: corresponde a que la fuente de información son libros u hojas de Excel que concentran información generada por la institución y es consultada de forma directa sin posibilidad de hacer consultas de forma masiva o de un conjunto de datos. \nLibro de gobierno en formato electrónico: corresponde a los libros o documentos en formato electrónico que se organizan conforme a lineamientos específicos y cuentan con formalidades como foliación, firmas, sellos o autorizaciones, etcétera, que contienen los registros de los procesos o actividades sustantivas del área o institución que genera la información.\nLibro de gobierno en papel: corresponde a los libros o documentos físicos que se organizan conforme a lineamientos específicos y cuentan con formalidades como foliación, firmas, sellos o autorizaciones, etcétera, que contienen los registros de los procesos o actividades sustantivas del área o institución que genera la información.\nBitácora en documento de texto electrónico: se refiere al registro o fuente en la que la información contenida está registrada en documentos electrónicos sin la formalidad de un libro de gobierno y que se utiliza para las actividades cotidianas del área o institución que proporciona la información.\nBitácora en documento de texto en papel: se refiere al registro o fuente en la que la información contenida está registrada en documentos físicos sin la formalidad de un libro de gobierno y que se utiliza para las actividades cotidianas del área o institución que proporciona la información.\nDe palabra: corresponde a cuando no existe una documentación o registro físico o electrónico y la información se obtiene \"de palabra\", es decir, la información se obtiene directamente de las personas involucradas en las actividades (ellas son la fuente) y está supeditada a la memoria de las personas servidoras públicas, no existiendo evidencia documental de lo reportado.\nOtra: se debe seleccionar cuando ninguno de los tipos de fuente listados anteriormente responde a las características de la fuente o medio de registro que es utilizado por el área o institución participante para el registro de la información proporcionada en este instrumento de captación."]
[null,null,"En caso de que seleccione en la categoría \"Otra\" en alguna de las columnas \"Tipo de fuente\", favor de especificar ese otro tipo de fuente(s) en la columna \"Comentarios o especificaciones sobre el tipo de fuente\"."]
[]
[null,"No. ","Título",null,null,"Nombre(s)",null,null,"Primer apellido",null,null,"Segundo apellido",null,null,"Unidad administrativa de adscripción ",null,null,null,"Cargo o puesto ",null,null,"Correo electrónico",null,null,"Sección y/o preguntas en las que participó",null,null,"Principales fuentes utilizadas para la integración de la información proporcionada"]
[null,null,null,null,null,null,null,null,null,null,null,null,null,null,null,null,null,null,null,null,null,null,null,null,null,null,null,"Fuente principal",null,null,null,null,null,null,null,"Fuente secundaria 1",null,null,null,null,null,null,null,"Fuente secundaria 2",null,null,null,null,null,null,null,"Comentarios o especificaciones sobre el tipo de fuente"]
[null,null,null,null,null,null,null,null,null,null,null,null,null,null,null,null,null,null,null,null,null,null,null,null,null,null,null,"Nombre de la fuente",null,null,null,"Tipo de fuente",null,null,null,"Nombre de la fuente",null,null,null,"Tipo de fuente",null,null,null,"Nombre de la fuente",null,null,null,"Tipo de fuente"]
[null,"Ej.","Licenciada",null,null,"Guadalupe",null,null,"Hernández",null,null,"García",null,null,"Dirección General de Administración",null,null,null,"Directora de Recursos Financieros",null,null,"hernandezg@dgsp.gob.mx",null,null,"I, II.2, I.4.2, P1.25, P1.26",null,null,"Control de nómina",null,null,null,"Base de datos u hojas de cálculo estructuradas y estandarizadas",null,null,null,"Sistema de control financiero",null,null,null,"Sistema Informático propio",null,null,null,"Control de nómina",null,null,null,"Hojas de cálculo  no estructuradas o no estandarizadas"]
[null,"1.",null,null,null,null,null,null,null,null,null,null,null,null,null,null,null,null,null,null,null,null,null,null,null,null,null,null,null,null,null,null,null,null,null,null,null,null,null,null,null,null,null,null,null,null,null,null,null,null,null,null,null,null,null,null,null,null,1,"Sistema Informático propio"]
[null,"2.",null,null,null,null,null,null,null,null,null,null,null,null,null,null,null,null,null,null,null,null,null,null,null,null,null,null,null,null,null,null,null,null,null,null,null,null,null,null,null,null,null,null,null,null,null,null,null,null,null,null,null,null,null,null,null,null,2,"Software comercial especializado"]
[null,"3.",null,null,null,null,null,null,null,null,null,null,null,null,null,null,null,null,null,null,null,null,null,null,null,null,null,null,null,null,null,null,null,null,null,null,null,null,null,null,null,null,null,null,null,null,null,null,null,null,null,null,null,null,null,null,null,null,3,"Base de datos u hojas de cálculo estructuradas y estandarizadas"]
[null,"4.",null,null,null,null,null,null,null,null,null,null,null,null,null,null,null,null,null,null,null,null,null,null,null,null,null,null,null,null,null,null,null,null,null,null,null,null,null,null,null,null,null,null,null,null,null,null,null,null,null,null,null,null,null,null,null,null,4,"Hojas de cálculo no estructuradas o no estandarizadas"]
[null,"5.",null,null,null,null,null,null,null,null,null,null,null,null,null,null,null,null,null,null,null,null,null,null,null,null,null,null,null,null,null,null,null,null,null,null,null,null,null,null,null,null,null,null,null,null,null,null,null,null,null,null,null,null,null,null,null,null,5,"Libro de gobierno en formato electrónico"]
[null,"6.",null,null,null,null,null,null,null,null,null,null,null,null,null,null,null,null,null,null,null,null,null,null,null,null,null,null,null,null,null,null,null,null,null,null,null,null,null,null,null,null,null,null,null,null,null,null,null,null,null,null,null,null,null,null,null,null,6,"Libro de gobierno en papel"]
[null,"7.",null,null,null,null,null,null,null,null,null,null,null,null,null,null,null,null,null,null,null,null,null,null,null,null,null,null,null,null,null,null,null,null,null,null,null,null,null,null,null,null,null,null,null,null,null,null,null,null,null,null,null,null,null,null,null,null,7,"Bitácora en documento de texto electrónico"]
[null,"8.",null,null,null,null,null,null,null,null,null,null,null,null,null,null,null,null,null,null,null,null,null,null,null,null,null,null,null,null,null,null,null,null,null,null,null,null,null,null,null,null,null,null,null,null,null,null,null,null,null,null,null,null,null,null,null,null,8,"Bitácora en documento de texto en papel"]
[null,"9.",null,null,null,null,null,null,null,null,null,null,null,null,null,null,null,null,null,null,null,null,null,null,null,null,null,null,null,null,null,null,null,null,null,null,null,null,null,null,null,null,null,null,null,null,null,null,null,null,null,null,null,null,null,null,null,null,9,"De palabra"]
[null,"10.",null,null,null,null,null,null,null,null,null,null,null,null,null,null,null,null,null,null,null,null,null,null,null,null,null,null,null,null,null,null,null,null,null,null,null,null,null,null,null,null,null,null,null,null,null,null,null,null,null,null,null,null,null,null,null,null,10,"Otra"]
[null,"11."]
[null,"12."]
[null,"13."]
[null,"14."]
[null,"15."]
[null,"16."]
[null,"17."]
[null,"18."]
[null,"19."]
[null,"20."]
[null,"21."]
[null,"22."]
[null,"23."]
[null,"24."]
[null,"25."]
[null,"26."]
[null,"27."]
[null,"28."]
[null,"29."]
[null,"30."]
[null,"31."]
[null,"32."]
[null,"33."]
[null,"34."]
[null,"35."]

{"sheet":"CNGE_2023_M7_Secc3","index":6,"n_rows":1306,"n_cols":37,"rows_kept":1306,"cut":false,"hidden":false,"merged":[[15,2,15,29],[16,2,16,29],[17,2,17,29],[18,2,18,29],[20,1,20,29],[21,1,21,29],[9,1,9,29],[10,2,10,29],[11,2,11,29],[12,2,12,29],[13,2,13,29],[14,2,14,29],[0,1,0,29],[2,1,2,29],[4,1,4,29],[6,26,6,29],[7,1,7,11],[7,13,7,14],[35,16,35,29],[36,16,36,29],[37,16,37,29],[38,16,38,29],[39,16,39,29],[40,16,40,29],[30,2,30,10],[30,11,30,15],[30,16,30,29],[31,2,40,2],[31,3,40,10],[31,11,40,15],[31,16,31,29],[32,16,32,29],[33,16,33,29],[34,16,34,29],[22,2,22,29],[23,2,23,29],[24,2,24,29],[26,1,26,29],[27,2,27,29],[28,2,28,29],[62,2,62,29],[63,2,63,29],[70,1,70,29],[71,1,71,29],[72,2,72,29],[73,2,73,29],[55,16,55,29],[56,16,56,29],[57,16,57,29],[58,16,58,29],[59,16,59,29],[60,16,60,29],[48,16,48,29],[49,16,49,29],[50,16,50,29],[51,2,60,2],[51,3,60,10],[51,11,60,15],[51,16,51,29],[52,16,52,29],[53,16,53,29],[54,16,54,29],[41,2,50,2],[41,3,50,10],[41,11,50,15],[41,16,41,29],[42,16,42,29],[43,16,43,29],[44,16,44,29],[45,16,45,29],[46,16,46,29],[47,16,47,29],[80,27,80,29],[81,3,81,9],[81,10,81,14],[81,15,81,17],[81,18,81,20],[81,21,81,23],[81,24,81,26],[81,27,81,29],[75,1,75,29],[76,2,76,29],[77,2,77,29],[78,2,78,29],[80,2,80,9],[80,10,80,14],[80,15,80,17],[80,18,80,20],[80,21,80,23],[80,24,80,26],[84,27,84,29],[85,3,85,9],[85,10,85,14],[85,15,85,17],[85,18,85,20],[85,21,85,23],[85,24,85,26],[85,27,85,29],[84,3,84,9],[84,10,84,14],[84,15,84,17],[84,18,84,20],[84,21,84,23],[84,24,84,26],[82,27,82,29],[83,3,83,9],[83,10,83,14],[83,15,83,17],[83,18,83,20],[83,21,83,23],[83,24,83,26],[83,27,83,29],[82,3,82,9],[82,10,82,14],[82,15,82,17],[82,18,82,20],[82,21,82,23],[82,24,82,26],[88,27,88,29],[89,3,89,9],[89,10,89,14],[89,15,89,17],[89,18,89,20],[89,21,89,23],[89,24,89,26],[89,27,89,29],[88,3,88,9],[88,10,88,14],[88,15,88,17],[88,18,88,20],[88,21,88,23],[88,24,88,26],[86,27,86,29],[87,3,87,9],[87,10,87,14],[87,15,87,17],[87,18,87,20],[87,21,87,23],[87,24,87,26],[87,27,87,29],[86,3,86,9],[86,10,86,14],[86,15,86,17],[86,18,86,20],[86,21,86,23],[86,24,86,26],[94,3,94,7],[94,10,94,15],[94,17,94,22],[94,24,94,29],[95,10,95,15],[95,17,95,22],[95,24,95,29],[90,27,90,29],[92,2,92,7],[92,9,92,29],[93,3,93,7],[93,10,93,15],[93,17,93,22],[93,24,93,29],[90,3,90,9],[90,10,90,14],[90,15,90,17],[90,18,90,20],[90,21,90,23],[90,24,90,26],[104,2,104,29],[111,1,111,29],[113,2,114,14],[113,15,114,19],[113,20,113,29],[114,20,114,24],[114,25,114,29],[100,10,100,15],[100,17,100,22],[101,3,101,8],[101,10,101,15],[101,17,101,22],[103,2,103,29],[97,2,97,29],[98,3,98,8],[98,10,98,15],[98,17,98,22],[98,24,98,29],[99,3,99,8],[99,10,99,15],[99,17,99,22],[99,23,101,29],[100,3,100,8],[120,2,120,29],[121,2,121,29],[128,1,128,29],[129,2,129,29],[131,2,132,14],[131,15,132,19],[131,20,131,29],[132,20,132,24],[132,25,132,29],[117,3,117,14],[117,15,117,19],[117,20,117,24],[117,25,117,29],[118,15,118,19],[118,20,118,24],[118,25,118,29],[115,3,115,14],[115,15,115,19],[115,20,115,24],[115,25,115,29],[116,3,116,14],[116,15,116,19],[116,20,116,24],[116,25,116,29],[137,3,137,14],[137,15,137,19],[137,20,137,24],[137,25,137,29],[138,15,138,19],[138,20,138,24],[138,25,138,29],[135,3,135,14],[135,15,135,19],[135,20,135,24],[135,25,135,29],[136,3,136,14],[136,15,136,19],[136,20,136,24],[136,25,136,29],[133,3,133,14],[133,15,133,19],[133,20,133,24],[133,25,133,29],[134,3,134,14],[134,15,134,19],[134,20,134,24],[134,25,134,29],[156,3,156,14],[156,15,156,19],[156,20,156,24],[156,25,156,29],[157,3,157,14],[157,15,157,19],[157,20,157,24],[157,25,157,29],[154,3,154,14],[154,15,154,19],[154,20,154,24],[154,25,154,29],[155,3,155,14],[155,15,155,19],[155,20,155,24],[155,25,155,29],[140,2,140,5],[140,6,140,29],[142,2,142,29],[143,2,143,29],[150,1,150,29],[152,2,153,14],[152,15,153,19],[152,20,152,29],[153,20,153,24],[153,25,153,29],[162,15,162,19],[162,20,162,24],[162,25,162,29],[164,2,164,29],[165,2,165,29],[172,1,172,29],[160,3,160,14],[160,15,160,19],[160,20,160,24],[160,25,160,29],[161,3,161,14],[161,15,161,19],[161,20,161,24],[161,25,161,29],[158,3,158,14],[158,15,158,19],[158,20,158,24],[158,25,158,29],[159,3,159,14],[159,15,159,19],[159,20,159,24],[159,25,159,29],[177,3,177,14],[177,15,177,19],[177,20,177,24],[177,25,177,29],[178,3,178,14],[178,15,178,19],[178,20,178,24],[178,25,178,29],[174,2,175,14],[174,15,175,19],[174,20,174,29],[175,20,175,24],[175,25,175,29],[176,3,176,14],[176,15,176,19],[176,20,176,24],[176,25,176,29],[183,3,183,14],[183,15,183,19],[183,20,183,24],[183,25,183,29],[184,3,184,14],[184,15,184,19],[184,20,184,24],[184,25,184,29],[181,3,181,14],[181,15,181,19],[181,20,181,24],[181,25,181,29],[182,3,182,14],[182,15,182,19],[182,20,182,24],[182,25,182,29],[179,3,179,14],[179,15,179,19],[179,20,179,24],[179,25,179,29],[180,3,180,14],[180,15,180,19],[180,20,180,24],[180,25,180,29],[201,3,201,13],[201,14,201,21],[201,22,201,29],[202,3,202,13],[202,14,202,21],[202,22,202,29],[196,2,196,29],[197,2,197,29],[199,2,199,13],[199,14,199,21],[199,22,199,29],[200,3,200,13],[200,14,200,21],[200,22,200,29],[185,15,185,19],[185,20,185,24],[185,25,185,29],[187,2,187,29],[188,2,188,29],[195,1,195,29],[222,2,222,29],[224,1,224,29],[225,2,225,29],[227,2,227,14],[227,15,227,19],[227,20,227,24],[227,25,227,29],[216,1,216,29],[217,2,217,29],[218,2,218,29],[219,2,219,29],[220,2,220,29],[221,2,221,29],[204,2,204,29],[205,2,205,29],[212,1,212,29],[213,1,213,29],[214,2,214,29],[215,2,215,29],[232,3,232,14],[232,15,232,19],[232,20,232,24],[232,25,232,29],[233,3,233,14],[233,15,233,19],[233,20,233,24],[233,25,233,29],[230,3,230,14],[230,15,230,19],[230,20,230,24],[230,25,230,29],[231,3,231,14],[231,15,231,19],[231,20,231,24],[231,25,231,29],[228,3,228,14],[228,15,228,19],[228,20,228,24],[228,25,228,29],[229,3,229,14],[229,15,229,19],[229,20,229,24],[229,25,229,29],[249,2,249,29],[250,2,250,29],[251,2,251,29],[252,2,252,29],[254,2,254,13],[254,14,254,17],[254,18,254,21],[254,22,254,25],[254,26,254,29],[238,3,238,10],[238,12,238,19],[238,21,238,29],[240,2,240,29],[241,2,241,29],[248,1,248,29],[235,2,235,29],[236,3,236,10],[236,12,236,19],[236,21,236,29],[237,3,237,10],[237,12,237,19],[237,21,237,29],[257,3,257,13],[257,14,257,17],[257,18,257,21],[257,22,257,25],[257,26,257,29],[258,3,258,13],[258,14,258,17],[258,18,258,21],[258,22,258,25],[258,26,258,29],[255,3,255,13],[255,14,255,17],[255,18,255,21],[255,22,255,25],[255,26,255,29],[256,3,256,13],[256,14,256,17],[256,18,256,21],[256,22,256,25],[256,26,256,29],[261,3,261,13],[261,14,261,17],[261,18,261,21],[261,22,261,25],[261,26,261,29],[262,3,262,13],[262,14,262,17],[262,18,262,21],[262,22,262,25],[262,26,262,29],[259,3,259,13],[259,14,259,17],[259,18,259,21],[259,22,259,25],[259,26,259,29],[260,3,260,13],[260,14,260,17],[260,18,260,21],[260,22,260,25],[260,26,260,29],[280,3,280,29],[281,3,281,29],[282,3,282,29],[283,3,283,29],[284,3,284,29],[285,3,285,29],[267,2,267,29],[268,2,268,29],[275,1,275,29],[276,2,276,29],[277,2,277,29],[278,2,278,29],[263,3,263,13],[263,14,263,17],[263,18,263,21],[263,22,263,25],[263,26,263,29],[265,2,265,5],[265,6,265,29],[305,1,305,29],[306,2,306,29],[310,2,310,29],[311,2,311,29],[318,1,318,29],[319,2,319,29],[292,3,292,29],[293,3,293,29],[295,2,295,5],[295,6,295,29],[297,2,297,29],[298,2,298,29],[286,3,286,29],[287,3,287,29],[288,3,288,29],[289,3,289,29],[290,3,290,29],[291,3,291,29],[334,2,334,5],[334,6,334,29],[336,2,336,29],[337,2,337,29],[344,1,344,29],[345,2,345,29],[327,3,327,29],[328,3,328,29],[329,3,329,29],[330,3,330,29],[331,3,331,29],[332,3,332,29],[320,2,320,29],[321,2,321,29],[323,3,323,29],[324,3,324,29],[325,3,325,29],[326,3,326,29],[352,3,352,13],[352,14,352,21],[352,22,352,29],[353,3,353,13],[353,14,353,21],[353,22,353,29],[350,3,350,13],[350,14,350,21],[350,22,350,29],[351,3,351,13],[351,14,351,21],[351,22,351,29],[346,2,346,29],[348,2,348,13],[348,14,348,21],[348,22,348,29],[349,3,349,13],[349,14,349,21],[349,22,349,29],[358,3,358,13],[358,14,358,21],[358,22,358,29],[359,3,359,13],[359,14,359,21],[359,22,359,29],[356,3,356,13],[356,14,356,21],[356,22,356,29],[357,3,357,13],[357,14,357,21],[357,22,357,29],[354,3,354,13],[354,14,354,21],[354,22,354,29],[355,3,355,13],[355,14,355,21],[355,22,355,29],[367,3,367,8],[367,10,367,15],[367,17,367,22],[367,24,367,29],[368,3,368,8],[368,10,368,15],[368,17,368,22],[368,24,368,29],[363,2,363,5],[363,6,363,29],[365,2,365,29],[366,3,366,8],[366,10,366,15],[366,17,366,22],[366,24,366,29],[360,3,360,13],[360,14,360,21],[360,22,360,29],[361,3,361,13],[361,14,361,21],[361,22,361,29],[386,3,386,13],[386,14,386,17],[386,18,386,21],[386,22,386,25],[386,26,386,29],[387,3,387,13],[387,14,387,17],[387,18,387,21],[387,22,387,25],[387,26,387,29],[384,2,385,13],[384,14,385,17],[384,18,384,29],[385,18,385,21],[385,22,385,25],[385,26,385,29],[370,2,370,29],[371,2,371,29],[378,1,378,29],[380,1,380,29],[381,2,381,29],[382,2,382,29],[390,3,390,13],[390,14,390,17],[390,18,390,21],[390,22,390,25],[390,26,390,29],[391,3,391,13],[391,14,391,17],[391,18,391,21],[391,22,391,25],[391,26,391,29],[388,3,388,13],[388,14,388,17],[388,18,388,21],[388,22,388,25],[388,26,388,29],[389,3,389,13],[389,14,389,17],[389,18,389,21],[389,22,389,25],[389,26,389,29],[397,2,397,5],[397,6,397,29],[399,2,399,29],[400,2,400,29],[407,1,407,29],[408,2,408,29],[394,3,394,13],[394,14,394,17],[394,18,394,21],[394,22,394,25],[394,26,394,29],[395,3,395,13],[395,14,395,17],[395,18,395,21],[395,22,395,25],[395,26,395,29],[392,3,392,13],[392,14,392,17],[392,18,392,21],[392,22,392,25],[392,26,392,29],[393,3,393,13],[393,14,393,17],[393,18,393,21],[393,22,393,25],[393,26,393,29],[416,3,416,21],[416,22,416,29],[417,3,417,21],[417,22,417,29],[419,2,419,5],[419,6,419,29],[413,3,413,21],[413,22,413,29],[414,3,414,21],[414,22,414,29],[415,3,415,21],[415,22,415,29],[410,2,410,21],[410,22,410,29],[411,3,411,21],[411,22,411,29],[412,3,412,21],[412,22,412,29],[436,3,436,17],[436,18,436,21],[436,22,436,25],[436,26,436,29],[437,3,437,17],[437,18,437,21],[437,22,437,25],[437,26,437,29],[434,3,434,17],[434,18,434,21],[434,22,434,25],[434,26,434,29],[435,3,435,17],[435,18,435,21],[435,22,435,25],[435,26,435,29],[421,2,421,29],[422,2,422,29],[429,1,429,29],[430,2,430,29],[432,2,433,17],[432,18,432,29],[433,18,433,21],[433,22,433,25],[433,26,433,29],[443,2,443,5],[443,6,443,29],[445,2,445,29],[446,2,446,29],[453,1,453,29],[454,2,454,29],[440,3,440,17],[440,18,440,21],[440,22,440,25],[440,26,440,29],[441,3,441,17],[441,18,441,21],[441,22,441,25],[441,26,441,29],[438,3,438,17],[438,18,438,21],[438,22,438,25],[438,26,438,29],[439,3,439,17],[439,18,439,21],[439,22,439,25],[439,26,439,29],[468,2,468,29],[469,2,469,29],[476,1,476,29],[477,1,477,29],[478,2,478,29],[479,2,479,29],[461,3,461,29],[462,3,462,29],[463,3,463,29],[464,3,464,29],[466,2,466,5],[466,6,466,29],[455,2,455,29],[456,2,456,29],[458,3,458,29],[459,3,459,29],[460,3,460,27],[460,28,460,29],[508,1,508,29],[509,2,509,29],[513,2,513,29],[514,2,514,29],[521,1,521,29],[522,2,522,29],[497,2,497,15],[497,16,497,29],[498,2,498,15],[498,16,498,29],[500,2,500,29],[501,2,501,29],[480,2,480,29],[482,1,482,29],[483,2,483,29],[487,2,487,29],[488,2,488,29],[495,1,495,29],[529,3,529,12],[529,13,529,18],[529,19,529,26],[529,27,529,29],[530,3,530,12],[530,13,530,18],[530,19,530,26],[530,27,530,29],[527,3,527,12],[527,13,527,18],[527,19,527,26],[527,27,527,29],[528,3,528,12],[528,13,528,18],[528,19,528,26],[528,27,528,29],[523,2,523,29],[525,2,525,12],[525,13,525,18],[525,19,525,26],[525,27,525,29],[526,3,526,12],[526,13,526,18],[526,19,526,26],[526,27,526,29],[535,3,535,12],[535,13,535,18],[535,19,535,26],[535,27,535,29],[537,2,537,29],[538,2,538,29],[533,3,533,12],[533,13,533,18],[533,19,533,26],[533,27,533,29],[534,3,534,12],[534,13,534,18],[534,19,534,26],[534,27,534,29],[531,3,531,12],[531,13,531,18],[531,19,531,26],[531,27,531,29],[532,3,532,12],[532,13,532,18],[532,19,532,26],[532,27,532,29],[558,3,558,29],[559,3,559,29],[560,3,560,29],[561,3,561,29],[562,3,562,29],[563,3,563,29],[552,3,552,29],[553,3,553,29],[554,3,554,29],[555,3,555,29],[556,3,556,29],[557,3,557,29],[545,1,545,29],[546,2,546,29],[547,2,547,29],[548,2,548,29],[550,3,550,29],[551,3,551,29],[584,2,584,29],[586,8,587,11],[586,12,587,15],[586,16,587,23],[586,24,586,29],[587,24,587,25],[587,26,587,27],[587,28,587,29],[577,2,577,29],[578,2,578,29],[579,2,579,29],[581,1,581,29],[582,2,582,29],[583,2,583,29],[565,2,565,5],[565,6,565,29],[567,2,567,29],[568,2,568,29],[575,1,575,29],[576,1,576,29],[601,2,601,29],[602,2,602,29],[604,2,604,29],[605,2,605,11],[605,12,605,17],[605,18,605,23],[605,24,605,29],[588,28,588,29],[590,2,590,5],[590,6,590,29],[592,2,592,29],[593,2,593,29],[600,1,600,29],[588,3,588,7],[588,8,588,11],[588,12,588,15],[588,16,588,23],[588,24,588,25],[588,26,588,27],[610,3,610,11],[610,12,610,17],[610,18,610,23],[610,24,610,29],[611,3,611,11],[611,12,611,17],[611,18,611,23],[611,24,611,29],[608,3,608,11],[608,12,608,17],[608,18,608,23],[608,24,608,29],[609,3,609,11],[609,12,609,17],[609,18,609,23],[609,24,609,29],[606,3,606,11],[606,12,606,17],[606,18,606,23],[606,24,606,29],[607,3,607,11],[607,12,607,17],[607,18,607,23],[607,24,607,29],[626,1,626,29],[627,2,627,29],[629,12,629,17],[629,18,629,23],[629,24,629,29],[630,3,630,11],[630,12,630,17],[630,18,630,23],[630,24,630,29],[614,18,614,23],[614,24,614,29],[616,2,616,5],[616,6,616,29],[618,2,618,29],[619,2,619,29],[612,3,612,11],[612,12,612,17],[612,18,612,23],[612,24,612,29],[613,3,613,11],[613,12,613,17],[613,18,613,23],[613,24,613,29],[660,2,660,29],[662,3,662,29],[663,3,663,29],[664,3,664,29],[665,3,665,29],[666,3,666,29],[645,2,645,29],[649,2,649,29],[650,2,650,29],[657,1,657,29],[658,2,658,29],[659,2,659,29],[632,2,632,29],[633,2,633,29],[640,1,640,29],[641,1,641,29],[642,2,642,29],[644,1,644,29],[690,2,690,29],[691,2,691,29],[698,1,698,29],[699,2,699,29],[700,2,700,29],[701,2,701,29],[674,2,674,29],[681,1,681,29],[682,1,682,29],[683,2,683,29],[685,1,685,29],[686,2,686,29],[667,3,667,29],[668,3,668,29],[669,3,669,29],[671,2,671,5],[671,6,671,29],[673,2,673,29],[716,2,716,29],[723,1,723,29],[724,2,724,29],[726,2,726,17],[726,18,726,29],[727,3,727,17],[727,18,727,29],[709,3,709,29],[710,3,710,29],[711,3,711,29],[713,2,713,5],[713,6,713,29],[715,2,715,29],[703,3,703,29],[704,3,704,29],[705,3,705,29],[706,3,706,29],[707,3,707,29],[708,3,708,29],[736,2,736,29],[737,2,737,29],[744,1,744,29],[745,1,745,29],[746,2,746,29],[748,1,748,29],[731,3,731,17],[731,18,731,29],[732,3,732,17],[732,18,732,29],[734,2,734,5],[734,6,734,29],[728,3,728,17],[728,18,728,29],[729,3,729,17],[729,18,729,29],[730,3,730,17],[730,18,730,29],[780,3,780,29],[781,3,781,29],[782,3,782,29],[783,3,783,29],[784,3,784,29],[785,3,785,29],[767,2,767,29],[774,1,774,29],[775,2,775,29],[776,2,776,29],[777,2,777,29],[779,3,779,29],[749,2,749,29],[753,2,753,29],[754,2,754,29],[761,1,761,29],[762,2,762,29],[766,2,766,29],[805,1,805,29],[806,2,806,29],[807,2,807,29],[808,2,808,29],[810,3,810,29],[811,3,811,29],[792,3,792,29],[793,3,793,29],[795,2,795,5],[795,6,795,29],[797,2,797,29],[798,2,798,29],[786,3,786,29],[787,3,787,29],[788,3,788,29],[789,3,789,29],[790,3,790,29],[791,3,791,29],[833,3,833,29],[834,3,834,29],[835,3,835,29],[836,3,836,29],[837,3,837,29],[838,3,838,29],[820,2,820,29],[821,2,821,29]],"merged_total":1420,"flags":["merged_cut"]}
[null,"CENSO NACIONAL DE GOBIERNOS\nESTATALES 2023"]
[]
[null,"Módulo 7.\nCatastro, registro y territorio"]
[]
[null,"Sección III. Planeación y gestión territorial"]
[]
[null,"Entidad:",null,null,null,null,null,null,null,null,null,null,null,"Clave:",null,null,null,null,null,null,null,null,null,null,null,null,"Índice"]
[null,{"$f":"IF(Presentación!B10=\"\",\"\",Presentación!B10)","v":"Veracruz de Ignacio de la Llave"},null,null,null,null,null,null,null,null,null,null,null,{"$f":"IF(Presentación!N10=\"\",\"\",Presentación!N10)","v":"30"}]
[null,null,null,null,null,null,null,null,null,null,null,null,null,null,null,null,null,null,null,null,null,null,null,null,null,null,null,null,null,null,null,null,"TMUN"]
[null,"Instrucciones generales para las preguntas de la sección:",null,null,null,null,null,null,null,null,null,null,null,null,null,null,null,null,null,null,null,null,null,null,null,null,null,null,null,null,null,null,{"$f":"IF(B8=\"\",\"\",VLOOKUP(B8,listas!A2:C34,3))","v":212}]
[null,null,"1.- Periodo de referencia de los datos: \nDurante el año: la información se refiere a lo existente del 1 de enero al 31 de diciembre de 2022.\nAl cierre del año: la información se refiere a lo existente al 31 de diciembre de 2022."]
[null,null,"2.- Los catálogos utilizados en el presente cuestionario corresponden a denominaciones estándar, de tal forma que si el nombre de alguna clasificación no coincide exactamente con la utilizada en su entidad federativa, debe registrar los datos en aquella que sea homóloga. "]
[null,null,"3.- En caso de que los registros con los que cuente no le permitan desglosar la información de acuerdo con los requerimientos solicitados, anote \"NS\" (No se sabe) en las celdas donde no disponga de información. En el recuadro para comentarios de cada pregunta debe proporcionar una justificación respecto del uso del \"NS\" en determinado reactivo."]
[null,null,"4.- En las preguntas en las que conteste con el código \"Otro\", evite la respuesta múltiple en el recuadro destinado para especificar la información. En dicho espacio anote solo una respuesta, la más importante o representativa, y asiente el resto en el recuadro para comentarios de la pregunta."]
[null,null,"5.- Las cifras deben anotarse con números enteros y sin espacio de separación ni comas, independientemente de si son miles o millones. En el caso de los porcentajes, estos además deben de ir sin el símbolo %."]
[null,null,"6.- No deje celdas en blanco, salvo en los casos en que la instrucción así lo solicite. "]
[null,null,"7.- En el caso de las tablas, deben estar contestadas todas las celdas, ya sea anotando \"0\" (cero), en caso de datos numéricos, o eligiendo algún código según el formato de respuesta."]
[null,null,"8.- En las preguntas con listas desplegables, seleccione la opción que corresponda a la realidad de la entidad federativa."]
[null,null,"9.- ¡Importante!: recuerde que todos los datos proporcionados en el cuestionario deben corresponder a los asentados en sus registros administrativos."]
[]
[null,"III.1 Administración pública estatal relacionada con el territorio"]
[null,"Glosario de la subsección:"]
[null,null,"1.- Desarrollo urbano: Se refiere a la acción urbanística que consiste en los actos o actividades tendientes al uso o aprovechamiento del suelo dentro de áreas urbanizadas o urbanizables, tales como: subdivisiones, parcelaciones, fusiones, relotificaciones, fraccionamientos, condominios, conjuntos urbanos o urbanizaciones en general, así como de construcción, ampliación, remodelación, reparación, demolición o reconstrucción de inmuebles, de propiedad pública o privada, que por su naturaleza están determinadas en los planes o programas de desarrollo urbano o tienen los permisos correspondientes. Comprende también la realización de obras de equipamiento, infraestructura o servicios urbanos."]
[null,null,"2.- Planeación urbana: se refiere al proceso continuo y permanente de análisis de la situación actual y de previsión de los escenarios futuros para el desarrollo de los asentamientos humanos de tipo urbano."]
[null,null,"3.- Ordenamiento territorial: se refiere a la política pública que tiene como objeto la ocupación y utilización racional del territorio como base espacial de las estrategias de desarrollo socioeconómico y la preservación ambiental."]
[]
["3.1.-","Indique si durante el año 2022 en la administración pública de la entidad federativa existieron instituciones que realizaron alguna de las actividades enlistadas en el siguiente cuadro. En caso afirmativo, anote el nombre oficial de esas instituciones."]
[null,null,"Si más de una institución realizó actividades de la misma índole, registre cada una de ellas."]
[null,null,"Si responde \"1.Sí\" en la columna \"¿Realizó actividades?\", llene las celdas que se activan en color amarillo. "]
[]
[null,null,"Actividades",null,null,null,null,null,null,null,null,"¿Realizó actividades? (1.Sí / 2.No / \n9.No se sabe)",null,null,null,null,"Nombre oficial de las instituciones",null,null,null,null,null,null,null,null,null,null,null,null,null,null,null,{"$f":"IF((IF(AND(L32=1,Q32=\"\",Q33=\"\",Q34=\"\",Q35=\"\",Q36=\"\",Q37=\"\",Q38=\"\",Q39=\"\",Q40=\"\",Q41=\"\"),1,0)+IF(AND(L42=1,Q42=\"\",Q43=\"\",Q44=\"\",Q45=\"\",Q46=\"\",Q47=\"\",Q48=\"\",Q49=\"\",Q50=\"\",Q51=\"\"),1,0)+IF(AND(L52=1,Q52=\"\",Q53=\"\",Q54=\"\",Q55=\"\",Q56=\"\",Q57=\"\",Q58=\"\",Q59=\"\",Q60=\"\",Q61=\"\"),1,0)+COUNTBLANK(L32)+COUNTBLANK(L42)+COUNTBLANK(L52)=0),0,1)","v":1}]
[null,null,"1.","Planeación urbana",null,null,null,null,null,null,null,null,null,null,null,null,null,null,null,null,null,null,null,null,null,null,null,null,null,null,null,null,0]
[]
[]
[]
[]
[]
[]
[]
[]
[]
[null,null,"2.","Desarrollo urbano",null,null,null,null,null,null,null,null,null,null,null,null,null,null,null,null,null,null,null,null,null,null,null,null,null,null,null,null,0]
[]
[]
[]
[]
[]
[]
[]
[]
[]
[null,null,"3.","Ordenamiento territorial",null,null,null,null,null,null,null,null,null,null,null,null,null,null,null,null,null,null,null,null,null,null,null,null,null,null,null,null,0]
[]
[]
[]
[]
[]
[]
[]
[]
[]
[]
[null,null,"En caso de tener algún comentario u observación al dato registrado en la respuesta de la presente pregunta, o de los datos que derivan de la misma, favor de anotarlo en el siguiente espacio. De lo contrario, déjelo en blanco."]
[null,null,null,null,null,null,null,null,null,null,null,null,null,null,null,null,null,null,null,null,null,null,null,null,null,null,null,null,null,null,null,null,null,null,null,{"$f":"IF(AK64=1,COUNTBLANK(C64),0)","v":0},0]
[]
[]
[null,null,null,null,null,null,null,null,null,null,null,null,null,null,null,null,null,null,null,null,null,null,null,null,null,null,null,null,null,null,null,null,{"$f":"IF(SUM(AG31)=0,0,1)","v":1}]
[]
[]
[]
[null,"III.2 Recursos humanos y capacitación"]
[null,"Instrucciones generales para las preguntas de la subsección:"]
[null,null,"1.- Anote el total de personal que laboró en las instituciones registradas para cada actividad según su adscripción. Solo debe considerar al personal que trabajó al 31 de diciembre de 2022."]
[null,null,"2.- La suma de las cantidades anotadas debe ser igual al total de personal registrado como respuesta de la pregunta 3.3."]
[null,null,null,null,null,null,null,null,null,null,null,null,null,null,null,null,null,null,null,null,null,null,null,null,null,null,null,null,null,null,null,null,null,"L_P3"]
["3.2.-","Enliste los datos de cada uno de los titulares de las instituciones que registró como respuesta en la pregunta 3.1.\n",null,null,null,null,null,null,null,null,null,null,null,null,null,null,null,null,null,null,null,null,null,null,null,null,null,null,null,null,null,null,{"$f":"IF(OR(L32=1, L42=1, L52=1),IF(COUNTBLANK(D82:D91)=10,1,0),0)","v":0},{"$f":"IF(Q32=\"\",\"\",Q32)","v":""},{"$f":"IF(AH76 = \"\", \"\", MAX(AI$75:AI75) + 1)","v":""},{"$f":"IFERROR(INDEX($AH$76:$AH$105,MATCH(ROW()-ROW($D$75),$AI$76:$AI$105,0)),\"\")","v":""}]
[null,null,"Anote solamente una vez la información del titular sin importar la cantidad de veces que haya sido registrada la institución en la pregunta 3.1.",null,null,null,null,null,null,null,null,null,null,null,null,null,null,null,null,null,null,null,null,null,null,null,null,null,null,null,null,null,null,{"$f":"IF(OR(Q33=\"\",Q33=Q32),\"\",Q33)","v":""},{"$f":"IF(AH77 = \"\", \"\", MAX(AI$75:AI76) + 1)","v":""},{"$f":"IFERROR(INDEX($AH$76:$AH$105,MATCH(ROW()-ROW($D$75),$AI$76:$AI$105,0)),\"\")","v":""}]
[null,null,"Si el titular de la institución tiene menos de un año en el cargo, registre \"1\" (uno) en la columna \"Antigüedad en el servicio público\".",null,null,null,null,null,null,null,null,null,null,null,null,null,null,null,null,null,null,null,null,null,null,null,null,null,null,null,null,null,null,{"$f":"IF(OR(Q34=\"\",Q34=Q32,Q34=Q33),\"\",Q34)","v":""},{"$f":"IF(AH78 = \"\", \"\", MAX(AI$75:AI77) + 1)","v":""},""]
[null,null,"Cuando seleccione el nombre de la institución, llene las celdas que se activan en color amarillo. ",null,null,null,null,null,null,null,null,null,null,null,null,null,null,null,null,null,null,null,null,null,null,null,null,null,null,null,null,null,null,{"$f":"IF(OR(Q35=\"\",Q35=Q32,Q35=Q33,Q35=Q34),\"\",Q35)","v":""},{"$f":"IF(AH79 = \"\", \"\", MAX(AI$75:AI78) + 1)","v":""},""]
[null,null,null,null,null,null,null,null,null,null,null,null,null,null,null,null,null,null,null,null,null,null,null,null,null,null,null,null,null,null,null,null,null,{"$f":"IF(OR(Q36=\"\",Q36=Q32,Q36=Q33,Q36=Q34,Q36=Q35),\"\",Q36)","v":""},{"$f":"IF(AH80 = \"\", \"\", MAX(AI$75:AI79) + 1)","v":""},""]
[null,null,"Nombre oficial de la institución",null,null,null,null,null,null,null,"Cargo del titular",null,null,null,null,"Sexo\n(Ver catálogo)",null,null,"Edad \n(Años)",null,null,"Nivel de escolaridad\n(Ver catálogo)",null,null,"Antigüedad en el servicio público\n(Años)",null,null,"Empleo anterior\n(Ver catálogo)",null,null,null,null,null,{"$f":"IF(OR(Q37=\"\",Q37=Q32,Q37=Q33,Q37=Q34,Q37=Q35,Q37=Q36),\"\",Q37)","v":""},{"$f":"IF(AH81 = \"\", \"\", MAX(AI$75:AI80) + 1)","v":""},""]
[null,null,"1.",null,null,null,null,null,null,null,null,null,null,null,null,null,null,null,null,null,null,null,null,null,null,null,null,null,null,null,null,null,{"$f":"IF(D82<>\"\",IF(COUNTBLANK(K82)+COUNTBLANK(P82)+COUNTBLANK(S82)+COUNTBLANK(V82)+COUNTBLANK(Y82)+COUNTBLANK(AB82)>0,1,0 ),0)","v":0},{"$f":"IF(OR(Q38=\"\",Q38=Q32,Q38=Q33,Q38=Q34,Q38=Q35,Q38=Q36,Q38=Q37),\"\",Q38)","v":""},{"$f":"IF(AH82 = \"\", \"\", MAX(AI$75:AI81) + 1)","v":""},""]
[null,null,"2.",null,null,null,null,null,null,null,null,null,null,null,null,null,null,null,null,null,null,null,null,null,null,null,null,null,null,null,null,null,{"$f":"IF(D83<>\"\",IF(COUNTBLANK(K83)+COUNTBLANK(P83)+COUNTBLANK(S83)+COUNTBLANK(V83)+COUNTBLANK(Y83)+COUNTBLANK(AB83)>0,1,0 ),0)","v":0},{"$f":"IF(OR(Q39=\"\",Q39=Q32,Q39=Q33,Q39=Q34,Q39=Q35,Q39=Q36,Q39=Q37,Q39=Q38),\"\",Q39)","v":""},{"$f":"IF(AH83 = \"\", \"\", MAX(AI$75:AI82) + 1)","v":""},""]
[null,null,"3.",null,null,null,null,null,null,null,null,null,null,null,null,null,null,null,null,null,null,null,null,null,null,null,null,null,null,null,null,null,0,{"$f":"IF(OR(Q40=\"\",Q40=Q32,Q40=Q33,Q40=Q34,Q40=Q35,Q40=Q36,Q40=Q37,Q40=Q38,Q40=Q39),\"\",Q40)","v":""},{"$f":"IF(AH84 = \"\", \"\", MAX(AI$75:AI83) + 1)","v":""},""]
[null,null,"4.",null,null,null,null,null,null,null,null,null,null,null,null,null,null,null,null,null,null,null,null,null,null,null,null,null,null,null,null,null,0,{"$f":"IF(OR(Q41=\"\",Q41=Q32,Q41=Q33,Q41=Q34,Q41=Q35,Q41=Q36,Q41=Q37,Q41=Q38,Q41=Q39,Q41=Q40),\"\",Q41)","v":""},{"$f":"IF(AH85 = \"\", \"\", MAX(AI$75:AI84) + 1)","v":""},""]
[null,null,"5.",null,null,null,null,null,null,null,null,null,null,null,null,null,null,null,null,null,null,null,null,null,null,null,null,null,null,null,null,null,0,{"$f":"IF(OR(Q42=\"\",Q42=Q32,Q42=Q33,Q42=Q34,Q42=Q35,Q42=Q36,Q42=Q37,Q42=Q38,Q42=Q39,Q42=Q40,Q42=Q41),\"\",Q42)","v":""},{"$f":"IF(AH86 = \"\", \"\", MAX(AI$75:AI85) + 1)","v":""},""]
[null,null,"6.",null,null,null,null,null,null,null,null,null,null,null,null,null,null,null,null,null,null,null,null,null,null,null,null,null,null,null,null,null,0,{"$f":"IF(OR(Q43=\"\",Q43=Q32,Q43=Q33,Q43=Q34,Q43=Q35,Q43=Q36,Q43=Q37,Q43=Q38,Q43=Q39,Q43=Q40,Q43=Q41,Q43=Q42),\"\",Q43)","v":""},{"$f":"IF(AH87 = \"\", \"\", MAX(AI$75:AI86) + 1)","v":""},""]
[null,null,"7.",null,null,null,null,null,null,null,null,null,null,null,null,null,null,null,null,null,null,null,null,null,null,null,null,null,null,null,null,null,0,{"$f":"IF(OR(Q44=\"\",Q44=Q32,Q44=Q33,Q44=Q34,Q44=Q35,Q44=Q36,Q44=Q37,Q44=Q38,Q44=Q39,Q44=Q40,Q44=Q41,Q44=Q42,Q44=Q43),\"\",Q44)","v":""},{"$f":"IF(AH88 = \"\", \"\", MAX(AI$75:AI87) + 1)","v":""},""]
[null,null,"8.",null,null,null,null,null,null,null,null,null,null,null,null,null,null,null,null,null,null,null,null,null,null,null,null,null,null,null,null,null,0,{"$f":"IF(OR(Q45=\"\",Q45=Q32,Q45=Q33,Q45=Q34,Q45=Q35,Q45=Q36,Q45=Q37,Q45=Q38,Q45=Q39,Q45=Q40,Q45=Q41,Q45=Q42,Q45=Q43,Q45=Q44),\"\",Q45)","v":""},{"$f":"IF(AH89 = \"\", \"\", MAX(AI$75:AI88) + 1)","v":""},""]
[null,null,"9.",null,null,null,null,null,null,null,null,null,null,null,null,null,null,null,null,null,null,null,null,null,null,null,null,null,null,null,null,null,0,{"$f":"IF(OR(Q46=\"\",Q46=Q32,Q46=Q33,Q46=Q34,Q46=Q35,Q46=Q36,Q46=Q37,Q46=Q38,Q46=Q39,Q46=Q40,Q46=Q41,Q46=Q42,Q46=Q43,Q46=Q44,Q46=Q45),\"\",Q46)","v":""},{"$f":"IF(AH90 = \"\", \"\", MAX(AI$75:AI89) + 1)","v":""},""]
[null,null,"10.",null,null,null,null,null,null,null,null,null,null,null,null,null,null,null,null,null,null,null,null,null,null,null,null,null,null,null,null,null,{"$f":"IF(D91<>\"\",IF(COUNTBLANK(K91)+COUNTBLANK(P91)+COUNTBLANK(S91)+COUNTBLANK(V91)+COUNTBLANK(Y91)+COUNTBLANK(AB91)>0,1,0 ),0)","v":0},{"$f":"IF(OR(Q47=\"\",Q47=Q32,Q47=Q33,Q47=Q34,Q47=Q35,Q47=Q36,Q47=Q37,Q47=Q38,Q47=Q39,Q47=Q40,Q47=Q41,Q47=Q42,Q47=Q43,Q47=Q44,Q47=Q45,Q47=Q46),\"\",Q47)","v":""},{"$f":"IF(AH91 = \"\", \"\", MAX(AI$75:AI90) + 1)","v":""},""]
[null,null,null,null,null,null,null,null,null,null,null,null,null,null,null,null,null,null,null,null,null,null,null,null,null,null,null,null,null,null,null,null,null,{"$f":"IF(OR(Q48=\"\",Q48=Q32,Q48=Q33,Q48=Q34,Q48=Q35,Q48=Q36,Q48=Q37,Q48=Q38,Q48=Q39,Q48=Q40,Q48=Q41,Q48=Q42,Q48=Q43,Q48=Q44,Q48=Q45,Q48=Q46,Q48=Q47),\"\",Q48)","v":""},{"$f":"IF(AH92 = \"\", \"\", MAX(AI$75:AI91) + 1)","v":""},""]
[null,null,"Catálogo de sexo",null,null,null,null,null,null,"Catálogo de nivel de escolaridad",null,null,null,null,null,null,null,null,null,null,null,null,null,null,null,null,null,null,null,null,null,null,null,{"$f":"IF(OR(Q49=\"\",Q49=Q32,Q49=Q33,Q49=Q34,Q49=Q35,Q49=Q36,Q49=Q37,Q49=Q38,Q49=Q39,Q49=Q40,Q49=Q41,Q49=Q42,Q49=Q43,Q49=Q44,Q49=Q45,Q49=Q46,Q49=Q47,Q49=Q48),\"\",Q49)","v":""},{"$f":"IF(AH93 = \"\", \"\", MAX(AI$75:AI92) + 1)","v":""},""]
[null,null,"1.","Hombre",null,null,null,null,null,"1.","Ninguno",null,null,null,null,null,"4.","Preparatoria",null,null,null,null,null,"7.","Maestría",null,null,null,null,null,null,null,null,{"$f":"IF(OR(Q50=\"\",Q50=Q32,Q50=Q33,Q50=Q34,Q50=Q35,Q50=Q36,Q50=Q37,Q50=Q38,Q50=Q39,Q50=Q40,Q50=Q41,Q50=Q42,Q50=Q43,Q50=Q44,Q50=Q45,Q50=Q46,Q50=Q47,Q50=Q48,Q50=Q49),\"\",Q50)","v":""},{"$f":"IF(AH94 = \"\", \"\", MAX(AI$75:AI93) + 1)","v":""},""]
[null,null,"2.","Mujer",null,null,null,null,null,"2.","Prescolar o primaria",null,null,null,null,null,"5.","Carrera técnica o carrera comercial",null,null,null,null,null,"8.","Doctorado",null,null,null,null,null,null,null,null,{"$f":"IF(OR(Q51=\"\",Q51=Q32,Q51=Q33,Q51=Q34,Q51=Q35,Q51=Q36,Q51=Q37,Q51=Q38,Q51=Q39,Q51=Q40,Q51=Q41,Q51=Q42,Q51=Q43,Q51=Q44,Q51=Q45,Q51=Q46,Q51=Q47,Q51=Q48,Q51=Q49,Q51=Q50),\"\",Q51)","v":""},{"$f":"IF(AH95 = \"\", \"\", MAX(AI$75:AI94) + 1)","v":""},""]
[null,null,null,null,null,null,null,null,null,"3.","Secundaria",null,null,null,null,null,"6.","Licenciatura",null,null,null,null,null,"9.","No se sabe",null,null,null,null,null,null,null,null,{"$f":"IF(OR(Q52=\"\",Q52=Q32,Q52=Q33,Q52=Q34,Q52=Q35,Q52=Q36,Q52=Q37,Q52=Q38,Q52=Q39,Q52=Q40,Q52=Q41,Q52=Q42,Q52=Q43,Q52=Q44,Q52=Q45,Q52=Q46,Q52=Q47,Q52=Q48,Q52=Q49,Q52=Q50,Q52=Q51),\"\",Q52)","v":""},{"$f":"IF(AH96 = \"\", \"\", MAX(AI$75:AI95) + 1)","v":""},""]
[null,null,null,null,null,null,null,null,null,null,null,null,null,null,null,null,null,null,null,null,null,null,null,null,null,null,null,null,null,null,null,null,null,{"$f":"IF(OR(Q53=\"\",Q53=Q32,Q53=Q33,Q53=Q34,Q53=Q35,Q53=Q36,Q53=Q37,Q53=Q38,Q53=Q39,Q53=Q40,Q53=Q41,Q53=Q42,Q53=Q43,Q53=Q44,Q53=Q45,Q53=Q46,Q53=Q47,Q53=Q48,Q53=Q49,Q53=Q50,Q53=Q51,Q53=Q52),\"\",Q53)","v":""},{"$f":"IF(AH97 = \"\", \"\", MAX(AI$75:AI96) + 1)","v":""},""]
[null,null,"Catálogo de empleo anterior",null,null,null,null,null,null,null,null,null,null,null,null,null,null,null,null,null,null,null,null,null,null,null,null,null,null,null,null,null,null,{"$f":"IF(OR(Q54=\"\",Q54=Q32,Q54=Q33,Q54=Q34,Q54=Q35,Q54=Q36,Q54=Q37,Q54=Q38,Q54=Q39,Q54=Q40,Q54=Q41,Q54=Q42,Q54=Q43,Q54=Q44,Q54=Q45,Q54=Q46,Q54=Q47,Q54=Q48,Q54=Q49,Q54=Q50,Q54=Q51,Q54=Q52,Q54=Q53),\"\",Q54)","v":""},{"$f":"IF(AH98 = \"\", \"\", MAX(AI$75:AI97) + 1)","v":""},""]
[null,null,"1.","Gobierno federal",null,null,null,null,null,"5.","Empleado del sector privado",null,null,null,null,null,"9.","Sector social\n(Organizaciones de la sociedad civil)",null,null,null,null,null,"99.","No se sabe",null,null,null,null,null,null,null,null,{"$f":"IF(OR(Q55=\"\",Q55=Q32,Q55=Q33,Q55=Q34,Q55=Q35,Q55=Q36,Q55=Q37,Q55=Q38,Q55=Q39,Q55=Q40,Q55=Q41,Q55=Q42,Q55=Q43,Q55=Q44,Q55=Q45,Q55=Q46,Q55=Q47,Q55=Q48,Q55=Q49,Q55=Q50,Q55=Q51,Q55=Q52,Q55=Q53,Q55=Q54),\"\",Q55)","v":""},{"$f":"IF(AH99 = \"\", \"\", MAX(AI$75:AI98) + 1)","v":""},""]
[null,null,"2.","Gobierno estatal",null,null,null,null,null,"6.","Cargo de elección popular",null,null,null,null,null,"10.","Academia\n(Profesor / investigador de tiempo completo)",null,null,null,null,null,null,null,null,null,null,null,null,null,null,null,{"$f":"IF(OR(Q56=\"\",Q56=Q32,Q56=Q33,Q56=Q34,Q56=Q35,Q56=Q36,Q56=Q37,Q56=Q38,Q56=Q39,Q56=Q40,Q56=Q41,Q56=Q42,Q56=Q43,Q56=Q44,Q56=Q45,Q56=Q46,Q56=Q47,Q56=Q48,Q56=Q49,Q56=Q50,Q56=Q51,Q56=Q52,Q56=Q53,Q56=Q54,Q56=Q55),\"\",Q56)","v":""},{"$f":"IF(AH100 = \"\", \"\", MAX(AI$75:AI99) + 1)","v":""},""]
[null,null,"3.","Gobierno municipal",null,null,null,null,null,"7.","Representación sindical",null,null,null,null,null,"11.","Es primer trabajo",null,null,null,null,null,null,null,null,null,null,null,null,null,null,null,{"$f":"IF(OR(Q57=\"\",Q57=Q32,Q57=Q33,Q57=Q34,Q57=Q35,Q57=Q36,Q57=Q37,Q57=Q38,Q57=Q39,Q57=Q40,Q57=Q41,Q57=Q42,Q57=Q43,Q57=Q44,Q57=Q45,Q57=Q46,Q57=Q47,Q57=Q48,Q57=Q49,Q57=Q50,Q57=Q51,Q57=Q52,Q57=Q53,Q57=Q54,Q57=Q55,Q57=Q56),\"\",Q57)","v":""},{"$f":"IF(AH101 = \"\", \"\", MAX(AI$75:AI100) + 1)","v":""},""]
[null,null,"4.","Negocio propio",null,null,null,null,null,"8.","Cargo en partido político",null,null,null,null,null,"12.","Otro",null,null,null,null,null,null,null,null,null,null,null,null,null,null,null,{"$f":"IF(OR(Q58=\"\",Q58=Q32,Q58=Q33,Q58=Q34,Q58=Q35,Q58=Q36,Q58=Q37,Q58=Q38,Q58=Q39,Q58=Q40,Q58=Q41,Q58=Q42,Q58=Q43,Q58=Q44,Q58=Q45,Q58=Q46,Q58=Q47,Q58=Q48,Q58=Q49,Q58=Q50,Q58=Q51,Q58=Q52,Q58=Q53,Q58=Q54,Q58=Q55,Q58=Q56,Q58=Q57),\"\",Q58)","v":""},{"$f":"IF(AH102 = \"\", \"\", MAX(AI$75:AI101) + 1)","v":""},""]
[null,null,null,null,null,null,null,null,null,null,null,null,null,null,null,null,null,null,null,null,null,null,null,null,null,null,null,null,null,null,null,null,null,{"$f":"IF(OR(Q59=\"\",Q59=Q32,Q59=Q33,Q59=Q34,Q59=Q35,Q59=Q36,Q59=Q37,Q59=Q38,Q59=Q39,Q59=Q40,Q59=Q41,Q59=Q42,Q59=Q43,Q59=Q44,Q59=Q45,Q59=Q46,Q59=Q47,Q59=Q48,Q59=Q49,Q59=Q50,Q59=Q51,Q59=Q52,Q59=Q53,Q59=Q54,Q59=Q55,Q59=Q56,Q59=Q57,Q59=Q58),\"\",Q59)","v":""},{"$f":"IF(AH103 = \"\", \"\", MAX(AI$75:AI102) + 1)","v":""},""]
[null,null,"En caso de tener algún comentario u observación al dato registrado en la respuesta de la presente pregunta, o de los datos que derivan de la misma, favor de anotarlo en el siguiente espacio. De lo contrario, déjelo en blanco.",null,null,null,null,null,null,null,null,null,null,null,null,null,null,null,null,null,null,null,null,null,null,null,null,null,null,null,null,null,null,{"$f":"IF(OR(Q60=\"\",Q60=Q32,Q60=Q33,Q60=Q34,Q60=Q35,Q60=Q36,Q60=Q37,Q60=Q38,Q60=Q39,Q60=Q40,Q60=Q41,Q60=Q42,Q60=Q43,Q60=Q44,Q60=Q45,Q60=Q46,Q60=Q47,Q60=Q48,Q60=Q49,Q60=Q50,Q60=Q51,Q60=Q52,Q60=Q53,Q60=Q54,Q60=Q55,Q60=Q56,Q60=Q57,Q60=Q58,Q60=Q59),\"\",Q60)","v":""},{"$f":"IF(AH104 = \"\", \"\", MAX(AI$75:AI103) + 1)","v":""},""]
[null,null,null,null,null,null,null,null,null,null,null,null,null,null,null,null,null,null,null,null,null,null,null,null,null,null,null,null,null,null,null,null,null,{"$f":"IF(OR(Q61=\"\",Q61=Q32,Q61=Q33,Q61=Q34,Q61=Q35,Q61=Q36,Q61=Q37,Q61=Q38,Q61=Q39,Q61=Q40,Q61=Q41,Q61=Q42,Q61=Q43,Q61=Q44,Q61=Q45,Q61=Q46,Q61=Q47,Q61=Q48,Q61=Q49,Q61=Q50,Q61=Q51,Q61=Q52,Q61=Q53,Q61=Q54,Q61=Q55,Q61=Q56,Q61=Q57,Q61=Q58,Q61=Q59,Q61=Q60),\"\",Q61)","v":""},{"$f":"IF(AH105 = \"\", \"\", MAX(AI$75:AI104) + 1)","v":""},""]
[]
[]
[]
[]
[]
[]
["3.3.-","Enliste las cantidades de personal de las instituciones que registró en la pregunta 3.1 según las actividades que realizaron en materia de planeación, desarrollo urbano y ordenamiento territorial al cierre del año 2022."]
[]
[null,null,"Actividades",null,null,null,null,null,null,null,null,null,null,null,null,"Total",null,null,null,null,"Personal adscrito a las instituciones de la administración pública, según sexo"]
[null,null,null,null,null,null,null,null,null,null,null,null,null,null,null,null,null,null,null,null,"Hombres",null,null,null,null,"Mujeres"]
[null,null,"1.","Planeación urbana",null,null,null,null,null,null,null,null,null,null,null,null,null,null,null,null,null,null,null,null,null,null,null,null,null,null,null,null,{"$f":"IF(L32=1,IF(COUNTBLANK(P116)+COUNTBLANK(U116)+COUNTBLANK(Z116)>0,1,0 ),0)","v":0}]
[null,null,"2.","Desarrollo urbano",null,null,null,null,null,null,null,null,null,null,null,null,null,null,null,null,null,null,null,null,null,null,null,null,null,null,null,null,{"$f":"IF(L33=1,IF(COUNTBLANK(P117)+COUNTBLANK(U117)+COUNTBLANK(Z117)>0,1,0 ),0)","v":0}]
[null,null,"3.","Ordenamiento territorial",null,null,null,null,null,null,null,null,null,null,null,null,null,null,null,null,null,null,null,null,null,null,null,null,null,null,null,null,{"$f":"IF(L34=1,IF(COUNTBLANK(P118)+COUNTBLANK(U118)+COUNTBLANK(Z118)>0,1,0 ),0)","v":0}]
[null,null,null,null,null,null,null,null,null,null,null,null,null,null,"S",{"$f":"IF(COUNTBLANK(P116:P118)=3,\"\",IF(AND(SUM(P116:P118)=0,COUNTIF(P116:P118,\"NS\")>0),\"NS\",SUM(P116:P118)))","v":""},null,null,null,null,{"$f":"IF(COUNTBLANK(U116:U118)=3,\"\",IF(AND(SUM(U116:U118)=0,COUNTIF(U116:U118,\"NS\")>0),\"NS\",SUM(U116:U118)))","v":""},null,null,null,null,{"$f":"IF(COUNTBLANK(Z116:Z118)=3,\"\",IF(AND(SUM(Z116:Z118)=0,COUNTIF(Z116:Z118,\"NS\")>0),\"NS\",SUM(Z116:Z118)))","v":""}]
[]
[null,null,"En caso de tener algún comentario u observación al dato registrado en la respuesta de la presente pregunta, o de los datos que derivan de la misma, favor de anotarlo en el siguiente espacio. De lo contrario, déjelo en blanco."]
[]
[]
[]
[]
[]
[]
[]
["3.4.-","De acuerdo con la cantidad total de personal que registró en la respuesta de la pregunta 3.3, enliste la cantidad de personal por régimen de contratación conforme a la siguiente tabla.",null,null,null,null,null,null,null,null,null,null,null,null,null,null,null,null,null,null,null,null,null,null,null,null,null,null,null,null,null,null,{"$f":"IF(OR(L32=1, L42=1, L52=1),IF(COUNTBLANK(P134:P138)+COUNTBLANK(U134:U138)+COUNTBLANK(Z134:Z138)>0,1,0 ),0)","v":0}]
[null,null,"Si registra personal en el numeral 5, anote el otro régimen de contratación en el recuadro que se encuentra al final de la tabla."]
[]
[null,null,"Régimen de contratación",null,null,null,null,null,null,null,null,null,null,null,null,"Total",null,null,null,null,"Personal adscrito a las instituciones de la administración pública, según sexo"]
[null,null,null,null,null,null,null,null,null,null,null,null,null,null,null,null,null,null,null,null,"Hombres",null,null,null,null,"Mujeres"]
[null,null,"1.","Confianza"]
[null,null,"2.","Base o sindicalizado"]
[null,null,"3.","Eventual"]
[null,null,"4.","Honorarios"]
[null,null,"5.","Otro (especifique)"]
[null,null,null,null,null,null,null,null,null,null,null,null,null,null,"S",{"$f":"IF(COUNTBLANK(P134:P138)=5,\"\",IF(AND(SUM(P134:P138)=0,COUNTIF(P134:P138,\"NS\")>0),\"NS\",SUM(P134:P138)))","v":""},null,null,null,null,{"$f":"IF(COUNTBLANK(U134:U138)=5,\"\",IF(AND(SUM(U134:U138)=0,COUNTIF(U134:U138,\"NS\")>0),\"NS\",SUM(U134:U138)))","v":""},null,null,null,null,{"$f":"IF(COUNTBLANK(Z134:Z138)=5,\"\",IF(AND(SUM(Z134:Z138)=0,COUNTIF(Z134:Z138,\"NS\")>0),\"NS\",SUM(Z134:Z138)))","v":""}]
[]
[null,null,"Otro régimen de contratación:\n(especifique)",null,null,null,null,null,null,null,null,null,null,null,null,null,null,null,null,null,null,null,null,null,null,null,null,null,null,null,null,null,{"$f":"IF(AND(P138>0,UPPER(P138)<>\"NS\"),COUNTBLANK(G141),0)","v":0}]
[]
[null,null,"En caso de tener algún comentario u observación al dato registrado en la respuesta de la presente pregunta, o de los datos que derivan de la misma, favor de anotarlo en el siguiente espacio. De lo contrario, déjelo en blanco."]
[]
[]
[]
[]
[]
[]
[]
["3.5.-","De acuerdo con la cantidad total de personal registrado en la respuesta de la pregunta 3.3, enliste la cantidad de personal por nivel de escolaridad conforme a la siguiente tabla.",null,null,null,null,null,null,null,null,null,null,null,null,null,null,null,null,null,null,null,null,null,null,null,null,null,null,null,null,null,null,{"$f":"IF(OR(L32=1, L42=1, L52=1),IF(COUNTBLANK(P155:P162)+COUNTBLANK(U155:U162)+COUNTBLANK(Z155:Z162)>0,1,0 ),0)","v":0}]
[]
[null,null,"Nivel de escolaridad",null,null,null,null,null,null,null,null,null,null,null,null,"Total",null,null,null,null,"Personal adscrito a las instituciones de la administración pública, según sexo"]
[null,null,null,null,null,null,null,null,null,null,null,null,null,null,null,null,null,null,null,null,"Hombres",null,null,null,null,"Mujeres"]
[null,null,"1.","Ninguno"]
[null,null,"2.","Preescolar o primaria"]
[null,null,"3.","Secundaria"]
[null,null,"4.","Preparatoria"]
[null,null,"5.","Carrera técnica o comercial"]
[null,null,"6.","Licenciatura"]
[null,null,"7.","Maestría"]
[null,null,"8.","Doctorado"]
[null,null,null,null,null,null,null,null,null,null,null,null,null,null,"S",{"$f":"IF(COUNTBLANK(P155:P162)=8,\"\",IF(AND(SUM(P155:P162)=0,COUNTIF(P155:P162,\"NS\")>0),\"NS\",SUM(P155:P162)))","v":""},null,null,null,null,{"$f":"IF(COUNTBLANK(U155:U162)=8,\"\",IF(AND(SUM(U155:U162)=0,COUNTIF(U155:U162,\"NS\")>0),\"NS\",SUM(U155:U162)))","v":""},null,null,null,null,{"$f":"IF(COUNTBLANK(Z155:Z162)=8,\"\",IF(AND(SUM(Z155:Z162)=0,COUNTIF(Z155:Z162,\"NS\")>0),\"NS\",SUM(Z155:Z162)))","v":""}]
[]
[null,null,"En caso de tener algún comentario u observación al dato registrado en la respuesta de la presente pregunta, o de los datos que derivan de la misma, favor de anotarlo en el siguiente espacio. De lo contrario, déjelo en blanco."]
[]
[]
[]
[]
[]
[]
[]
["3.6.-","De acuerdo con la cantidad total de personal registrado en la respuesta de la pregunta 3.3, enliste la cantidad de personal por rango de edad conforme a la siguiente tabla.",null,null,null,null,null,null,null,null,null,null,null,null,null,null,null,null,null,null,null,null,null,null,null,null,null,null,null,null,null,null,{"$f":"IF(OR(L32=1, L42=1, L52=1),IF(COUNTBLANK(P177:P185)+COUNTBLANK(U177:U185)+COUNTBLANK(Z177:Z185)>0,1,0 ),0)","v":0}]
[]
[null,null,"Rango de edad",null,null,null,null,null,null,null,null,null,null,null,null,"Total",null,null,null,null,"Personal adscrito a las instituciones de la administración pública, según sexo"]
[null,null,null,null,null,null,null,null,null,null,null,null,null,null,null,null,null,null,null,null,"Hombres",null,null,null,null,"Mujeres"]
[null,null,"1.","18 a 24 años"]
[null,null,"2.","25 a 29 años"]
[null,null,"3.","30 a 34 años"]
[null,null,"4.","35 a 39 años"]
[null,null,"5.","40 a 44 años"]
[null,null,"6.","45 a 49 años"]
[null,null,"7.","50 a 54 años"]
[null,null,"8.","55 a 59  años"]
[null,null,"9.","60 años o más"]
[null,null,null,null,null,null,null,null,null,null,null,null,null,null,"S",{"$f":"IF(COUNTBLANK(P177:P185)=9,\"\",IF(AND(SUM(P177:P185)=0,COUNTIF(P177:P185,\"NS\")>0),\"NS\",SUM(P177:P185)))","v":""},null,null,null,null,{"$f":"IF(COUNTBLANK(U177:U185)=9,\"\",IF(AND(SUM(U177:U185)=0,COUNTIF(U177:U185,\"NS\")>0),\"NS\",SUM(U177:U185)))","v":""},null,null,null,null,{"$f":"IF(COUNTBLANK(Z177:Z185)=9,\"\",IF(AND(SUM(Z177:Z185)=0,COUNTIF(Z177:Z185,\"NS\")>0),\"NS\",SUM(Z177:Z185)))","v":""}]
[]
[null,null,"En caso de tener algún comentario u observación al dato registrado en la respuesta de la presente pregunta, o de los datos que derivan de la misma, favor de anotarlo en el siguiente espacio. De lo contrario, déjelo en blanco."]
[]
[]
[]
[null,null,null,null,null,null,null,null,null,null,null,null,null,null,null,null,null,null,null,null,null,null,null,null,null,null,null,null,null,null,null,null,1]
[]
[]
[]
["3.7.-","Indique si durante el año 2022 la administración pública de la entidad federativa tuvo algún programa de formación en materia territorial y si se impartieron cursos a las instituciones que realizaron actividades territoriales. ",null,null,null,null,null,null,null,null,null,null,null,null,null,null,null,null,null,null,null,null,null,null,null,null,null,null,null,null,null,null,{"$f":"IF(OR((IF(L32=1,IF(COUNTBLANK(O201)+COUNTBLANK(W201)>0,1,0),0)), IF(L42=1,IF(COUNTBLANK(O202)+COUNTBLANK(W202)>0,1,0),0), IF(L52=1,IF(COUNTBLANK(O203)+COUNTBLANK(W203)>0,1,0),0)), 1,0)","v":0}]
[null,null,"Para contestar la columna \"¿Existió programa de formación?\", considere también los programas de capacitación o profesionalización. Y en la columna \"¿Se impartieron cursos?\", contemple además diplomados, talleres o seminarios. "]
[null,null,"Considere los cursos, diplomados, talleres y seminarios impartidos a los servidores públicos del 1 de enero al 31 de diciembre de 2022."]
[]
[null,null,"Tema",null,null,null,null,null,null,null,null,null,null,null,"¿Existió programa de formación?\n(1.Sí / 2.No / 9.No se sabe)",null,null,null,null,null,null,null,"¿Se impartieron cursos?\n(1.Sí / 2.No / 9.No se sabe)"]
[null,null,"1.","Planeación urbana"]
[null,null,"2.","Desarrollo urbano"]
[null,null,"3.","Ordenamiento territorial"]
[]
[null,null,"En caso de tener algún comentario u observación al dato registrado en la respuesta de la presente pregunta, o de los datos que derivan de la misma, favor de anotarlo en el siguiente espacio. De lo contrario, déjelo en blanco."]
[]
[]
[]
[null,null,null,null,null,null,null,null,null,null,null,null,null,null,null,null,null,null,null,null,null,null,null,null,null,null,null,null,null,null,null,null,{"$f":"IF(SUM(AG76,AG82,AG83,AG84,AG85,AG86,AG87,AG88,AG89,AG90,AG91,AG116,AG117,AG118,AG129,AG141,AG151,AG173,AG196)=0,0,1)","v":0}]
[]
[]
[]
[null,"III.3 Instrumentos jurídicos y de planeación"]
[null,"Instrucciones generales para las preguntas de la subsección:"]
[null,null,"1.- Considere solo los instrumentos jurídicos y de planeación que fueron de observancia durante el año 2022 en la administración pública de la entidad federativa."]
[null,null,"2.- La columna de temas de la tabla de la pregunta 3.8 enlista denominaciones estándar en las materias de las que existen instrumentos jurídicos. Si el tema del instrumento no coincide exactamente con alguno de la lista, debe registrar los datos en aquel que sea el más similar."]
[null,"Glosario de la subsección:"]
[null,null,"1.- Asentamiento humano en zona de riesgo: se refiere al conglomerado demográfico asentado, ya sea conforme a las regulaciones del desarrollo urbano o bien de forma irregular, en algún espacio territorial en el que existe la probabilidad de que se produzca un daño a la población o a las construcciones, originado por un fenómeno perturbador de tipo natural o derivado de las actividades humanas."]
[null,null,"2.- Asentamientos humanos irregulares: se refiere a los núcleos de población ubicados en áreas o predios fraccionados o subdivididos sin la autorización correspondiente, independientemente de su régimen de tenencia de la tierra."]
[null,null,"3.- Gestión integral de riesgos: se refiere al conjunto de acciones encaminadas a la identificación, análisis, evaluación, control y reducción de los riesgos, considerándolos por su origen multifactorial y en un proceso permanente de construcción que involucra a los tres órdenes de gobierno, así como a los sectores de la sociedad, lo que facilita la implementación de políticas públicas, estrategias y procedimientos que combatan las causas estructurales de los desastres y fortalezcan las capacidades de resiliencia o resistencia de la sociedad. Comprende la identificación de los riesgos y, en su caso, su proceso de formación, previsión, prevención, mitigación, preparación, auxilio, recuperación y reconstrucción."]
[null,null,"4.- Movilidad: se refiere a la capacidad, facilidad y eficiencia de tránsito o desplazamiento de las personas y bienes en el territorio, priorizando la accesibilidad universal y su desarrollo sustentable."]
[null,null,"5.- Reservas territoriales: se refiere a las áreas de un centro de población que serán utilizadas para su crecimiento."]
[null,null,"6.- Resiliencia: se refiere a la capacidad de un sistema, comunidad o sociedad para resistir, asimilar, adaptarse y recuperarse, en un corto plazo y de manera eficiente, de los efectos de un peligro al que está potencialmente expuesto. Todo ello a través de la preservación y restauración de sus estructuras básicas y funcionales, para lograr una mejor protección futura y optimizar las medidas de reducción de riesgos."]
[]
["3.8.-","Indique si durante el año 2022 en la entidad federativa existieron instrumentos jurídicos estatales sobre los temas enlistados, si tuvieron reformas o adiciones y anote el tipo de instrumento.",null,null,null,null,null,null,null,null,null,null,null,null,null,null,null,null,null,null,null,null,null,null,null,null,null,null,null,null,null,null,{"$f":"IF(AND(P229=1,OR(U229=\"\",Z229=\"\")),1,0)+IF(AND(P230=1,OR(U230=\"\",Z230=\"\")),1,0)+IF(AND(P231=1,OR(U231=\"\",Z231=\"\")),1,0)+IF(AND(P232=1,OR(U232=\"\",Z232=\"\")),1,0)+IF(AND(P233=1,OR(U233=\"\",Z233=\"\")),1,0)+IF(AND(P234=1,OR(U234=\"\",Z234=\"\")),1,0)+COUNTBLANK(P229:P234)","v":6}]
[null,null,"Si responde \"1.Sí\" en la columna \"¿Existió un instrumento jurídico vigente?\", llene las celdas que se activan en color amarillo. "]
[]
[null,null,"Tema",null,null,null,null,null,null,null,null,null,null,null,null,"¿Existió un instrumento jurídico vigente?\n(1.Sí / 2.No / \n9.No se sabe)",null,null,null,null,"¿Tuvo reformas o adiciones? \n(1.Sí / 2.No /\n9.No se sabe)",null,null,null,null,"Tipo de instrumento jurídico\n(Ver catálogo)"]
[null,null,"1.","Reservas territoriales",null,null,null,null,null,null,null,null,null,null,null,null,null,null,null,null,null,null,null,null,null,null,null,null,null,null,null,null,0]
[null,null,"2.","Asentamientos humanos irregulares",null,null,null,null,null,null,null,null,null,null,null,null,null,null,null,null,null,null,null,null,null,null,null,null,null,null,null,null,0]
[null,null,"3.","Movilidad",null,null,null,null,null,null,null,null,null,null,null,null,null,null,null,null,null,null,null,null,null,null,null,null,null,null,null,null,0]
[null,null,"4.","Resiliencia",null,null,null,null,null,null,null,null,null,null,null,null,null,null,null,null,null,null,null,null,null,null,null,null,null,null,null,null,0]
[null,null,"5.","Gestión integral de riesgos",null,null,null,null,null,null,null,null,null,null,null,null,null,null,null,null,null,null,null,null,null,null,null,null,null,null,null,null,0]
[null,null,"6.","Asentamientos humanos en zona de riesgo",null,null,null,null,null,null,null,null,null,null,null,null,null,null,null,null,null,null,null,null,null,null,null,null,null,null,null,null,0]
[]
[null,null,"Catálogo de tipo de instrumento jurídico"]
[null,null,"1.","Ley",null,null,null,null,null,null,null,"4.","Decreto",null,null,null,null,null,null,null,"7.","Lineamiento"]
[null,null,"2.","Código",null,null,null,null,null,null,null,"5.","Acuerdo",null,null,null,null,null,null,null,"8.","Estatuto"]
[null,null,"3.","Reglamento",null,null,null,null,null,null,null,"6.","Norma",null,null,null,null,null,null,null,"9.","Otro"]
[]
[null,null,"En caso de tener algún comentario u observación al dato registrado en la respuesta de la presente pregunta, o de los datos que derivan de la misma, favor de anotarlo en el siguiente espacio. De lo contrario, déjelo en blanco."]
[null,null,null,null,null,null,null,null,null,null,null,null,null,null,null,null,null,null,null,null,null,null,null,null,null,null,null,null,null,null,null,null,null,null,null,{"$f":"IF(AK242=1,COUNTBLANK(C242),0)","v":0},0]
[]
[]
[]
[]
[]
[]
["3.9.-","Indique si durante el año 2022 en la entidad federativa existieron o tuvieron modificaciones los siguientes instrumentos de planeación estatales; además anote si fueron publicados en los medios oficiales y la vigencia.",null,null,null,null,null,null,null,null,null,null,null,null,null,null,null,null,null,null,null,null,null,null,null,null,null,null,null,null,null,null,{"$f":"IF(AND(O256=1,OR(S256=\"\",W256=\"\",AA256=\"\")),1,0)+IF(AND(O257=1,OR(S257=\"\",W257=\"\",AA257=\"\")),1,0)+IF(AND(O258=1,OR(S258=\"\",W258=\"\",AA258=\"\")),1,0)+IF(AND(O259=1,OR(S259=\"\",W259=\"\",AA259=\"\")),1,0)+IF(AND(O260=1,OR(S260=\"\",W260=\"\",AA260=\"\")),1,0)+IF(AND(O261=1,OR(S261=\"\",W261=\"\",AA261=\"\")),1,0)+IF(AND(O262=1,OR(S262=\"\",W262=\"\",AA262=\"\")),1,0)+IF(AND(O263=1,OR(S263=\"\",W263=\"\",AA263=\"\")),1,0)+IF(AND(O264=1,OR(S264=\"\",W264=\"\",AA264=\"\")),1,0)+COUNTBLANK(O256:O264)","v":9}]
[null,null,"Considere como medio oficial el diario, periódico, boletín o gaceta oficial de la entidad federativa."]
[null,null,"Para aquellos instrumentos de planeación que no indiquen una vigencia, anote \"Indefinida\"."]
[null,null,"Si responde \"1.Sí\" en la columna \"¿Existió el instrumento de planeación?\", llene las celdas que se activan en color amarillo. "]
[null,null,"Si responde \"1.Sí\" en el numeral 9, anote el otro instrumento en el recuadro que se encuentra al final de la tabla."]
[]
[null,null,"Instrumentos",null,null,null,null,null,null,null,null,null,null,null,"¿Existió el instrumento de planeación? \n(1.Sí / 2.No /\n9.No se sabe)",null,null,null,"¿Tuvo modificaciones? (1.Sí / 2.No /\n9.No se sabe)",null,null,null,"¿Fue publicado en los medios oficiales?  \n(1.Sí / 2.No / \n9.No se sabe)",null,null,null,"Vigencia del instrumento"]
[null,null,"1.","Plan o programa estatal de desarrollo urbano ",null,null,null,null,null,null,null,null,null,null,null,null,null,null,null,null,null,null,null,null,null,null,null,null,null,null,null,null,0]
[null,null,"2.","Plan o programa regional de desarrollo urbano",null,null,null,null,null,null,null,null,null,null,null,null,null,null,null,null,null,null,null,null,null,null,null,null,null,null,null,null,0]
[null,null,"3.","Programa sectorial en materia de desarrollo urbano y  ordenamiento territorial ",null,null,null,null,null,null,null,null,null,null,null,null,null,null,null,null,null,null,null,null,null,null,null,null,null,null,null,null,0]
[null,null,"4.","Programa de ordenamiento ecológico regional",null,null,null,null,null,null,null,null,null,null,null,null,null,null,null,null,null,null,null,null,null,null,null,null,null,null,null,null,0]
[null,null,"5.","Programa estatal de ordenamiento territorial",null,null,null,null,null,null,null,null,null,null,null,null,null,null,null,null,null,null,null,null,null,null,null,null,null,null,null,null,0]
[null,null,"6.","Programa de ordenamiento ecológico y territorial",null,null,null,null,null,null,null,null,null,null,null,null,null,null,null,null,null,null,null,null,null,null,null,null,null,null,null,null,0]
[null,null,"7.","Programa estatal de movilidad",null,null,null,null,null,null,null,null,null,null,null,null,null,null,null,null,null,null,null,null,null,null,null,null,null,null,null,null,0]
[null,null,"8.","Atlas de riesgos estatal",null,null,null,null,null,null,null,null,null,null,null,null,null,null,null,null,null,null,null,null,null,null,null,null,null,null,null,null,0]
[null,null,"9.","Otro (especifique)",null,null,null,null,null,null,null,null,null,null,null,null,null,null,null,null,null,null,null,null,null,null,null,null,null,null,null,null,0]
[]
[null,null,"Otro instrumento:\n(especifique)",null,null,null,null,null,null,null,null,null,null,null,null,null,null,null,null,null,null,null,null,null,null,null,null,null,null,null,null,null,{"$f":"IF(O264=1,COUNTBLANK(G266),0)","v":0}]
[]
[null,null,"En caso de tener algún comentario u observación al dato registrado en la respuesta de la presente pregunta, o de los datos que derivan de la misma, favor de anotarlo en el siguiente espacio. De lo contrario, déjelo en blanco."]
[null,null,null,null,null,null,null,null,null,null,null,null,null,null,null,null,null,null,null,null,null,null,null,null,null,null,null,null,null,null,null,null,null,null,null,{"$f":"IF(AK269=1,COUNTBLANK(C269),0)","v":0},0]
[]
[]
[]
[]
[]
[]
["3.10.-","Seleccione las acciones que se realizaron en la entidad federativa durante el año 2022 para la generación o actualización de los instrumentos de planeación en materia territorial.",null,null,null,null,null,null,null,null,null,null,null,null,null,null,null,null,null,null,null,null,null,null,null,null,null,null,null,null,null,null,{"$f":"IF(COUNTBLANK(C281:C294)=14,1,0)","v":1}]
[null,null,"Puede seleccionar con \"X\" más de un código. "]
[null,null,"Si marca el numeral 12, anote la otra acción en el recuadro que está al final de la lista."]
[null,null,"Si elige el numeral 13 o el 99, no marque otro código."]
[]
[null,null,null,"1. Fomentar la creación y funcionamiento de observatorios urbanos "]
[null,null,null,"2. Recopilación, análisis e interpretación de los datos socioeconómicos y demográficos de la entidad federativa"]
[null,null,null,"3. Investigación de información sobre los modelos de políticas urbanas"]
[null,null,null,"4. Investigación de información sobre los modelos de gestión pública"]
[null,null,null,"5. Recopilación de información territorial y/o de movilidad"]
[null,null,null,"6. Cooperación con instituciones de investigación académica"]
[null,null,null,"7. Cooperación con colegios de profesionistas"]
[null,null,null,"8. Cooperación con organismos empresariales"]
[null,null,null,"9. Estudios de ordenamiento urbano a través de la recopilación de información documental y de campo "]
[null,null,null,"10. Investigación, análisis y evaluación de la información ecológica de la entidad federativa"]
[null,null,null,"11. Consulta ciudadana"]
[null,null,null,"12. Otra (especifique)"]
[null,null,null,"13. Ninguna"]
[null,null,null,"99. No se sabe"]
[]
[null,null,"Otra acción:\n(especifique)",null,null,null,null,null,null,null,null,null,null,null,null,null,null,null,null,null,null,null,null,null,null,null,null,null,null,null,null,null,{"$f":"IF(UPPER(C292)=\"X\",COUNTBLANK(G296),0)","v":0}]
[]
[null,null,"En caso de tener algún comentario u observación al dato registrado en la respuesta de la presente pregunta, o de los datos que derivan de la misma, favor de anotarlo en el siguiente espacio. De lo contrario, déjelo en blanco."]
[]
[]
[]
[]
[]
[]
[]
["3.11.-","Indique si durante el año 2022 existió un consejo o comité estatal de ordenamiento territorial y de desarrollo urbano en la entidad federativa.",null,null,null,null,null,null,null,null,null,null,null,null,null,null,null,null,null,null,null,null,null,null,null,null,null,null,null,null,null,null,{"$f":"IF(COUNTBLANK(C309)+COUNTBLANK(I309)+COUNTBLANK(T309)=3,1,0)","v":1}]
[null,null,"Seleccione con \"X\" un solo código."]
[]
[null,null,null,"1. Sí",null,null,null,null,null,"2. No (pase a la pregunta 3.13)",null,null,null,null,null,null,null,null,null,null,"9. No se sabe (pase a la pregunta 3.13)"]
[]
[null,null,"En caso de tener algún comentario u observación al dato registrado en la respuesta de la presente pregunta, o los datos que derivan de la misma, favor de anotarlo en el siguiente espacio. De lo contrario, déjelo en blanco."]
[]
[]
[]
[]
[]
[]
[]
["3.12.-","Seleccione las acciones que el consejo o comité estatal de ordenamiento territorial y desarrollo urbano de la entidad federativa  realizó durante 2022.",null,null,null,null,null,null,null,null,null,null,null,null,null,null,null,null,null,null,null,null,null,null,null,null,null,null,null,null,null,null,{"$f":"IF(UPPER(C309)=\"X\",IF(COUNTBLANK(C324:C333)=10,1,0), 0)","v":0}]
[null,null,"Puede seleccionar con \"X\" más de un código.  "]
[null,null,"Si marca el numeral 8, anote la otra acción en el recuadro que está al final de la lista."]
[null,null,"Si elige el numeral 9 o el 99, no marque otro código."]
[]
[null,null,null,"1. Emitir opiniones y formular propuestas sobre la aplicación de políticas públicas"]
[null,null,null,"2. Impulsar la participación ciudadana en el seguimiento, operación y evaluación de políticas"]
[null,null,null,"3. Apoyar a las autoridades en la promoción, difusión y cumplimiento de planes y programas"]
[null,null,null,"4. Proponer la realización de estudios e investigaciones"]
[null,null,null,"5. Evaluar periódicamente los resultados de políticas públicas y programas"]
[null,null,null,"6. Recomendar a las autoridades competentes la realización de auditorías a programas prioritarios"]
[null,null,null,"7. Expedir su reglamento interno"]
[null,null,null,"8. Otra (especifique)"]
[null,null,null,"9. No se han realizado acciones"]
[null,null,null,"99. No se sabe"]
[]
[null,null,"Otra acción:\n(especifique)",null,null,null,null,null,null,null,null,null,null,null,null,null,null,null,null,null,null,null,null,null,null,null,null,null,null,null,null,null,{"$f":"IF(UPPER(C331)=\"X\",COUNTBLANK(G335),0)","v":0}]
[]
[null,null,"En caso de tener algún comentario u observación al dato registrado en la respuesta de la presente pregunta, o de los datos que derivan de la misma, favor de anotarlo en el siguiente espacio. De lo contrario, déjelo en blanco."]
[]
[]
[]
[]
[]
[]
[]
["3.13.-","Indique si durante el año 2022 la administración pública de la entidad federativa generó espacios para la participación ciudadana en alguno de los siguientes temas y seleccione el mecanismo principal de dicha participación.",null,null,null,null,null,null,null,null,null,null,null,null,null,null,null,null,null,null,null,null,null,null,null,null,null,null,null,null,null,null,{"$f":"IF(AND(O350=1,W350=\"\"),1,0)+IF(AND(O351=1,W351=\"\"),1,0)+IF(AND(O352=1,W352=\"\"),1,0)+IF(AND(O353=1,W353=\"\"),1,0)+IF(AND(O354=1,W354=\"\"),1,0)+IF(AND(O355=1,W355=\"\"),1,0)+IF(AND(O356=1,W356=\"\"),1,0)+IF(AND(O357=1,W357=\"\"),1,0)+IF(AND(O358=1,W358=\"\"),1,0)+IF(AND(O359=1,W359=\"\"),1,0)+IF(AND(O360=1,W360=\"\"),1,0)+IF(AND(O361=1,W361=\"\"),1,0)+IF(AND(O362=1,W362=\"\"),1,0)+COUNTBLANK(O350:O362)","v":13}]
[null,null,"Si responde \"1.Sí\" en la columna \"¿Generó espacios para la participación ciudadana?\", llene las celdas que se activan en color amarillo. "]
[null,null,"Si responde \"1.Sí\" en el numeral 13, anote el otro tema en el recuadro que se encuentra al final de la tabla."]
[]
[null,null,"Temas",null,null,null,null,null,null,null,null,null,null,null,"¿Generó espacios para la participación ciudadana?\n(1.Sí / 2.No / 9.No se sabe)",null,null,null,null,null,null,null,"¿Qué mecanismo usó?\n(Ver catálogo)"]
[null,null,"1.","Ordenamiento territorial"]
[null,null,"2.","Ordenamiento ecológico"]
[null,null,"3.","Desarrollo urbano"]
[null,null,"4.","Movilidad"]
[null,null,"5.","Programa de manejo de área natural protegida"]
[null,null,"6.","Desarrollo regional"]
[null,null,"7.","Asentamientos humanos en zonas de riesgo"]
[null,null,"8.","Asentamientos humanos irregulares"]
[null,null,"9.","Zonas metropolitanas"]
[null,null,"10.","Conurbaciones"]
[null,null,"11.","Infraestructura y equipamiento"]
[null,null,"12.","Elaboración y/o actualización de leyes en materia territorial"]
[null,null,"13.","Otro (especifique)"]
[]
[null,null,"Otro tema:\n(especifique)",null,null,null,null,null,null,null,null,null,null,null,null,null,null,null,null,null,null,null,null,null,null,null,null,null,null,null,null,null,{"$f":"IF(O362=1,COUNTBLANK(G364),0)","v":0}]
[]
[null,null,"Catálogo de mecanismos para la participación ciudadana"]
[null,null,"1.","Iniciativa ciudadana",null,null,null,null,null,"4.","Consulta ciudadana",null,null,null,null,null,"7.","Gobierno abierto",null,null,null,null,null,"10.","Otro"]
[null,null,"2.","Referéndum",null,null,null,null,null,"5.","Mesas de trabajo interinstitucional",null,null,null,null,null,"8.","Buzones ciudadanos",null,null,null,null,null,"11.","Ninguno"]
[null,null,"3.","Plebiscito",null,null,null,null,null,"6.","Presupuesto participativo",null,null,null,null,null,"9.","Comités o consejos de participación ciudadana",null,null,null,null,null,"99.","No se sabe"]
[]
[null,null,"En caso de tener algún comentario u observación al dato registrado en la respuesta de la presente pregunta, o de los datos que derivan de la misma, favor de anotarlo en el siguiente espacio. De lo contrario, déjelo en blanco."]
[]
[]
[]
[]
[null,null,null,null,null,null,null,null,null,null,null,null,null,null,null,null,null,null,null,null,null,null,null,null,null,null,null,null,null,null,null,null,{"$f":"IF(SUM(AG225,AG249,AG266,AG276,AG296,AG306,AG319,AG335,AG345,AG364)=0,0,1)","v":1}]
[]
[]
[null,"III.4 Participación estatal en las actividades en materia de territorio de los municipios/demarcaciones territoriales"]
[]
["3.14.-","Indique si durante el año 2022 la administración pública de la entidad federativa participó en las siguientes actividades en materia de territorio de los municipios/demarcaciones territoriales e indique cómo fue dicha intervención.",null,null,null,null,null,null,null,null,null,null,null,null,null,null,null,null,null,null,null,null,null,null,null,null,null,null,null,null,null,null,{"$f":"IF(AND(O387=1,OR(S387=\"\",W387=\"\",AA387=\"\")),1,0)+IF(AND(O388=1,OR(S388=\"\",W388=\"\",AA388=\"\")),1,0)+IF(AND(O389=1,OR(S389=\"\",W389=\"\",AA389=\"\")),1,0)+IF(AND(O390=1,OR(S390=\"\",W390=\"\",AA390=\"\")),1,0)+IF(AND(O391=1,OR(S391=\"\",W391=\"\",AA391=\"\")),1,0)+IF(AND(O392=1,OR(S392=\"\",W392=\"\",AA392=\"\")),1,0)+IF(AND(O393=1,OR(S393=\"\",W393=\"\",AA393=\"\")),1,0)+IF(AND(O394=1,OR(S394=\"\",W394=\"\",AA394=\"\")),1,0)+IF(AND(O395=1,OR(S395=\"\",W395=\"\",AA395=\"\")),1,0)+IF(AND(O396=1,OR(S396=\"\",W396=\"\",AA396=\"\")),1,0)+COUNTBLANK(O387:O396)","v":10}]
[null,null,"Si responde \"1.Sí\" en la columna \"¿Participó en la actividad?\", llene las celdas que se activan en color amarillo. "]
[null,null,"Si responde \"1.Sí\" en el numeral 10, anote la otra actividad en el recuadro que se encuentra al final de la tabla."]
[]
[null,null,"Actividades",null,null,null,null,null,null,null,null,null,null,null,"¿Participó en la actividad?\n(1.Sí / 2.No /\n9.No se sabe)",null,null,null,"¿Cómo participó?"]
[null,null,null,null,null,null,null,null,null,null,null,null,null,null,null,null,null,null,"¿Coordinó?\n(1.Sí / 2.No /\n9.No se sabe)",null,null,null,"¿Ejecutó?\n(1.Sí / 2.No/\n9.No se sabe)",null,null,null,"¿Dio seguimiento?\n(1.Sí / 2.No /\n9.No se sabe)"]
[null,null,"1.","Reubicación de asentamientos humanos irregulares"]
[null,null,"2.","Regularización de los asentamientos humanos irregulares"]
[null,null,"3.","Protección de patrimonios naturales o áreas de \npreservación ecológica"]
[null,null,"4.","Prevención de ocupación de zonas de riesgo",null,null,null,null,null,null,null,null,null,null,null,null,null,null,null,null,null,null,null,null,null,null,null,null,null,null,null,null,{"$f":"IF(OR(COUNTIF(S387:AD387,9)=3,COUNTIF(S388:AD388,9)=3,COUNTIF(S389:AD389,9)=3,COUNTIF(S390:AD390,9)=3),1,0)","v":0}]
[null,null,"5.","Delimitación de zonas de riesgo"]
[null,null,"6.","Constitución de reservas de crecimiento"]
[null,null,"7.","Consolidación de centros de población",null,null,null,null,null,null,null,null,null,null,null,null,null,null,null,null,null,null,null,null,null,null,null,null,null,null,null,null,{"$f":"IF(OR(COUNTIF(S391:AD391,9)=3,COUNTIF(S392:AD392,9)=3,COUNTIF(S393:AD393,9)=3),1,0)","v":0}]
[null,null,"8.","Movilidad"]
[null,null,"9.","Infraestructura y equipamiento urbano"]
[null,null,"10.","Otra (especifique)",null,null,null,null,null,null,null,null,null,null,null,null,null,null,null,null,null,null,null,null,null,null,null,null,null,null,null,null,{"$f":"IF(OR(COUNTIF(S394:AD394,9)=3,COUNTIF(S395:AD395,9)=3,COUNTIF(S396:AD396,9)=3),1,0)","v":0}]
[]
[null,null,"Otra actividad:\n(especifique)",null,null,null,null,null,null,null,null,null,null,null,null,null,null,null,null,null,null,null,null,null,null,null,null,null,null,null,null,null,{"$f":"IF(O396=1,COUNTBLANK(G398),0)","v":0}]
[]
[null,null,"En caso de tener algún comentario u observación al dato registrado en la respuesta de la presente pregunta, o de los datos que derivan de la misma, favor de anotarlo en el siguiente espacio. De lo contrario, déjelo en blanco."]
[null,null,null,null,null,null,null,null,null,null,null,null,null,null,null,null,null,null,null,null,null,null,null,null,null,null,null,null,null,null,null,null,null,null,null,{"$f":"IF(AK401=1,COUNTBLANK(C401),0)","v":0},0]
[]
[]
[]
[]
[]
[]
["3.15.-","Indique si durante el año 2022 la administración pública de la entidad federativa realizó las siguientes acciones de regulación en los municipios/demarcaciones territoriales.",null,null,null,null,null,null,null,null,null,null,null,null,null,null,null,null,null,null,null,null,null,null,null,null,null,null,null,null,null,null,{"$f":"IF(COUNTBLANK(W412:W418)=0,0,1)","v":1}]
[null,null,"Si responde \"1.Sí\" en el numeral 7, anote la otra acción en el recuadro que se encuentra al final de la tabla."]
[]
[null,null,"Acciones de regulación",null,null,null,null,null,null,null,null,null,null,null,null,null,null,null,null,null,null,null,"¿Realizó?\n(1.Sí / 2.No / 9.No se sabe)"]
[null,null,"1.","Dictámenes de congruencia estatal"]
[null,null,"2.","Evaluaciones de impacto urbano, regional o territorial"]
[null,null,"3.","Emisión de lineamientos para autorizaciones, licencias o permisos"]
[null,null,"4.","Asesoría mediante un consejo o comité para la generación de planes o programas de desarrollo urbano"]
[null,null,"5.","Asesoría mediante un programa de asistencia técnica para la generación de instrumentos de planeación"]
[null,null,"6.","Participación en la regulación de usos de suelo"]
[null,null,"7.","Otra (especifique)"]
[]
[null,null,"Otra actividad:\n(especifique)",null,null,null,null,null,null,null,null,null,null,null,null,null,null,null,null,null,null,null,null,null,null,null,null,null,null,null,null,null,{"$f":"IF(W418=1,COUNTBLANK(G420),0)","v":0}]
[]
[null,null,"En caso de tener algún comentario u observación al dato registrado en la respuesta de la presente pregunta, o de los datos que derivan de la misma, favor de anotarlo en el siguiente espacio. De lo contrario, déjelo en blanco."]
[]
[]
[]
[]
[]
[]
[]
["3.16.-","Si contestó \"1.Sí\" en  el numeral 2 de la pregunta 3.15, indique si la administración pública de la entidad federativa realizó los siguientes tipos de evaluaciones de impacto según la obra."]
[null,null,"Si responde \"1.Sí\" en el numeral 8, anote la otra acción en el recuadro que se encuentra al final de la tabla."]
[]
[null,null,"Obras",null,null,null,null,null,null,null,null,null,null,null,null,null,null,null,"¿Realizó estos tipos de evaluación?"]
[null,null,null,null,null,null,null,null,null,null,null,null,null,null,null,null,null,null,"Evaluación de impacto urbano\n(1.Sí / 2.No /\n9.No se sabe)",null,null,null,"Evaluación de impacto regional (1.Sí / 2.No /\n9.No se sabe)",null,null,null,"Evaluación de impacto territorial \n(1.Sí / 2.No /\n9.No se sabe)"]
[null,null,"1.","Reagrupamiento de predios",null,null,null,null,null,null,null,null,null,null,null,null,null,null,null,null,null,null,null,null,null,null,null,null,null,null,null,null,{"$f":"IF(W414=1,IF(COUNTBLANK(S435:S442)>0,1,0),0)","v":0}]
[null,null,"2.","Fraccionamiento, transmisión o incorporación de predios ejidales o comunales al desarrollo urbano",null,null,null,null,null,null,null,null,null,null,null,null,null,null,null,null,null,null,null,null,null,null,null,null,null,null,null,null,{"$f":"IF(W414=1,IF(COUNTBLANK(W435:W442)>0,1,0),0)","v":0}]
[null,null,"3.","Construcción o demolición de obras de uso habitacional",null,null,null,null,null,null,null,null,null,null,null,null,null,null,null,null,null,null,null,null,null,null,null,null,null,null,null,null,{"$f":"IF(W414=1,IF(COUNTBLANK(AA435:AA442)>0,1,0),0)","v":0}]
[null,null,"4.","Construcción o demolición de obras de servicios al público y/o autoconsumo (gasolinera, estación de gas LP, estación de gas natural, etc.)"]
[null,null,"5.","Construcción de plazas y centros comerciales"]
[null,null,"6.","Obras de desarrollo inmobiliario especial "]
[null,null,"7.","Obras de aprovechamiento, adaptación, remodelación o demolición de inmuebles del patrimonio cultural"]
[null,null,"8.","Otra (especifique)"]
[]
[null,null,"Otra obra:\n(especifique)",null,null,null,null,null,null,null,null,null,null,null,null,null,null,null,null,null,null,null,null,null,null,null,null,null,null,null,null,null,{"$f":"IF(OR(S442=1, W442=1, AA442=1),COUNTBLANK(G444),0)","v":0}]
[]
[null,null,"En caso de tener algún comentario u observación al dato registrado en la respuesta de la presente pregunta, o de los datos que derivan de la misma, favor de anotarlo en el siguiente espacio. De lo contrario, déjelo en blanco."]
[]
[]
[]
[]
[]
[]
[]
["3.17.-","Seleccione las fuentes de financiamiento que fueron empleadas durante el año 2022 para la ejecución de los planes y programas de desarrollo urbano y/u ordenamiento territorial en la entidad federativa.",null,null,null,null,null,null,null,null,null,null,null,null,null,null,null,null,null,null,null,null,null,null,null,null,null,null,null,null,null,null,{"$f":"IF(COUNTBLANK(C459:C465)=7,1,0)","v":1}]
[null,null,"Puede seleccionar con \"X\" más de un código.  "]
[null,null,"Si marca el numeral 5, anote la otra fuente de financiamiento en el recuadro que está al final de la lista."]
[null,null,"Si elige el numeral 6 o el 9, no marque otro código."]
[]
[null,null,null,"1. Recursos de organismos no gubernamentales"]
[null,null,null,"2. Recursos federales"]
[null,null,null,"3. Recursos del presupuesto estatal. ¿Cuántos municipios/demarcaciones territoriales se beneficiaron con este recurso?",null,null,null,null,null,null,null,null,null,null,null,null,null,null,null,null,null,null,null,null,null,null,null,null,null,null,null,null,{"$f":"IF(OR(C461=\"X\",C461=\"x\"),COUNTBLANK(AC461),0)","v":0}]
[null,null,null,"4. Recursos municipales/de las demarcaciones territoriales"]
[null,null,null,"5. Otra (especifique)"]
[null,null,null,"6. Ninguna"]
[null,null,null,"9. No se sabe"]
[]
[null,null,"Otra fuente de financiamiento:\n(especifique)",null,null,null,null,null,null,null,null,null,null,null,null,null,null,null,null,null,null,null,null,null,null,null,null,null,null,null,null,null,{"$f":"IF(UPPER(C463)=\"X\",COUNTBLANK(G467),0)","v":0}]
[]
[null,null,"En caso de tener algún comentario u observación al dato registrado en la respuesta de la presente pregunta, o de los datos que derivan de la misma, favor de anotarlo en el siguiente espacio. De lo contrario, déjelo en blanco."]
[]
[]
[]
[null,null,null,null,null,null,null,null,null,null,null,null,null,null,null,null,null,null,null,null,null,null,null,null,null,null,null,null,null,null,null,null,{"$f":"IF(SUM(AG381,AG398,AG408,AG420,AG435,AG436,AG437,AG444,AG454,AG461,AG467)=0,0,1)","v":1}]
[]
[]
[]
[null,"III.5 Zonas metropolitanas y conurbaciones"]
[null,"Glosario de la subsección:"]
[null,null,"1.- Conurbación: se refiere a la continuidad física y demográfica que formen dos o más centros de población."]
[null,null,"2.- Conurbación intermunicipal: se refiere a la unión física entre dos o más localidades geoestadísticas urbanas de diferentes municipios y cuya población en conjunto asciende a 100 mil o más habitantes."]
[null,null,"3.- Zona metropolitana: se refiere a aquellos centros de población o conurbaciones que, por su complejidad, interacciones, relevancia social y económica, conforman una unidad territorial de influencia dominante y revisten importancia estratégica para el desarrollo nacional, las cuales han sido reconocidas por una declaratoria federal."]
[]
["3.18.-","Indique si durante el año 2022 existieron conurbaciones en la entidad federativa.",null,null,null,null,null,null,null,null,null,null,null,null,null,null,null,null,null,null,null,null,null,null,null,null,null,null,null,null,null,null,{"$f":"IF(COUNTBLANK(C486)+COUNTBLANK(I486)+COUNTBLANK(T486)=3,1,0)","v":1}]
[null,null,"Seleccione con \"X\" un solo código."]
[]
[null,null,null,"1. Sí",null,null,null,null,null,"2. No (pase a la pregunta 3.20)",null,null,null,null,null,null,null,null,null,null,"9. No se sabe (pase a la pregunta 3.20)"]
[]
[null,null,"En caso de tener algún comentario u observación al dato registrado en la respuesta de la presente pregunta, o de los datos que derivan de la misma, favor de anotarlo en el siguiente espacio. De lo contrario, déjelo en blanco."]
[null,null,null,null,null,null,null,null,null,null,null,null,null,null,null,null,null,null,null,null,null,null,null,null,null,null,null,null,null,null,null,null,null,null,null,{"$f":"IF(AK489=1,COUNTBLANK(C489),0)","v":0},0]
[]
[]
[]
[]
[]
[]
["3.19.-","Anote la cantidad de conurbaciones intermunicipales/entre demarcaciones territoriales o interestatales que existieron en la entidad federativa durante el año 2022.",null,null,null,null,null,null,null,null,null,null,null,null,null,null,null,null,null,null,null,null,null,null,null,null,null,null,null,null,null,null,{"$f":"IF(UPPER(C486=\"X\"),COUNTBLANK(C499)+COUNTBLANK(Q499),0)","v":0}]
[]
[null,null,"Cantidad de conurbaciones intermunicipales/\nentre demarcaciones territoriales",null,null,null,null,null,null,null,null,null,null,null,null,null,"Cantidad de conurbaciones interestatales"]
[]
[]
[null,null,"En caso de tener algún comentario u observación al dato registrado en la respuesta de la presente pregunta, o de los datos que derivan de la misma, favor de anotarlo en el siguiente espacio. De lo contrario, déjelo en blanco."]
[]
[]
[]
[]
[]
[]
[]
["3.20.-","Indique si durante el año 2022 existieron zonas metropolitanas en la entidad federativa.",null,null,null,null,null,null,null,null,null,null,null,null,null,null,null,null,null,null,null,null,null,null,null,null,null,null,null,null,null,null,{"$f":"IF(COUNTBLANK(C512)+COUNTBLANK(I512)+COUNTBLANK(T512)=3,1,0)","v":1}]
[null,null,"Seleccione con \"X\" un solo código."]
[]
[null,null,null,"1. Sí",null,null,null,null,null,"2. No (pase a la pregunta 3.23)",null,null,null,null,null,null,null,null,null,null,"9. No se sabe (pase a la pregunta 3.23)"]
[]
[null,null,"En caso de tener algún comentario u observación al dato registrado en la respuesta de la presente pregunta, o de los datos que derivan de la misma, favor de anotarlo en el siguiente espacio. De lo contrario, déjelo en blanco."]
[null,null,null,null,null,null,null,null,null,null,null,null,null,null,null,null,null,null,null,null,null,null,null,null,null,null,null,null,null,null,null,null,null,null,null,{"$f":"IF(AK515=1,COUNTBLANK(C515),0)","v":0},0]
[]
[]
[]
[]
[]
[]
["3.21.-","Enliste las zonas metropolitanas existentes durante el año 2022, indique si tuvieron instrumentos jurídicos o de planeación que las regularan y anote tanto el nombre del instrumento como el año de última modificación de dicho instrumento."]
[null,null,"Si responde \"1.Sí\" en la columna \"¿Existió un instrumento jurídico o de planeación vigente que regule a la zona metropolitana?\", llene las celdas que se activan en color amarillo. "]
[null,null,"Si el instrumento jurídico o de planeación no ha sido modificado, anote el año de emisión en la columna \"Año de última modificación\". "]
[]
[null,null,"Nombre de la zona metropolitana",null,null,null,null,null,null,null,null,null,null,"¿Existió un instrumento jurídico o de planeación vigente que reguló a la zona metropolitana? \n(1.Sí / 2.No / 9.No se sabe)",null,null,null,null,null,"Nombre del instrumento jurídico o de planeación",null,null,null,null,null,null,null,"Año de última modificación"]
[null,null,"1.",null,null,null,null,null,null,null,null,null,null,null,null,null,null,null,null,null,null,null,null,null,null,null,null,null,null,null,null,null,{"$f":"IF(UPPER(C512)=\"X\",IF(COUNTBLANK(D527:D536)=10,1,0),0)","v":0}]
[null,null,"2.",null,null,null,null,null,null,null,null,null,null,null,null,null,null,null,null,null,null,null,null,null,null,null,null,null,null,null,null,null,{"$f":"IF(IF(AND(D527<>\"\",N527=\"\",T527=\"\",AB527=\"\"),1,0)+IF(AND(D528<>\"\",N528=\"\",T528=\"\",AB528=\"\"),1,0)+IF(AND(D529<>\"\",N529=\"\",T529=\"\", AB529=\"\"),1,0)+IF(AND(D530<>\"\",N530=\"\",T530=\"\",AB530=\"\"),1,0)+IF(AND(D531<>\"\",N531=\"\",T531=\"\",AB531=\"\"),1,0)+IF(AND(D532<>\"\",N532=\"\",T532=\"\",AB532=\"\"),1,0)+IF(AND(D533<>\"\",N533=\"\",T533=\"\",AB533=\"\"),1,0)+IF(AND(D534<>\"\",N534=\"\",T534=\"\",AB534=\"\"),1,0)+IF(AND(D535<>\"\",N535=\"\",T535=\"\",AB535=\"\"),1,0)+IF(AND(D536<>\"\",N536=\"\",T536=\"\",AB536=\"\"),1,0)>0,1,0)","v":0}]
[null,null,"3."]
[null,null,"4."]
[null,null,"5."]
[null,null,"6."]
[null,null,"7."]
[null,null,"8."]
[null,null,"9."]
[null,null,"10."]
[]
[null,null,"En caso de tener algún comentario u observación al dato registrado en la respuesta de la presente pregunta, o de los datos que derivan de la misma, favor de anotarlo en el siguiente espacio. De lo contrario, déjelo en blanco."]
[]
[]
[]
[]
[]
[]
[]
["3.22.-","Seleccione las actividades que en materia de planeación, desarrollo urbano y/u ordenamiento territorial fueron realizadas en las zonas metropolitanas durante el año 2022.",null,null,null,null,null,null,null,null,null,null,null,null,null,null,null,null,null,null,null,null,null,null,null,null,null,null,null,null,null,null,{"$f":"IF(UPPER(C512)=\"X\",IF(COUNTBLANK(C551:C564)=14,1,0),0)","v":0}]
[null,null,"Puede seleccionar con \"X\" más de un código. "]
[null,null,"Si marca el numeral 12, anote la otra actividad en el recuadro que está al final de la lista."]
[null,null,"Si elige el numeral 13 o el 99, no marque otro código. "]
[]
[null,null,null,"1. Infraestructura vial, tránsito y transporte"]
[null,null,null,"2. Densificación, consolidación urbana y uso eficiente del territorio, con espacios públicos seguros y de calidad"]
[null,null,null,"3. Políticas habitacionales y las relativas al equipamiento regional y metropolitano "]
[null,null,null,"4. Localización de espacios para desarrollo industrial de carácter metropolitano "]
[null,null,null,"5. Gestión integral del agua y recursos hidráulicos (agua potable, drenaje, saneamiento, tratamiento de aguas residuales, recuperación de cuencas hidrográficas e hidrológicas, aprovechamiento de aguas pluviales) "]
[null,null,null,"6. Preservación y restauración del equilibrio ecológico, aprovechamiento sustentable de recursos naturales y protección al ambiente (calidad del aire y protección de la atmósfera)"]
[null,null,null,"7. Gestión integral de residuos sólidos municipales, en especial los industriales y peligrosos "]
[null,null,null,"8. Prevención, mitigación y resiliencia ante los riesgos y los efectos del cambio climático "]
[null,null,null,"9. Accesibilidad universal y movilidad "]
[null,null,null,"10. Prestación de servicios públicos comunes"]
[null,null,null,"11. Mecanismos y fuentes de financiamiento de las acciones metropolitanas, como el fondo metropolitano"]
[null,null,null,"12. Otra (especifique)"]
[null,null,null,"13. Ninguna"]
[null,null,null,"99. No se sabe"]
[]
[null,null,"Otra actividad:\n(especifique)",null,null,null,null,null,null,null,null,null,null,null,null,null,null,null,null,null,null,null,null,null,null,null,null,null,null,null,null,null,{"$f":"IF(UPPER(C562)=\"X\",COUNTBLANK(G566),0)","v":0}]
[]
[null,null,"En caso de tener algún comentario u observación al dato registrado en la respuesta de la presente pregunta, o de los datos que derivan de la misma, favor de anotarlo en el siguiente espacio. De lo contrario, déjelo en blanco."]
[]
[]
[]
[null,null,null,null,null,null,null,null,null,null,null,null,null,null,null,null,null,null,null,null,null,null,null,null,null,null,null,null,null,null,null,null,{"$f":"IF(SUM(AG483,AG496,AG509,AG527,AG528,AG546,AG566)=0,0,1)","v":1}]
[]
[]
[]
[null,"III.6 Reservas territoriales de propiedad estatal y áreas naturales protegidas"]
[null,"Glosario de la subsección:"]
[null,null,"1.- Área natural protegida: Las zonas del territorio nacional y aquéllas sobre las que la nación ejerce su soberanía y jurisdicción, en donde los ambientes originales no han sido significativamente alterados por la actividad del ser humano o que requieren ser preservadas y restauradas y están sujetas al régimen previsto en la Ley General del Equilibrio Ecológico y la Protección al Ambiente."]
[null,null,"2.- Polígono: se refiere a la figura geométrica regular o irregular, a la cual se le da forma por medio de la medición de ángulos y distancias de sus lados, haciendo apoyo en cada uno de sus puntos."]
[null,null,"3.- Reservas territoriales: se refiere a las áreas de un centro de población que serán utilizadas para su crecimiento."]
[]
["3.23.-","Indique si durante el año 2022 en la entidad federativa existieron reservas territoriales de propiedad estatal, si existió un registro y si estaban comprendidas cartográficamente en algún instrumento de planeación, además seleccione el tipo de instrumento.",null,null,null,null,null,null,null,null,null,null,null,null,null,null,null,null,null,null,null,null,null,null,null,null,null,null,null,null,null,null,{"$f":"IF(AND(I589=1,M589=\"\"),1,0)+IF(AND(M589=1,Q589=\"\"),1,0)+IF(Q589=1,IF(COUNTBLANK(Y589:AD589)=6,1,0),0)+COUNTBLANK(I589)","v":1}]
[null,null,"Puede seleccionar con \"X\" más de un tipo de instrumento de planeación."]
[null,null,"Si responde \"1.Sí\" en la columna \"¿Existieron?\", llene las celdas que se activan en color amarillo. "]
[null,null,"Si marca la opción \"Otro\", anote el otro instrumento de planeación en el recuadro que está al final de la tabla."]
[]
[null,null,null,null,null,null,null,null,"¿Existieron?\n(1.Sí / 2.No /\n9.No se sabe)",null,null,null,"¿Existió un registro o relación?\n(1.Sí / 2.No /\n9.No se sabe)",null,null,null,"¿Estaban comprendidas cartográficamente en algún instrumento de planeación vigente?\n(1.Sí / 2.No / 9.No se sabe)",null,null,null,null,null,null,null,"Instrumento de planeación"]
[null,null,null,null,null,null,null,null,null,null,null,null,null,null,null,null,null,null,null,null,null,null,null,null,"Plan",null,"Programa",null,"Otro"]
[null,null,"1.","Reservas territoriales",null,null,null,null,null,null,null,null,null,null,null,null,null,null,null,null,null,null,null,null,null,null,null,null,null,null,null,null,0]
[null,null,null,null,null,null,null,null,null,null,null,null,null,null,null,null,null,null,null,null,null,null,null,null,null,null,null,null,null,null,null,null,0]
[null,null,"Otro instrumento de planeación:\n(especifique)",null,null,null,null,null,null,null,null,null,null,null,null,null,null,null,null,null,null,null,null,null,null,null,null,null,null,null,null,null,{"$f":"IF(UPPER(AC589)=\"X\",COUNTBLANK(G591),0)","v":0}]
[]
[null,null,"En caso de tener algún comentario u observación al dato registrado en la respuesta de la presente pregunta, o de los datos que derivan de la misma, favor de anotarlo en el siguiente espacio. De lo contrario, déjelo en blanco."]
[null,null,null,null,null,null,null,null,null,null,null,null,null,null,null,null,null,null,null,null,null,null,null,null,null,null,null,null,null,null,null,null,null,null,null,{"$f":"IF(AK594=1,COUNTBLANK(C594),0)","v":0},0]
[]
[]
[]
[]
[]
[]
["3.24.-","Si contestó afirmativamente en la primera columna de la pregunta 3.23, indique si durante el año 2022 existieron reservas territoriales de propiedad estatal según el destino potencial y anote tanto la cantidad de polígonos como la superficie que abarcaban en hectáreas.",null,null,null,null,null,null,null,null,null,null,null,null,null,null,null,null,null,null,null,null,null,null,null,null,null,null,null,null,null,null,{"$f":"IF(AND(I589=1,M589=1),IF(AND(M607=1,OR(S607=\"\",Y607=\"\")),1,0)+IF(AND(M608=1,OR(S608=\"\",Y608=\"\")),1,0)+IF(AND(M609=1,OR(S609=\"\",Y609=\"\")),1,0)+IF(AND(M610=1,OR(S610=\"\",Y610=\"\")),1,0)+IF(AND(M611=1,OR(S611=\"\",Y611=\"\")),1,0)+IF(AND(M612=1,OR(S612=\"\",Y612=\"\")),1,0)+IF(AND(M613=1,OR(S613=\"\",Y613=\"\")),1,0)+IF(AND(M614=1,OR(S614=\"\",Y614=\"\")),1,0)+COUNTBLANK(M607:M614),0)","v":0}]
[null,null,"Si responde \"1.Sí\" en la columna \"¿Existieron reservas territoriales con este tipo de destino?\", llene las celdas que se activan en color amarillo. "]
[null,null,"Si responde \"1.Sí\" en el numeral 8, anote el otro destino potencial en el recuadro que se encuentra al final de la tabla."]
[]
[null,null,"Reservas territoriales de propiedad estatal"]
[null,null,"Destino potencial",null,null,null,null,null,null,null,null,null,"¿Existieron reservas territoriales con este tipo de destino?\n(1.Sí / 2.No / 9.No se sabe)",null,null,null,null,null,"Cantidad de polígonos",null,null,null,null,null,"Superficie (ha)"]
[null,null,"1.","Habitacional"]
[null,null,"2.","Comercial"]
[null,null,"3.","Equipamiento"]
[null,null,"4.","Industrial"]
[null,null,"5.","Infraestructura"]
[null,null,"6.","Desarrollo turístico"]
[null,null,"7.","Sin destino"]
[null,null,"8.","Otro (especifique)"]
[null,null,null,null,null,null,null,null,null,null,null,null,null,null,null,null,null,"S",{"$f":"IF(COUNTBLANK(S607:S614)=8,\"\",IF(AND(SUM(S607:S614)=0,COUNTIF(S607:S614,\"NS\")>0),\"NS\",SUM(S607:S614)))","v":""},null,null,null,null,null,{"$f":"IF(COUNTBLANK(Y607:Y614)=8,\"\",IF(AND(SUM(Y607:Y614)=0,COUNTIF(Y607:Y614,\"NS\")>0),\"NS\",SUM(Y607:Y614)))","v":""}]
[]
[null,null,"Otro destino:\n(especifique)",null,null,null,null,null,null,null,null,null,null,null,null,null,null,null,null,null,null,null,null,null,null,null,null,null,null,null,null,null,{"$f":"IF(M614=1,COUNTBLANK(G617),0)","v":0}]
[]
[null,null,"En caso de tener algún comentario u observación al dato registrado en la respuesta de la presente pregunta, o de los datos que derivan de la misma, favor de anotarlo en el siguiente espacio. De lo contrario, déjelo en blanco."]
[]
[]
[]
[]
[]
[]
[]
["3.25.-","Indique si durante el año 2022 en la entidad federativa existieron áreas naturales protegidas de competencia estatal y anote tanto la cantidad como la superficie que abarcaban en hectáreas.",null,null,null,null,null,null,null,null,null,null,null,null,null,null,null,null,null,null,null,null,null,null,null,null,null,null,null,null,null,null,{"$f":"IF(M631=1,IF(COUNTBLANK(S631)+COUNTBLANK(Y631)>0,1,0),0)+COUNTBLANK(M631)","v":1}]
[null,null,"Si responde \"1.Sí\" en la columna \"¿Existieron?\", llene las celdas que se activan en color amarillo. "]
[]
[null,null,null,null,null,null,null,null,null,null,null,null,"¿Existieron?\n(1.Sí / 2.No / 9.No se sabe)",null,null,null,null,null,"Cantidad",null,null,null,null,null,"Superficie (ha)"]
[null,null,"1.","Áreas naturales protegidas",null,null,null,null,null,null,null,null,null,null,null,null,null,null,null,null,null,null,null,null,null,null,null,null,null,null,null,null,0]
[]
[null,null,"En caso de tener algún comentario u observación al dato registrado en la respuesta de la presente pregunta, o de los datos que derivan de la misma, favor de anotarlo en el siguiente espacio. De lo contrario, déjelo en blanco."]
[null,null,null,null,null,null,null,null,null,null,null,null,null,null,null,null,null,null,null,null,null,null,null,null,null,null,null,null,null,null,null,null,null,null,null,{"$f":"IF(AK634=1,COUNTBLANK(C634),0)","v":0},0]
[]
[]
[null,null,null,null,null,null,null,null,null,null,null,null,null,null,null,null,null,null,null,null,null,null,null,null,null,null,null,null,null,null,null,null,{"$f":"IF(SUM(AG582,AG591,AG601,AG617,AG627)=0,0,1)","v":1}]
[]
[]
[]
[null,"III.7 Asentamientos humanos irregulares"]
[null,"Glosario de la subsección:"]
[null,null,"1.-Asentamientos humanos irregulares: se refiere a los núcleos de población ubicados en áreas o predios fraccionados o subdivididos sin la autorización correspondiente, independientemente de su régimen de tenencia de la tierra."]
[]
["3.26.-","Indique si las instituciones que realizan actividades en materia territorial brindaron atención a los asentamientos humanos irregulares que existieron en la entidad federativa durante el año 2022.",null,null,null,null,null,null,null,null,null,null,null,null,null,null,null,null,null,null,null,null,null,null,null,null,null,null,null,null,null,null,{"$f":"IF(COUNTBLANK(C648)+COUNTBLANK(I648)+COUNTBLANK(T648)=3,1,0)","v":1}]
[null,null,"Seleccione con \"X\" un solo código."]
[]
[null,null,null,"1. Sí",null,null,null,null,null,"2. No (pase a la pregunta 3.28)",null,null,null,null,null,null,null,null,null,null,"9. No se sabe (pase a la pregunta 3.28)"]
[]
[null,null,"En caso de tener algún comentario u observación al dato registrado en la respuesta de la presente pregunta, o de los datos que derivan de la misma, favor de anotarlo en el siguiente espacio. De lo contrario, déjelo en blanco."]
[null,null,null,null,null,null,null,null,null,null,null,null,null,null,null,null,null,null,null,null,null,null,null,null,null,null,null,null,null,null,null,null,null,null,null,{"$f":"IF(AK651=1,COUNTBLANK(C651),0)","v":0},0]
[]
[]
[]
[]
[]
[]
["3.27.-","Seleccione las acciones que la entidad federativa implementó para atender los asentamientos humanos irregulares durante el año 2022. ",null,null,null,null,null,null,null,null,null,null,null,null,null,null,null,null,null,null,null,null,null,null,null,null,null,null,null,null,null,null,{"$f":"IF(UPPER(C648)=\"X\",IF(COUNTBLANK(C663:C670)=8,1,0),0)","v":0}]
[null,null,"Puede seleccionar con \"X\" más de un código. "]
[null,null,"Si marca el numeral 7, anote la otra acción en el recuadro que está al final de la lista."]
[null,null,"Si elige el numeral 9, no marque otro código. "]
[]
[null,null,null,"1. Emisión de políticas públicas"]
[null,null,null,"2. Emisión de normatividad"]
[null,null,null,"3. Dar opiniones"]
[null,null,null,"4. Brindar asesorías"]
[null,null,null,"5. Otorgar financiamiento"]
[null,null,null,"6. Regularización de la tenencia de la tierra"]
[null,"",null,"7. Otra (especifique)"]
[null,null,null,"9. No se sabe"]
[]
[null,null,"Otra acción:\n(especifique)",null,null,null,null,null,null,null,null,null,null,null,null,null,null,null,null,null,null,null,null,null,null,null,null,null,null,null,null,null,{"$f":"IF(UPPER(C669)=\"X\",COUNTBLANK(G672),0)","v":0}]
[]
[null,null,"En caso de tener algún comentario u observación al dato registrado en la respuesta de la presente pregunta, o de los datos que derivan de la misma, favor de anotarlo en el siguiente espacio. De lo contrario, déjelo en blanco."]
[]
[]
[]
[null,null,null,null,null,null,null,null,null,null,null,null,null,null,null,null,null,null,null,null,null,null,null,null,null,null,null,null,null,null,null,null,{"$f":"IF(SUM(AG645,AG658,AG672)=0,0,1)","v":1}]
[]
[]
[]
[null,"III.8 Ciudad compacta"]
[null,"Glosario de la subsección:"]
[null,null,"1.- Ciudad compacta: se refiere a aquella en la que se impide el fenómeno de expulsión de habitantes del centro de población o se refuerza la densificación del centro de población mediante la edificación de vivienda vertical al interior de las ciudades, reutilizando predios baldíos, promoviendo el uso mixto de suelo y la proximidad de los equipamientos a las áreas habitacionales."]
[]
["3.28.-","Indique si durante el año 2022 la entidad federativa realizó acciones para fomentar el crecimiento urbano mediante la estrategia de ciudad compacta.",null,null,null,null,null,null,null,null,null,null,null,null,null,null,null,null,null,null,null,null,null,null,null,null,null,null,null,null,null,null,{"$f":"IF(COUNTBLANK(C689)+COUNTBLANK(I689)+COUNTBLANK(T689)=3,1,0)","v":1}]
[null,null,"Seleccione con \"X\" un solo código."]
[]
[null,null,null,"1. Sí",null,null,null,null,null,"2. No (pase a la pregunta 3.31)",null,null,null,null,null,null,null,null,null,null,"9. No se sabe (pase a la pregunta 3.31)"]
[]
[null,null,"En caso de tener algún comentario u observación al dato registrado en la respuesta de la presente pregunta, o de los datos que derivan de la misma, favor de anotarlo en el siguiente espacio. De lo contrario, déjelo en blanco."]
[]
[]
[]
[]
[]
[]
[]
["3.29.-","Seleccione las acciones realizadas durante el año 2022 por la entidad federativa para fomentar el crecimiento urbano mediante la estrategia de ciudad compacta.  ",null,null,null,null,null,null,null,null,null,null,null,null,null,null,null,null,null,null,null,null,null,null,null,null,null,null,null,null,null,null,{"$f":"IF(UPPER(C689)=\"X\",IF(COUNTBLANK(C704:C712)=9,1,0),0)","v":0}]
[null,null,"Puede seleccionar con \"X\" más de un código. "]
[null,null,"Si marca el numeral 8, anote la otra acción en el recuadro que está al final de la lista."]
[null,null,"Si elige el numeral 9, no marque otro código. "]
[]
[null,null,null,"1. Incentivar el uso del suelo intraurbano mediante el aprovechamiento de predios baldíos o subutilizados"]
[null,null,null,"2. Reaprovechamiento de edificios y lotes en situación de deterioro"]
[null,null,null,"3. Rehabilitación y mejoramiento para la dotación y ubicación de áreas verdes y equipamientos"]
[null,null,null,"4. Promover la adopción de los perímetros de contención urbana como base para la delimitación del crecimiento deseable de las ciudades"]
[null,null,null,"5. Inclusión de vivienda vertical en los nuevos desarrollos"]
[null,null,null,"6. Incentivar la creación, ampliación o consolidación de la red peatonal, la red ciclista y transporte público masivo "]
[null,null,null,"7. Incentivar el uso de suelo mixto"]
[null,null,null,"8. Otra (especifique)"]
[null,null,null,"9. No se sabe"]
[]
[null,null,"Otra acción:\n(especifique)",null,null,null,null,null,null,null,null,null,null,null,null,null,null,null,null,null,null,null,null,null,null,null,null,null,null,null,null,null,{"$f":"IF(UPPER(C711)=\"X\",COUNTBLANK(G714),0)","v":0}]
[]
[null,null,"En caso de tener algún comentario u observación al dato registrado en la respuesta de la presente pregunta, o de los datos que derivan de la misma, favor de anotarlo en el siguiente espacio. De lo contrario, déjelo en blanco."]
[]
[]
[]
[]
[]
[]
[]
["3.30.-","Indique si durante el año 2022 la entidad federativa contempló alguna política para dirigir la construcción de vivienda nueva considerando criterios de consolidación urbana que delimitaran el crecimiento deseable en las ciudades.",null,null,null,null,null,null,null,null,null,null,null,null,null,null,null,null,null,null,null,null,null,null,null,null,null,null,null,null,null,null,{"$f":"IF(UPPER(C689)=\"X\",(IF(COUNTBLANK(S728:S733)>0,1,0)),0)","v":0}]
[null,null,"Si responde \"1.Sí\" en el numeral 6, anote el otro criterio en el recuadro que se encuentra al final de la tabla."]
[]
[null,null,"Criterios de consolidación urbana",null,null,null,null,null,null,null,null,null,null,null,null,null,null,null,"¿Se contempló en alguna política \nde construcción de vivienda?\n(1.Sí / 2.No / 9.No se sabe) "]
[null,null,"1.","Acceso a los habitantes a equipamiento urbano"]
[null,null,"2.","Servicios de infraestructura"]
[null,null,"3.","Servicios básicos"]
[null,null,"4.","Empleo"]
[null,null,"5.","Movilidad"]
[null,null,"6.","Otro (especifique)"]
[]
[null,null,"Otro criterio de consolidación:\n(especifique)",null,null,null,null,null,null,null,null,null,null,null,null,null,null,null,null,null,null,null,null,null,null,null,null,null,null,null,null,null,{"$f":"IF(S733=1,COUNTBLANK(G735),0)","v":0}]
[]
[null,null,"En caso de tener algún comentario u observación al dato registrado en la respuesta de la presente pregunta, o de los datos que derivan de la misma, favor de anotarlo en el siguiente espacio. De lo contrario, déjelo en blanco."]
[]
[]
[]
[null,null,null,null,null,null,null,null,null,null,null,null,null,null,null,null,null,null,null,null,null,null,null,null,null,null,null,null,null,null,null,null,{"$f":"IF(SUM(AG686,AG699,AG714,AG724,AG735)=0,0,1)","v":1}]
[]
[]
[]
[null,"III.9 Movilidad"]
[null,"Glosario de la subsección:"]
[null,null,"1.- Movilidad: se refiere a la capacidad, facilidad y eficiencia de tránsito o desplazamiento de las personas y bienes en el territorio, priorizando la accesibilidad universal, así como la sustentabilidad de la misma."]
[]
["3.31.-","Indique si durante el año 2022 en la entidad federativa se implementaron acciones en materia de movilidad.",null,null,null,null,null,null,null,null,null,null,null,null,null,null,null,null,null,null,null,null,null,null,null,null,null,null,null,null,null,null,{"$f":"IF(COUNTBLANK(C752)+COUNTBLANK(I752)+COUNTBLANK(T752)=3,1,0)","v":1}]
[null,null,"Seleccione con \"X\" un solo código."]
[]
[null,null,null,"1. Sí",null,null,null,null,null,"2. No (pase a la pregunta 3.36)",null,null,null,null,null,null,null,null,null,null,"9. No se sabe (pase a la pregunta 3.36)"]
[]
[null,null,"En caso de tener algún comentario u observación al dato registrado en la respuesta de la presente pregunta, o de los datos que derivan de la misma, favor de anotarlo en el siguiente espacio. De lo contrario, déjelo en blanco."]
[]
[]
[]
[]
[]
[]
[]
["3.32.-","Indique si durante el año 2022 existió en la entidad federativa un comité o grupo de trabajo que regulara las acciones en materia de movilidad.",null,null,null,null,null,null,null,null,null,null,null,null,null,null,null,null,null,null,null,null,null,null,null,null,null,null,null,null,null,null,{"$f":"IF(UPPER(C752)=\"X\",IF(COUNTBLANK(C765)+COUNTBLANK(I765)+COUNTBLANK(T765)=3,1,0),0)","v":0}]
[null,null,"Seleccione con \"X\" un solo código."]
[]
[null,null,null,"1. Sí",null,null,null,null,null,"2. No",null,null,null,null,null,null,null,null,null,null,"9. No se sabe"]
[]
[null,null,"En caso de tener algún comentario u observación al dato registrado en la respuesta de la presente pregunta, o de los datos que derivan de la misma, favor de anotarlo en el siguiente espacio. De lo contrario, déjelo en blanco."]
[]
[]
[]
[]
[]
[]
[]
["3.33.-","Seleccione las políticas y/o programas de movilidad que fueron implementados durante el año 2022 en la entidad federativa.",null,null,null,null,null,null,null,null,null,null,null,null,null,null,null,null,null,null,null,null,null,null,null,null,null,null,null,null,null,null,{"$f":"IF(UPPER(C752)=\"X\",IF(COUNTBLANK(C780:C794)=15,1,0),0)","v":0}]
[null,null,"Puede seleccionar con \"X\" más de un código. "]
[null,null,"Si marca el numeral 13, anote la otra política o programa en el recuadro que está al final de la lista."]
[null,null,"Si elige el numeral 14 o el 99, no marque otro código. "]
[]
[null,null,null,"1. Accesibilidad universal"]
[null,null,null,"2. Distribución equitativa del espacio público "]
[null,null,null,"3. Usos de suelo mixtos"]
[null,null,null,"4. Oferta de opciones de servicios y modos de transporte integrados"]
[null,null,null,"5. Políticas y acciones de movilidad residencial"]
[null,null,null,"6. Programas de prevención de accidentes automovilísticos "]
[null,null,null,"7. Mejoramiento de infraestructura vial y de movilidad"]
[null,null,null,"8. Acciones en materia de espacios públicos y transporte, tomando en cuenta la perspectiva de género"]
[null,null,null,"9. Mecanismos de financiamiento de la operación de transporte público"]
[null,null,null,"10. Políticas que integren el transporte de carga"]
[null,null,null,"11. Fomento a la movilidad institucional"]
[null,null,null,"12. Diseño y construcción de una red de vialidades primarias que faciliten la conectividad y el desarrollo de infraestructura"]
[null,null,null,"13. Otra (especifique)"]
[null,null,null,"14. Ninguna"]
[null,null,null,"99. No se sabe"]
[]
[null,null,"Otra política o programa:\n(especifique)",null,null,null,null,null,null,null,null,null,null,null,null,null,null,null,null,null,null,null,null,null,null,null,null,null,null,null,null,null,{"$f":"IF(UPPER(C792)=\"X\",COUNTBLANK(G796),0)","v":0}]
[]
[null,null,"En caso de tener algún comentario u observación al dato registrado en la respuesta de la presente pregunta, o de los datos que derivan de la misma, favor de anotarlo en el siguiente espacio. De lo contrario, déjelo en blanco."]
[]
[]
[]
[]
[]
[]
[]
["3.34.-","Seleccione las acciones que realizó la entidad federativa durante el año 2022 para promover y/o priorizar la adopción de nuevos hábitos de movilidad.",null,null,null,null,null,null,null,null,null,null,null,null,null,null,null,null,null,null,null,null,null,null,null,null,null,null,null,null,null,null,{"$f":"IF(UPPER(C752)=\"X\",IF(COUNTBLANK(C811:C817)=7,1,0),0)","v":0}]
[null,null,"Puede seleccionar con \"X\" más de un código. "]
[null,null,"Si marca el numeral 5, anote la otra acción en el recuadro que está al final de la lista."]
[null,null,"Si elige el numeral 6 o el 9, no marque otro código. "]
[]
[null,null,null,"1. Respeto y preferencia en el desplazamiento del peatón"]
[null,null,null,"2. Prevención de conflictos de tránsito"]
[null,null,null,"3. Desestimular el uso del automóvil particular"]
[null,null,null,"4. Promover el uso intensivo del transporte público y no motorizado"]
[null,null,null,"5. Otra (especifique)"]
[null,null,null,"6. Ninguna"]
[null,null,null,"9. No se sabe"]
[]
[null,null,"Otra acción:\n(especifique)",null,null,null,null,null,null,null,null,null,null,null,null,null,null,null,null,null,null,null,null,null,null,null,null,null,null,null,null,null,{"$f":"IF(UPPER(C815)=\"X\",COUNTBLANK(G819),0)","v":0}]
[]
[null,null,"En caso de tener algún comentario u observación al dato registrado en la respuesta de la presente pregunta, o de los datos que derivan de la misma, favor de anotarlo en el siguiente espacio. De lo contrario, déjelo en blanco."]
[]
[]
[]
[]
[]
[]
[]
["3.35.-","Seleccione los mecanismos en materia de movilidad que existieron en la entidad federativa durante el año 2022.",null,null,null,null,null,null,null,null,null,null,null,null,null,null,null,null,null,null,null,null,null,null,null,null,null,null,null,null,null,null,{"$f":"IF(UPPER(C752)=\"X\",IF(COUNTBLANK(C834:C839)=6,1,0),0)","v":0}]
[null,null,"Puede seleccionar con \"X\" más de un código. "]
[null,null,"Si marca el numeral 4, anote el otro mecanismo en el recuadro que está al final de la lista."]
[null,null,"Si elige el numeral 5 o el 9, no marque otro código. "]
[null,"   "]
[null,null,null,"1. Diagnóstico de movilidad"]
[null,null,null,"2. Mecanismos de seguimiento de políticas y programas de movilidad "]
[null,null,null,"3. Mecanismos de evaluación de políticas y programas de movilidad"]
[null,null,null,"4. Otro (especifique)"]
[null,null,null,"5. Ninguno"]
[null,null,null,"9. No se sabe"]
[]
[null,null,"Otro mecanismo:\n(especifique)",null,null,null,null,null,null,null,null,null,null,null,null,null,null,null,null,null,null,null,null,null,null,null,null,null,null,null,null,null,{"$f":"IF(UPPER(C837)=\"X\",COUNTBLANK(G841),0)","v":0}]
[]
[null,null,"En caso de tener algún comentario u observación al dato registrado en la respuesta de la presente pregunta, o de los datos que derivan de la misma, favor de anotarlo en el siguiente espacio. De lo contrario, déjelo en blanco."]
[]
[]
[]
[null,null,null,null,null,null,null,null,null,null,null,null,null,null,null,null,null,null,null,null,null,null,null,null,null,null,null,null,null,null,null,null,{"$f":"IF(SUM(AG749,AG762,AG775,AG796,AG806,AG819,AG829,AG841)=0,0,1)","v":1}]
[]
[]
[]
[null,"III.10 Resiliencia"]
[null,"Glosario de la subsección:"]
[null,null,"1.- Auxilio: se refiere a la respuesta de ayuda a las personas en riesgo o a las víctimas de un siniestro, emergencia o desastre, por parte de grupos especializados públicos o privados, o por las unidades internas de protección civil, así como las acciones para salvaguardar los demás agentes afectables."]
[null,null,"2.- Fenómeno geológico: se refiere al agente perturbador que tiene como causa directa las acciones y movimientos de la corteza terrestre. A esta categoría pertenecen los sismos, las erupciones volcánicas, los tsunamis, la inestabilidad de laderas, los flujos, los caídos o derrumbes, los hundimientos, la subsidencia y los agrietamientos."]
[null,null,"3.- Fenómeno hidrometeorológico: se refiere al agente perturbador que se genera por la acción de los agentes atmosféricos, tales como: ciclones tropicales, lluvias extremas, inundaciones pluviales, fluviales, costeras y lacustres; tormentas de nieve, granizo, polvo y electricidad; heladas; sequías; ondas cálidas y gélidas; y tornados."]
[null,null,"4.- Fenómeno químico-tecnológico: se refiere al agente perturbador que se genera por la acción violenta de diferentes sustancias derivadas de su interacción molecular o nuclear. Comprende fenómenos destructivos tales como: incendios de todo tipo, explosiones, fugas tóxicas, radiaciones y derrames."]
[null,null,"5.- Fenómeno sanitario-ecológico: se refiere al agente perturbador que se genera por la acción patógena de agentes biológicos que afectan a la población, a los animales y a las cosechas, causando su muerte o la alteración de su salud. Las epidemias o plagas constituyen un desastre sanitario en el sentido estricto del término. En esta clasificación también se ubica la contaminación del aire, agua, suelo y alimentos."]
[null,null,"6.- Fenómeno socio-organizativo: se refiere al agente perturbador que se genera con motivo de errores humanos o por acciones premeditadas, que se dan en el marco de grandes concentraciones o movimientos masivos de población, tales como: demostraciones de inconformidad social, concentración masiva de población, terrorismo, sabotaje, vandalismo, accidentes aéreos, marítimos o terrestres, e interrupción o afectación de los servicios básicos o de infraestructura estratégica."]
[null,null,"7.- Gestión integral de riesgos: se refiere al conjunto de acciones encaminadas a la identificación, análisis, evaluación, control y reducción de los riesgos, considerándolos por su origen multifactorial y en un proceso permanente de construcción que involucra a los tres órdenes de gobierno, así como a los sectores de la sociedad, lo que facilita la implementación de políticas públicas, estrategias y procedimientos que combatan las causas estructurales de los desastres y fortalezcan las capacidades de resiliencia o resistencia de la sociedad. Comprende la identificación de los riesgos y, en su caso, su proceso de formación, previsión, prevención, mitigación, preparación, auxilio, recuperación y reconstrucción."]
[null,null,"8.- Identificación de riesgos: se refiere a la acción de reconocer y valorar las pérdidas o daños probables sobre los agentes afectables y su distribución geográfica, a través del análisis de los peligros y la vulnerabilidad."]
[null,null,"9.- Instrumentos de administración y transferencia de riesgos: se refiere a aquellos programas o mecanismos financieros  que permiten a las entidades públicas de los diversos órdenes de gobierno, compartir o cubrir sus riesgos catastróficos, transfiriendo el costo total o parcial a instituciones financieras nacionales o internacionales."]
[null,null,"10.- Mitigación: se refiere a toda acción orientada a disminuir el impacto o daños ante la presencia de un agente perturbador sobre un agente afectable."]
[null,null,"11.- Perfil de Resiliencia Urbana: se refiere a la evaluación de referencia basada en variables sociales, económicas, urbanas y físicas, cuyo fin es medir la capacidad de respuesta y recuperación ante el impacto de los fenómenos naturales y generar el diagnóstico de resiliencia urbana de una ciudad para verificar cuáles son los factores más alejados del nivel óptimo de resiliencia."]
[null,null,"12.- Preparación: se refiere a aquellas actividades y medidas tomadas anticipadamente para asegurar una respuesta eficaz ante el impacto de un fenómeno perturbador en el corto, mediano y largo plazo."]
[null,null,"13.- Prevención: se refiere al conjunto de acciones y mecanismos implementados con antelación a la ocurrencia de los agentes perturbadores, con la finalidad de conocer los peligros o los riesgos, identificarlos, eliminarlos o reducirlos; evitar o mitigar su impacto destructivo sobre las personas, bienes, infraestructura, así como anticiparse a los procesos sociales de construcción de los mismos."]
[null,null,"14.- Previsión: se refiere al acto de tomar conciencia de los riesgos que pueden causarse y las necesidades para enfrentarlos a través de las etapas de identificación de riesgos, prevención, mitigación, preparación, atención de emergencias, recuperación y reconstrucción."]
[null,null,"15.- Reconstrucción: se refiere a la acción transitoria orientada a alcanzar el entorno de normalidad social y económica que prevalecía entre la población antes de sufrir los efectos producidos por un agente perturbador en un determinado espacio o jurisdicción. Este proceso debe buscar en la medida de lo posible la reducción de los riesgos existentes, asegurando la no generación de nuevos riesgos y mejorando para ello las condiciones preexistentes."]
[null,null,"16.- Recuperación: se refiere al proceso que inicia durante la emergencia, consistente en acciones encaminadas al retorno a la normalidad de la comunidad afectada."]
[null,null,"17.- Resiliencia: se refiere a la capacidad de un sistema, comunidad o sociedad potencialmente expuesta a un peligro para resistir, asimilar, adaptarse y recuperarse de sus efectos en un corto plazo y de manera eficiente, a través de la preservación y restauración de sus estructuras básicas y funcionales, para lograr una mejor protección futura y mejorar las medidas de reducción de riesgos."]
[]
["3.36.-","Indique si durante el año 2022 en la entidad federativa se obtuvieron Perfiles de Resiliencia Urbana de los municipios/demarcaciones territoriales.",null,null,null,null,null,null,null,null,null,null,null,null,null,null,null,null,null,null,null,null,null,null,null,null,null,null,null,null,null,null,{"$f":"IF(COUNTBLANK(C874)+COUNTBLANK(O874)+COUNTBLANK(U874)=3,1,IF(UPPER(C874)=\"X\",COUNTBLANK(H874),0))","v":1}]
[null,null,"Seleccione con \"X\" un solo código."]
[]
[null,null,null,"1.Sí. ¿Cuántos?",null,null,null,null,null,null,null,null,null,null,null,"2.No",null,null,null,null,null,"9.No se sabe"]
[]
[null,null,"En caso de tener algún comentario u observación al dato registrado en la respuesta de la presente pregunta, o de los datos que derivan de la misma, favor de anotarlo en el siguiente espacio. De lo contrario, déjelo en blanco."]
[]
[]
[]
[]
[]
[]
[]
["3.37.-","Indique si durante el año 2022 en la entidad federativa se realizaron las siguientes acciones en materia de gestión integral de riesgos y si se aplicaron instrumentos financieros para ejecutarlas.",null,null,null,null,null,null,null,null,null,null,null,null,null,null,null,null,null,null,null,null,null,null,null,null,null,null,null,null,null,null,{"$f":"IF(AND(Q889=1,X889=\"\"),1,0)+IF(AND(Q890=1,X890=\"\"),1,0)+IF(AND(Q891=1,X891=\"\"),1,0)+IF(AND(Q892=1,X892=\"\"),1,0)+IF(AND(Q893=1,X893=\"\"),1,0)+IF(AND(Q894=1,X894=\"\"),1,0)+IF(AND(Q895=1,X895=\"\"),1,0)+IF(AND(Q896=1,X896=\"\"),1,0)+IF(AND(Q897=1,X897=\"\"),1,0)+COUNTBLANK(Q889:Q897)","v":9}]
[null,null,"Si responde \"1.Sí\" en la columna \"¿Realizó esta acción?\", llene las celdas que se activan en color amarillo. "]
[null,null,"Si marca el numeral 9, anote el otro mecanismo en el recuadro que está al final de la lista."]
[]
[null,null,"Acciones de gestión integral de riesgos",null,null,null,null,null,null,null,null,null,null,null,null,null,"¿Realizó esta acción?\n(1.Sí / 2.No / 9.No se sabe)",null,null,null,null,null,null,"¿Aplicó algún\ninstrumento financiero?\n(1.Sí / 2.No / 9.No se sabe)"]
[null,null,"1.","Identificación de riesgos"]
[null,null,"2.","Previsión"]
[null,null,"3.","Prevención"]
[null,null,"4.","Mitigación"]
[null,null,"5.","Preparación"]
[null,null,"6.","Auxilio"]
[null,null,"7.","Recuperación"]
[null,null,"8.","Reconstrucción"]
[null,null,"9.","Otra (especifique)"]
[]
[null,null,"Otra acción:\n(especifique)",null,null,null,null,null,null,null,null,null,null,null,null,null,null,null,null,null,null,null,null,null,null,null,null,null,null,null,null,null,{"$f":"IF(Q897=1,COUNTBLANK(G899),0)","v":0}]
[]
[null,null,"En caso de tener algún comentario u observación al dato registrado en la respuesta de la presente pregunta, o de los datos que derivan de la misma, favor de anotarlo en el siguiente espacio. De lo contrario, déjelo en blanco."]
[]
[]
[]
[]
[]
[]
[]
["3.38.-","Si contestó \"1.Sí\" en los numerales 3 y/o 4 de la pregunta 3.37, indique si en la entidad federativa se realizaron acciones de prevención y/o de mitigación de riesgos en coordinación con instituciones de algún nivel de gobierno durante el año 2022.",null,null,null,null,null,null,null,null,null,null,null,null,null,null,null,null,null,null,null,null,null,null,null,null,null,null,null,null,null,null,{"$f":"IF(Q891=1,IF(COUNTBLANK(M912:M914)>0,1,0),0)","v":0}]
[null,null,null,null,null,null,null,null,null,null,null,null,null,null,null,null,null,null,null,null,null,null,null,null,null,null,null,null,null,null,null,null,{"$f":"IF(Q892=1,IF(COUNTBLANK(V912:V914)>0,1,0),0)","v":0}]
[null,null,"Nivel de gobierno",null,null,null,null,null,null,null,null,null,"¿Se realizaron acciones coordinadas en materia de prevención de riesgos?\n(1.Sí / 2.No / 9.No se sabe)",null,null,null,null,null,null,null,null,"¿Se realizaron acciones coordinadas en materia de mitigación de riesgos?\n(1.Sí / 2.No / 9.No se sabe)"]
[null,null,"1.","Federal"]
[null,null,"2.","Estatal"]
[null,null,"3.","Municipal/de la demarcación territorial "]
[]
[null,null,"En caso de tener algún comentario u observación al dato registrado en la respuesta de la presente pregunta, o de los datos que derivan de la misma, favor de anotarlo en el siguiente espacio. De lo contrario, déjelo en blanco."]
[]
[]
[]
[]
[]
[]
[]
["3.39.-","Indique si en la entidad federativa se aplicaron instrumentos de administración y transferencia de riesgos durante el año 2022.",null,null,null,null,null,null,null,null,null,null,null,null,null,null,null,null,null,null,null,null,null,null,null,null,null,null,null,null,null,null,{"$f":"IF(COUNTBLANK(C927)+COUNTBLANK(I927)+COUNTBLANK(T927)=3,1,0)","v":1}]
[null,null,"Seleccione con \"X\" un solo código."]
[]
[null,null,null,"1. Sí",null,null,null,null,null,"2. No",null,null,null,null,null,null,null,null,null,null,"9. No se sabe"]
[]
[null,null,"En caso de tener algún comentario u observación al dato registrado en la respuesta de la presente pregunta, o de los datos que derivan de la misma, favor de anotarlo en el siguiente espacio. De lo contrario, déjelo en blanco."]
[]
[]
[]
[]
[]
[]
[]
["3.40.-","Indique si durante el año 2022 la entidad federativa brindó asesoría a sus municipios/demarcaciones territoriales para que elaboraran y/o actualizaran sus atlas de riesgos. ",null,null,null,null,null,null,null,null,null,null,null,null,null,null,null,null,null,null,null,null,null,null,null,null,null,null,null,null,null,null,{"$f":"IF(COUNTBLANK(C941)+COUNTBLANK(N941)+COUNTBLANK(T941)=3,1,IF(UPPER(C941)=\"X\",COUNTBLANK(H941),0))","v":1}]
[null,null,"Seleccione con \"X\" un solo código."]
[null,null,"Si selecciona el numeral \"1.Sí\" indique la cantidad de municipios/demarcaciones territoriales que recibieron asesoría."]
[]
[null,null,null,"1.Sí. ¿Cuántos?",null,null,null,null,null,null,null,null,null,null,"2.No",null,null,null,null,null,"9.No se sabe"]
[]
[null,null,"En caso de tener algún comentario u observación al dato registrado en la respuesta de la presente pregunta, o de los datos que derivan de la misma, favor de anotarlo en el siguiente espacio. De lo contrario, déjelo en blanco."]
[]
[]
[]
[]
[]
[]
[]
["3.41.-","Indique si durante el año 2022 en la entidad federativa existieron asentamientos humanos en zonas de riesgo atendidos por instituciones que realizaron actividades en materia territorial y seleccione los tipos de fenómenos que los afectaron.",null,null,null,null,null,null,null,null,null,null,null,null,null,null,null,null,null,null,null,null,null,null,null,null,null,null,null,null,null,null,{"$f":"IF(AND(I959=1,M959=\"\"),1,0)+IF(M959=1,IF(COUNTBLANK(Q959:AD959)=14,1,0),0)+COUNTBLANK(I959)","v":1}]
[null,null,"Puede seleccionar con \"X\" más de un tipo de fenómeno."]
[null,null,"Si responde \"1.Sí\" en la columna \"¿Existieron?\", llene las celdas que se activan en color amarillo. "]
[null,null,"Si selecciona el numeral 6, anote el otro fenómeno natural en el recuadro que está al final de la tabla."]
[null,null,"Si selecciona el numeral 9, no marque otra columna."]
[]
[null,null,null,null,null,null,null,null,"¿Existieron?\n(1.Sí / 2.No /\n9.No se sabe)",null,null,null,"¿Existió un registro o relación?\n(1.Sí / 2.No /\n9.No se sabe)",null,null,null,"Tipo de fenómeno\n(Ver catálogo)"]
[null,null,null,null,null,null,null,null,null,null,null,null,null,null,null,null,1,null,2,null,3,null,4,null,5,null,6,null,9]
[null,null,"1.","Asentamientos humanos en zonas de riesgo",null,null,null,null,null,null,null,null,null,null,null,null,null,null,null,null,null,null,null,null,null,null,null,null,null,null,null,null,0]
[null,null,null,null,null,null,null,null,null,null,null,null,null,null,null,null,null,null,null,null,null,null,null,null,null,null,null,null,null,null,null,null,0]
[null,null,"Otro fenómeno natural:\n(especifique)",null,null,null,null,null,null,null,null,null,null,null,null,null,null,null,null,null,null,null,null,null,null,null,null,null,null,null,null,null,{"$f":"IF(UPPER(AA959)=\"X\",COUNTBLANK(G961),0)","v":0}]
[]
[null,null,"Catálogo de tipo de fenómeno"]
[null,null,"1.","Geológico",null,null,null,null,null,null,null,"4.","Sanitario-ecológico",null,null,null,null,null,null,null,null,"9.","No se sabe"]
[null,null,"2.","Hidrometeorológico",null,null,null,null,null,null,null,"5.","Socio-organizativo"]
[null,null,"3.","Químico-tecnológico",null,null,null,null,null,null,null,"6.","Otro (especifique)"]
[]
[null,null,"En caso de tener algún comentario u observación al dato registrado en la respuesta de la presente pregunta, o de los datos que derivan de la misma, favor de anotarlo en el siguiente espacio. De lo contrario, déjelo en blanco."]
[null,null,null,null,null,null,null,null,null,null,null,null,null,null,null,null,null,null,null,null,null,null,null,null,null,null,null,null,null,null,null,null,null,null,null,{"$f":"IF(AK969=1,COUNTBLANK(C969),0)","v":0},0]
[]
[]
[]
[]
[]
[]
["3.42.-","Indique si durante el año 2022 la entidad federativa tuvo representados cartográficamente los asentamientos humanos en zonas de riesgo y seleccione los instrumentos, productos o materiales en los que estaban representados. ",null,null,null,null,null,null,null,null,null,null,null,null,null,null,null,null,null,null,null,null,null,null,null,null,null,null,null,null,null,null,{"$f":"IF(AND(M959=1,H984=\"\"),1,0)+IF(H984=1,IF(COUNTBLANK(M984:AD984)=18,1,0),0)","v":0}]
[null,null,"Puede seleccionar con \"X\" más de tipo de instrumento, producto o material."]
[null,null,"Si responde \"1.Sí\" en la columna \"¿Estuvieron representados cartográficamente?\", llene las celdas que se activan en color amarillo. "]
[null,null,"Si selecciona el numeral 8, anote el otro instrumento, producto o material en el recuadro que está al final de la tabla."]
[null,null,"Si selecciona el numeral 9, no marque otro instrumento, producto o material."]
[]
[null,null,null,null,null,null,null,"¿Estuvieron representados cartográficamente?\n(1.Sí / 2.No /\n9.No se sabe)",null,null,null,null,"Instrumentos, productos o materiales\n(Ver catálogo)",null,null,null,null,null,null,null,null,null,null,null,null,null,null,null,null,null,null,null,{"$f":"IF(OR(AND(UPPER(AC984)=\"X\",COUNTBLANK(M984:AB984)<16),COUNTBLANK(M984:AD984)=18),1,0)","v":1}]
[null,null,null,null,null,null,null,null,null,null,null,null,1,null,2,null,3,null,4,null,5,null,6,null,7,null,8,null,9]
[null,null,"1.","Asentamientos humanos en zonas de riesgo",null,null,null,null,null,null,null,null,null,null,null,null,null,null,null,null,null,null,null,null,null,null,null,null,null,null,null,null,0]
[]
[null,null,"Otro instrumento, producto o material:\n(especifique)",null,null,null,null,null,null,null,null,null,null,null,null,null,null,null,null,null,null,null,null,null,null,null,null,null,null,null,null,null,{"$f":"IF(UPPER(AA984)=\"X\",COUNTBLANK(G986),0)","v":0}]
[]
[null,null,"Catálogo de instrumentos, productos o materiales"]
[null,null,"1.","Atlas de riesgos estatal",null,null,null,null,null,null,null,null,null,null,null,null,"6.","Plan/programa estatal de desarrollo urbano y ordenamiento territorial"]
[null,null,"2.","Atlas de riesgos nacional",null,null,null,null,null,null,null,null,null,null,null,null,"7.","Programa estatal de protección civil"]
[null,null,"3.","Plano de restricciones y afectaciones u homólogo a nivel estatal",null,null,null,null,null,null,null,null,null,null,null,null,"8.","Otro (especifique)"]
[null,null,"4.","Sistema de información geográfica",null,null,null,null,null,null,null,null,null,null,null,null,"9.","No se sabe"]
[null,null,"5.","Mapas de peligros"]
[]
[null,null,"En caso de tener algún comentario u observación al dato registrado en la respuesta de la presente pregunta, o de los datos que derivan de la misma, favor de anotarlo en el siguiente espacio. De lo contrario, déjelo en blanco."]
[null,null,null,null,null,null,null,null,null,null,null,null,null,null,null,null,null,null,null,null,null,null,null,null,null,null,null,null,null,null,null,null,null,null,null,{"$f":"IF(AK996=1,COUNTBLANK(C996),0)","v":0},0]
[]
[]
[]
[]
[]
[]
["3.43.-","Indique si durante el año 2022 la entidad federativa realizó acciones para prevenir el surgimiento o expansión de asentamientos humanos en zonas de riesgo.",null,null,null,null,null,null,null,null,null,null,null,null,null,null,null,null,null,null,null,null,null,null,null,null,null,null,null,null,null,null,{"$f":"IF(COUNTBLANK(C1006)+COUNTBLANK(I1006)+COUNTBLANK(T1006)=3,1,0)","v":1}]
[null,null,"Seleccione con \"X\" un solo código."]
[]
[null,null,null,"1. Sí",null,null,null,null,null,"2. No (pase a la pregunta 3.45)",null,null,null,null,null,null,null,null,null,null,"9. No se sabe (pase a la pregunta 3.45)"]
[]
[null,null,"En caso de tener algún comentario u observación al dato registrado en la respuesta de la presente pregunta, o de los datos que derivan de la misma, favor de anotarlo en el siguiente espacio. De lo contrario, déjelo en blanco."]
[null,null,null,null,null,null,null,null,null,null,null,null,null,null,null,null,null,null,null,null,null,null,null,null,null,null,null,null,null,null,null,null,null,null,null,{"$f":"IF(AK1009=1,COUNTBLANK(C1009),0)","v":0},0]
[]
[]
[]
[]
[]
[]
["3.44.-","Seleccione las acciones que la entidad federativa realizó durante el año 2022 para prevenir el surgimiento o expansión de asentamientos humanos en zonas de riesgo.",null,null,null,null,null,null,null,null,null,null,null,null,null,null,null,null,null,null,null,null,null,null,null,null,null,null,null,null,null,null,{"$f":"IF(UPPER(C1006)=\"X\",IF(COUNTBLANK(C1021:C1027)=7,1,0),0)","v":0}]
[null,null,"Puede seleccionar con \"X\" más de un código. "]
[null,null,"Si marca el numeral 6, anote la otra acción en el recuadro que está al final de la lista."]
[null,null,"Si elige el numeral 9, no marque otro código. "]
[]
[null,null,null,"1. Emisión de políticas públicas"]
[null,null,null,"2. Emisión de normatividad"]
[null,null,null,"3. Dar opiniones "]
[null,null,null,"4. Brindar asesorías"]
[null,null,null,"5. Otorgar financiamiento"]
[null,null,null,"6. Otra (especifique)"]
[null,null,null,"9. No se sabe"]
[]
[null,null,"Otra acción:\n(especifique)",null,null,null,null,null,null,null,null,null,null,null,null,null,null,null,null,null,null,null,null,null,null,null,null,null,null,null,null,null,{"$f":"IF(UPPER(C1026)=\"X\",COUNTBLANK(G1029),0)","v":0}]
[]
[null,null,"En caso de tener algún comentario u observación al dato registrado en la respuesta de la presente pregunta, o de los datos que derivan de la misma, favor de anotarlo en el siguiente espacio. De lo contrario, déjelo en blanco."]
[]
[]
[]
[null,null,null,null,null,null,null,null,null,null,null,null,null,null,null,null,null,null,null,null,null,null,null,null,null,null,null,null,null,null,null,null,{"$f":"IF(SUM(AG871,AG884,AG899,AG909,AG910,AG924,AG937,AG951,AG961,AG976,AG986,AG1003,AG1016,AG1029)=0,0,1)","v":1}]
[]
[]
[]
[null,"III.11 Información para la administración del territorio"]
[]
["3.45.-","Indique qué recursos organizacionales tuvieron durante el año 2022 las instituciones asentadas en la pregunta 3.1. ",null,null,null,null,null,null,null,null,null,null,null,null,null,null,null,null,null,null,null,null,null,null,null,null,null,null,null,null,null,null,{"$f":"IF(L33=1,IF(COUNTBLANK(P1046:P1049)>0,1,0),0)","v":0}]
[null,null,"Si responde \"1.Sí\" en el numeral 4, anote el otro recurso organizacional en el recuadro que se encuentra al final de la tabla.",null,null,null,null,null,null,null,null,null,null,null,null,null,null,null,null,null,null,null,null,null,null,null,null,null,null,null,null,null,{"$f":"IF(L43=1,IF(COUNTBLANK(U1046:U1049)>0,1,0),0)","v":0}]
[null,null,null,null,null,null,null,null,null,null,null,null,null,null,null,null,null,null,null,null,null,null,null,null,null,null,null,null,null,null,null,null,{"$f":"IF(L53=1,IF(COUNTBLANK(Z1046:Z1049)>0,1,0),0)","v":0}]
[null,null,"Recursos organizacionales",null,null,null,null,null,null,null,null,null,null,null,null,"¿Existió recurso organizacional?"]
[null,null,null,null,null,null,null,null,null,null,null,null,null,null,null,"En materia de planeación urbana \n(1.Sí / 2.No /\n9.No se sabe)",null,null,null,null,"En materia de desarrollo urbano\n(1.Sí / 2.No / \n9.No se sabe)",null,null,null,null,"En materia de ordenamiento territorial\n (1.Sí / 2.No /\n9.No se sabe)"]
[null,null,"1. ","Manual de organización"]
[null,null,"2.","Manual de procedimientos"]
[null,null,"3.","Sistema de gestión de calidad"]
[null,null,"4.","Otro (especifique)"]
[]
[null,null,"Otro recurso organizacional:\n(especifique)",null,null,null,null,null,null,null,null,null,null,null,null,null,null,null,null,null,null,null,null,null,null,null,null,null,null,null,null,null,{"$f":"IF(OR(P1049=1, U1049=1, Z1049=1),COUNTBLANK(G1051),0)","v":0}]
[]
[null,null,"En caso de tener algún comentario u observación al dato registrado en la respuesta de la presente pregunta, o de los datos que derivan de la misma, favor de anotarlo en el siguiente espacio. De lo contrario, déjelo en blanco."]
[]
[]
[]
[]
[]
[]
[]
["3.46.-","Indique si durante el año 2022 las instituciones que realizaron actividades en materia de territorio en la entidad federativa tuvieron cartografía digital y si fue actualizada.",null,null,null,null,null,null,null,null,null,null,null,null,null,null,null,null,null,null,null,null,null,null,null,null,null,null,null,null,null,null,{"$f":"IF(AND(G1069=1,K1069=\"\"),1,0)+IF(K1069=1,IF(COUNTBLANK(O1069:AD1069)=16,1,0),0)+COUNTBLANK(G1069)","v":1}]
[null,null,"Puede seleccionar con \"X\" más de un medio de actualización."]
[null,null,"Si responde \"1.Sí\" en la columna \"¿Tuvieron?\", llene las celdas que se activan en color amarillo. "]
[null,null,"Si selecciona la columna \"Otro\", anote el otro medio de actualización en el recuadro que está al final de la tabla."]
[null,null,"Si selecciona la columna \"No se sabe\", no marque otro medio de actualización."]
[]
[null,null,null,null,null,null,"¿Tuvieron?\n(1.Sí / 2.No /\n9.No se sabe)",null,null,null,"¿Fue actualizada durante el año 2022?\n(1.Sí / 2.No /\n9.No se sabe)",null,null,null,"Medio de actualización"]
[null,null,null,null,null,null,null,null,null,null,null,null,null,null,"Vuelo fotogra-métrico\n(restitución)",null,null,"Levanta-mientos topográficos",null,null,"Extracción vectorial con uso de imágenes satelitales u ortofotos ",null,null,null,"Uso de drones",null,"Otro \n(especifique)",null,"No se sabe  "]
[null,null,"1.","Cartografía digital",null,null,null,null,null,null,null,null,null,null,null,null,null,null,null,null,null,null,null,null,null,null,null,null,null,null,null,null,0]
[]
[null,null,"Otro medio de actualización:\n(especifique)",null,null,null,null,null,null,null,null,null,null,null,null,null,null,null,null,null,null,null,null,null,null,null,null,null,null,null,null,null,{"$f":"IF(UPPER(AA1069)=\"X\",COUNTBLANK(G1071),0)","v":0}]
[]
[null,null,"En caso de tener algún comentario u observación al dato registrado en la respuesta de la presente pregunta, o de los datos que derivan de la misma, favor de anotarlo en el siguiente espacio. De lo contrario, déjelo en blanco."]
[null,null,null,null,null,null,null,null,null,null,null,null,null,null,null,null,null,null,null,null,null,null,null,null,null,null,null,null,null,null,null,null,null,null,null,{"$f":"IF(AK1074=1,COUNTBLANK(C1074),0)","v":0},0]
[]
[]
[]
[]
[]
[]
["3.47.-","Si contestó que tuvo cartografía digital, seleccione los formatos de almacenamiento o respaldo utilizados durante el año 2022 por las instituciones que realizaron actividades en materia de territorio.",null,null,null,null,null,null,null,null,null,null,null,null,null,null,null,null,null,null,null,null,null,null,null,null,null,null,null,null,null,null,{"$f":"IF(G1069=1,IF(COUNTBLANK(C1086:C1092)=7,1,0),0)","v":0}]
[null,null,"Puede seleccionar con \"X\" más de un código. "]
[null,null,"Si marca el numeral 6, anote el otro formato en el recuadro que está al final de la lista."]
[null,null,"Si elige el numeral 9, no marque otro código. "]
[]
[null,null,null,"1. Shape"]
[null,null,null,"2. DXF"]
[null,null,null,"3. DWG"]
[null,null,null,"4. DGN"]
[null,null,null,"5. TAB (mapinfo)"]
[null,null,null,"6. Otro (especifique)"]
[null,null,null,"9. No se sabe"]
[]
[null,null,"Otro formato:\n(especifique)",null,null,null,null,null,null,null,null,null,null,null,null,null,null,null,null,null,null,null,null,null,null,null,null,null,null,null,null,null,{"$f":"IF(UPPER(C1091)=\"X\",COUNTBLANK(G1094),0)","v":0}]
[]
[null,null,"En caso de tener algún comentario u observación al dato registrado en la respuesta de la presente pregunta, o de los datos que derivan de la misma, favor de anotarlo en el siguiente espacio. De lo contrario, déjelo en blanco."]
[]
[]
[]
[]
[]
[]
[]
["3.48.-","Si contestó que tuvo cartografía digital, seleccione las capas de información existentes durante el año 2022 en las instituciones con actividades en materia de territorio en la entidad federativa. ",null,null,null,null,null,null,null,null,null,null,null,null,null,null,null,null,null,null,null,null,null,null,null,null,null,null,null,null,null,null,{"$f":"IF(G1069=1,IF(COUNTBLANK(C1109:C1129)=21,1,0),0)","v":0}]
[null,null,"Puede seleccionar con \"X\" más de un código. "]
[null,null,"Si marca el numeral 20, anote la otra capa en el recuadro que está al final de la lista."]
[null,null,"Si elige el numeral 99, no marque otro código. "]
[]
[null,null,null,"1. Límite de municipio/demarcación territorial"]
[null,null,null,"2. Zonas"]
[null,null,null,"3. Asentamientos humanos (colonias)"]
[null,null,null,"4. Localidad"]
[null,null,null,"5. Sectores"]
[null,null,null,"6. Manzanas"]
[null,null,null,"7. Predios"]
[null,null,null,"8. Construcciones"]
[null,null,null,"9. Vialidades"]
[null,null,null,"10. Cuerpos de agua"]
[null,null,null,"11. Servicios públicos"]
[null,null,null,"12. Infraestructura"]
[null,null,null,"13. Reservas territoriales"]
[null,null,null,"14. Regionalización"]
[null,null,null,"15. Zonas metropolitanas y conurbaciones"]
[null,null,null,"16. Asentamientos humanos irregulares"]
[null,null,null,"17. Asentamientos humanos en zonas de riesgo"]
[null,null,null,"18. Áreas naturales protegidas"]
[null,null,null,"19. Usos de suelo"]
[null,null,null,"20. Otra (especifique)"]
[null,null,null,"99. No se sabe"]
[]
[null,null,"Otra capa:\n(especifique)",null,null,null,null,null,null,null,null,null,null,null,null,null,null,null,null,null,null,null,null,null,null,null,null,null,null,null,null,null,{"$f":"IF(UPPER(C1128)=\"X\",COUNTBLANK(G1131),0)","v":0}]
[]
[null,null,"En caso de tener algún comentario u observación al dato registrado en la respuesta de la presente pregunta, o de los datos que derivan de la misma, favor de anotarlo en el siguiente espacio. De lo contrario, déjelo en blanco."]
[]
[]
[]
[]
[]
[]
[]
["3.49.-","Indique si durante el año 2022 las instituciones que realizaron las actividades en materia territorial tuvieron bases de datos tabulares para almacenar la información.",null,null,null,null,null,null,null,null,null,null,null,null,null,null,null,null,null,null,null,null,null,null,null,null,null,null,null,null,null,null,{"$f":"IF(COUNTBLANK(C1144)+COUNTBLANK(I1144)+COUNTBLANK(T1144)=3,1,0)","v":1}]
[null,null,"Seleccione con \"X\" un solo código."]
[]
[null,null,null,"1. Sí",null,null,null,null,null,"2. No (pase a la pregunta 3.52)",null,null,null,null,null,null,null,null,null,null,"9. No se sabe (pase a la pregunta 3.52)"]
[]
[null,null,"En caso de tener algún comentario u observación al dato registrado en la respuesta de la presente pregunta, o de los datos que derivan de la misma, favor de anotarlo en el siguiente espacio. De lo contrario, déjelo en blanco."]
[null,null,null,null,null,null,null,null,null,null,null,null,null,null,null,null,null,null,null,null,null,null,null,null,null,null,null,null,null,null,null,null,null,null,null,{"$f":"IF(AK1147=1,COUNTBLANK(C1147),0)","v":0},0]
[]
[]
[]
[]
[]
[]
["3.50.-","Seleccione la información que durante el año 2022 estuvo almacenada en las bases de datos tabulares empleadas por las instituciones que realizaron actividades en materia territorial.",null,null,null,null,null,null,null,null,null,null,null,null,null,null,null,null,null,null,null,null,null,null,null,null,null,null,null,null,null,null,{"$f":"IF(UPPER(C1144)=\"X\",IF(COUNTBLANK(C1159:C1167)=9,1,0),0)","v":0}]
[null,null,"Puede seleccionar con \"X\" más de un código. "]
[null,null,"Si marca el numeral 8, anote la otra información en el recuadro que está al final de la lista."]
[null,null,"Si elige el numeral 9, no marque otro código. "]
[]
[null,null,null,"1. Reservas territoriales"]
[null,null,null,"2. Asentamientos humanos irregulares"]
[null,null,null,"3. Movilidad"]
[null,null,null,"4. Regionalización"]
[null,null,null,"5. Zonas metropolitanas y conurbaciones"]
[null,null,null,"6. Asentamientos humanos en zonas de riesgo"]
[null,null,null,"7. Áreas naturales protegidas"]
[null,null,null,"8. Otra (especifique)"]
[null,null,null,"9. No se sabe"]
[]
[null,null,"Otra información:\n(especifique)",null,null,null,null,null,null,null,null,null,null,null,null,null,null,null,null,null,null,null,null,null,null,null,null,null,null,null,null,null,{"$f":"IF(UPPER(C1166)=\"X\",COUNTBLANK(G1169),0)","v":0}]
[]
[null,null,"En caso de tener algún comentario u observación al dato registrado en la respuesta de la presente pregunta, o de los datos que derivan de la misma, favor de anotarlo en el siguiente espacio. De lo contrario, déjelo en blanco."]
[]
[]
[]
[]
[]
[]
[]
["3.51.-","Seleccione el software utilizado por las instituciones para la gestión de las bases de datos tabulares durante el año 2022.",null,null,null,null,null,null,null,null,null,null,null,null,null,null,null,null,null,null,null,null,null,null,null,null,null,null,null,null,null,null,{"$f":"IF(UPPER(C1144)=\"X\",IF(COUNTBLANK(C1184:C1192)=9,1,0),0)","v":0}]
[null,null,"Puede seleccionar con \"X\" más de un código. "]
[null,null,"Si marca el numeral 8, anote el otro software en el recuadro que está al final de la lista."]
[null,null,"Si elige el numeral 9, no marque otro código. "]
[]
[null,null,null,"1. Excel"]
[null,null,null,"2. Access"]
[null,null,null,"3. Oracle"]
[null,null,null,"4. MySQL"]
[null,null,null,"5. PostgreSQL"]
[null,null,null,"6. SQLServer"]
[null,null,null,"7. DBF"]
[null,null,null,"8. Otro (especifique)"]
[null,null,null,"9. No se sabe"]
[]
[null,null,"Otro software:\n(especifique)",null,null,null,null,null,null,null,null,null,null,null,null,null,null,null,null,null,null,null,null,null,null,null,null,null,null,null,null,null,{"$f":"IF(UPPER(C1191)=\"X\",COUNTBLANK(G1194),0)","v":0}]
[]
[null,null,"En caso de tener algún comentario u observación al dato registrado en la respuesta de la presente pregunta, o de los datos que derivan de la misma, favor de anotarlo en el siguiente espacio. De lo contrario, déjelo en blanco."]
[]
[]
[]
[]
[]
[]
[]
["3.52.-","Indique si durante el año 2022 la entidad federativa tuvo recursos web que permitieron a la ciudadanía acceder a la información geográfica territorial generada. ",null,null,null,null,null,null,null,null,null,null,null,null,null,null,null,null,null,null,null,null,null,null,null,null,null,null,null,null,null,null,{"$f":"IF(COUNTBLANK(C1207)+COUNTBLANK(I1207)+COUNTBLANK(T1207)=3,1,0)","v":1}]
[null,null,"Seleccione con \"X\" un solo código."]
[]
[null,null,null,"1. Sí",null,null,null,null,null,"2. No (pase a la pregunta 3.54)",null,null,null,null,null,null,null,null,null,null,"9. No se sabe (pase a la pregunta 3.54)"]
[]
[null,null,"En caso de tener algún comentario u observación al dato registrado en la respuesta de la presente pregunta, o de los datos que derivan de la misma, favor de anotarlo en el siguiente espacio. De lo contrario, déjelo en blanco."]
[null,null,null,null,null,null,null,null,null,null,null,null,null,null,null,null,null,null,null,null,null,null,null,null,null,null,null,null,null,null,null,null,null,null,null,{"$f":"IF(AK1210=1,COUNTBLANK(C1210),0)","v":0},0]
[]
[]
[]
[]
[]
[]
["3.53.-","Seleccione la tecnología implementada durante el año 2022 para publicar la información geográfica territorial.",null,null,null,null,null,null,null,null,null,null,null,null,null,null,null,null,null,null,null,null,null,null,null,null,null,null,null,null,null,null,{"$f":"IF(UPPER(C1207)=\"X\",IF(COUNTBLANK(C1222:C1227)=6,1,0),0)","v":0}]
[null,null,"Puede seleccionar con \"X\" más de un código. "]
[null,null,"Si marca el numeral 5, anote la otra tecnología implementada en el recuadro que está al final de la lista."]
[null,null,"Si elige el numeral 9, no marque otro código. "]
[]
[null,null,null,"1. Acceso desde dispositivos móviles"]
[null,null,null,"2. Sistema de información geográfica WEB"]
[null,null,null,"3. Centro colaborativo"]
[null,null,null,"4. Servicios WMS y WFS"]
[null,null,null,"5. Otra (especifique)"]
[null,null,null,"9. No se sabe"]
[]
[null,null,"Otra tecnología:\n(especifique)",null,null,null,null,null,null,null,null,null,null,null,null,null,null,null,null,null,null,null,null,null,null,null,null,null,null,null,null,null,{"$f":"IF(UPPER(C1226)=\"X\",COUNTBLANK(G1229),0)","v":0}]
[]
[null,null,"En caso de tener algún comentario u observación al dato registrado en la respuesta de la presente pregunta, o de los datos que derivan de la misma, favor de anotarlo en el siguiente espacio. De lo contrario, déjelo en blanco."]
[]
[]
[]
[]
[]
[]
[]
["3.54.-","Indique si durante el año 2022 en la entidad federativa existieron indicadores en materia de territorio y seleccione el tipo de indicadores.",null,null,null,null,null,null,null,null,null,null,null,null,null,null,null,null,null,null,null,null,null,null,null,null,null,null,null,null,null,null,{"$f":"IF(G1247=1,IF(COUNTBLANK(J1247:AD1247)=21,1,0),0)+COUNTBLANK(G1247)","v":1}]
[null,null,"Puede seleccionar con \"X\" más de un tipo de indicador."]
[null,null,"Si responde \"1.Sí\" en la columna \"¿Existieron?\", llene las celdas que se activan en color amarillo. "]
[null,null,"Si selecciona la columna \"Otro\", anote el otro indicador en el recuadro que está al final de la tabla."]
[null,null,"Si selecciona la columna \"No se sabe\", no marque otro tipo de indicador."]
[]
[null,null,null,null,null,null,"¿Existieron? (1.Sí / 2.No /\n9.No se sabe)",null,null,"Tipo de indicador"]
[null,null,null,null,null,null,null,null,null,"Evaluación",null,null,"Control",null,null,"Seguimiento",null,null,"Resultados",null,null,"Gestión",null,null,"Otro (especifique)",null,null,"No se sabe"]
[null,null,"1.","Indicadores en materia de territorio"]
[]
[null,null,"Otro indicador:\n(especifique)",null,null,null,null,null,null,null,null,null,null,null,null,null,null,null,null,null,null,null,null,null,null,null,null,null,null,null,null,null,{"$f":"IF(UPPER(Y1247)=\"X\",COUNTBLANK(G1249),0)","v":0}]
[]
[null,null,"En caso de tener algún comentario u observación al dato registrado en la respuesta de la presente pregunta, o de los datos que derivan de la misma, favor de anotarlo en el siguiente espacio. De lo contrario, déjelo en blanco."]
[]
[]
[]
[null,null,null,null,null,null,null,null,null,null,null,null,null,null,null,null,null,null,null,null,null,null,null,null,null,null,null,null,null,null,null,null,{"$f":"IF(SUM(AG1041,AG1042,AG1043,AG1051,AG1061,AG1071,AG1081,AG1094,AG1104,AG1131,AG1141,AG1154,AG1169,AG1179,AG1194,AG1204,AG1217,AG1229,AG1239,AG1249)=0,0,1)","v":1}]
[]
[]
[]
[null,"III.12 Intercambio de información"]
[]
["3.55.-","Seleccione los niveles de administración de las instancias con las que la institución responsable de las actividades en materia territorial en la entidad realizó intercambio de información durante el año 2022.",null,null,null,null,null,null,null,null,null,null,null,null,null,null,null,null,null,null,null,null,null,null,null,null,null,null,null,null,null,null,{"$f":"IF(COUNTBLANK(C1266:C1271)=6,1,0)","v":1}]
[null,null,"Puede seleccionar con \"X\" más de un código. "]
[null,null,"Si elige el numeral 5 o el 9, no marque otro código."]
[]
[]
[null,null,null,"1. Internacional",null,null,null,null,null,null,null,null,"¿Con cuántos?",null,null,null,null,null,null,null,null,null,null,null,null,null,null,null,null,null,null,null,{"$f":"IF(UPPER(C1266)=\"X\",COUNTBLANK(Q1266),0)","v":0}]
[null,null,null,"2. Federal",null,null,null,null,null,null,null,null,"¿Con cuántos?",null,null,null,null,null,null,null,null,null,null,null,null,null,null,null,null,null,null,null,{"$f":"IF(UPPER(C1267)=\"X\",COUNTBLANK(Q1267),0)","v":0}]
[null,null,null,"3. Estatal",null,null,null,null,null,null,null,null,"¿Con cuántos?",null,null,null,null,null,null,null,null,null,null,null,null,null,null,null,null,null,null,null,{"$f":"IF(UPPER(C1268)=\"X\",COUNTBLANK(Q1268),0)","v":0}]
[null,null,null,"4. Municipal o de la demarcación territorial",null,null,null,null,null,null,null,null,"¿Con cuántos?",null,null,null,null,null,null,null,null,null,null,null,null,null,null,null,null,null,null,null,{"$f":"IF(UPPER(C1269)=\"X\",COUNTBLANK(Q1269),0)","v":0}]
[null,null,null,"5. Ninguno (concluya el cuestionario)"]
[null,null,null,"9. No se sabe (concluya el cuestionario)"]
[]
[null,null,"En caso de tener algún comentario u observación al dato registrado en la respuesta de la presente pregunta, o de los datos que derivan de la misma, favor de anotarlo en el siguiente espacio. De lo contrario, déjelo en blanco."]
[null,null,null,null,null,null,null,null,null,null,null,null,null,null,null,null,null,null,null,null,null,null,null,null,null,null,null,null,null,null,null,null,null,null,null,{"$f":"IF(AK1274=1,COUNTBLANK(C1274),0)","v":0},0]
[]
[]
[]
[]
[]
[]
["3.56.-","Seleccione los medios con los que la institución responsable de las actividades en materia territorial en la entidad realizó intercambio de información durante el año 2022.",null,null,null,null,null,null,null,null,null,null,null,null,null,null,null,null,null,null,null,null,null,null,null,null,null,null,null,null,null,null,{"$f":"IF(OR(UPPER(C1266)=\"X\",UPPER(C1267)=\"X\",UPPER(C1268)=\"X\",UPPER(C1269)=\"X\"),IF(COUNTBLANK(C1286:C1295)=10,1,0),0)","v":0}]
[null,null,"Puede seleccionar con \"X\" más de un código. "]
[null,null,"Si marca el numeral 9, anote el otro medio en el recuadro que está al final de la lista."]
[null,null,"Si elige el numeral 99, no marque otro código. "]
[]
[null,"",null,"1. Vía correo electrónico"]
[null,"",null,"2. Vía teléfono"]
[null,null,null,"3. CD"]
[null,null,null,"4. USB"]
[null,"",null,"5. Servicios WMS"]
[null,null,null,"6. Interconexión a bases de datos"]
[null,null,null,"7. Vía web"]
[null,null,null,"8. Vía oficio o por medios impresos"]
[null,null,null,"9. Otro (especifique)"]
[null,null,null,"99. No se sabe"]
[]
[null,null,"Otro medio:\n(especifique)",null,null,null,null,null,null,null,null,null,null,null,null,null,null,null,null,null,null,null,null,null,null,null,null,null,null,null,null,null,{"$f":"IF(UPPER(C1294)=\"X\",COUNTBLANK(G1297),0)","v":0}]
[]
[null,null,"En caso de tener algún comentario u observación al dato registrado en la respuesta de la presente pregunta, o  de los datos que derivan de la misma, favor de anotarlo en el siguiente espacio. De lo contrario, déjelo en blanco."]
[]
[]
[null,null,null,null,null,null,null,null,null,null,null,null,null,null,null,null,null,null,null,null,null,null,null,null,null,null,null,null,null,null,null,null,{"$f":"IF(SUM(AG1261,AG1266,AG1267,AG1268,AG1269,AG1281,AG1297)=0,0,1)","v":1},null,null,{"$f":"IF(SUM(AJ64,AJ242,AJ269,AJ401,AJ489,AJ515,AJ594,AJ634,AJ651,AJ969,AJ996,AJ1009,AJ1074,AJ1147,AJ1210,AJ1274)=0,0,1)","v":0}]
[null,null,null,null,null,null,null,null,null,null,null,null,null,null,null,null,null,null,null,null,null,null,null,null,null,null,null,null,null,null,null,null,{"$f":"IF(AG67=1,B21,IF(AG209=1,B71,IF(AG376=1,B213,IF(AG473=1,B379,IF(AG572=1,B477,IF(AG637=1,B576,IF(AG678=1,B641,IF(AG741=1,B682,IF(AG847=1,B745,IF(AG1035=1,B851,IF(AG1255=1,B1039,IF(AG1302=1,B1259,0))))))))))))","v":"III.1 Administración pública estatal relacionada con el territorio"}]
[]
[]
[null,null," "]

{"sheet":"Glosario","index":7,"n_rows":178,"n_cols":27,"rows_kept":178,"cut":false,"hidden":false,"merged":[[174,2,174,29],[177,2,177,29],[156,2,156,29],[159,2,159,29],[162,2,162,29],[165,2,165,29],[168,2,168,29],[171,2,171,29],[153,2,153,29],[120,2,120,29],[123,2,123,29],[126,2,126,29],[129,2,129,29],[132,2,132,29],[135,2,135,29],[138,2,138,29],[141,2,141,29],[144,2,144,29],[147,2,147,29],[150,2,150,29],[117,2,117,29],[84,2,84,29],[87,2,87,29],[90,2,90,29],[93,2,93,29],[96,2,96,29],[99,2,99,29],[102,2,102,29],[105,2,105,29],[108,2,108,29],[111,2,111,29],[114,2,114,29],[81,2,81,29],[48,2,48,29],[51,2,51,29],[54,2,54,29],[57,2,57,29],[60,2,60,29],[63,2,63,29],[66,2,66,29],[69,2,69,29],[72,2,72,29],[75,2,75,29],[78,2,78,29],[45,2,45,29],[12,2,12,29],[15,2,15,29],[18,2,18,29],[21,2,21,29],[24,2,24,29],[27,2,27,29],[30,2,30,29],[33,2,33,29],[36,2,36,29],[39,2,39,29],[42,2,42,29],[9,1,9,11],[9,13,9,14],[0,1,0,29],[2,1,2,29],[4,1,4,29],[6,1,6,29],[8,26,8,29]]}
[null,"CENSO NACIONAL DE GOBIERNOS\nESTATALES 2023"]
[]
[null,"Módulo 7.\nCatastro, registro y territorio"]
[]
[null,"Sección III. Planeación y gestión territorial"]
[]
[null,"Glosario"]
[]
[null,"Entidad:",null,null,null,null,null,null,null,null,null,null,null,"Clave:",null,null,null,null,null,null,null,null,null,null,null,null,"Índice"]
[null,{"$f":"IF(Presentación!B10=\"\",\"\",Presentación!B10)","v":"Veracruz de Ignacio de la Llave"},null,null,null,null,null,null,null,null,null,null,null,{"$f":"IF(Presentación!N10=\"\",\"\",Presentación!N10)","v":"30"}]
[]
[null,"Accesibilidad"]
[null,null,"Se refiere a las medidas pertinentes para asegurar el acceso de las personas con discapacidad, en igualdad de condiciones con las demás, al entorno físico, el transporte, la información y las comunicaciones, incluidos los sistemas y las tecnologías de la información y las comunicaciones, y a otros servicios e instalaciones abiertos al público o de uso público, tanto en zonas urbanas como rurales."]
[]
[null,"Administración pública estatal"]
[null,null,"Se refiere a aquella que ejerce el gobierno estatal por medio del poder ejecutivo y en interdependencia con el poder legislativo y judicial de acuerdo a las atribuciones establecidas en la Constitución Política del Estado y en las leyes correspondientes. Forma parte de la Federación que integran los Estados Unidos Mexicanos, constituidos como un estado libre y soberano."]
[]
[null,"Área natural protegida"]
[null,null,"Las zonas del territorio nacional y aquéllas sobre las que la nación ejerce su soberanía y jurisdicción, en donde los ambientes originales no han sido significativamente alterados por la actividad del ser humano o que requieren ser preservadas y restauradas y están sujetas al régimen previsto en la Ley General del Equilibrio Ecológico y la Protección al Ambiente."]
[]
[null,"Asentamiento humano en zona de riesgo"]
[null,null,"Se refiere al conglomerado demográfico asentado, ya sea conforme a las regulaciones del desarrollo urbano o bien de forma irregular, en algún espacio territorial en el que existe la probabilidad de que se produzca un daño a la población o las construcciones, originado por un fenómeno perturbador de tipo natural o derivado de las actividades humanas."]
[]
[null,"Asentamientos humanos irregulares"]
[null,null,"Se refiere a los núcleos de población ubicados en áreas o predios fraccionados o subdivididos sin la autorización correspondiente, independientemente de su régimen de tenencia de la tierra."]
[]
[null,"Auxilio"]
[null,null,"Se refiere a la respuesta de ayuda a las personas en riesgo o a las víctimas de un siniestro, emergencia o desastre, por parte de grupos especializados públicos o privados, o por las unidades internas de protección civil, así como las acciones para salvaguardar los demás agentes afectables."]
[]
[null,"Base de datos"]
[null,null,"Se refiere al conjunto de datos relacionados o pertenecientes a un mismo contexto, almacenados sistemáticamente para su posterior uso. Las bases de datos permiten almacenar grandes cantidades de datos para su organización y administración, así como para construir relaciones entre ellos ya que estos por sí solos y de manera aislada no reflejan algún tipo de información."]
[]
[null,"Cartografía digital"]
[null,null,"Se refiere a la representación gráfica del territorio mediante archivos digitales vectoriales de tipo SHP, DWG, DXF, DGN, entre otros, los cuales son visualizados mediante el uso de software cartográfico o un Sistema de Edición Cartográfico."]
[]
[null,"Centro de población"]
[null,null,"Se refiere a las áreas constituidas por las zonas urbanizadas y las que se reserven para su expansión."]
[]
[null,"Ciudad compacta"]
[null,null,"Se refiere a aquella en la que se impide el fenómeno de expulsión de habitantes del centro de población o se refuerza la densificación del \"centro de población\" mediante la edificación de vivienda vertical al interior de las ciudades. Se reutilizan predios baldíos y se promueven los usos mixtos y/o la proximidad de los equipamientos a las áreas habitacionales. "]
[]
[null,"CNGE 2023"]
[null,null,"Se refiere a las siglas con las que se identifica al Censo Nacional de Gobiernos Estatales 2023."]
[]
[null,"Conurbación"]
[null,null,"Se refiere a la continuidad física y demográfica que formen dos o más centros de población."]
[]
[null,"Cuencas hidrográficas"]
[null,null,"Se refiere a la superficie delimitada por una divisoria cuyas aguas fluyen hacia una corriente principal o un cuerpo de agua; constituye una subdivisión de la región hidrográfica."]
[]
[null,"Cuencas hidrológicas"]
[null,null,"Se refiere a la unidad del territorio, diferenciada de otras unidades, normalmente delimitada por un parte aguas o divisoria de las aguas -aquella línea poligonal formada por los puntos de mayor elevación en dicha unidad-, en donde escurre el agua en distintas formas, y esta se almacena o fluye hasta un punto de salida que puede ser el mar u otro cuerpo receptor interior, a través de una red hidrográfica de cauces que convergen en uno principal, o bien el territorio en donde las aguas forman una unidad autónoma o diferenciada de otras, aun sin que desemboquen en el mar. "]
[]
[null,"Desarrollo regional"]
[null,null,"Se refiere al proceso de crecimiento económico en dos o más centros de población determinados, garantizando el mejoramiento de la calidad de vida de la población, la preservación del ambiente, así como la conservación y reproducción de los recursos naturales."]
[]
[null,"Desarrollo urbano"]
[null,null,"Se refiere a la acción urbanística que consiste en los actos o actividades tendientes al uso o aprovechamiento del suelo dentro de áreas urbanizadas o urbanizables, tales como: subdivisiones, parcelaciones, fusiones, relotificaciones, fraccionamientos, condominios, conjuntos urbanos o urbanizaciones en general, así como de construcción, ampliación, remodelación, reparación, demolición o reconstrucción de inmuebles, de propiedad pública o privada, que por su naturaleza están determinadas en los planes o programas de desarrollo urbano o tienen los permisos correspondientes. Comprende también la realización de obras de equipamiento, infraestructura o servicios urbanos."]
[]
[null,"Desastre"]
[null,null,"Se refiere al resultado de la ocurrencia de uno o más agentes perturbadores severos y o extremos, concatenados o no, de origen natural, de la actividad humana o aquellos provenientes del espacio exterior, que cuando acontecen en un tiempo y en una zona determinada, causan daños y que por su magnitud exceden la capacidad de respuesta de la comunidad afectada."]
[]
[null,"Fenómeno geológico"]
[null,null,"Se refiere al agente perturbador que tiene como causa directa las acciones y movimientos de la corteza terrestre. A esta categoría pertenecen los sismos, las erupciones volcánicas, los tsunamis, la inestabilidad de laderas, los flujos, los caídos o derrumbes, los hundimientos, la subsidencia y los agrietamientos."]
[]
[null,"Fenómeno hidrometeorológico"]
[null,null,"Se refiere al agente perturbador que se genera por la acción de los agentes atmosféricos, tales como: ciclones tropicales, lluvias extremas, inundaciones pluviales, fluviales, costeras y lacustres; tormentas de nieve, granizo, polvo y electricidad; heladas; sequías; ondas cálidas y gélidas; y tornados."]
[]
[null,"Fenómeno químico-tecnológico"]
[null,null,"Se refiere al agente perturbador que se genera por la acción violenta de diferentes sustancias derivadas de su interacción molecular o nuclear. Comprende fenómenos destructivos tales como: incendios de todo tipo, explosiones, fugas tóxicas, radiaciones y derrames."]
[]
[null,"Fenómeno sanitario-ecológico"]
[null,null,"Se refiere al agente perturbador que se genera por la acción patógena de agentes biológicos que afectan a la población, a los animales y a las cosechas, causando su muerte o la alteración de su salud. Las epidemias o plagas constituyen un desastre sanitario en el sentido estricto del término. En esta clasificación también se ubica la contaminación del aire, agua, suelo y alimentos."]
[]
[null,"Fenómeno socio-organizativo"]
[null,null,"Se refiere al agente perturbador que se genera con motivo de errores humanos o por acciones premeditadas, que se dan en el marco de grandes concentraciones o movimientos masivos de población, tales como: demostraciones de inconformidad social, concentración masiva de población, terrorismo, sabotaje, vandalismo, accidentes aéreos, marítimos o terrestres, e interrupción o afectación de los servicios básicos o de infraestructura estratégica."]
[]
[null,"Gestión Integral de Riesgos"]
[null,null,"Se refiere al conjunto de acciones encaminadas a la identificación, análisis, evaluación, control y reducción de los riesgos, considerándolos por su origen multifactorial y en un proceso permanente de construcción que involucra a los tres órdenes de gobierno, así como a los sectores de la sociedad, lo que facilita la implementación de políticas públicas, estrategias y procedimientos que combatan las causas estructurales de los desastres y fortalezcan las capacidades de resiliencia o resistencia de la sociedad. Comprende la identificación de los riesgos y, en su caso, su proceso de formación, previsión, prevención, mitigación, preparación, auxilio, recuperación y reconstrucción."]
[]
[null,"Identificación de riesgos"]
[null,null,"Se refiere a la acción de reconocer y valorar las pérdidas o daños probables sobre los agentes afectables y su distribución geográfica, a través del análisis de los peligros y la vulnerabilidad."]
[]
[null,"Imagen satelital"]
[null,null,"Se refiere a la representación visual de los datos reflejados por la superficie de la tierra que captura un sensor montado en un satélite artificial. Los datos son enviados a una estación terrena en donde se procesan y se convierten en imágenes, enriqueciendo nuestro conocimiento de las características de la Tierra en diferentes escalas espaciales. "]
[]
[null,"Informante básico"]
[null,null,"Se refiere al titular o servidor público de la institución designado para proveer la información de la presente sección, y que tiene el carácter de figura responsable de validar y oficializar la información. Cuando menos, se encuentra en el segundo o tercer nivel jerárquico de la misma."]
[]
[null,"Informante complementario 1"]
[null,null,"Se refiere al servidor público que, por las funciones que tiene asignadas dentro de la institución, es el principal productor y/o integrador de la información correspondiente a la presente sección y, cuando menos, se encuentra en el segundo o tercer nivel jerárquico de la misma."]
[]
[null,"Informante complementario 2"]
[null,null,"Se refiere al servidor público que, por las funciones que tiene asignadas dentro de la institución, es el segundo principal productor y/o integrador de la información correspondiente a la presente sección y, cuando menos, se encuentra en el segundo o tercer nivel jerárquico de la misma."]
[]
[null,"Instrumentos de administración y transferencia de riesgos"]
[null,null,"Se refiere a aquellos programas o mecanismos financieros que permiten a las entidades públicas de los diversos órdenes de gobierno, compartir o cubrir sus riesgos catastróficos, transfiriendo el costo total o parcial a instituciones financieras nacionales o internacionales."]
[]
[null," Instrumentos financieros de Gestión Integral de Riesgos"]
[null,null,"Se refiere a aquellos programas y mecanismos de financiamiento y cofinanciamiento con el que cuenta el gobierno federal para apoyar a las instancias públicas federales y entidades federativas, en la ejecución de proyectos y acciones derivadas de la gestión integral de riesgos, para la prevención y atención de situaciones de emergencia y/o desastre de origen natural."]
[]
[null,"Manual de organización"]
[null,null,"Se refiere a aquellos instrumentos de apoyo administrativo que describen en forma ordenada y sistemática las relaciones orgánicas que se dan entre los elementos de la estructura organizacional de una determinada unidad administrativa."]
[]
[null,"Manual de procedimientos"]
[null,null,"Se refiere al documento de carácter técnico donde se identifican los procesos de trabajo, tanto sustantivos como administrativos, con el objetivo de coordinar y sistematizar las funciones en un marco de transparencia y eficiencia."]
[]
[null,"Mapa de peligros"]
[null,null,"Se refiere a la representación gráfica de la distribución espacial y temporal del resultado del análisis o modelaciones que expresan la intensidad, frecuencia o tasa de excedencia de los peligros."]
[]
[null,"Mecanismos de participación ciudadana"]
[null,null,"Se refiere a aquellos a través de los cuales el gobierno y la sociedad se relacionan y articulan para fortalecer la planeación, ejecución, seguimiento y evaluación de políticas públicas."]
[]
[null,"Mitigación"]
[null,null,"Se refiere a toda acción orientada a disminuir el impacto o daños ante la presencia de un agente perturbador sobre un agente afectable."]
[]
[null,"Movilidad"]
[null,null,"Se refiere a la capacidad, facilidad y eficiencia de tránsito o desplazamiento de las personas y bienes en el territorio, priorizando la accesibilidad universal, así como la sustentabilidad de la misma."]
[]
[null,"Movilidad institucional"]
[null,null,"Se refiere a aquella realizada por el sector público y privado o instituciones académicas orientadas a racionalizar el uso del automóvil entre quienes acuden a sus instalaciones, incluyendo sistemas de auto compartido, transporte público privado, fomento al uso de la bicicleta, redistribución de acuerdo a su residencia y todo tipo de innovación en el sector privado encaminada a dichos fines."]
[]
[null,"Ordenamiento ecológico"]
[null,null,"Se refiere al instrumento de política ambiental cuyo objeto es regular o inducir el uso del suelo y las actividades productivas, con el fin de lograr la protección del medio ambiente y la preservación y el aprovechamiento sustentable de los recursos naturales, a partir del análisis de las tendencias de deterioro y las potencialidades de aprovechamiento de los mismos."]
[]
[null,"Ordenamiento territorial"]
[null,null,"Se refiere a la política pública que tiene como objeto la ocupación y utilización racional del territorio como base espacial de las estrategias de desarrollo socioeconómico y la preservación ambiental."]
[]
[null,"Ortofoto"]
[null,null,"Se refiere a la imagen de una fotografía aérea, en la que han sido removidos los desplazamientos causados por la inclinación de la cámara o sensor y el relieve del terreno. Está referida a una proyección cartográfica, por lo que posee las características geométricas de un mapa, además de la calidad pictórica de la fotografía."]
[]
[null,"Participación ciudadana"]
[null,null,"Se refiere a aquellos ejercicios de interacción de los sujetos obligados con la sociedad que tiene por finalidad incidir en el diseño, ejecución, monitoreo y evaluación de las políticas, programas y proyectos públicos."]
[]
[null,"Patrimonio natural y cultural"]
[null,null,"Se refiere a los sitios, lugares o edificaciones con valor arqueológico, histórico, artístico, ambiental o de otra naturaleza, definidos y regulados por la legislación correspondiente."]
[]
[null,"Planeación urbana"]
[null,null,"Se refiere al proceso continuo y permanente de análisis de la situación actual y de previsión de los escenarios futuros para el desarrollo de los asentamientos humanos de tipo urbano."]
[]
[null,"Polígono"]
[null,null,"Se refiere a la figura geométrica regular o irregular, a la cual se le da forma por medio de la medición de ángulos y distancias de sus lados, haciendo apoyo en cada uno de sus puntos."]
[]
[null,"Preparación"]
[null,null,"Se refiere a aquellas actividades y medidas tomadas anticipadamente para asegurar una respuesta eficaz ante el impacto de un fenómeno perturbador en el corto, mediano y largo plazo."]
[]
[null,"Prevención"]
[null,null,"Se refiere al conjunto de acciones y mecanismos implementados con antelación a la ocurrencia de los agentes perturbadores, con la finalidad de conocer los peligros o los riesgos, identificarlos, eliminarlos o reducirlos; evitar o mitigar su impacto destructivo sobre las personas, bienes, infraestructura, así como anticiparse a los procesos sociales de construcción de los mismos."]
[]
[null,"Previsión"]
[null,null,"Se refiere al acto de tomar conciencia de los riesgos que pueden causarse y las necesidades para enfrentarlos a través de las etapas de identificación de riesgos, prevención, mitigación, preparación, atención de emergencias, recuperación y reconstrucción. "]
[]
[null,"Registro administrativo"]
[null,null,"Se refiere a la serie de datos sobre un hecho, evento, suceso o acción sujeto a regulación o control que recaba una dependencia u organismo del sector público como parte de su función."]
[]
[null,"Reserva de crecimiento"]
[null,null,"Se refiere a los predios continuos a la mancha urbana que son susceptibles de ser urbanizados una vez ocupada el área urbana central."]
[]
[null,"Reservas territoriales"]
[null,null,"Se refiere a las áreas de un centro de población que serán utilizadas para su crecimiento."]
[]
[null,"Resiliencia"]
[null,null,"Se refiere a la capacidad de un sistema, comunidad o sociedad potencialmente expuesta a un peligro para resistir, asimilar, adaptarse y recuperarse de sus efectos en un corto plazo y de manera eficiente, a través de la preservación y restauración de sus estructuras básicas y funcionales, para lograr una mejor protección futura y de las medidas de reducción de riesgos."]
[]
[null,"Riesgo"]
[null,null,"Se refiere a los daños o pérdidas probables sobre un agente afectable, resultado de la interacción entre su vulnerabilidad y la presencia de un agente perturbador."]
[]
[null,"Servicios WMS"]
[null,null,"Se refiere al estándar para publicar cartografía en Internet cuyas especificaciones están recibidas en el Open Geoespatial Consortium (OGC), este servicio permite generar mapas de forma dinámica a partir de coordenadas geográficas en un formato de imagen como PNG, GIF o JPEG, facilitando con ello la construcción de mapas personalizados a partir de datos tomados de distintas fuentes. "]
[]
[null,"Sistema de información geográfica"]
[null,null,"Se refiere a la plataforma informática que contiene información geoespacial y datos asociados que a su vez contiene herramientas que permiten agregar, modificar y desplegar información específica del territorio  como: límite municipal, zonas, colonias, manzanas, predios, servicios públicos, reservas de crecimiento, vialidad, etcétera; favoreciendo la oportuna disponibilidad de información para la correcta  toma de decisiones durante la planificación y gestión del territorio."]
[]
[null,"Uso de suelo"]
[null,null,"Se refiere a los fines particulares a que podrán dedicarse determinadas zonas o predios de un centro de población o asentamiento humano."]
[]
[null,"Zona metropolitana"]
[null,null,"Se refiere a aquellos centros de población o conurbaciones que, por su complejidad, interacciones, relevancia social y económica, conforman una unidad territorial de influencia dominante y revisten importancia estratégica para el desarrollo nacional, las cuales han sido reconocidas por una declaratoria federal."]